Workbook

Sheet Summary
N2: Bin | O2: CES | P2: Room All
N3: 1 | O3: 0.09090909091 | P3: =COUNTIF($G$22:$G$497,N3) -> 9 | Q3: =P3/SUM($P$3:$P$18) -> 0.08653846154
N4: 2 | O4: 0.07070707071 | P4: =COUNTIF($G$22:$G$497,N4) -> 16 | Q4: =P4/SUM($P$3:$P$18) -> 0.1538461538
N5: 3 | O5: 0.06060606061 | P5: =COUNTIF($G$22:$G$497,N5) -> 9 | Q5: 0.08653846154
N6: 4 | O6: 0.09090909091 | P6: =COUNTIF($G$22:$G$497,N6) -> 11 | Q6: 0.1057692308
N7: 5 | O7: 0.101010101 | P7: =COUNTIF($G$22:$G$497,N7) -> 8 | Q7: 0.07692307692
N8: 6 | O8: 0.06060606061 | P8: =COUNTIF($G$22:$G$497,N8) -> 8 | Q8: 0.07692307692
N9: 7 | O9: 0.0303030303 | P9: =COUNTIF($G$22:$G$497,N9) -> 4 | Q9: 0.03846153846
N10: 8 | O10: 0.0404040404 | P10: =COUNTIF($G$22:$G$497,N10) -> 3 | Q10: 0.02884615385
N11: 9 | O11: 0.07070707071 | P11: =COUNTIF($G$22:$G$497,N11) -> 2 | Q11: 0.01923076923
N12: 10 | O12: 0.07070707071 | P12: =COUNTIF($G$22:$G$497,N12) -> 4 | Q12: 0.03846153846
N13: 11 | O13: 0.08080808081 | P13: =COUNTIF($G$22:$G$497,N13) -> 7 | Q13: 0.06730769231
N14: 12 | O14: 0.0303030303 | P14: =COUNTIF($G$22:$G$497,N14) -> 4 | Q14: 0.03846153846
N15: 13 | O15: 0.0404040404 | P15: =COUNTIF($G$22:$G$497,N15) -> 2 | Q15: 0.01923076923
N16: 14 | O16: 0.0404040404 | P16: =COUNTIF($G$22:$G$497,N16) -> 4 | Q16: 0.03846153846
N17: 15 | O17: 0.05050505051 | P17: =COUNTIF($G$22:$G$497,N17) -> 3 | Q17: 0.02884615385
N18: 16 | O18: 0.07070707071 | P18: =COUNTIF($G$22:$G$497,N18) -> 10 | Q18: 0.09615384615
N19: Total | P19: =SUM(P3:P18) -> 104
D20: 3100 K | J20: 3500 K
A21: Use? | B21: ID | C21: Object Name | D21: J' (3100 K BBR) | E21: a' (3100 K BBR) | F21: b' (3100 K BBR) | G21: Hue Angle Bin | J21: J' (3100 K BBR) | K21: a' (3100 K BBR) | L21: b' (3100 K BBR) | M21: Hue Angle Bin
A22: Yes | B22: 3 | C22: Gray Chair | D22: 41.26677696 | E22: 1.454411134 | F22: 0.1596740522 | G22: 1 | J22: 41.24328782 | K22: 1.01944286 | L22: 0.1499007331 | M22: 1
A23: Yes | B23: 8 | C23: AZ Tea (Pink) | D23: 56.67606246 | E23: 41.43910108 | F23: 0.589506428 | G23: 1 | J23: 55.71148645 | K23: 40.92486355 | L23: -0.3076657625 | M23: 16
A24: Yes | B24: 35 | C24: Pop Tarts (Pink) | D24: 55.55173112 | E24: 42.160511 | F24: 4.400819564 | G24: 1 | J24: 54.52837447 | K24: 41.82292247 | L24: 3.513619664 | M24: 1
A25: Yes | B25: 42 | C25: Purple Plate | D25: 19.89658641 | E25: 19.66743263 | F25: 1.427832743 | G25: 1 | J25: 19.59657578 | K25: 19.44822785 | L25: 0.7750319242 | M25: 1
A26: Yes | B26: 57 | C26: Wall Hanging Fabric 1 | D26: 21.47666634 | E26: 14.89282039 | F26: 3.44135098 | G26: 1 | J26: 21.2156429 | K26: 14.04353428 | L26: 3.184332229 | M26: 1
A27: Yes | B27: 58 | C27: Wall Hanging Fabric 2 | D27: 30.88979009 | E27: 20.829073 | F27: 7.572705919 | G27: 1 | J27: 30.48944243 | K27: 20.2326182 | L27: 7.370770736 | M27: 1
A28: Yes | B28: 88 | C28: Red Onion | D28: 31.99836398 | E28: 17.37290747 | F28: 3.077948329 | G28: 1 | J28: 31.67499762 | K28: 16.51198048 | L28: 2.797016849 | M28: 1
A29: Yes | B29: 89 | C29: Red Delicious | D29: 34.75007322 | E29: 23.97711939 | F29: 8.410286232 | G29: 1 | J29: 34.263186 | K29: 23.33291385 | L29: 8.123488853 | M29: 1
A30: Yes | B30: 92 | C30: Plum | D30: 25.58307636 | E30: 6.710050885 | F30: 1.176389427 | G30: 1 | J30: 25.47980805 | K30: 6.233974775 | L30: 1.041010844 | M30: 1
A31: Yes | B31: 6 | C31: Skin (MR) | D31: 70.5346228 | E31: 10.8406822 | F31: 9.442091814 | G31: 2 | J31: 70.31406005 | K31: 10.09974196 | L31: 9.672405129 | M31: 2
A32: Yes | B32: 15 | C32: Orange Crush | D32: 67.6560642 | E32: 30.51921375 | F32: 29.31482474 | G32: 2 | J32: 66.72151662 | K32: 30.64213582 | L32: 29.3386408 | M32: 2
A33: Yes | B33: 16 | C33: Coke | D33: 55.11200591 | E33: 40.48328598 | F33: 22.54883804 | G33: 2 | J33: 53.98307828 | K33: 40.29686338 | L33: 22.36241479 | M33: 2
A34: Yes | B34: 25 | C34: Honey Nut Cheerios Dark | D34: 39.67374636 | E34: 27.77939387 | F34: 14.51899404 | G34: 2 | J34: 39.05790919 | K34: 27.23043435 | L34: 14.3851019 | M34: 2
A35: Yes | B35: 28 | C35: Fruit Loops | D35: 54.73060045 | E35: 38.5279015 | F35: 19.4623264 | G35: 2 | J35: 53.70334241 | K35: 38.02683662 | L35: 19.27295974 | M35: 2
A36: Yes | B36: 32 | C36: Reese's Puffs | D36: 66.06164694 | E36: 32.74380566 | F36: 28.21460734 | G36: 2 | J36: 65.07903367 | K36: 32.89133213 | L36: 28.14941598 | M36: 2
A37: Yes | B37: 51 | C37: Oregon State | D37: 59.57472064 | E37: 33.48757324 | F37: 25.17489529 | G37: 2 | J37: 58.61253354 | K37: 33.42418216 | L37: 25.05821459 | M37: 2
A38: Yes | B38: 52 | C38: Blazers | D38: 41.89461237 | E38: 36.47279748 | F38: 16.46643148 | G38: 2 | J38: 40.97269506 | K38: 36.08152232 | L38: 16.05988786 | M38: 2
A39: Yes | B39: 59 | C39: Malevich - Red | D39: 63.87877005 | E39: 36.9783597 | F39: 22.20902875 | G39: 2 | J39: 62.8575023 | K39: 36.68772643 | L39: 22.08133447 | M39: 2
A40: Yes | B40: 60 | C40: Malevich - Pink | D40: 78.45983179 | E40: 22.97403755 | F40: 14.01522165 | G40: 2 | J40: 77.94666267 | K40: 22.7224847 | L40: 13.82778966 | M40: 2
A41: Yes | B41: 61 | C41: Wall Hanging Fabric 3 | D41: 49.40198796 | E41: 31.32583909 | F41: 21.60700403 | G41: 2 | J41: 48.55583042 | K41: 31.21960575 | L41: 21.44094326 | M41: 2
A42: Yes | B42: 79 | C42: Red Pepper | D42: 41.47425026 | E42: 27.15690821 | F42: 16.08068306 | G42: 2 | J42: 40.83122963 | K42: 26.92075129 | L42: 15.8606981 | M42: 2
A43: Yes | B43: 81 | C43: Red Pepp | D43: 45.48984472 | E43: 29.99508493 | F43: 15.47681653 | G43: 2 | J43: 44.76239058 | K43: 29.5799057 | L43: 15.23337577 | M43: 2
A44: Yes | B44: 86 | C44: Tomato | D44: 45.2610591 | E44: 22.17590677 | F44: 17.30161256 | G44: 2 | J44: 44.7184217 | K44: 21.66022206 | L44: 17.31120656 | M44: 2
A45: Yes | B45: 99 | C45: Strawberry | D45: 47.72191488 | E45: 29.42560839 | F45: 17.60703124 | G45: 2 | J45: 46.98329097 | K45: 29.09822354 | L45: 17.42212336 | M45: 2
A46: Yes | B46: 101 | C46: Cast Iron Plant Red Pot | D46: 30.40667365 | E46: 26.35216253 | F46: 11.98621073 | G46: 2 | J46: 29.86962853 | K46: 25.91456991 | L46: 11.75923326 | M46: 2
A47: Yes | B47: 33 | C47: Uncle Ben's | D47: 68.91407384 | E47: 28.35548106 | F47: 31.85541002 | G47: 3 | J47: 68.0056266 | K47: 28.47207154 | L47: 32.06621499 | M47: 3
A48: Yes | B48: 37 | C48: Shelf | D48: 54.6369451 | E48: 10.08139002 | F48: 14.78864664 | G48: 3 | J48: 54.37000772 | K48: 10.11189993 | L48: 14.7535016 | M48: 3
A49: Yes | B49: 39 | C49: Table Wood | D49: 70.18564381 | E49: 9.604279616 | F49: 18.88420875 | G49: 3 | J49: 69.88733097 | K49: 9.344253288 | L49: 19.11865251 | M49: 3
A50: Yes | B50: 41 | C50: Wood Bowl | D50: 76.93206957 | E50: 8.174967573 | F50: 16.52714228 | G50: 3 | J50: 76.68967598 | K50: 7.960235925 | L50: 16.71645009 | M50: 3
A51: Yes | B51: 47 | C51: Tan Curtain | D51: 51.85456915 | E51: 5.787033459 | F51: 9.607880635 | G51: 3 | J51: 51.70563632 | K51: 5.834161072 | L51: 9.556103382 | M51: 3
A52: Yes | B52: 80 | C52: Orange Pepper | D52: 60.48385247 | E52: 20.96050346 | F52: 27.73665067 | G52: 3 | J52: 59.80628397 | K52: 21.30698963 | L52: 27.71692463 | M52: 3
A53: Yes | B53: 91 | C53: Apricot | D53: 65.02802219 | E53: 16.26600098 | F53: 25.02612841 | G53: 3 | J53: 64.50291147 | K53: 16.64376716 | L53: 24.98630011 | M53: 3
A54: Yes | B54: 95 | C54: Butternut Squah | D54: 76.49652929 | E54: 10.12231882 | F54: 17.07077676 | G54: 3 | J54: 76.20025131 | K54: 10.1639535 | L54: 17.20436952 | M54: 3
A55: Yes | B55: 98 | C55: Bread | D55: 63.98653306 | E55: 12.88398238 | F55: 22.02208522 | G55: 3 | J55: 63.57965063 | K55: 12.71361233 | L55: 22.17521798 | M55: 3
A56: Yes | B56: 5 | C56: Ceiling Tile | D56: 96.73465218 | E56: 0.4060256022 | F56: 2.20583718 | G56: 4 | J56: 96.72314078 | K56: 0.3794737538 | L56: 2.260746912 | M56: 4
A57: Yes | B57: 21 | C57: Lays Classic | D57: 82.57241606 | E57: 0.5757230254 | F57: 34.99112009 | G57: 4 | J57: 82.32232677 | K57: 0.5022116167 | L57: 35.64151617 | M57: 4
A58: Yes | B58: 24 | C58: Honey & Nut Toasted Oats | D58: 90.67008889 | E58: 0.5659631201 | F58: 2.810084099 | G58: 4 | J58: 90.65426924 | K58: 0.524995855 | L58: 2.881910172 | M58: 4
A59: Yes | B59: 26 | C59: Honey Nut Cheerios Light | D59: 80.87258322 | E59: 4.853794837 | F59: 30.79967147 | G59: 4 | J59: 80.5726672 | K59: 4.761883336 | L59: 31.1977572 | M59: 4
A60: Yes | B60: 31 | C60: Cheerios | D60: 80.83495225 | E60: 0.2024190537 | F60: 38.38964723 | G60: 4 | J60: 80.54017458 | K60: 0.2525313112 | L60: 39.10327219 | M60: 4
A61: Yes | B61: 62 | C61: Malevich - Yellow | D61: 77.34329638 | E61: 0.8075222312 | F61: 25.39030577 | G61: 4 | J61: 77.18957416 | K61: 0.5446532148 | L61: 25.87931032 | M61: 4
A62: Yes | B62: 63 | C62: Wall Hanging Fabric 4 | D62: 87.08640192 | E62: 3.538623159 | F62: 8.925792952 | G62: 4 | J62: 86.99268669 | K62: 3.345872992 | L62: 9.112065996 | M62: 4
A63: Yes | B63: 71 | C63: Dishrag 3 | D63: 83.20573916 | E63: 2.383369153 | F63: 7.952700751 | G63: 4 | J63: 83.13595399 | K63: 2.300990827 | L63: 8.085637462 | M63: 4
A64: Yes | B64: 82 | C64: Yellow Pepp | D64: 63.42551962 | E64: 3.567055363 | F64: 30.92488011 | G64: 4 | J64: 63.12130748 | K64: 3.827900434 | L64: 31.28055573 | M64: 4
A65: Yes | B65: 85 | C65: Garlic | D65: 89.24645178 | E65: 2.042305239 | F65: 7.532823272 | G65: 4 | J65: 89.18628355 | K65: 1.946203823 | L65: 7.683372915 | M65: 4
A66: Yes | B66: 96 | C66: Spaghetii Squash | D66: 86.9395765 | E66: 1.855686176 | F66: 26.35031465 | G66: 4 | J66: 86.74681612 | K66: 1.793346685 | L66: 26.82106011 | M66: 4
A67: Yes | B67: 13 | C67: La Croix Yellow (light) | D67: 88.70217913 | E67: -1.804324517 | F67: 25.00549135 | G67: 5 | J67: 88.59487373 | K67: -1.649946393 | L67: 25.32901153 | M67: 5
A68: Yes | B68: 14 | C68: La Croix Yellow (Dark) | D68: 85.12214256 | E68: -0.01193797107 | F68: 39.44861629 | G68: 5 | J68: 84.83041508 | K68: -0.09639713492 | L68: 40.26683684 | M68: 5
A69: Yes | B69: 45 | C69: Black Diamond Pack | D69: 64.51572966 | E69: -2.915270455 | F69: 27.37343633 | G69: 5 | J69: 64.38886596 | K69: -2.753682722 | L69: 27.87782532 | M69: 5
A70: Yes | B70: 53 | C70: Oregon Yellow | D70: 88.71598739 | E70: -2.438073213 | F70: 34.28918565 | G70: 5 | J70: 88.53839322 | K70: -2.497943583 | L70: 35.01572283 | M70: 5
A71: Yes | B71: 64 | C71: Malevich - White | D71: 89.59055643 | E71: -1.232715625 | F71: 8.060760333 | G71: 5 | J71: 89.58054301 | K71: -1.316117436 | L71: 8.253625378 | M71: 5
A72: Yes | B72: 76 | C72: Boom Chicka Yellow | D72: 87.65710416 | E72: -3.16437809 | F72: 25.75282016 | G72: 5 | J72: 87.57656963 | K72: -3.09955374 | L72: 26.16898604 | M72: 5
A73: Yes | B73: 87 | C73: Sweet Onion | D73: 79.7313719 | E73: -0.2928819495 | F73: 17.37008396 | G73: 5 | J73: 79.64626257 | K73: -0.6870751036 | L73: 18.08994742 | M73: 5
A74: Yes | B74: 90 | C74: Granny Smith | D74: 69.01678308 | E74: -7.658415308 | F74: 25.43492598 | G74: 5 | J74: 69.00171121 | K74: -7.058349587 | L74: 25.8643504 | M74: 5
A75: Yes | B75: 17 | C75: La Croix Green (Light) | D75: 79.91652181 | E75: -10.16337906 | F75: 12.49659828 | G75: 6 | J75: 80.02094266 | K75: -10.0039414 | L75: 12.96267467 | M75: 6
A76: Yes | B76: 18 | C76: La Croix Green (Dark) | D76: 72.98969152 | E76: -16.37230968 | F76: 24.30849573 | G76: 6 | J76: 73.16893084 | K76: -16.13645285 | L76: 25.10000267 | M76: 6
A77: Yes | B77: 50 | C77: Seahawks Green | D77: 77.97670273 | E77: -21.69211854 | F77: 27.04050752 | G77: 6 | J77: 78.23960755 | K77: -21.01569621 | L77: 27.88612615 | M77: 6
A78: Yes | B78: 65 | C78: Flower Photo Green | D78: 58.34993809 | E78: -16.6513601 | F78: 17.53706639 | G78: 6 | J78: 58.56604284 | K78: -16.53538316 | L78: 18.19947668 | M78: 6
A79: Yes | B79: 83 | C79: Green Pepper | D79: 40.73977093 | E79: -9.409110721 | F79: 16.71963918 | G79: 6 | J79: 40.79617424 | K79: -8.672426529 | L79: 16.99055284 | M79: 6
A80: Yes | B80: 94 | C80: Watermelon | D80: 34.34228803 | E80: -6.479835234 | F80: 8.455020332 | G80: 6 | J80: 34.38711423 | K80: -5.973542249 | L80: 8.580582721 | M80: 6
A81: Yes | B81: 100 | C81: Cast Iron Plant | D81: 35.47816727 | E81: -8.47452657 | F81: 10.55502522 | G81: 6 | J81: 35.54292727 | K81: -7.835546575 | L81: 10.72830086 | M81: 6
A82: Yes | B82: 103 | C82: Peony Leaf | D82: 37.47291891 | E82: -8.880823279 | F82: 11.30580403 | G82: 6 | J82: 37.54074537 | K82: -8.212315948 | L82: 11.5044066 | M82: 6
A83: Yes | B83: 27 | C83: Apple Jacks | D83: 60.82909708 | E83: -32.47884122 | F83: 20.15911508 | G83: 7 | J83: 61.39101873 | K83: -31.6634059 | L83: 21.37860897 | M83: 7
A84: Yes | B84: 40 | C84: White Plate | D84: 84.75614223 | E84: -1.8914433 | F84: 0.941528322 | G84: 7 | J84: 84.77188701 | K84: -1.786756491 | L84: 1.020703891 | M84: 7
A85: Yes | B85: 54 | C85: Oregon Green | D85: 42.563793 | E85: -22.92555927 | F85: 9.671424342 | G85: 7 | J85: 42.91303062 | K85: -22.51649593 | L85: 10.47075163 | M85: 7
A86: Yes | B86: 93 | C86: Acorn Squash | D86: 29.2830321 | E86: -3.381477021 | F86: 2.93997471 | G86: 7 | J86: 29.30655013 | K86: -3.155511737 | L86: 2.992300444 | M86: 7
A87: Yes | B87: 7 | C87: AZ Tea Green | D87: 76.34945886 | E87: -26.93764773 | F87: 1.065435085 | G87: 8 | J87: 76.7765244 | K87: -26.52038635 | L87: 2.05285142 | M87: 8
A88: Yes | B88: 12 | C88: 7up | D88: 32.57900223 | E88: -32.71066585 | F88: 9.487239742 | G88: 8 | J88: 33.18629061 | K88: -32.42660005 | L88: 10.79858685 | M88: 8
A89: Yes | B89: 56 | C89: Timbers | D89: 27.4084395 | E89: -16.77444648 | F89: 1.926711975 | G89: 8 | J89: 27.63206128 | K89: -17.20354459 | L89: 2.832314261 | M89: 8
A90: Yes | B90: 23 | C90: Tostitos Green | D90: 36.8102181 | E90: -21.35770608 | F90: -6.971214704 | G90: 9 | J90: 37.1715519 | K90: -21.41914506 | L90: -6.313417853 | M90: 9
A91: Yes | B91: 44 | C91: Placemat | D91: 55.50094605 | E91: -19.11563066 | F91: -6.817453763 | G91: 9 | J91: 55.79517748 | K91: -18.95248048 | L91: -6.272431046 | M91: 9
A92: Yes | B92: 20 | C92: Simply Balance (Teal) | D92: 51.74827967 | E92: -25.77274712 | F92: -12.94218352 | G92: 10 | J92: 52.26769675 | K92: -25.92939663 | L92: -12.18487501 | M92: 10
A93: Yes | B93: 38 | C93: Pillow | D93: 35.04380064 | E93: -18.43043073 | F93: -10.92956803 | G93: 10 | J93: 35.34814111 | K93: -18.84940337 | L93: -10.30717365 | M93: 10
A94: Yes | B94: 66 | C94: Malevich - Blue | D94: 38.85679916 | E94: -23.73601529 | F94: -13.87683501 | G94: 10 | J94: 39.34309739 | K94: -24.15417429 | L94: -13.05631348 | M94: 10
A95: Yes | B95: 67 | C95: Malevich - Blue 2 | D95: 63.46590891 | E95: -18.87694253 | F95: -9.981438791 | G95: 10 | J95: 63.7811596 | K95: -19.08220815 | L95: -9.413430265 | M95: 10
A96: Yes | B96: 2 | C96: Gray Carpet | D96: 40.30400002 | E96: -0.7490373954 | F96: -0.9180222321 | G96: 11 | J96: 40.31099291 | K96: -0.7410577141 | L96: -0.9017371906 | M96: 11
A97: Yes | B97: 29 | C97: Frosted Flakes | D97: 32.98923043 | E97: -17.81050618 | F97: -31.28995867 | G97: 11 | J97: 33.46991768 | K97: -18.06868606 | L97: -31.08898466 | M97: 11
A98: Yes | B98: 30 | C98: Rice Crispies | D98: 49.81572075 | E98: -27.27344329 | F98: -28.75159109 | G98: 11 | J98: 50.58430304 | K98: -27.53858576 | L98: -28.22168295 | M98: 11
A99: Yes | B99: 34 | C99: Pop Tarts (Blue) | D99: 34.5569897 | E99: -18.19853518 | F99: -34.12879439 | G99: 11 | J99: 35.07856446 | K99: -18.4799552 | L99: -33.9481026 | M99: 11
A100: Yes | B100: 36 | C100: Barilla | D100: 22.47791309 | E100: -12.23215363 | F100: -22.8690668 | G100: 11 | J100: 22.73311276 | K100: -12.46018654 | L100: -22.71864198 | M100: 11
A101: Yes | B101: 43 | C101: Blue Plate | D101: 31.76565034 | E101: -18.45781971 | F101: -22.6080433 | G101: 11 | J101: 32.17306162 | K101: -18.65652714 | L101: -22.27433996 | M101: 11
A102: Yes | B102: 46 | C102: Blue Curtain | D102: 22.84994236 | E102: -5.821508985 | F102: -13.84045153 | G102: 11 | J102: 22.93997004 | K102: -6.255869384 | L102: -13.82490283 | M102: 11
A103: Yes | B103: 4 | C103: Curtain | D103: 84.54228378 | E103: -0.1723510942 | F103: -8.305783294 | G103: 12 | J103: 84.56009021 | K103: -0.1810572336 | L103: -8.379937154 | M103: 12
A104: Yes | B104: 22 | C104: Tostitos (Blue) | D104: 41.31891949 | E104: -10.07433635 | F104: -25.49810145 | G104: 12 | J104: 41.5812757 | K104: -10.59586068 | L104: -25.35981843 | M104: 11
A105: Yes | B105: 48 | C105: Seahawks White | D105: 95.83878285 | E105: -0.1674589029 | F105: -5.268572322 | G105: 12 | J105: 95.84617427 | K105: -0.2838751341 | L105: -5.17773636 | M105: 12
A106: Yes | B106: 49 | C106: Seahawks Navy | D106: 21.29004216 | E106: -1.987560642 | F106: -14.60726678 | G106: 12 | J106: 21.33430656 | K106: -2.447915663 | L106: -14.69092988 | M106: 12
A107: Yes | B107: 55 | C107: Washington | D107: 28.42206955 | E107: 5.78301555 | F107: -20.75308494 | G107: 13 | J107: 28.37610895 | K107: 5.44438014 | L107: -21.3124816 | M107: 13
A108: Yes | B108: 77 | C108: Boom Chicka Lav | D108: 77.5416742 | E108: 4.52857596 | F108: -12.87939744 | G108: 13 | J108: 77.53508123 | K108: 3.945490616 | L108: -13.11768674 | M108: 13
A109: Yes | B109: 1 | C109: Black Tablecloth | D109: 18.78679268 | E109: 1.50126133 | F109: -1.728345951 | G109: 14 | J109: 18.77039056 | K109: 1.247951967 | L109: -1.902524908 | M109: 14
A110: Yes | B110: 11 | C110: Fanta | D110: 39.00698923 | E110: 20.91844945 | F110: -24.93773756 | G110: 14 | J110: 38.62268421 | K110: 20.13857546 | L110: -25.86857973 | M110: 14
A111: Yes | B111: 19 | C111: Smartfood Popcorn P&G | D111: 38.60021798 | E111: 14.86485138 | F111: -15.15575995 | G111: 14 | J111: 38.41659589 | K111: 14.4082815 | L111: -15.81961459 | M111: 14
A112: Yes | B112: 69 | C112: Dishrag 1 | D112: 36.6046463 | E112: 10.82571369 | F112: -18.41307474 | G112: 14 | J112: 36.48439789 | K112: 9.940001916 | L112: -19.06313308 | M112: 14
A113: Yes | B113: 73 | C113: Pot Holder | D113: 35.58456147 | E113: 20.84538684 | F113: -10.60814311 | G113: 15 | J113: 35.28081934 | K113: 20.31344579 | L113: -11.43843712 | M113: 15
A114: Yes | B114: 75 | C114: Spreader Purple | D114: 35.09648038 | E114: 13.21891865 | F114: -12.78973301 | G114: 15 | J114: 34.94756279 | K114: 12.83520044 | L114: -13.48420638 | M114: 14
A115: Yes | B115: 78 | C115: SR Jacket Down Light | D115: 39.83775968 | E115: 22.97596794 | F115: -18.4458665 | G115: 15 | J115: 39.42660755 | K115: 21.95092826 | L115: -19.71609134 | M115: 15
A116: Yes | B116: 9 | C116: La Croix Pink (Dark) | D116: 85.01419205 | E116: 20.05668652 | F116: -0.6634522683 | G116: 16 | J116: 84.68593549 | K116: 20.28063196 | L116: -1.226037426 | M116: 16
A117: Yes | B117: 10 | C117: La Croix Pink (Light) | D117: 87.56706723 | E117: 14.6172716 | F117: -0.8762489285 | G117: 16 | J117: 87.35635889 | K117: 14.75694219 | L117: -1.280363764 | M117: 16
A118: Yes | B118: 68 | C118: Flower Photo Pink | D118: 60.21906838 | E118: 32.62588698 | F118: -0.3427237907 | G118: 16 | J118: 59.54786088 | K118: 32.53164101 | L118: -1.35406099 | M118: 16
A119: Yes | B119: 70 | C119: Dishrag 2 | D119: 31.49748355 | E119: 27.81046741 | F119: -0.645290072 | G119: 16 | J119: 30.97528369 | K119: 27.1913711 | L119: -1.344139619 | M119: 16
A120: Yes | B120: 72 | C120: Dishrag 4 | D120: 38.17530926 | E120: 19.84618477 | F120: -6.436281066 | G120: 16 | J120: 37.87059955 | K120: 19.18595645 | L120: -7.158672596 | M120: 16
A121: Yes | B121: 74 | C121: Spreader Pink | D121: 80.55217548 | E121: 15.72099464 | F121: -6.166486596 | G121: 16 | J121: 80.3621218 | K121: 15.16930248 | L121: -6.644840646 | M121: 15
A122: Yes | B122: 84 | C122: Chineese Eggpant | D122: 31.65157985 | E122: 19.80344406 | F122: -5.751370887 | G122: 16 | J122: 31.33118587 | K122: 19.32346305 | L122: -6.526584528 | M122: 16
A123: Yes | B123: 97 | C123: Red Cabbage | D123: 31.9854377 | E123: 19.71926836 | F123: -1.35445027 | G123: 16 | J123: 31.63285648 | K123: 18.82335109 | L123: -1.873992962 | M123: 16
A124: Yes | B124: 102 | C124: Peony | D124: 67.83792712 | E124: 19.25130837 | F124: -2.423679701 | G124: 16 | J124: 67.52705997 | K124: 18.57963386 | L124: -2.647908 | M124: 16
A125: Yes | B125: 104 | C125: Daisy Flower | D125: 61.41567342 | E125: 20.63006246 | F125: -5.380595834 | G125: 16 | J125: 61.08362326 | K125: 19.6910759 | L125: -5.843433798 | M125: 16

Sheet Reflectances(Meas)
A1: ID (not sequential) | C1: 1 | D1: 2 | E1: 3 | F1: 4 | G1: 5 | H1: 6 | I1: 7 | J1: 8 | K1: 9 | L1: 10 | M1: 13 | N1: 14 | O1: 15 | P1: 16 | Q1: 17 | R1: 18 | S1: 19 | T1: 20 | U1: 21 | V1: 22 | W1: 23 | X1: 24 | Y1: 25 | Z1: 26 | AA1: 27 | AB1: 28 | AC1: 29 | AD1: 30 | AE1: 31 | AF1: 32 | AG1: 33 | AH1: 34 | AI1: 35 | AJ1: 36 | AK1: 37 | AL1: 38 | AM1: 42 | AN1: 43 | AO1: 45 | AP1: 46 | AQ1: 47 | AR1: 50 | AS1: 51 | AT1: 52 | AU1: 53 | AV1: 54 | AW1: 55 | AX1: 56 | AY1: 57 | AZ1: 58 | BA1: 59 | BB1: 60 | BC1: 61 | BD1: 62 | BE1: 63 | BF1: 64 | BG1: 65 | BH1: 66 | BI1: 69 | BJ1: 70 | BK1: 71 | BL1: 74 | BM1: 75 | BN1: 77 | BO1: 80 | BP1: 84 | BQ1: 85 | BR1: 87 | BS1: 89 | BT1: 90 | BU1: 91 | BV1: 92 | BW1: 93 | BX1: 94 | BY1: 95 | BZ1: 96 | CA1: 97 | CB1: 98 | CC1: 99 | CD1: 100 | CE1: 101 | CF1: 102 | CG1: 103 | CH1: 105 | CI1: 106 | CJ1: 107 | CK1: 108 | CL1: 109 | CM1: 110 | CN1: 111 | CO1: 112 | CP1: 113 | CQ1: 114 | CR1: 115 | CS1: 116 | CT1: 117 | CU1: 118 | CV1: 119 | CW1: 120 | CX1: 121 | CY1: 122 | CZ1: 123 | DA1: 124 | DB1: 125
A2: Description | C2: Black Tablecloth | D2: Gray Carpet | E2: Gray Chair | F2: Curtain | G2: Ceiling Tile | H2: Skin (MR) | I2: AZ Tea Green | J2: AZ Tea (Pink) | K2: La Croix Pink (Dark) | L2: La Croix Pink (Light) | M2: Fanta | N2: 7up | O2: La Croix Yellow (light) | P2: La Croix Yellow (Dark) | Q2: Orange Crush | R2: Coke | S2: La Croix Green (Light) | T2: La Croix Green (Dark) | U2: Smartfood Popcorn P&G | V2: Simply Balance (Teal) | W2: Lays Classic | X2: Tostitos (Blue) | Y2: Tostitos Green | Z2: Honey & Nut Toasted Oats | AA2: Honey Nut Cheerios Dark | AB2: Honey Nut Cheerios Light | AC2: Apple Jacks | AD2: Fruit Loops | AE2: Frosted Flakes | AF2: Rice Crispies | AG2: Cheerios | AH2: Reese's Puffs | AI2: Uncle Ben's | AJ2: Pop Tarts (Blue) | AK2: Pop Tarts (Pink) | AL2: Barilla | AM2: Shelf | AN2: Pillow | AO2: Table Wood | AP2: White Plate | AQ2: Wood Bowl | AR2: Purple Plate | AS2: Blue Plate | AT2: Placemat | AU2: Black Diamond Pack | AV2: Blue Curtain | AW2: Tan Curtain | AX2: Seahawks White | AY2: Seahawks Navy | AZ2: Seahawks Green | BA2: Oregon State | BB2: Blazers | BC2: Oregon Yellow | BD2: Oregon Green | BE2: Washington | BF2: Timbers | BG2: Wall Hanging Fabric 1 | BH2: Wall Hanging Fabric 2 | BI2: Malevich - Red | BJ2: Malevich - Pink | BK2: Wall Hanging Fabric 3 | BL2: Malevich - Yellow | BM2: Wall Hanging Fabric 4 | BN2: Malevich - White | BO2: Flower Photo Green | BP2: Malevich - Blue | BQ2: Malevich - Blue 2 | BR2: Flower Photo Pink | BS2: Dishrag 1 | BT2: Dishrag 2 | BU2: Dishrag 3 | BV2: Dishrag 4 | BW2: Pot Holder | BX2: Spreader Pink | BY2: Spreader Purple | BZ2: Boom Chicka Yellow | CA2: Boom Chicka Lav | CB2: SR Jacket Down Light | CC2: Red Pepper | CD2: Orange Pepper | CE2: Red Pepp | CF2: Yellow Pepp | CG2: Green Pepper | CH2: Chineese Eggpant | CI2: Garlic | CJ2: Tomato | CK2: Sweet Onion | CL2: Red Onion | CM2: Red Delicious | CN2: Granny Smith | CO2: Apricot | CP2: Plum | CQ2: Acorn Squash | CR2: Watermelon | CS2: Butternut Squah | CT2: Spaghetii Squash | CU2: Red Cabbage | CV2: Bread | CW2: Strawberry | CX2: Cast Iron Plant | CY2: Cast Iron Plant Red Pot | CZ2: Peony | DA2: Peony Leaf | DB2: Daisy Flower
A3: 360 | C3: 0.03 | D3: 0.0881 | E3: 0.1155 | F3: 0.2584 | G3: 0.7508 | H3: 0.1861 | I3: 0.2182 | J3: 0.1622 | K3: 0.408 | L3: 0.4413 | M3: 0.228 | N3: 0.0219 | O3: 0.1741 | P3: 0.0363 | Q3: 0.0478 | R3: 0.0386 | S3: 0.2031 | T3: 0.0704 | U3: 0.1317 | V3: 0.1724 | W3: 0.0703 | X3: 0.1481 | Y3: 0.071 | Z3: 0.4863 | AA3: 0.0338 | AB3: 0.127 | AC3: 0.062 | AD3: 0.0538 | AE3: 0.1254 | AF3: 0.1998 | AG3: 0.0594 | AH3: 0.0596 | AI3: 0.0439 | AJ3: 0.149 | AK3: 0.1498 | AL3: 0.0544 | AM3: 0.1038 | AN3: 0.1185 | AO3: 0.0737 | AP3: 0.5721 | AQ3: 0.1248 | AR3: 0.0442 | AS3: 0.0851 | AT3: 0.1737 | AU3: 0.0575 | AV3: 0.0766 | AW3: 0.1481 | AX3: 0.26 | AY3: 0.0524 | AZ3: 0.0911 | BA3: 0.0601 | BB3: 0.0729 | BC3: 0.1031 | BD3: 0.0591 | BE3: 0.2117 | BF3: 0.0362 | BG3: 0.0219 | BH3: 0.0286 | BI3: 0.0585 | BJ3: 0.21465 | BK3: 0.0302 | BL3: 0.1094 | BM3: 0.3011 | BN3: 0.3664 | BO3: 0.08515 | BP3: 0.09815 | BQ3: 0.23845 | BR3: 0.2315 | BS3: 0.1641 | BT3: 0.0568 | BU3: 0.3815 | BV3: 0.1262 | BW3: 0.1407 | BX3: 0.4289 | BY3: 0.1555 | BZ3: 0.2107 | CA3: 0.4088 | CB3: 0.3427 | CC3: 0.0349 | CD3: 0.0404 | CE3: 0.0456 | CF3: 0.0394 | CG3: 0.0356 | CH3: 0.0757 | CI3: 0.4742 | CJ3: 0.0352 | CK3: 0.0518 | CL3: 0.0437 | CM3: 0.0415 | CN3: 0.0613 | CO3: 0.0501 | CP3: 0.0384 | CQ3: 0.047 | CR3: 0.0486 | CS3: 0.0854 | CT3: 0.1168 | CU3: 0.0596 | CV3: 0.0622 | CW3: 0.0404 | CX3: 0.0468 | CY3: 0.0188 | CZ3: 0.0507 | DA3: 0.0447 | DB3: 0.084
A4: 370 | C4: 0.03 | D4: 0.0881 | E4: 0.1155 | F4: 0.2584 | G4: 0.7508 | H4: 0.1861 | I4: 0.2182 | J4: 0.1622 | K4: 0.408 | L4: 0.4413 | M4: 0.228 | N4: 0.0219 | O4: 0.1741 | P4: 0.0363 | Q4: 0.0478 | R4: 0.0386 | S4: 0.2031 | T4: 0.0704 | U4: 0.1317 | V4: 0.1724 | W4: 0.0703 | X4: 0.1481 | Y4: 0.071 | Z4: 0.4863 | AA4: 0.0338 | AB4: 0.127 | AC4: 0.062 | AD4: 0.0538 | AE4: 0.1254 | AF4: 0.1998 | AG4: 0.0594 | AH4: 0.0596 | AI4: 0.0439 | AJ4: 0.149 | AK4: 0.1498 | AL4: 0.0544 | AM4: 0.1038 | AN4: 0.1185 | AO4: 0.0737 | AP4: 0.5721 | AQ4: 0.1248 | AR4: 0.0442 | AS4: 0.0851 | AT4: 0.1737 | AU4: 0.0575 | AV4: 0.0766 | AW4: 0.1481 | AX4: 0.26 | AY4: 0.0524 | AZ4: 0.0911 | BA4: 0.0601 | BB4: 0.0729 | BC4: 0.1031 | BD4: 0.0591 | BE4: 0.2117 | BF4: 0.0362 | BG4: 0.0219 | BH4: 0.0286 | BI4: 0.0585 | BJ4: 0.21465 | BK4: 0.0302 | BL4: 0.1094 | BM4: 0.3011 | BN4: 0.3664 | BO4: 0.08515 | BP4: 0.09815 | BQ4: 0.23845 | BR4: 0.2315 | BS4: 0.1641 | BT4: 0.0568 | BU4: 0.3815 | BV4: 0.1262 | BW4: 0.1407 | BX4: 0.4289 | BY4: 0.1555 | BZ4: 0.2107 | CA4: 0.4088 | CB4: 0.3427 | CC4: 0.0349 | CD4: 0.0404 | CE4: 0.0456 | CF4: 0.0394 | CG4: 0.0356 | CH4: 0.0757 | CI4: 0.4742 | CJ4: 0.0352 | CK4: 0.0518 | CL4: 0.0437 | CM4: 0.0415 | CN4: 0.0613 | CO4: 0.0501 | CP4: 0.0384 | CQ4: 0.047 | CR4: 0.0486 | CS4: 0.0854 | CT4: 0.1168 | CU4: 0.0596 | CV4: 0.0622 | CW4: 0.0404 | CX4: 0.0468 | CY4: 0.0188 | CZ4: 0.0507 | DA4: 0.0447 | DB4: 0.084
A5: 380 | C5: 0.03 | D5: 0.0881 | E5: 0.1155 | F5: 0.2584 | G5: 0.7508 | H5: 0.1861 | I5: 0.2182 | J5: 0.1622 | K5: 0.408 | L5: 0.4413 | M5: 0.228 | N5: 0.0219 | O5: 0.1741 | P5: 0.0363 | Q5: 0.0478 | R5: 0.0386 | S5: 0.2031 | T5: 0.0704 | U5: 0.1317 | V5: 0.1724 | W5: 0.0703 | X5: 0.1481 | Y5: 0.071 | Z5: 0.4863 | AA5: 0.0338 | AB5: 0.127 | AC5: 0.062 | AD5: 0.0538 | AE5: 0.1254 | AF5: 0.1998 | AG5: 0.0594 | AH5: 0.0596 | AI5: 0.0439 | AJ5: 0.149 | AK5: 0.1498 | AL5: 0.0544 | AM5: 0.1038 | AN5: 0.1185 | AO5: 0.0737 | AP5: 0.5721 | AQ5: 0.1248 | AR5: 0.0442 | AS5: 0.0851 | AT5: 0.1737 | AU5: 0.0575 | AV5: 0.0766 | AW5: 0.1481 | AX5: 0.26 | AY5: 0.0524 | AZ5: 0.0911 | BA5: 0.0601 | BB5: 0.0729 | BC5: 0.1031 | BD5: 0.0591 | BE5: 0.2117 | BF5: 0.0362 | BG5: 0.0219 | BH5: 0.0286 | BI5: 0.0585 | BJ5: 0.21465 | BK5: 0.0302 | BL5: 0.1094 | BM5: 0.3011 | BN5: 0.3664 | BO5: 0.08515 | BP5: 0.09815 | BQ5: 0.23845 | BR5: 0.2315 | BS5: 0.1641 | BT5: 0.0568 | BU5: 0.3815 | BV5: 0.1262 | BW5: 0.1407 | BX5: 0.4289 | BY5: 0.1555 | BZ5: 0.2107 | CA5: 0.4088 | CB5: 0.3427 | CC5: 0.0349 | CD5: 0.0404 | CE5: 0.0456 | CF5: 0.0394 | CG5: 0.0356 | CH5: 0.0757 | CI5: 0.4742 | CJ5: 0.0352 | CK5: 0.0518 | CL5: 0.0437 | CM5: 0.0415 | CN5: 0.0613 | CO5: 0.0501 | CP5: 0.0384 | CQ5: 0.047 | CR5: 0.0486 | CS5: 0.0854 | CT5: 0.1168 | CU5: 0.0596 | CV5: 0.0622 | CW5: 0.0404 | CX5: 0.0468 | CY5: 0.0188 | CZ5: 0.0507 | DA5: 0.0447 | DB5: 0.084
A6: 390 | C6: 0.03 | D6: 0.0881 | E6: 0.1155 | F6: 0.2584 | G6: 0.7508 | H6: 0.1861 | I6: 0.2182 | J6: 0.1622 | K6: 0.408 | L6: 0.4413 | M6: 0.228 | N6: 0.0219 | O6: 0.1741 | P6: 0.0363 | Q6: 0.0478 | R6: 0.0386 | S6: 0.2031 | T6: 0.0704 | U6: 0.1317 | V6: 0.1724 | W6: 0.0703 | X6: 0.1481 | Y6: 0.071 | Z6: 0.4863 | AA6: 0.0338 | AB6: 0.127 | AC6: 0.062 | AD6: 0.0538 | AE6: 0.1254 | AF6: 0.1998 | AG6: 0.0594 | AH6: 0.0596 | AI6: 0.0439 | AJ6: 0.149 | AK6: 0.1498 | AL6: 0.0544 | AM6: 0.1038 | AN6: 0.1185 | AO6: 0.0737 | AP6: 0.5721 | AQ6: 0.1248 | AR6: 0.0442 | AS6: 0.0851 | AT6: 0.1737 | AU6: 0.0575 | AV6: 0.0766 | AW6: 0.1481 | AX6: 0.26 | AY6: 0.0524 | AZ6: 0.0911 | BA6: 0.0601 | BB6: 0.0729 | BC6: 0.1031 | BD6: 0.0591 | BE6: 0.2117 | BF6: 0.0362 | BG6: 0.0219 | BH6: 0.0286 | BI6: 0.0585 | BJ6: 0.21465 | BK6: 0.0302 | BL6: 0.1094 | BM6: 0.3011 | BN6: 0.3664 | BO6: 0.08515 | BP6: 0.09815 | BQ6: 0.23845 | BR6: 0.2315 | BS6: 0.1641 | BT6: 0.0568 | BU6: 0.3815 | BV6: 0.1262 | BW6: 0.1407 | BX6: 0.4289 | BY6: 0.1555 | BZ6: 0.2107 | CA6: 0.4088 | CB6: 0.3427 | CC6: 0.0349 | CD6: 0.0404 | CE6: 0.0456 | CF6: 0.0394 | CG6: 0.0356 | CH6: 0.0757 | CI6: 0.4742 | CJ6: 0.0352 | CK6: 0.0518 | CL6: 0.0437 | CM6: 0.0415 | CN6: 0.0613 | CO6: 0.0501 | CP6: 0.0384 | CQ6: 0.047 | CR6: 0.0486 | CS6: 0.0854 | CT6: 0.1168 | CU6: 0.0596 | CV6: 0.0622 | CW6: 0.0404 | CX6: 0.0468 | CY6: 0.0188 | CZ6: 0.0507 | DA6: 0.0447 | DB6: 0.084
A7: 400 | C7: 0.03 | D7: 0.0881 | E7: 0.1155 | F7: 0.2584 | G7: 0.7508 | H7: 0.1861 | I7: 0.2182 | J7: 0.1622 | K7: 0.408 | L7: 0.4413 | M7: 0.228 | N7: 0.0219 | O7: 0.1741 | P7: 0.0363 | Q7: 0.0478 | R7: 0.0386 | S7: 0.2031 | T7: 0.0704 | U7: 0.1317 | V7: 0.1724 | W7: 0.0703 | X7: 0.1481 | Y7: 0.071 | Z7: 0.4863 | AA7: 0.0338 | AB7: 0.127 | AC7: 0.062 | AD7: 0.0538 | AE7: 0.1254 | AF7: 0.1998 | AG7: 0.0594 | AH7: 0.0596 | AI7: 0.0439 | AJ7: 0.149 | AK7: 0.1498 | AL7: 0.0544 | AM7: 0.1038 | AN7: 0.1185 | AO7: 0.0737 | AP7: 0.5721 | AQ7: 0.1248 | AR7: 0.0442 | AS7: 0.0851 | AT7: 0.1737 | AU7: 0.0575 | AV7: 0.0766 | AW7: 0.1481 | AX7: 0.26 | AY7: 0.0524 | AZ7: 0.0911 | BA7: 0.0601 | BB7: 0.0729 | BC7: 0.1031 | BD7: 0.0591 | BE7: 0.2117 | BF7: 0.0362 | BG7: 0.0219 | BH7: 0.0286 | BI7: 0.0585 | BJ7: 0.21465 | BK7: 0.0302 | BL7: 0.1094 | BM7: 0.3011 | BN7: 0.3664 | BO7: 0.08515 | BP7: 0.09815 | BQ7: 0.23845 | BR7: 0.2315 | BS7: 0.1641 | BT7: 0.0568 | BU7: 0.3815 | BV7: 0.1262 | BW7: 0.1407 | BX7: 0.4289 | BY7: 0.1555 | BZ7: 0.2107 | CA7: 0.4088 | CB7: 0.3427 | CC7: 0.0349 | CD7: 0.0404 | CE7: 0.0456 | CF7: 0.0394 | CG7: 0.0356 | CH7: 0.0757 | CI7: 0.4742 | CJ7: 0.0352 | CK7: 0.0518 | CL7: 0.0437 | CM7: 0.0415 | CN7: 0.0613 | CO7: 0.0501 | CP7: 0.0384 | CQ7: 0.047 | CR7: 0.0486 | CS7: 0.0854 | CT7: 0.1168 | CU7: 0.0596 | CV7: 0.0622 | CW7: 0.0404 | CX7: 0.0468 | CY7: 0.0188 | CZ7: 0.0507 | DA7: 0.0447 | DB7: 0.084
A8: 410 | C8: 0.0267 | D8: 0.0985 | E8: 0.1252 | F8: 0.4247 | G8: 0.8241 | H8: 0.1853 | I8: 0.2886 | J8: 0.1952 | K8: 0.5731 | L8: 0.6203 | M8: 0.302 | N8: 0.021 | O8: 0.2318 | P8: 0.0359 | Q8: 0.0457 | R8: 0.0362 | S8: 0.2763 | T8: 0.0861 | U8: 0.1627 | V8: 0.2157 | W8: 0.0666 | X8: 0.2062 | Y8: 0.0885 | Z8: 0.6386 | AA8: 0.0336 | AB8: 0.1262 | AC8: 0.0631 | AD8: 0.0518 | AE8: 0.1877 | AF8: 0.3006 | AG8: 0.053 | AH8: 0.053 | AI8: 0.0371 | AJ8: 0.2257 | AK8: 0.1663 | AL8: 0.0725 | AM8: 0.1027 | AN8: 0.1106 | AO8: 0.0882 | AP8: 0.5836 | AQ8: 0.1557 | AR8: 0.0396 | AS8: 0.1146 | AT8: 0.1977 | AU8: 0.0536 | AV8: 0.0686 | AW8: 0.1362 | AX8: 0.4503 | AY8: 0.0518 | AZ8: 0.1044 | BA8: 0.0505 | BB8: 0.0561 | BC8: 0.0854 | BD8: 0.0597 | BE8: 0.2039 | BF8: 0.03 | BG8: 0.0219 | BH8: 0.0288 | BI8: 0.05825 | BJ8: 0.25175 | BK8: 0.0299 | BL8: 0.11815 | BM8: 0.3577 | BN8: 0.4766 | BO8: 0.0894 | BP8: 0.1163 | BQ8: 0.2975 | BR8: 0.3148 | BS8: 0.1775 | BT8: 0.0591 | BU8: 0.399 | BV8: 0.1338 | BW8: 0.1537 | BX8: 0.5734 | BY8: 0.1657 | BZ8: 0.2348 | CA8: 0.5581 | CB8: 0.3672 | CC8: 0.0339 | CD8: 0.0398 | CE8: 0.0445 | CF8: 0.0388 | CG8: 0.0369 | CH8: 0.0855 | CI8: 0.4951 | CJ8: 0.0349 | CK8: 0.0549 | CL8: 0.045 | CM8: 0.0417 | CN8: 0.0724 | CO8: 0.0579 | CP8: 0.0377 | CQ8: 0.0464 | CR8: 0.0482 | CS8: 0.0901 | CT8: 0.124 | CU8: 0.0616 | CV8: 0.0667 | CW8: 0.0394 | CX8: 0.0464 | CY8: 0.0191 | CZ8: 0.0999 | DA8: 0.0459 | DB8: 0.1612
A9: 420 | C9: 0.0246 | D9: 0.1013 | E9: 0.1182 | F9: 0.6448 | G9: 0.8436 | H9: 0.1839 | I9: 0.3274 | J9: 0.2109 | K9: 0.6392 | L9: 0.6897 | M9: 0.3403 | N9: 0.0198 | O9: 0.2527 | P9: 0.0346 | Q9: 0.042 | R9: 0.0332 | S9: 0.307 | T9: 0.0921 | U9: 0.1738 | V9: 0.2284 | W9: 0.0618 | X9: 0.2311 | Y9: 0.093 | Z9: 0.6812 | AA9: 0.0315 | AB9: 0.1122 | AC9: 0.0616 | AD9: 0.0472 | AE9: 0.2248 | AF9: 0.3588 | AG9: 0.0424 | AH9: 0.0455 | AI9: 0.0302 | AJ9: 0.2736 | AK9: 0.1716 | AL9: 0.0816 | AM9: 0.0981 | AN9: 0.1046 | AO9: 0.1039 | AP9: 0.5899 | AQ9: 0.1829 | AR9: 0.0346 | AS9: 0.1307 | AT9: 0.2098 | AU9: 0.0512 | AV9: 0.063 | AW9: 0.1265 | AX9: 0.7463 | AY9: 0.052 | AZ9: 0.1156 | BA9: 0.0437 | BB9: 0.0422 | BC9: 0.0755 | BD9: 0.0599 | BE9: 0.1875 | BF9: 0.0267 | BG9: 0.0218 | BH9: 0.0292 | BI9: 0.05775 | BJ9: 0.2755 | BK9: 0.0299 | BL9: 0.12375 | BM9: 0.4148 | BN9: 0.5582 | BO9: 0.0911 | BP9: 0.1262 | BQ9: 0.33665 | BR9: 0.3587 | BS9: 0.1852 | BT9: 0.0617 | BU9: 0.415 | BV9: 0.1365 | BW9: 0.156 | BX9: 0.623 | BY9: 0.1625 | BZ9: 0.2291 | CA9: 0.6033 | CB9: 0.3674 | CC9: 0.033 | CD9: 0.0388 | CE9: 0.0435 | CF9: 0.038 | CG9: 0.0382 | CH9: 0.0926 | CI9: 0.5159 | CJ9: 0.0346 | CK9: 0.0623 | CL9: 0.0475 | CM9: 0.0416 | CN9: 0.0812 | CO9: 0.0661 | CP9: 0.0371 | CQ9: 0.046 | CR9: 0.0478 | CS9: 0.1148 | CT9: 0.1436 | CU9: 0.0625 | CV9: 0.0712 | CW9: 0.039 | CX9: 0.0459 | CY9: 0.0191 | CZ9: 0.1882 | DA9: 0.0478 | DB9: 0.2412
A10: 430 | C10: 0.0236 | D10: 0.1022 | E10: 0.1074 | F10: 0.7392 | G10: 0.8508 | H10: 0.1888 | I10: 0.3524 | J10: 0.2216 | K10: 0.6508 | L10: 0.6997 | M10: 0.3598 | N10: 0.0195 | O10: 0.2552 | P10: 0.0341 | Q10: 0.0394 | R10: 0.0315 | S10: 0.3177 | T10: 0.0963 | U10: 0.1827 | V10: 0.237 | W10: 0.0601 | X10: 0.2524 | Y10: 0.0966 | Z10: 0.6875 | AA10: 0.0304 | AB10: 0.1024 | AC10: 0.0613 | AD10: 0.0448 | AE10: 0.26 | AF10: 0.4141 | AG10: 0.0364 | AH10: 0.0411 | AI10: 0.0267 | AJ10: 0.325 | AK10: 0.1772 | AL10: 0.0906 | AM10: 0.0954 | AN10: 0.101 | AO10: 0.1203 | AP10: 0.5947 | AQ10: 0.2064 | AR10: 0.0298 | AS10: 0.1463 | AT10: 0.2223 | AU10: 0.05 | AV10: 0.0594 | AW10: 0.1198 | AX10: 0.9529 | AY10: 0.0528 | AZ10: 0.1178 | BA10: 0.0391 | BB10: 0.0334 | BC10: 0.0727 | BD10: 0.0604 | BE10: 0.1661 | BF10: 0.025 | BG10: 0.0217 | BH10: 0.03 | BI10: 0.05695 | BJ10: 0.27575 | BK10: 0.0299 | BL10: 0.1248 | BM10: 0.4595 | BN10: 0.57475 | BO10: 0.09175 | BP10: 0.13335 | BQ10: 0.3496 | BR10: 0.34755 | BS10: 0.1887 | BT10: 0.0653 | BU10: 0.431 | BV10: 0.1354 | BW10: 0.1533 | BX10: 0.6283 | BY10: 0.1557 | BZ10: 0.223 | CA10: 0.6154 | CB10: 0.3356 | CC10: 0.0321 | CD10: 0.0383 | CE10: 0.0429 | CF10: 0.0377 | CG10: 0.0394 | CH10: 0.0965 | CI10: 0.5378 | CJ10: 0.0342 | CK10: 0.0888 | CL10: 0.0504 | CM10: 0.0412 | CN10: 0.0863 | CO10: 0.0713 | CP10: 0.0367 | CQ10: 0.0457 | CR10: 0.0478 | CS10: 0.1681 | CT10: 0.1565 | CU10: 0.0645 | CV10: 0.0764 | CW10: 0.0396 | CX10: 0.0458 | CY10: 0.0193 | CZ10: 0.2912 | DA10: 0.0491 | DB10: 0.2938
A11: 440 | C11: 0.0229 | D11: 0.1026 | E11: 0.1024 | F11: 0.7554 | G11: 0.8578 | H11: 0.2109 | I11: 0.3828 | J11: 0.2321 | K11: 0.6557 | L11: 0.7049 | M11: 0.3623 | N11: 0.02 | O11: 0.2575 | P11: 0.0348 | Q11: 0.0378 | R11: 0.0304 | S11: 0.3294 | T11: 0.1029 | U11: 0.1917 | V11: 0.2499 | W11: 0.0607 | X11: 0.2808 | Y11: 0.1023 | Z11: 0.6941 | AA11: 0.0299 | AB11: 0.0966 | AC11: 0.0625 | AD11: 0.0431 | AE11: 0.3058 | AF11: 0.4932 | AG11: 0.0331 | AH11: 0.0383 | AI11: 0.0254 | AJ11: 0.3967 | AK11: 0.1818 | AL11: 0.1023 | AM11: 0.0947 | AN11: 0.0995 | AO11: 0.1378 | AP11: 0.5983 | AQ11: 0.2273 | AR11: 0.025 | AS11: 0.1664 | AT11: 0.2365 | AU11: 0.0501 | AV11: 0.0568 | AW11: 0.1147 | AX11: 1.018 | AY11: 0.0534 | AZ11: 0.1198 | BA11: 0.0361 | BB11: 0.0271 | BC11: 0.0759 | BD11: 0.0614 | BE11: 0.1426 | BF11: 0.025 | BG11: 0.0213 | BH11: 0.0312 | BI11: 0.05705 | BJ11: 0.27665 | BK11: 0.0294 | BL11: 0.1288 | BM11: 0.4941 | BN11: 0.58655 | BO11: 0.0934 | BP11: 0.1461 | BQ11: 0.36405 | BR11: 0.3145 | BS11: 0.1913 | BT11: 0.0703 | BU11: 0.4475 | BV11: 0.1322 | BW11: 0.1451 | BX11: 0.6284 | BY11: 0.1438 | BZ11: 0.22 | CA11: 0.6282 | CB11: 0.2854 | CC11: 0.0319 | CD11: 0.0381 | CE11: 0.0428 | CF11: 0.0383 | CG11: 0.0405 | CH11: 0.0969 | CI11: 0.5608 | CJ11: 0.0346 | CK11: 0.1583 | CL11: 0.0522 | CM11: 0.0409 | CN11: 0.0919 | CO11: 0.0739 | CP11: 0.0365 | CQ11: 0.0457 | CR11: 0.0481 | CS11: 0.2282 | CT11: 0.1641 | CU11: 0.0679 | CV11: 0.0818 | CW11: 0.0402 | CX11: 0.0458 | CY11: 0.0194 | CZ11: 0.372 | DA11: 0.0499 | DB11: 0.321
A12: 450 | C12: 0.0221 | D12: 0.1024 | E12: 0.0942 | F12: 0.7267 | G12: 0.8648 | H12: 0.2559 | I12: 0.4195 | J12: 0.229 | K12: 0.655 | L12: 0.7058 | M12: 0.3381 | N12: 0.0221 | O12: 0.2618 | P12: 0.0377 | Q12: 0.0375 | R12: 0.0296 | S12: 0.3442 | T12: 0.1148 | U12: 0.1893 | V12: 0.2684 | W12: 0.0651 | X12: 0.2968 | Y12: 0.108 | Z12: 0.7013 | AA12: 0.0303 | AB12: 0.0977 | AC12: 0.0682 | AD12: 0.0427 | AE12: 0.336 | AF12: 0.555 | AG12: 0.0337 | AH12: 0.0372 | AI12: 0.0263 | AJ12: 0.4455 | AK12: 0.176 | AL12: 0.109 | AM12: 0.0948 | AN12: 0.102 | AO12: 0.1545 | AP12: 0.6017 | AQ12: 0.2454 | AR12: 0.021 | AS12: 0.1809 | AT12: 0.2505 | AU12: 0.053 | AV12: 0.0554 | AW12: 0.1122 | AX12: 0.9995 | AY12: 0.0542 | AZ12: 0.1228 | BA12: 0.0344 | BB12: 0.0238 | BC12: 0.0869 | BD12: 0.0632 | BE12: 0.1215 | BF12: 0.0271 | BG12: 0.0211 | BH12: 0.0329 | BI12: 0.0571 | BJ12: 0.27315 | BK12: 0.0288 | BL12: 0.1333 | BM12: 0.5188 | BN12: 0.5863 | BO12: 0.0951 | BP12: 0.1575 | BQ12: 0.3708 | BR12: 0.2669 | BS12: 0.1838 | BT12: 0.0704 | BU12: 0.463 | BV12: 0.1247 | BW12: 0.1325 | BX12: 0.6248 | BY12: 0.1296 | BZ12: 0.2259 | CA12: 0.6331 | CB12: 0.2321 | CC12: 0.0315 | CD12: 0.0379 | CE12: 0.0424 | CF12: 0.0379 | CG12: 0.0417 | CH12: 0.0905 | CI12: 0.5819 | CJ12: 0.0362 | CK12: 0.2643 | CL12: 0.0519 | CM12: 0.0404 | CN12: 0.1047 | CO12: 0.0748 | CP12: 0.0364 | CQ12: 0.0457 | CR12: 0.0484 | CS12: 0.2592 | CT12: 0.1999 | CU12: 0.0713 | CV12: 0.0868 | CW12: 0.0406 | CX12: 0.0459 | CY12: 0.0196 | CZ12: 0.4066 | DA12: 0.0504 | DB12: 0.3301
A13: 460 | C13: 0.0219 | D13: 0.1023 | E13: 0.0947 | F13: 0.6864 | G13: 0.8711 | H13: 0.2959 | I13: 0.4665 | J13: 0.2077 | K13: 0.6417 | L13: 0.6973 | M13: 0.2903 | N13: 0.0259 | O13: 0.2659 | P13: 0.0417 | Q13: 0.0375 | R13: 0.0284 | S13: 0.3648 | T13: 0.1319 | U13: 0.1706 | V13: 0.2863 | W13: 0.0718 | X13: 0.288 | Y13: 0.1113 | Z13: 0.7075 | AA13: 0.0309 | AB13: 0.1078 | AC13: 0.0813 | AD13: 0.0429 | AE13: 0.3341 | AF13: 0.5697 | AG13: 0.0392 | AH13: 0.0373 | AI13: 0.0298 | AJ13: 0.4399 | AK13: 0.1555 | AL13: 0.1074 | AM13: 0.096 | AN13: 0.109 | AO13: 0.1711 | AP13: 0.6055 | AQ13: 0.2631 | AR13: 0.0174 | AS13: 0.1827 | AT13: 0.2638 | AU13: 0.0596 | AV13: 0.0544 | AW13: 0.1124 | AX13: 0.9567 | AY13: 0.0538 | AZ13: 0.1281 | BA13: 0.0332 | BB13: 0.0217 | BC13: 0.1091 | BD13: 0.0658 | BE13: 0.102 | BF13: 0.0323 | BG13: 0.0206 | BH13: 0.0343 | BI13: 0.0567 | BJ13: 0.26655 | BK13: 0.0276 | BL13: 0.13675 | BM13: 0.5383 | BN13: 0.58235 | BO13: 0.09695 | BP13: 0.1618 | BQ13: 0.37105 | BR13: 0.2271 | BS13: 0.1638 | BT13: 0.0624 | BU13: 0.4773 | BV13: 0.114 | BW13: 0.1187 | BX13: 0.6176 | BY13: 0.1155 | BZ13: 0.2366 | CA13: 0.6254 | CB13: 0.1847 | CC13: 0.0313 | CD13: 0.0379 | CE13: 0.0422 | CF13: 0.0394 | CG13: 0.0428 | CH13: 0.0785 | CI13: 0.6009 | CJ13: 0.0392 | CK13: 0.3574 | CL13: 0.0511 | CM13: 0.04 | CN13: 0.1159 | CO13: 0.0752 | CP13: 0.0361 | CQ13: 0.0454 | CR13: 0.0487 | CS13: 0.269 | CT13: 0.2316 | CU13: 0.0697 | CV13: 0.093 | CW13: 0.0409 | CX13: 0.0461 | CY13: 0.0196 | CZ13: 0.412 | DA13: 0.0509 | DB13: 0.3312
A14: 470 | C14: 0.0217 | D14: 0.1022 | E14: 0.1077 | F14: 0.67 | G14: 0.8759 | H14: 0.3166 | I14: 0.5109 | J14: 0.1798 | K14: 0.6172 | L14: 0.68 | M14: 0.2351 | N14: 0.0299 | O14: 0.2673 | P14: 0.0433 | Q14: 0.0367 | R14: 0.027 | S14: 0.3876 | T14: 0.1476 | U14: 0.1464 | V14: 0.2932 | W14: 0.0751 | X14: 0.2697 | Y14: 0.1123 | Z14: 0.7103 | AA14: 0.0303 | AB14: 0.1123 | AC14: 0.0906 | AD14: 0.0398 | AE14: 0.3203 | AF14: 0.5695 | AG14: 0.0421 | AH14: 0.035 | AI14: 0.0306 | AJ14: 0.4157 | AK14: 0.1297 | AL14: 0.1018 | AM14: 0.0989 | AN14: 0.1207 | AO14: 0.1866 | AP14: 0.6085 | AQ14: 0.279 | AR14: 0.0145 | AS14: 0.18 | AT14: 0.275 | AU14: 0.0726 | AV14: 0.0538 | AW14: 0.1148 | AX14: 0.9387 | AY14: 0.051 | AZ14: 0.1347 | BA14: 0.0325 | BB14: 0.0206 | BC14: 0.1473 | BD14: 0.0703 | BE14: 0.0865 | BF14: 0.0447 | BG14: 0.0204 | BH14: 0.0357 | BI14: 0.0581 | BJ14: 0.26455 | BK14: 0.0269 | BL14: 0.1463 | BM14: 0.5552 | BN14: 0.5878 | BO14: 0.10085 | BP14: 0.169 | BQ14: 0.3746 | BR14: 0.18735 | BS14: 0.1448 | BT14: 0.0522 | BU14: 0.4904 | BV14: 0.1048 | BW14: 0.1056 | BX14: 0.6066 | BY14: 0.1035 | BZ14: 0.2391 | CA14: 0.6106 | CB14: 0.1469 | CC14: 0.0313 | CD14: 0.0379 | CE14: 0.0421 | CF14: 0.0417 | CG14: 0.0429 | CH14: 0.0651 | CI14: 0.6167 | CJ14: 0.0431 | CK14: 0.4112 | CL14: 0.0503 | CM14: 0.0396 | CN14: 0.1196 | CO14: 0.0757 | CP14: 0.0358 | CQ14: 0.0454 | CR14: 0.0488 | CS14: 0.2732 | CT14: 0.2745 | CU14: 0.0627 | CV14: 0.1007 | CW14: 0.0411 | CX14: 0.0462 | CY14: 0.02 | CZ14: 0.3983 | DA14: 0.0509 | DB14: 0.327
A15: 480 | C15: 0.0214 | D15: 0.1019 | E15: 0.1147 | F15: 0.6535 | G15: 0.8803 | H15: 0.3278 | I15: 0.5571 | J15: 0.149 | K15: 0.5808 | L15: 0.6543 | M15: 0.1686 | N15: 0.0408 | O15: 0.2773 | P15: 0.0548 | Q15: 0.0388 | R15: 0.0254 | S15: 0.4181 | T15: 0.1785 | U15: 0.1201 | V15: 0.307 | W15: 0.0935 | X15: 0.2468 | Y15: 0.1173 | Z15: 0.7143 | AA15: 0.0311 | AB15: 0.1175 | AC15: 0.1023 | AD15: 0.0377 | AE15: 0.2882 | AF15: 0.5523 | AG15: 0.0467 | AH15: 0.0334 | AI15: 0.0326 | AJ15: 0.3643 | AK15: 0.1028 | AL15: 0.0932 | AM15: 0.1009 | AN15: 0.142 | AO15: 0.2034 | AP15: 0.6112 | AQ15: 0.2951 | AR15: 0.0121 | AS15: 0.1729 | AT15: 0.2832 | AU15: 0.0996 | AV15: 0.0533 | AW15: 0.1194 | AX15: 0.9214 | AY15: 0.0467 | AZ15: 0.1555 | BA15: 0.0321 | BB15: 0.0201 | BC15: 0.2184 | BD15: 0.0822 | BE15: 0.0738 | BF15: 0.0734 | BG15: 0.02 | BH15: 0.036 | BI15: 0.06485 | BJ15: 0.27745 | BK15: 0.0262 | BL15: 0.1813 | BM15: 0.5712 | BN15: 0.61155 | BO15: 0.11825 | BP15: 0.19085 | BQ15: 0.39045 | BR15: 0.14755 | BS15: 0.123 | BT15: 0.0422 | BU15: 0.5035 | BV15: 0.093 | BW15: 0.0896 | BX15: 0.5865 | BY15: 0.0903 | BZ15: 0.2598 | CA15: 0.5899 | CB15: 0.1143 | CC15: 0.0311 | CD15: 0.0381 | CE15: 0.0421 | CF15: 0.0419 | CG15: 0.0429 | CH15: 0.0525 | CI15: 0.6319 | CJ15: 0.0471 | CK15: 0.439 | CL15: 0.0488 | CM15: 0.039 | CN15: 0.1218 | CO15: 0.0763 | CP15: 0.0356 | CQ15: 0.0453 | CR15: 0.0486 | CS15: 0.2723 | CT15: 0.3066 | CU15: 0.0541 | CV15: 0.1109 | CW15: 0.0411 | CX15: 0.0461 | CY15: 0.0199 | CZ15: 0.3714 | DA15: 0.051 | DB15: 0.3143
A16: 490 | C16: 0.0214 | D16: 0.1018 | E16: 0.1166 | F16: 0.6382 | G16: 0.8854 | H16: 0.3363 | I16: 0.6074 | J16: 0.1248 | K16: 0.5316 | L16: 0.619 | M16: 0.1099 | N16: 0.0733 | O16: 0.3209 | P16: 0.1036 | Q16: 0.0441 | R16: 0.0246 | S16: 0.4621 | T16: 0.2543 | U16: 0.0995 | V16: 0.3427 | W16: 0.16 | X16: 0.227 | Y16: 0.1323 | Z16: 0.7217 | AA16: 0.0369 | AB16: 0.1529 | AC16: 0.1503 | AD16: 0.0443 | AE16: 0.2453 | AF16: 0.5257 | AG16: 0.0742 | AH16: 0.0355 | AI16: 0.0426 | AJ16: 0.299 | AK16: 0.0823 | AL16: 0.0845 | AM16: 0.1013 | AN16: 0.1571 | AO16: 0.2195 | AP16: 0.6142 | AQ16: 0.3119 | AR16: 0.0104 | AS16: 0.1637 | AT16: 0.288 | AU16: 0.1321 | AV16: 0.0521 | AW16: 0.1258 | AX16: 0.9059 | AY16: 0.0425 | AZ16: 0.219 | BA16: 0.0322 | BB16: 0.02 | BC16: 0.3107 | BD16: 0.1077 | BE16: 0.0638 | BF16: 0.0965 | BG16: 0.0198 | BH16: 0.035 | BI16: 0.0792 | BJ16: 0.31785 | BK16: 0.0258 | BL16: 0.26615 | BM16: 0.5844 | BN16: 0.6601 | BO16: 0.1737 | BP16: 0.22945 | BQ16: 0.42455 | BR16: 0.1319 | BS16: 0.1063 | BT16: 0.035 | BU16: 0.5158 | BV16: 0.0837 | BW16: 0.0761 | BX16: 0.5631 | BY16: 0.0793 | BZ16: 0.3451 | CA16: 0.5707 | CB16: 0.0944 | CC16: 0.0313 | CD16: 0.0382 | CE16: 0.0421 | CF16: 0.0467 | CG16: 0.0443 | CH16: 0.0438 | CI16: 0.6445 | CJ16: 0.0509 | CK16: 0.4567 | CL16: 0.0474 | CM16: 0.0382 | CN16: 0.1344 | CO16: 0.0778 | CP16: 0.0353 | CQ16: 0.0455 | CR16: 0.0491 | CS16: 0.2711 | CT16: 0.3475 | CU16: 0.0487 | CV16: 0.1223 | CW16: 0.0415 | CX16: 0.0465 | CY16: 0.02 | CZ16: 0.3416 | DA16: 0.0516 | DB16: 0.2948
A17: 500 | C17: 0.0216 | D17: 0.1015 | E17: 0.1164 | F17: 0.6289 | G17: 0.8886 | H17: 0.3427 | I17: 0.6558 | J17: 0.1002 | K17: 0.4751 | L17: 0.5772 | M17: 0.0688 | N17: 0.148 | O17: 0.4566 | P17: 0.2604 | Q17: 0.0504 | R17: 0.0241 | S17: 0.5428 | T17: 0.4152 | U17: 0.083 | V17: 0.382 | W17: 0.3112 | X17: 0.2052 | Y17: 0.1579 | Z17: 0.7294 | AA17: 0.0467 | AB17: 0.2576 | AC17: 0.2952 | AD17: 0.0579 | AE17: 0.1968 | AF17: 0.4842 | AG17: 0.1795 | AH17: 0.0402 | AI17: 0.0597 | AJ17: 0.2298 | AK17: 0.0629 | AL17: 0.0738 | AM17: 0.1073 | AN17: 0.157 | AO17: 0.2364 | AP17: 0.6153 | AQ17: 0.3319 | AR17: 0.0094 | AS17: 0.1507 | AT17: 0.2898 | AU17: 0.1712 | AV17: 0.0496 | AW17: 0.1324 | AX17: 0.8978 | AY17: 0.0388 | AZ17: 0.3973 | BA17: 0.0335 | BB17: 0.0194 | BC17: 0.4298 | BD17: 0.1561 | BE17: 0.0545 | BF17: 0.1007 | BG17: 0.0196 | BH17: 0.0334 | BI17: 0.09075 | BJ17: 0.35755 | BK17: 0.0256 | BL17: 0.40505 | BM17: 0.5972 | BN17: 0.7177 | BO17: 0.27415 | BP17: 0.2617 | BQ17: 0.46045 | BR17: 0.1217 | BS17: 0.0946 | BT17: 0.0299 | BU17: 0.5273 | BV17: 0.0771 | BW17: 0.0663 | BX17: 0.5398 | BY17: 0.0709 | BZ17: 0.5297 | CA17: 0.5477 | CB17: 0.0783 | CC17: 0.0315 | CD17: 0.039 | CE17: 0.0425 | CF17: 0.0625 | CG17: 0.0505 | CH17: 0.0385 | CI17: 0.6566 | CJ17: 0.0554 | CK17: 0.4725 | CL17: 0.046 | CM17: 0.0379 | CN17: 0.1781 | CO17: 0.0805 | CP17: 0.0352 | CQ17: 0.0461 | CR17: 0.0513 | CS17: 0.2755 | CT17: 0.4261 | CU17: 0.0454 | CV17: 0.1389 | CW17: 0.0424 | CX17: 0.0486 | CY17: 0.02 | CZ17: 0.3089 | DA17: 0.0541 | DB17: 0.267
A18: 510 | C18: 0.0215 | D18: 0.1013 | E18: 0.1126 | F18: 0.6212 | G18: 0.8922 | H18: 0.3441 | I18: 0.68 | J18: 0.0754 | K18: 0.4334 | L18: 0.5463 | M18: 0.0475 | N18: 0.2109 | O18: 0.6213 | P18: 0.4499 | Q18: 0.0531 | R18: 0.0238 | S18: 0.6098 | T18: 0.5472 | U18: 0.0717 | V18: 0.3782 | W18: 0.4488 | X18: 0.1823 | Y18: 0.1698 | Z18: 0.735 | AA18: 0.0499 | AB18: 0.3865 | AC18: 0.4668 | AD18: 0.0607 | AE18: 0.1524 | AF18: 0.4289 | AG18: 0.339 | AH18: 0.044 | AI18: 0.0732 | AJ18: 0.1698 | AK18: 0.0466 | AL18: 0.0613 | AM18: 0.1243 | AN18: 0.1462 | AO18: 0.2541 | AP18: 0.6166 | AQ18: 0.3531 | AR18: 0.0086 | AS18: 0.1336 | AT18: 0.2889 | AU18: 0.2136 | AV18: 0.046 | AW18: 0.1372 | AX18: 0.89 | AY18: 0.0353 | AZ18: 0.6148 | BA18: 0.0359 | BB18: 0.019 | BC18: 0.5474 | BD18: 0.1977 | BE18: 0.0475 | BF18: 0.0921 | BG18: 0.0195 | BH18: 0.0317 | BI18: 0.07955 | BJ18: 0.33045 | BK18: 0.0262 | BL18: 0.4774 | BM18: 0.6081 | BN18: 0.7418 | BO18: 0.34265 | BP18: 0.24405 | BQ18: 0.4552 | BR18: 0.10125 | BS18: 0.0846 | BT18: 0.0261 | BU18: 0.5385 | BV18: 0.0709 | BW18: 0.0574 | BX18: 0.5177 | BY18: 0.0649 | BZ18: 0.6625 | CA18: 0.5215 | CB18: 0.0665 | CC18: 0.0319 | CD18: 0.0403 | CE18: 0.0428 | CF18: 0.1085 | CG18: 0.0681 | CH18: 0.036 | CI18: 0.6679 | CJ18: 0.0596 | CK18: 0.4844 | CL18: 0.0448 | CM18: 0.0376 | CN18: 0.2541 | CO18: 0.0852 | CP18: 0.0352 | CQ18: 0.0479 | CR18: 0.057 | CS18: 0.2884 | CT18: 0.5133 | CU18: 0.0433 | CV18: 0.1572 | CW18: 0.0437 | CX18: 0.0564 | CY18: 0.0199 | CZ18: 0.2798 | DA18: 0.0625 | DB18: 0.2376
A19: 520 | C19: 0.0215 | D19: 0.1012 | E19: 0.1076 | F19: 0.6131 | G19: 0.8953 | H19: 0.3381 | I19: 0.6789 | J19: 0.0545 | K19: 0.3741 | L19: 0.5016 | M19: 0.0347 | N19: 0.2172 | O19: 0.7078 | P19: 0.5508 | Q19: 0.0555 | R19: 0.0235 | S19: 0.62 | T19: 0.5791 | U19: 0.0649 | V19: 0.3367 | W19: 0.5167 | X19: 0.1587 | Y19: 0.1619 | Z19: 0.7375 | AA19: 0.0453 | AB19: 0.4618 | AC19: 0.5435 | AD19: 0.0544 | AE19: 0.1104 | AF19: 0.3585 | AG19: 0.4476 | AH19: 0.0464 | AI19: 0.0792 | AJ19: 0.1162 | AK19: 0.0362 | AL19: 0.0486 | AM19: 0.1447 | AN19: 0.1306 | AO19: 0.2727 | AP19: 0.6173 | AQ19: 0.3747 | AR19: 0.0085 | AS19: 0.1132 | AT19: 0.285 | AU19: 0.2581 | AV19: 0.0417 | AW19: 0.1423 | AX19: 0.8812 | AY19: 0.0319 | AZ19: 0.7272 | BA19: 0.0398 | BB19: 0.0188 | BC19: 0.6418 | BD19: 0.2102 | BE19: 0.0429 | BF19: 0.0794 | BG19: 0.0192 | BH19: 0.0302 | BI19: 0.06415 | BJ19: 0.2818 | BK19: 0.0277 | BL19: 0.47495 | BM19: 0.6176 | BN19: 0.74125 | BO19: 0.36085 | BP19: 0.1977 | BQ19: 0.42265 | BR19: 0.08855 | BS19: 0.0752 | BT19: 0.0237 | BU19: 0.5488 | BV19: 0.0643 | BW19: 0.0467 | BX19: 0.4809 | BY19: 0.0585 | BZ19: 0.7056 | CA19: 0.4941 | CB19: 0.0598 | CC19: 0.0325 | CD19: 0.0437 | CE19: 0.0433 | CF19: 0.1813 | CG19: 0.1002 | CH19: 0.035 | CI19: 0.6783 | CJ19: 0.0639 | CK19: 0.4939 | CL19: 0.044 | CM19: 0.0375 | CN19: 0.3442 | CO19: 0.0957 | CP19: 0.0353 | CQ19: 0.0515 | CR19: 0.0692 | CS19: 0.3102 | CT19: 0.5815 | CU19: 0.0421 | CV19: 0.177 | CW19: 0.0454 | CX19: 0.0753 | CY19: 0.0195 | CZ19: 0.2559 | DA19: 0.0829 | DB19: 0.211
A20: 530 | C20: 0.0212 | D20: 0.101 | E20: 0.1052 | F20: 0.6064 | G20: 0.8979 | H20: 0.3251 | I20: 0.6643 | J20: 0.0439 | K20: 0.308 | L20: 0.4513 | M20: 0.0275 | N20: 0.1822 | O20: 0.7307 | P20: 0.5798 | Q20: 0.0609 | R20: 0.0231 | S20: 0.6038 | T20: 0.5613 | U20: 0.0615 | V20: 0.2918 | W20: 0.5402 | X20: 0.1364 | Y20: 0.1438 | Z20: 0.7387 | AA20: 0.0407 | AB20: 0.4887 | AC20: 0.5339 | AD20: 0.0503 | AE20: 0.0819 | AF20: 0.2872 | AG20: 0.4931 | AH20: 0.0479 | AI20: 0.0741 | AJ20: 0.082 | AK20: 0.0322 | AL20: 0.039 | AM20: 0.1581 | AN20: 0.1136 | AO20: 0.2914 | AP20: 0.6177 | AQ20: 0.3951 | AR20: 0.009 | AS20: 0.0941 | AT20: 0.2768 | AU20: 0.2975 | AV20: 0.0374 | AW20: 0.1499 | AX20: 0.8744 | AY20: 0.0292 | AZ20: 0.7431 | BA20: 0.0463 | BB20: 0.019 | BC20: 0.7032 | BD20: 0.2023 | BE20: 0.0396 | BF20: 0.0672 | BG20: 0.0192 | BH20: 0.0295 | BI20: 0.0629 | BJ20: 0.278 | BK20: 0.0295 | BL20: 0.4744 | BM20: 0.626 | BN20: 0.7394 | BO20: 0.3561 | BP20: 0.1588 | BQ20: 0.3964 | BR20: 0.09395 | BS20: 0.0679 | BT20: 0.0227 | BU20: 0.5583 | BV20: 0.0597 | BW20: 0.0393 | BX20: 0.4367 | BY20: 0.0535 | BZ20: 0.7147 | CA20: 0.475 | CB20: 0.0559 | CC20: 0.0334 | CD20: 0.0526 | CE20: 0.0438 | CF20: 0.2482 | CG20: 0.1298 | CH20: 0.0344 | CI20: 0.6871 | CJ20: 0.0688 | CK20: 0.5018 | CL20: 0.0435 | CM20: 0.0372 | CN20: 0.4091 | CO20: 0.1177 | CP20: 0.0352 | CQ20: 0.0554 | CR20: 0.0836 | CS20: 0.3358 | CT20: 0.6239 | CU20: 0.0414 | CV20: 0.1973 | CW20: 0.0471 | CX20: 0.0953 | CY20: 0.0193 | CZ20: 0.2386 | DA20: 0.1065 | DB20: 0.191
A21: 540 | C21: 0.0211 | D21: 0.1009 | E21: 0.104 | F21: 0.6029 | G21: 0.9005 | H21: 0.3116 | I21: 0.6393 | J21: 0.04 | K21: 0.2944 | L21: 0.4428 | M21: 0.0263 | N21: 0.1345 | O21: 0.7477 | P21: 0.6004 | Q21: 0.0739 | R21: 0.0238 | S21: 0.5956 | T21: 0.5413 | U21: 0.0605 | V21: 0.2523 | W21: 0.5531 | X21: 0.1143 | Y21: 0.1214 | Z21: 0.7403 | AA21: 0.0383 | AB21: 0.5081 | AC21: 0.4877 | AD21: 0.0488 | AE21: 0.0654 | AF21: 0.219 | AG21: 0.528 | AH21: 0.0517 | AI21: 0.0637 | AJ21: 0.0638 | AK21: 0.0306 | AL21: 0.0315 | AM21: 0.1643 | AN21: 0.0967 | AO21: 0.3114 | AP21: 0.6179 | AQ21: 0.4162 | AR21: 0.0103 | AS21: 0.0767 | AT21: 0.2662 | AU21: 0.3286 | AV21: 0.0334 | AW21: 0.1573 | AX21: 0.8718 | AY21: 0.0265 | AZ21: 0.7229 | BA21: 0.0562 | BB21: 0.0195 | BC21: 0.7416 | BD21: 0.1843 | BE21: 0.0371 | BF21: 0.0566 | BG21: 0.0192 | BH21: 0.0298 | BI21: 0.0669 | BJ21: 0.2933 | BK21: 0.0315 | BL21: 0.4787 | BM21: 0.6352 | BN21: 0.7376 | BO21: 0.3365 | BP21: 0.12445 | BQ21: 0.3667 | BR21: 0.09935 | BS21: 0.0624 | BT21: 0.0225 | BU21: 0.5678 | BV21: 0.0563 | BW21: 0.0374 | BX21: 0.4116 | BY21: 0.0515 | BZ21: 0.7206 | CA21: 0.4607 | CB21: 0.0524 | CC21: 0.035 | CD21: 0.0818 | CE21: 0.0453 | CF21: 0.292 | CG21: 0.1454 | CH21: 0.0347 | CI21: 0.6958 | CJ21: 0.0745 | CK21: 0.5103 | CL21: 0.0433 | CM21: 0.0373 | CN21: 0.4406 | CO21: 0.1656 | CP21: 0.0352 | CQ21: 0.0584 | CR21: 0.0926 | CS21: 0.3678 | CT21: 0.6539 | CU21: 0.0411 | CV21: 0.2216 | CW21: 0.0493 | CX21: 0.1058 | CY21: 0.0191 | CZ21: 0.2289 | DA21: 0.1199 | DB21: 0.1766
A22: 550 | C22: 0.0207 | D22: 0.1005 | E22: 0.1011 | F22: 0.6003 | G22: 0.9016 | H22: 0.3062 | I22: 0.6022 | J22: 0.0331 | K22: 0.3845 | L22: 0.5093 | M22: 0.0305 | N22: 0.0895 | O22: 0.7661 | P22: 0.6307 | Q22: 0.0969 | R22: 0.0252 | S22: 0.5898 | T22: 0.5189 | U22: 0.0604 | V22: 0.2093 | W22: 0.5697 | X22: 0.0912 | Y22: 0.0973 | Z22: 0.7413 | AA22: 0.0356 | AB22: 0.531 | AC22: 0.4258 | AD22: 0.0455 | AE22: 0.0505 | AF22: 0.1548 | AG22: 0.5718 | AH22: 0.0643 | AI22: 0.0675 | AJ22: 0.048 | AK22: 0.0275 | AL22: 0.0239 | AM22: 0.1676 | AN22: 0.0816 | AO22: 0.332 | AP22: 0.6181 | AQ22: 0.4372 | AR22: 0.0122 | AS22: 0.0597 | AT22: 0.2513 | AU22: 0.3484 | AV22: 0.0299 | AW22: 0.1626 | AX22: 0.8702 | AY22: 0.0238 | AZ22: 0.6858 | BA22: 0.0682 | BB22: 0.0209 | BC22: 0.7644 | BD22: 0.1607 | BE22: 0.0369 | BF22: 0.0477 | BG22: 0.0194 | BH22: 0.0306 | BI22: 0.0633 | BJ22: 0.27855 | BK22: 0.0383 | BL22: 0.45515 | BM22: 0.6449 | BN22: 0.7271 | BO22: 0.2985 | BP22: 0.09025 | BQ22: 0.3171 | BR22: 0.08915 | BS22: 0.058 | BT22: 0.0225 | BU22: 0.576 | BV22: 0.0529 | BW22: 0.0373 | BX22: 0.4118 | BY22: 0.0512 | BZ22: 0.7253 | CA22: 0.4377 | CB22: 0.0505 | CC22: 0.0386 | CD22: 0.1468 | CE22: 0.0479 | CF22: 0.3138 | CG22: 0.1501 | CH22: 0.036 | CI22: 0.7038 | CJ22: 0.077 | CK22: 0.5175 | CL22: 0.0433 | CM22: 0.0375 | CN22: 0.4529 | CO22: 0.2398 | CP22: 0.0351 | CQ22: 0.0592 | CR22: 0.0955 | CS22: 0.4117 | CT22: 0.6758 | CU22: 0.0409 | CV22: 0.2473 | CW22: 0.0533 | CX22: 0.1093 | CY22: 0.0188 | CZ22: 0.2298 | DA22: 0.1243 | DB22: 0.1678
A23: 560 | C23: 0.0203 | D23: 0.1002 | E23: 0.0989 | F23: 0.5988 | G23: 0.9032 | H23: 0.31 | I23: 0.5538 | J23: 0.0242 | K23: 0.5606 | L23: 0.6325 | M23: 0.0375 | N23: 0.0546 | O23: 0.7694 | P23: 0.6692 | Q23: 0.1444 | R23: 0.0273 | S23: 0.5706 | T23: 0.4838 | U23: 0.0617 | V23: 0.1627 | W23: 0.5959 | X23: 0.0714 | Y23: 0.0759 | Z23: 0.7409 | AA23: 0.0317 | AB23: 0.5502 | AC23: 0.3565 | AD23: 0.0424 | AE23: 0.0358 | AF23: 0.1019 | AG23: 0.6106 | AH23: 0.1062 | AI23: 0.1405 | AJ23: 0.0338 | AK23: 0.0259 | AL23: 0.0189 | AM23: 0.1748 | AN23: 0.0675 | AO23: 0.3531 | AP23: 0.6186 | AQ23: 0.4581 | AR23: 0.0143 | AS23: 0.0445 | AT23: 0.2297 | AU23: 0.3565 | AV23: 0.0269 | AW23: 0.1719 | AX23: 0.8686 | AY23: 0.0219 | AZ23: 0.6354 | BA23: 0.0894 | BB23: 0.0246 | BC23: 0.7764 | BD23: 0.1354 | BE23: 0.0385 | BF23: 0.0405 | BG23: 0.0196 | BH23: 0.0313 | BI23: 0.06705 | BJ23: 0.2902 | BK23: 0.0595 | BL23: 0.44335 | BM23: 0.6556 | BN23: 0.71695 | BO23: 0.2546 | BP23: 0.0657 | BQ23: 0.2681 | BR23: 0.08655 | BS23: 0.055 | BT23: 0.0228 | BU23: 0.5838 | BV23: 0.0508 | BW23: 0.0361 | BX23: 0.404 | BY23: 0.0511 | BZ23: 0.7281 | CA23: 0.4038 | CB23: 0.0519 | CC23: 0.0468 | CD23: 0.2323 | CE23: 0.0542 | CF23: 0.3251 | CG23: 0.1447 | CH23: 0.039 | CI23: 0.7118 | CJ23: 0.0778 | CK23: 0.5251 | CL23: 0.0437 | CM23: 0.0384 | CN23: 0.4493 | CO23: 0.312 | CP23: 0.035 | CQ23: 0.0572 | CR23: 0.0918 | CS23: 0.4657 | CT23: 0.6952 | CU23: 0.0413 | CV23: 0.2734 | CW23: 0.0628 | CX23: 0.1046 | CY23: 0.0191 | CZ23: 0.2441 | DA23: 0.1189 | DB23: 0.1679
A24: 570 | C24: 0.02 | D24: 0.1001 | E24: 0.0996 | F24: 0.598 | G24: 0.9055 | H24: 0.3141 | I24: 0.4977 | J24: 0.0201 | K24: 0.723 | L24: 0.7453 | M24: 0.0478 | N24: 0.0343 | O24: 0.7616 | P24: 0.7116 | Q24: 0.2423 | R24: 0.0328 | S24: 0.5435 | T24: 0.4431 | U24: 0.064 | V24: 0.1276 | W24: 0.6306 | X24: 0.0601 | Y24: 0.0616 | Z24: 0.7418 | AA24: 0.0294 | AB24: 0.5609 | AC24: 0.2888 | AD24: 0.0452 | AE24: 0.0275 | AF24: 0.0703 | AG24: 0.6314 | AH24: 0.2068 | AI24: 0.3101 | AJ24: 0.0259 | AK24: 0.0296 | AL24: 0.0174 | AM24: 0.1982 | AN24: 0.0561 | AO24: 0.3749 | AP24: 0.6181 | AQ24: 0.4787 | AR24: 0.0166 | AS24: 0.035 | AT24: 0.2073 | AU24: 0.3538 | AV24: 0.0246 | AW24: 0.1873 | AX24: 0.8681 | AY24: 0.0215 | AZ24: 0.5781 | BA24: 0.1355 | BB24: 0.0334 | BC24: 0.783 | BD24: 0.1123 | BE24: 0.0394 | BF24: 0.0352 | BG24: 0.0199 | BH24: 0.0333 | BI24: 0.10255 | BJ24: 0.3923 | BK24: 0.1001 | BL24: 0.47555 | BM24: 0.6663 | BN24: 0.71725 | BO24: 0.22215 | BP24: 0.05395 | BQ24: 0.2398 | BR24: 0.121 | BS24: 0.0542 | BT24: 0.0247 | BU24: 0.5909 | BV24: 0.0522 | BW24: 0.039 | BX24: 0.4033 | BY24: 0.0534 | BZ24: 0.7284 | CA24: 0.3802 | CB24: 0.0546 | CC24: 0.0638 | CD24: 0.3061 | CE24: 0.0679 | CF24: 0.3366 | CG24: 0.1287 | CH24: 0.043 | CI24: 0.7196 | CJ24: 0.0847 | CK24: 0.5342 | CL24: 0.0446 | CM24: 0.0411 | CN24: 0.4276 | CO24: 0.3647 | CP24: 0.0351 | CQ24: 0.0536 | CR24: 0.0815 | CS24: 0.5152 | CT24: 0.7156 | CU24: 0.0417 | CV24: 0.2986 | CW24: 0.083 | CX24: 0.0906 | CY24: 0.0216 | CZ24: 0.2691 | DA24: 0.1027 | DB24: 0.1791
A25: 580 | C25: 0.0199 | D25: 0.1001 | E25: 0.1013 | F25: 0.597 | G25: 0.907 | H25: 0.3285 | I25: 0.433 | J25: 0.0466 | K25: 0.8028 | L25: 0.8013 | M25: 0.0663 | N25: 0.0244 | O25: 0.7538 | P25: 0.7418 | Q25: 0.4095 | R25: 0.0804 | S25: 0.5167 | T25: 0.404 | U25: 0.0697 | V25: 0.1095 | W25: 0.6633 | X25: 0.0579 | Y25: 0.0541 | Z25: 0.7469 | AA25: 0.0422 | AB25: 0.5783 | AC25: 0.2232 | AD25: 0.0659 | AE25: 0.0248 | AF25: 0.0566 | AG25: 0.6422 | AH25: 0.3762 | AI25: 0.5055 | AJ25: 0.0234 | AK25: 0.068 | AL25: 0.0174 | AM25: 0.2309 | AN25: 0.0484 | AO25: 0.3968 | AP25: 0.6158 | AQ25: 0.499 | AR25: 0.0194 | AS25: 0.0313 | AT25: 0.1877 | AU25: 0.3433 | AV25: 0.0231 | AW25: 0.1999 | AX25: 0.8678 | AY25: 0.0217 | AZ25: 0.5131 | BA25: 0.2215 | BB25: 0.0541 | BC25: 0.7856 | BD25: 0.0923 | BE25: 0.0388 | BF25: 0.0313 | BG25: 0.0206 | BH25: 0.0396 | BI25: 0.2037 | BJ25: 0.5543 | BK25: 0.156 | BL25: 0.5201 | BM25: 0.6769 | BN25: 0.72225 | BO25: 0.2033 | BP25: 0.04925 | BQ25: 0.22675 | BR25: 0.22805 | BS25: 0.0554 | BT25: 0.0312 | BU25: 0.5972 | BV25: 0.0602 | BW25: 0.0535 | BX25: 0.4612 | BY25: 0.0624 | BZ25: 0.7264 | CA25: 0.4079 | CB25: 0.0557 | CC25: 0.0936 | CD25: 0.3564 | CE25: 0.0952 | CF25: 0.345 | CG25: 0.1116 | CH25: 0.0479 | CI25: 0.7264 | CJ25: 0.1033 | CK25: 0.5416 | CL25: 0.0457 | CM25: 0.0476 | CN25: 0.399 | CO25: 0.4015 | CP25: 0.0352 | CQ25: 0.0507 | CR25: 0.0721 | CS25: 0.5461 | CT25: 0.7311 | CU25: 0.0424 | CV25: 0.324 | CW25: 0.1193 | CX25: 0.0774 | CY25: 0.0319 | CZ25: 0.301 | DA25: 0.0871 | DB25: 0.202
A26: 590 | C26: 0.0197 | D26: 0.0998 | E26: 0.1019 | F26: 0.5963 | G26: 0.9083 | H26: 0.3745 | I26: 0.3598 | J26: 0.1783 | K26: 0.8091 | L26: 0.8053 | M26: 0.0969 | N26: 0.0189 | O26: 0.7486 | P26: 0.7541 | Q26: 0.5791 | R26: 0.2275 | S26: 0.4929 | T26: 0.3689 | U26: 0.0891 | V26: 0.0996 | W26: 0.683 | X26: 0.0658 | Y26: 0.0501 | Z26: 0.7519 | AA26: 0.0965 | AB26: 0.6169 | AC26: 0.1588 | AD26: 0.1557 | AE26: 0.0235 | AF26: 0.0498 | AG26: 0.6484 | AH26: 0.5505 | AI26: 0.635 | AJ26: 0.0223 | AK26: 0.1988 | AL26: 0.017 | AM26: 0.2518 | AN26: 0.0436 | AO26: 0.4187 | AP26: 0.6135 | AQ26: 0.519 | AR26: 0.0233 | AS26: 0.03 | AT26: 0.167 | AU26: 0.3306 | AV26: 0.0221 | AW26: 0.2045 | AX26: 0.867 | AY26: 0.0214 | AZ26: 0.4379 | BA26: 0.3444 | BB26: 0.0961 | BC26: 0.7861 | BD26: 0.0757 | BE26: 0.0389 | BF26: 0.029 | BG26: 0.0221 | BH26: 0.0534 | BI26: 0.38095 | BJ26: 0.68725 | BK26: 0.2182 | BL26: 0.5449 | BM26: 0.6865 | BN26: 0.72465 | BO26: 0.19185 | BP26: 0.04685 | BQ26: 0.2179 | BR26: 0.36065 | BS26: 0.0591 | BT26: 0.0459 | BU26: 0.603 | BV26: 0.0771 | BW26: 0.0796 | BX26: 0.558 | BY26: 0.0767 | BZ26: 0.7234 | CA26: 0.4727 | CB26: 0.0587 | CC26: 0.1347 | CD26: 0.389 | CE26: 0.1402 | CF26: 0.3498 | CG26: 0.1005 | CH26: 0.0549 | CI26: 0.7322 | CJ26: 0.1354 | CK26: 0.5473 | CL26: 0.0482 | CM26: 0.0612 | CN26: 0.3783 | CO26: 0.4306 | CP26: 0.035 | CQ26: 0.0489 | CR26: 0.067 | CS26: 0.5642 | CT26: 0.7425 | CU26: 0.043 | CV26: 0.3497 | CW26: 0.172 | CX26: 0.07 | CY26: 0.0558 | CZ26: 0.3392 | DA26: 0.0788 | DB26: 0.2341
A27: 600 | C27: 0.0198 | D27: 0.0995 | E27: 0.1032 | F27: 0.5956 | G27: 0.9092 | H27: 0.4382 | I27: 0.2918 | J27: 0.3938 | K27: 0.7878 | L27: 0.7891 | M27: 0.1251 | N27: 0.0158 | O27: 0.7442 | P27: 0.7564 | Q27: 0.675 | R27: 0.4245 | S27: 0.4751 | T27: 0.3435 | U27: 0.1129 | V27: 0.0906 | W27: 0.6901 | X27: 0.0761 | Y27: 0.0471 | Z27: 0.754 | AA27: 0.174 | AB27: 0.6622 | AC27: 0.1088 | AD27: 0.336 | AE27: 0.0219 | AF27: 0.0454 | AG27: 0.6505 | AH27: 0.6575 | AI27: 0.6902 | AJ27: 0.0211 | AK27: 0.3763 | AL27: 0.016 | AM27: 0.2593 | AN27: 0.0402 | AO27: 0.4408 | AP27: 0.6109 | AQ27: 0.5399 | AR27: 0.0294 | AS27: 0.0278 | AT27: 0.1457 | AU27: 0.321 | AV27: 0.0215 | AW27: 0.2048 | AX27: 0.8675 | AY27: 0.0209 | AZ27: 0.3671 | BA27: 0.4736 | BB27: 0.164 | BC27: 0.7864 | BD27: 0.0645 | BE27: 0.0417 | BF27: 0.0277 | BG27: 0.0239 | BH27: 0.0762 | BI27: 0.57215 | BJ27: 0.7552 | BK27: 0.2804 | BL27: 0.5491 | BM27: 0.6961 | BN27: 0.72375 | BO27: 0.18155 | BP27: 0.0454 | BQ27: 0.20755 | BR27: 0.44605 | BS27: 0.0671 | BT27: 0.0709 | BU27: 0.6085 | BV27: 0.1014 | BW27: 0.1057 | BX27: 0.6334 | BY27: 0.0887 | BZ27: 0.7208 | CA27: 0.5102 | CB27: 0.073 | CC27: 0.179 | CD27: 0.4117 | CE27: 0.2002 | CF27: 0.3527 | CG27: 0.0941 | CH27: 0.0658 | CI27: 0.7379 | CJ27: 0.1815 | CK27: 0.5523 | CL27: 0.0534 | CM27: 0.0848 | CN27: 0.3663 | CO27: 0.4531 | CP27: 0.0357 | CQ27: 0.0479 | CR27: 0.0643 | CS27: 0.5755 | CT27: 0.7512 | CU27: 0.0462 | CV27: 0.3752 | CW27: 0.2354 | CX27: 0.0664 | CY27: 0.0893 | CZ27: 0.3887 | DA27: 0.0751 | DB27: 0.2752
A28: 610 | C28: 0.0197 | D28: 0.0991 | E28: 0.1037 | F28: 0.5955 | G28: 0.9101 | H28: 0.4873 | I28: 0.2502 | J28: 0.5656 | K28: 0.7692 | L28: 0.7745 | M28: 0.1286 | N28: 0.0144 | O28: 0.7412 | P28: 0.7559 | Q28: 0.7108 | R28: 0.5691 | S28: 0.4649 | T28: 0.3302 | U28: 0.124 | V28: 0.084 | W28: 0.6914 | X28: 0.0813 | Y28: 0.0453 | Z28: 0.7544 | AA28: 0.2279 | AB28: 0.6922 | AC28: 0.0835 | AD28: 0.5162 | AE28: 0.0208 | AF28: 0.0429 | AG28: 0.6506 | AH28: 0.7018 | AI28: 0.7085 | AJ28: 0.0204 | AK28: 0.5244 | AL28: 0.0153 | AM28: 0.2616 | AN28: 0.0376 | AO28: 0.462 | AP28: 0.6074 | AQ28: 0.5601 | AR28: 0.0365 | AS28: 0.0258 | AT28: 0.1311 | AU28: 0.3147 | AV28: 0.0212 | AW28: 0.2024 | AX28: 0.8686 | AY28: 0.0206 | AZ28: 0.3226 | BA28: 0.5637 | BB28: 0.2398 | BC28: 0.787 | BD28: 0.0592 | BE28: 0.045 | BF28: 0.0271 | BG28: 0.0259 | BH28: 0.103 | BI28: 0.7022 | BJ28: 0.7818 | BK28: 0.3339 | BL28: 0.5477 | BM28: 0.7059 | BN28: 0.72295 | BO28: 0.17515 | BP28: 0.0452 | BQ28: 0.20055 | BR28: 0.48 | BS28: 0.0804 | BT28: 0.0996 | BU28: 0.6132 | BV28: 0.1245 | BW28: 0.1223 | BX28: 0.6727 | BY28: 0.0945 | BZ28: 0.7182 | CA28: 0.5156 | CB28: 0.1016 | CC28: 0.2161 | CD28: 0.4273 | CE28: 0.2604 | CF28: 0.3548 | CG28: 0.0868 | CH28: 0.0784 | CI28: 0.7427 | CJ28: 0.2312 | CK28: 0.5564 | CL28: 0.0624 | CM28: 0.1152 | CN28: 0.3499 | CO28: 0.4623 | CP28: 0.0363 | CQ28: 0.047 | CR28: 0.0613 | CS28: 0.5795 | CT28: 0.7575 | CU28: 0.0539 | CV28: 0.3985 | CW28: 0.2942 | CX28: 0.0625 | CY28: 0.1185 | CZ28: 0.4433 | DA28: 0.07 | DB28: 0.3245
A29: 620 | C29: 0.02 | D29: 0.0993 | E29: 0.1019 | F29: 0.5956 | G29: 0.9105 | H29: 0.5153 | I29: 0.2335 | J29: 0.6567 | K29: 0.7572 | L29: 0.7656 | M29: 0.1166 | N29: 0.0141 | O29: 0.7411 | P29: 0.7562 | Q29: 0.7233 | R29: 0.6471 | S29: 0.4601 | T29: 0.3245 | U29: 0.1262 | V29: 0.0823 | W29: 0.6903 | X29: 0.0834 | Y29: 0.0447 | Z29: 0.7542 | AA29: 0.2539 | AB29: 0.7061 | AC29: 0.0751 | AD29: 0.6367 | AE29: 0.0211 | AF29: 0.0432 | AG29: 0.6504 | AH29: 0.7178 | AI29: 0.7142 | AJ29: 0.021 | AK29: 0.6289 | AL29: 0.0155 | AM29: 0.2629 | AN29: 0.036 | AO29: 0.4834 | AP29: 0.6022 | AQ29: 0.5803 | AR29: 0.0449 | AS29: 0.0253 | AT29: 0.1255 | AU29: 0.3091 | AV29: 0.0215 | AW29: 0.1964 | AX29: 0.8692 | AY29: 0.0207 | AZ29: 0.3027 | BA29: 0.612 | BB29: 0.3116 | BC29: 0.7863 | BD29: 0.0576 | BE29: 0.045 | BF29: 0.0268 | BG29: 0.0297 | BH29: 0.1217 | BI29: 0.77515 | BJ29: 0.794 | BK29: 0.3798 | BL29: 0.55105 | BM29: 0.7181 | BN29: 0.72525 | BO29: 0.1761 | BP29: 0.04635 | BQ29: 0.20125 | BR29: 0.4947 | BS29: 0.0997 | BT29: 0.1303 | BU29: 0.6174 | BV29: 0.1456 | BW29: 0.1328 | BX29: 0.693 | BY29: 0.0981 | BZ29: 0.7148 | CA29: 0.5147 | CB29: 0.1423 | CC29: 0.2465 | CD29: 0.4382 | CE29: 0.3171 | CF29: 0.356 | CG29: 0.0794 | CH29: 0.093 | CI29: 0.7469 | CJ29: 0.2761 | CK29: 0.5601 | CL29: 0.0806 | CM29: 0.1545 | CN29: 0.328 | CO29: 0.4621 | CP29: 0.0398 | CQ29: 0.0466 | CR29: 0.0587 | CS29: 0.5687 | CT29: 0.7606 | CU29: 0.0774 | CV29: 0.4226 | CW29: 0.346 | CX29: 0.0584 | CY29: 0.1411 | CZ29: 0.4983 | DA29: 0.0646 | DB29: 0.3915
A30: 630 | C30: 0.0204 | D30: 0.0991 | E30: 0.0999 | F30: 0.5963 | G30: 0.9122 | H30: 0.5313 | I30: 0.2298 | J30: 0.693 | K30: 0.7513 | L30: 0.7625 | M30: 0.121 | N30: 0.0139 | O30: 0.7461 | P30: 0.76 | Q30: 0.7289 | R30: 0.6839 | S30: 0.4593 | T30: 0.323 | U30: 0.128 | V30: 0.0834 | W30: 0.6886 | X30: 0.0843 | Y30: 0.045 | Z30: 0.7547 | AA30: 0.2647 | AB30: 0.7122 | AC30: 0.0733 | AD30: 0.6941 | AE30: 0.0217 | AF30: 0.0439 | AG30: 0.6516 | AH30: 0.7249 | AI30: 0.7169 | AJ30: 0.0221 | AK30: 0.6828 | AL30: 0.0153 | AM30: 0.2638 | AN30: 0.0365 | AO30: 0.5049 | AP30: 0.5972 | AQ30: 0.6006 | AR30: 0.0523 | AS30: 0.0249 | AT30: 0.1235 | AU30: 0.3051 | AV30: 0.0221 | AW30: 0.1909 | AX30: 0.8708 | AY30: 0.021 | AZ30: 0.2965 | BA30: 0.6373 | BB30: 0.3702 | BC30: 0.7864 | BD30: 0.0571 | BE30: 0.043 | BF30: 0.0273 | BG30: 0.0379 | BH30: 0.1227 | BI30: 0.81285 | BJ30: 0.8028 | BK30: 0.4151 | BL30: 0.5576 | BM30: 0.7312 | BN30: 0.7299 | BO30: 0.18115 | BP30: 0.04765 | BQ30: 0.2058 | BR30: 0.5059 | BS30: 0.1198 | BT30: 0.1586 | BU30: 0.622 | BV30: 0.1653 | BW30: 0.1404 | BX30: 0.7057 | BY30: 0.1012 | BZ30: 0.7122 | CA30: 0.515 | CB30: 0.1866 | CC30: 0.2685 | CD30: 0.4458 | CE30: 0.3631 | CF30: 0.3571 | CG30: 0.0758 | CH30: 0.1049 | CI30: 0.752 | CJ30: 0.305 | CK30: 0.5643 | CL30: 0.1098 | CM30: 0.1993 | CN30: 0.319 | CO30: 0.4648 | CP30: 0.0468 | CQ30: 0.0462 | CR30: 0.0574 | CS30: 0.5506 | CT30: 0.7616 | CU30: 0.1202 | CV30: 0.4458 | CW30: 0.3874 | CX30: 0.0566 | CY30: 0.1571 | CZ30: 0.5416 | DA30: 0.0624 | DB30: 0.4684
A31: 640 | C31: 0.021 | D31: 0.0986 | E31: 0.1025 | F31: 0.596 | G31: 0.9131 | H31: 0.541 | I31: 0.2291 | J31: 0.7042 | K31: 0.7476 | L31: 0.7611 | M31: 0.1576 | N31: 0.0134 | O31: 0.7509 | P31: 0.7639 | Q31: 0.7304 | R31: 0.6995 | S31: 0.4591 | T31: 0.3224 | U31: 0.1332 | V31: 0.0868 | W31: 0.6859 | X31: 0.0854 | Y31: 0.0451 | Z31: 0.7544 | AA31: 0.2691 | AB31: 0.7139 | AC31: 0.0726 | AD31: 0.7147 | AE31: 0.0229 | AF31: 0.0452 | AG31: 0.653 | AH31: 0.7272 | AI31: 0.7181 | AJ31: 0.0231 | AK31: 0.7023 | AL31: 0.015 | AM31: 0.2647 | AN31: 0.0418 | AO31: 0.5248 | AP31: 0.5909 | AQ31: 0.6195 | AR31: 0.0584 | AS31: 0.0246 | AT31: 0.1226 | AU31: 0.3047 | AV31: 0.0237 | AW31: 0.1923 | AX31: 0.8708 | AY31: 0.0226 | AZ31: 0.2932 | BA31: 0.6527 | BB31: 0.4199 | BC31: 0.7863 | BD31: 0.0567 | BE31: 0.0442 | BF31: 0.0297 | BG31: 0.0563 | BH31: 0.118 | BI31: 0.8315 | BJ31: 0.809 | BK31: 0.4394 | BL31: 0.5669 | BM31: 0.7434 | BN31: 0.7358 | BO31: 0.18945 | BP31: 0.04955 | BQ31: 0.21375 | BR31: 0.5176 | BS31: 0.1395 | BT31: 0.1858 | BU31: 0.6257 | BV31: 0.1867 | BW31: 0.1477 | BX31: 0.7148 | BY31: 0.1056 | BZ31: 0.7089 | CA31: 0.5173 | CB31: 0.2432 | CC31: 0.2823 | CD31: 0.4506 | CE31: 0.3947 | CF31: 0.3576 | CG31: 0.0662 | CH31: 0.1177 | CI31: 0.7563 | CJ31: 0.3185 | CK31: 0.5685 | CL31: 0.1522 | CM31: 0.2308 | CN31: 0.2911 | CO31: 0.4616 | CP31: 0.0599 | CQ31: 0.0454 | CR31: 0.0547 | CS31: 0.546 | CT31: 0.764 | CU31: 0.1809 | CV31: 0.4673 | CW31: 0.4135 | CX31: 0.0532 | CY31: 0.1683 | CZ31: 0.5684 | DA31: 0.0588 | DB31: 0.5388
A32: 650 | C32: 0.022 | D32: 0.0985 | E32: 0.1148 | F32: 0.5961 | G32: 0.9141 | H32: 0.5485 | I32: 0.232 | J32: 0.7094 | K32: 0.7438 | L32: 0.7596 | M32: 0.2232 | N32: 0.013 | O32: 0.7549 | P32: 0.7668 | Q32: 0.7317 | R32: 0.708 | S32: 0.4602 | T32: 0.3227 | U32: 0.1435 | V32: 0.0941 | W32: 0.6833 | X32: 0.0888 | Y32: 0.0467 | Z32: 0.7549 | AA32: 0.272 | AB32: 0.7157 | AC32: 0.0738 | AD32: 0.7236 | AE32: 0.025 | AF32: 0.0483 | AG32: 0.6556 | AH32: 0.7289 | AI32: 0.7196 | AJ32: 0.025 | AK32: 0.7115 | AL32: 0.015 | AM32: 0.2662 | AN32: 0.0553 | AO32: 0.5441 | AP32: 0.5838 | AQ32: 0.6376 | AR32: 0.0643 | AS32: 0.0254 | AT32: 0.1256 | AU32: 0.3113 | AV32: 0.0281 | AW32: 0.2045 | AX32: 0.8722 | AY32: 0.0264 | AZ32: 0.2939 | BA32: 0.6659 | BB32: 0.471 | BC32: 0.7886 | BD32: 0.057 | BE32: 0.0534 | BF32: 0.0351 | BG32: 0.0913 | BH32: 0.1251 | BI32: 0.84305 | BJ32: 0.81465 | BK32: 0.4584 | BL32: 0.5814 | BM32: 0.7553 | BN32: 0.74375 | BO32: 0.2043 | BP32: 0.0524 | BQ32: 0.22905 | BR32: 0.5326 | BS32: 0.1609 | BT32: 0.2156 | BU32: 0.6295 | BV32: 0.2107 | BW32: 0.1558 | BX32: 0.7242 | BY32: 0.1115 | BZ32: 0.7058 | CA32: 0.5259 | CB32: 0.3201 | CC32: 0.2907 | CD32: 0.4549 | CE32: 0.4153 | CF32: 0.3585 | CG32: 0.0536 | CH32: 0.1372 | CI32: 0.7611 | CJ32: 0.3248 | CK32: 0.5745 | CL32: 0.2036 | CM32: 0.2366 | CN32: 0.2429 | CO32: 0.4445 | CP32: 0.0764 | CQ32: 0.0448 | CR32: 0.0512 | CS32: 0.5653 | CT32: 0.7697 | CU32: 0.2431 | CV32: 0.4872 | CW32: 0.4257 | CX32: 0.049 | CY32: 0.1768 | CZ32: 0.5837 | DA32: 0.0547 | DB32: 0.5932
A33: 660 | C33: 0.0259 | D33: 0.0984 | E33: 0.1457 | F33: 0.5952 | G33: 0.9138 | H33: 0.5544 | I33: 0.2472 | J33: 0.712 | K33: 0.7389 | L33: 0.7563 | M33: 0.3131 | N33: 0.0138 | O33: 0.7557 | P33: 0.7669 | Q33: 0.7317 | R33: 0.7116 | S33: 0.4615 | T33: 0.3248 | U33: 0.1573 | V33: 0.1047 | W33: 0.6796 | X33: 0.0946 | Y33: 0.0493 | Z33: 0.7542 | AA33: 0.2745 | AB33: 0.7161 | AC33: 0.0818 | AD33: 0.7273 | AE33: 0.0286 | AF33: 0.0535 | AG33: 0.6577 | AH33: 0.7291 | AI33: 0.7203 | AJ33: 0.0279 | AK33: 0.715 | AL33: 0.0161 | AM33: 0.2682 | AN33: 0.0849 | AO33: 0.5616 | AP33: 0.5756 | AQ33: 0.6541 | AR33: 0.0737 | AS33: 0.0277 | AT33: 0.1342 | AU33: 0.3256 | AV33: 0.0386 | AW33: 0.2291 | AX33: 0.8727 | AY33: 0.0359 | AZ33: 0.3074 | BA33: 0.6764 | BB33: 0.5313 | BC33: 0.7909 | BD33: 0.0585 | BE33: 0.0801 | BF33: 0.0468 | BG33: 0.1472 | BH33: 0.1574 | BI33: 0.8501 | BJ33: 0.81885 | BK33: 0.4767 | BL33: 0.59685 | BM33: 0.7664 | BN33: 0.7507 | BO33: 0.22245 | BP33: 0.05595 | BQ33: 0.24715 | BR33: 0.54895 | BS33: 0.1845 | BT33: 0.2506 | BU33: 0.6326 | BV33: 0.236 | BW33: 0.1667 | BX33: 0.7319 | BY33: 0.1206 | BZ33: 0.7019 | CA33: 0.5373 | CB33: 0.4237 | CC33: 0.295 | CD33: 0.4585 | CE33: 0.4281 | CF33: 0.3591 | CG33: 0.0488 | CH33: 0.1732 | CI33: 0.7655 | CJ33: 0.3277 | CK33: 0.5797 | CL33: 0.2593 | CM33: 0.2323 | CN33: 0.205 | CO33: 0.4039 | CP33: 0.0923 | CQ33: 0.0456 | CR33: 0.0504 | CS33: 0.6078 | CT33: 0.7781 | CU33: 0.2811 | CV33: 0.5057 | CW33: 0.4263 | CX33: 0.0481 | CY33: 0.1836 | CZ33: 0.5923 | DA33: 0.0528 | DB33: 0.6291
A34: 670 | C34: 0.0348 | D34: 0.0981 | E34: 0.1992 | F34: 0.5954 | G34: 0.9139 | H34: 0.5616 | I34: 0.2748 | J34: 0.7139 | K34: 0.7334 | L34: 0.7518 | M34: 0.4048 | N34: 0.0146 | O34: 0.7539 | P34: 0.7636 | Q34: 0.7323 | R34: 0.7127 | S34: 0.4642 | T34: 0.33 | U34: 0.1665 | V34: 0.1115 | W34: 0.6761 | X34: 0.0974 | Y34: 0.0507 | Z34: 0.754 | AA34: 0.2769 | AB34: 0.7166 | AC34: 0.0966 | AD34: 0.7294 | AE34: 0.0301 | AF34: 0.0562 | AG34: 0.6587 | AH34: 0.7292 | AI34: 0.7217 | AJ34: 0.0289 | AK34: 0.7166 | AL34: 0.0166 | AM34: 0.2691 | AN34: 0.1301 | AO34: 0.5793 | AP34: 0.5678 | AQ34: 0.6714 | AR34: 0.0886 | AS34: 0.0288 | AT34: 0.1444 | AU34: 0.3495 | AV34: 0.0592 | AW34: 0.2591 | AX34: 0.875 | AY34: 0.0539 | AZ34: 0.3349 | BA34: 0.6842 | BB34: 0.5966 | BC34: 0.7942 | BD34: 0.0614 | BE34: 0.1315 | BF34: 0.0677 | BG34: 0.212 | BH34: 0.222 | BI34: 0.85485 | BJ34: 0.8216 | BK34: 0.4981 | BL34: 0.60375 | BM34: 0.7766 | BN34: 0.75425 | BO34: 0.23225 | BP34: 0.05685 | BQ34: 0.25505 | BR34: 0.5606 | BS34: 0.2084 | BT34: 0.2884 | BU34: 0.637 | BV34: 0.2602 | BW34: 0.1797 | BX34: 0.7391 | BY34: 0.133 | BZ34: 0.6985 | CA34: 0.5422 | CB34: 0.5377 | CC34: 0.2984 | CD34: 0.4622 | CE34: 0.4367 | CF34: 0.3599 | CG34: 0.0466 | CH34: 0.23 | CI34: 0.7702 | CJ34: 0.3288 | CK34: 0.5852 | CL34: 0.3126 | CM34: 0.2023 | CN34: 0.1575 | CO34: 0.3445 | CP34: 0.099 | CQ34: 0.0483 | CR34: 0.0511 | CS34: 0.6636 | CT34: 0.7876 | CU34: 0.2745 | CV34: 0.5234 | CW34: 0.4145 | CX34: 0.0492 | CY34: 0.1893 | CZ34: 0.5995 | DA34: 0.0533 | DB34: 0.6514
A35: 680 | C35: 0.054 | D35: 0.098 | E35: 0.2712 | F35: 0.5953 | G35: 0.9138 | H35: 0.5687 | I35: 0.3067 | J35: 0.715 | K35: 0.7273 | L35: 0.7466 | M35: 0.4781 | N35: 0.015 | O35: 0.7494 | P35: 0.758 | Q35: 0.7327 | R35: 0.7117 | S35: 0.4673 | T35: 0.3365 | U35: 0.1662 | V35: 0.1115 | W35: 0.6728 | X35: 0.0961 | Y35: 0.0499 | Z35: 0.7537 | AA35: 0.2791 | AB35: 0.7166 | AC35: 0.1151 | AD35: 0.7306 | AE35: 0.0292 | AF35: 0.0546 | AG35: 0.6586 | AH35: 0.7291 | AI35: 0.7232 | AJ35: 0.0279 | AK35: 0.7171 | AL35: 0.0161 | AM35: 0.2693 | AN35: 0.1779 | AO35: 0.5952 | AP35: 0.5605 | AQ35: 0.687 | AR35: 0.1134 | AS35: 0.0281 | AT35: 0.1546 | AU35: 0.3819 | AV35: 0.0952 | AW35: 0.2875 | AX35: 0.8773 | AY35: 0.0852 | AZ35: 0.367 | BA35: 0.6886 | BB35: 0.6479 | BC35: 0.7972 | BD35: 0.0647 | BE35: 0.2055 | BF35: 0.1009 | BG35: 0.266 | BH35: 0.3083 | BI35: 0.8562 | BJ35: 0.8201 | BK35: 0.5195 | BL35: 0.5999 | BM35: 0.7842 | BN35: 0.75245 | BO35: 0.2292 | BP35: 0.0552 | BQ35: 0.24915 | BR35: 0.5636 | BS35: 0.2365 | BT35: 0.3283 | BU35: 0.6427 | BV35: 0.287 | BW35: 0.195 | BX35: 0.75 | BY35: 0.1485 | BZ35: 0.695 | CA35: 0.5377 | CB35: 0.6316 | CC35: 0.3012 | CD35: 0.4648 | CE35: 0.4434 | CF35: 0.3607 | CG35: 0.0541 | CH35: 0.3073 | CI35: 0.7744 | CJ35: 0.3306 | CK35: 0.5898 | CL35: 0.3567 | CM35: 0.2183 | CN35: 0.1657 | CO35: 0.3562 | CP35: 0.1164 | CQ35: 0.0538 | CR35: 0.056 | CS35: 0.7094 | CT35: 0.7952 | CU35: 0.3023 | CV35: 0.5395 | CW35: 0.4257 | CX35: 0.0534 | CY35: 0.194 | CZ35: 0.607 | DA35: 0.058 | DB35: 0.6697
A36: 690 | C36: 0.0893 | D36: 0.0979 | E36: 0.3519 | F36: 0.5953 | G36: 0.9143 | H36: 0.5751 | I36: 0.3381 | J36: 0.7156 | K36: 0.7225 | L36: 0.7421 | M36: 0.5325 | N36: 0.0154 | O36: 0.7453 | P36: 0.7527 | Q36: 0.7328 | R36: 0.71 | S36: 0.4701 | T36: 0.3431 | U36: 0.1611 | V36: 0.1089 | W36: 0.6686 | X36: 0.0921 | Y36: 0.0481 | Z36: 0.7531 | AA36: 0.2812 | AB36: 0.7158 | AC36: 0.134 | AD36: 0.7308 | AE36: 0.0273 | AF36: 0.0512 | AG36: 0.6578 | AH36: 0.7287 | AI36: 0.7238 | AJ36: 0.0262 | AK36: 0.7163 | AL36: 0.0152 | AM36: 0.2685 | AN36: 0.2173 | AO36: 0.6105 | AP36: 0.5526 | AQ36: 0.7023 | AR36: 0.1509 | AS36: 0.0265 | AT36: 0.1632 | AU36: 0.4218 | AV36: 0.1507 | AW36: 0.3153 | AX36: 0.8781 | AY36: 0.1326 | AZ36: 0.3973 | BA36: 0.69 | BB36: 0.6775 | BC36: 0.7991 | BD36: 0.0679 | BE36: 0.2916 | BF36: 0.1476 | BG36: 0.3045 | BH36: 0.3915 | BI36: 0.85725 | BJ36: 0.82 | BK36: 0.5388 | BL36: 0.5918 | BM36: 0.7906 | BN36: 0.7503 | BO36: 0.22115 | BP36: 0.0532 | BQ36: 0.23915 | BR36: 0.5629 | BS36: 0.2785 | BT36: 0.3755 | BU36: 0.6506 | BV36: 0.3266 | BW36: 0.2115 | BX36: 0.76 | BY36: 0.167 | BZ36: 0.6916 | CA36: 0.5277 | CB36: 0.6985 | CC36: 0.3034 | CD36: 0.4666 | CE36: 0.4488 | CF36: 0.362 | CG36: 0.0935 | CH36: 0.4008 | CI36: 0.7784 | CJ36: 0.3323 | CK36: 0.5945 | CL36: 0.3957 | CM36: 0.3592 | CN36: 0.3034 | CO36: 0.4633 | CP36: 0.1773 | CQ36: 0.0575 | CR36: 0.0693 | CS36: 0.7363 | CT36: 0.8002 | CU36: 0.4623 | CV36: 0.5549 | CW36: 0.4791 | CX36: 0.0654 | CY36: 0.1983 | CZ36: 0.6171 | DA36: 0.0739 | DB36: 0.6919
A37: 700 | C37: 0.1466 | D37: 0.0978 | E37: 0.431 | F37: 0.5945 | G37: 0.9136 | H37: 0.5789 | I37: 0.3624 | J37: 0.7153 | K37: 0.7205 | L37: 0.7406 | M37: 0.5707 | N37: 0.0155 | O37: 0.7442 | P37: 0.7508 | Q37: 0.7322 | R37: 0.7101 | S37: 0.4726 | T37: 0.3486 | U37: 0.153 | V37: 0.1047 | W37: 0.6639 | X37: 0.0876 | Y37: 0.0462 | Z37: 0.7519 | AA37: 0.2833 | AB37: 0.7142 | AC37: 0.1497 | AD37: 0.7303 | AE37: 0.0253 | AF37: 0.0475 | AG37: 0.6556 | AH37: 0.7275 | AI37: 0.7244 | AJ37: 0.0249 | AK37: 0.7139 | AL37: 0.015 | AM37: 0.2676 | AN37: 0.2439 | AO37: 0.624 | AP37: 0.5431 | AQ37: 0.7157 | AR37: 0.1982 | AS37: 0.0248 | AT37: 0.165 | AU37: 0.469 | AV37: 0.2274 | AW37: 0.3455 | AX37: 0.8778 | AY37: 0.1988 | AZ37: 0.4211 | BA37: 0.6901 | BB37: 0.6901 | BC37: 0.7994 | BD37: 0.0704 | BE37: 0.3797 | BF37: 0.2102 | BG37: 0.3277 | BH37: 0.4478 | BI37: 0.8581 | BJ37: 0.81765 | BK37: 0.5552 | BL37: 0.5818 | BM37: 0.7945 | BN37: 0.7462 | BO37: 0.2091 | BP37: 0.05185 | BQ37: 0.2261 | BR37: 0.55705 | BS37: 0.338 | BT37: 0.434 | BU37: 0.6609 | BV37: 0.3812 | BW37: 0.23 | BX37: 0.7669 | BY37: 0.1879 | BZ37: 0.687 | CA37: 0.5116 | CB37: 0.7407 | CC37: 0.3041 | CD37: 0.4663 | CE37: 0.4513 | CF37: 0.3613 | CG37: 0.1818 | CH37: 0.497 | CI37: 0.7814 | CJ37: 0.3327 | CK37: 0.5974 | CL37: 0.4298 | CM37: 0.5246 | CN37: 0.4952 | CO37: 0.5454 | CP37: 0.2515 | CQ37: 0.0679 | CR37: 0.1305 | CS37: 0.7472 | CT37: 0.8017 | CU37: 0.6213 | CV37: 0.5684 | CW37: 0.5258 | CX37: 0.1207 | CY37: 0.2016 | CZ37: 0.6316 | DA37: 0.1409 | DB37: 0.7102
A38: 710 | C38: 0.1466 | D38: 0.0978 | E38: 0.431 | F38: 0.5945 | G38: 0.9136 | H38: 0.5789 | I38: 0.3624 | J38: 0.7153 | K38: 0.7205 | L38: 0.7406 | M38: 0.5707 | N38: 0.0155 | O38: 0.7442 | P38: 0.7508 | Q38: 0.7322 | R38: 0.7101 | S38: 0.4726 | T38: 0.3486 | U38: 0.153 | V38: 0.1047 | W38: 0.6639 | X38: 0.0876 | Y38: 0.0462 | Z38: 0.7519 | AA38: 0.2833 | AB38: 0.7142 | AC38: 0.1497 | AD38: 0.7303 | AE38: 0.0253 | AF38: 0.0475 | AG38: 0.6556 | AH38: 0.7275 | AI38: 0.7244 | AJ38: 0.0249 | AK38: 0.7139 | AL38: 0.015 | AM38: 0.2676 | AN38: 0.2439 | AO38: 0.624 | AP38: 0.5431 | AQ38: 0.7157 | AR38: 0.1982 | AS38: 0.0248 | AT38: 0.165 | AU38: 0.469 | AV38: 0.2274 | AW38: 0.3455 | AX38: 0.8778 | AY38: 0.1988 | AZ38: 0.4211 | BA38: 0.6901 | BB38: 0.6901 | BC38: 0.7994 | BD38: 0.0704 | BE38: 0.3797 | BF38: 0.2102 | BG38: 0.3277 | BH38: 0.4478 | BI38: 0.8581 | BJ38: 0.81765 | BK38: 0.5552 | BL38: 0.5818 | BM38: 0.7945 | BN38: 0.7462 | BO38: 0.2091 | BP38: 0.05185 | BQ38: 0.2261 | BR38: 0.55705 | BS38: 0.338 | BT38: 0.434 | BU38: 0.6609 | BV38: 0.3812 | BW38: 0.23 | BX38: 0.7669 | BY38: 0.1879 | BZ38: 0.687 | CA38: 0.5116 | CB38: 0.7407 | CC38: 0.3041 | CD38: 0.4663 | CE38: 0.4513 | CF38: 0.3613 | CG38: 0.1818 | CH38: 0.497 | CI38: 0.7814 | CJ38: 0.3327 | CK38: 0.5974 | CL38: 0.4298 | CM38: 0.5246 | CN38: 0.4952 | CO38: 0.5454 | CP38: 0.2515 | CQ38: 0.0679 | CR38: 0.1305 | CS38: 0.7472 | CT38: 0.8017 | CU38: 0.6213 | CV38: 0.5684 | CW38: 0.5258 | CX38: 0.1207 | CY38: 0.2016 | CZ38: 0.6316 | DA38: 0.1409 | DB38: 0.7102
A39: 720 | C39: 0.1466 | D39: 0.0978 | E39: 0.431 | F39: 0.5945 | G39: 0.9136 | H39: 0.5789 | I39: 0.3624 | J39: 0.7153 | K39: 0.7205 | L39: 0.7406 | M39: 0.5707 | N39: 0.0155 | O39: 0.7442 | P39: 0.7508 | Q39: 0.7322 | R39: 0.7101 | S39: 0.4726 | T39: 0.3486 | U39: 0.153 | V39: 0.1047 | W39: 0.6639 | X39: 0.0876 | Y39: 0.0462 | Z39: 0.7519 | AA39: 0.2833 | AB39: 0.7142 | AC39: 0.1497 | AD39: 0.7303 | AE39: 0.0253 | AF39: 0.0475 | AG39: 0.6556 | AH39: 0.7275 | AI39: 0.7244 | AJ39: 0.0249 | AK39: 0.7139 | AL39: 0.015 | AM39: 0.2676 | AN39: 0.2439 | AO39: 0.624 | AP39: 0.5431 | AQ39: 0.7157 | AR39: 0.1982 | AS39: 0.0248 | AT39: 0.165 | AU39: 0.469 | AV39: 0.2274 | AW39: 0.3455 | AX39: 0.8778 | AY39: 0.1988 | AZ39: 0.4211 | BA39: 0.6901 | BB39: 0.6901 | BC39: 0.7994 | BD39: 0.0704 | BE39: 0.3797 | BF39: 0.2102 | BG39: 0.3277 | BH39: 0.4478 | BI39: 0.8581 | BJ39: 0.81765 | BK39: 0.5552 | BL39: 0.5818 | BM39: 0.7945 | BN39: 0.7462 | BO39: 0.2091 | BP39: 0.05185 | BQ39: 0.2261 | BR39: 0.55705 | BS39: 0.338 | BT39: 0.434 | BU39: 0.6609 | BV39: 0.3812 | BW39: 0.23 | BX39: 0.7669 | BY39: 0.1879 | BZ39: 0.687 | CA39: 0.5116 | CB39: 0.7407 | CC39: 0.3041 | CD39: 0.4663 | CE39: 0.4513 | CF39: 0.3613 | CG39: 0.1818 | CH39: 0.497 | CI39: 0.7814 | CJ39: 0.3327 | CK39: 0.5974 | CL39: 0.4298 | CM39: 0.5246 | CN39: 0.4952 | CO39: 0.5454 | CP39: 0.2515 | CQ39: 0.0679 | CR39: 0.1305 | CS39: 0.7472 | CT39: 0.8017 | CU39: 0.6213 | CV39: 0.5684 | CW39: 0.5258 | CX39: 0.1207 | CY39: 0.2016 | CZ39: 0.6316 | DA39: 0.1409 | DB39: 0.7102
A40: 730 | C40: 0.1466 | D40: 0.0978 | E40: 0.431 | F40: 0.5945 | G40: 0.9136 | H40: 0.5789 | I40: 0.3624 | J40: 0.7153 | K40: 0.7205 | L40: 0.7406 | M40: 0.5707 | N40: 0.0155 | O40: 0.7442 | P40: 0.7508 | Q40: 0.7322 | R40: 0.7101 | S40: 0.4726 | T40: 0.3486 | U40: 0.153 | V40: 0.1047 | W40: 0.6639 | X40: 0.0876 | Y40: 0.0462 | Z40: 0.7519 | AA40: 0.2833 | AB40: 0.7142 | AC40: 0.1497 | AD40: 0.7303 | AE40: 0.0253 | AF40: 0.0475 | AG40: 0.6556 | AH40: 0.7275 | AI40: 0.7244 | AJ40: 0.0249 | AK40: 0.7139 | AL40: 0.015 | AM40: 0.2676 | AN40: 0.2439 | AO40: 0.624 | AP40: 0.5431 | AQ40: 0.7157 | AR40: 0.1982 | AS40: 0.0248 | AT40: 0.165 | AU40: 0.469 | AV40: 0.2274 | AW40: 0.3455 | AX40: 0.8778 | AY40: 0.1988 | AZ40: 0.4211 | BA40: 0.6901 | BB40: 0.6901 | BC40: 0.7994 | BD40: 0.0704 | BE40: 0.3797 | BF40: 0.2102 | BG40: 0.3277 | BH40: 0.4478 | BI40: 0.8581 | BJ40: 0.81765 | BK40: 0.5552 | BL40: 0.5818 | BM40: 0.7945 | BN40: 0.7462 | BO40: 0.2091 | BP40: 0.05185 | BQ40: 0.2261 | BR40: 0.55705 | BS40: 0.338 | BT40: 0.434 | BU40: 0.6609 | BV40: 0.3812 | BW40: 0.23 | BX40: 0.7669 | BY40: 0.1879 | BZ40: 0.687 | CA40: 0.5116 | CB40: 0.7407 | CC40: 0.3041 | CD40: 0.4663 | CE40: 0.4513 | CF40: 0.3613 | CG40: 0.1818 | CH40: 0.497 | CI40: 0.7814 | CJ40: 0.3327 | CK40: 0.5974 | CL40: 0.4298 | CM40: 0.5246 | CN40: 0.4952 | CO40: 0.5454 | CP40: 0.2515 | CQ40: 0.0679 | CR40: 0.1305 | CS40: 0.7472 | CT40: 0.8017 | CU40: 0.6213 | CV40: 0.5684 | CW40: 0.5258 | CX40: 0.1207 | CY40: 0.2016 | CZ40: 0.6316 | DA40: 0.1409 | DB40: 0.7102
A41: 740 | C41: 0.1466 | D41: 0.0978 | E41: 0.431 | F41: 0.5945 | G41: 0.9136 | H41: 0.5789 | I41: 0.3624 | J41: 0.7153 | K41: 0.7205 | L41: 0.7406 | M41: 0.5707 | N41: 0.0155 | O41: 0.7442 | P41: 0.7508 | Q41: 0.7322 | R41: 0.7101 | S41: 0.4726 | T41: 0.3486 | U41: 0.153 | V41: 0.1047 | W41: 0.6639 | X41: 0.0876 | Y41: 0.0462 | Z41: 0.7519 | AA41: 0.2833 | AB41: 0.7142 | AC41: 0.1497 | AD41: 0.7303 | AE41: 0.0253 | AF41: 0.0475 | AG41: 0.6556 | AH41: 0.7275 | AI41: 0.7244 | AJ41: 0.0249 | AK41: 0.7139 | AL41: 0.015 | AM41: 0.2676 | AN41: 0.2439 | AO41: 0.624 | AP41: 0.5431 | AQ41: 0.7157 | AR41: 0.1982 | AS41: 0.0248 | AT41: 0.165 | AU41: 0.469 | AV41: 0.2274 | AW41: 0.3455 | AX41: 0.8778 | AY41: 0.1988 | AZ41: 0.4211 | BA41: 0.6901 | BB41: 0.6901 | BC41: 0.7994 | BD41: 0.0704 | BE41: 0.3797 | BF41: 0.2102 | BG41: 0.3277 | BH41: 0.4478 | BI41: 0.8581 | BJ41: 0.81765 | BK41: 0.5552 | BL41: 0.5818 | BM41: 0.7945 | BN41: 0.7462 | BO41: 0.2091 | BP41: 0.05185 | BQ41: 0.2261 | BR41: 0.55705 | BS41: 0.338 | BT41: 0.434 | BU41: 0.6609 | BV41: 0.3812 | BW41: 0.23 | BX41: 0.7669 | BY41: 0.1879 | BZ41: 0.687 | CA41: 0.5116 | CB41: 0.7407 | CC41: 0.3041 | CD41: 0.4663 | CE41: 0.4513 | CF41: 0.3613 | CG41: 0.1818 | CH41: 0.497 | CI41: 0.7814 | CJ41: 0.3327 | CK41: 0.5974 | CL41: 0.4298 | CM41: 0.5246 | CN41: 0.4952 | CO41: 0.5454 | CP41: 0.2515 | CQ41: 0.0679 | CR41: 0.1305 | CS41: 0.7472 | CT41: 0.8017 | CU41: 0.6213 | CV41: 0.5684 | CW41: 0.5258 | CX41: 0.1207 | CY41: 0.2016 | CZ41: 0.6316 | DA41: 0.1409 | DB41: 0.7102

Sheet Reflectances1nm
A1: ID (not sequential) | C1: =[4]Reflectances!C1 -> 1 | D1: =[4]Reflectances!D1 -> 2 | E1: =[4]Reflectances!E1 -> 3 | F1: =[4]Reflectances!F1 -> 4 | G1: =[4]Reflectances!G1 -> 5 | H1: =[4]Reflectances!H1 -> 6 | I1: =[4]Reflectances!I1 -> 7 | J1: =[4]Reflectances!J1 -> 8 | K1: =[4]Reflectances!K1 -> 9 | L1: =[4]Reflectances!L1 -> 10 | M1: =[4]Reflectances!M1 -> 13 | N1: =[4]Reflectances!N1 -> 14 | O1: =[4]Reflectances!O1 -> 15 | P1: =[4]Reflectances!P1 -> 16 | Q1: =[4]Reflectances!Q1 -> 17 | R1: =[4]Reflectances!R1 -> 18 | S1: =[4]Reflectances!S1 -> 19 | T1: =[4]Reflectances!T1 -> 20 | U1: =[4]Reflectances!U1 -> 21 | V1: =[4]Reflectances!V1 -> 22 | W1: =[4]Reflectances!W1 -> 23 | X1: =[4]Reflectances!X1 -> 24 | Y1: =[4]Reflectances!Y1 -> 25 | Z1: =[4]Reflectances!Z1 -> 26 | AA1: =[4]Reflectances!AA1 -> 27 | AB1: =[4]Reflectances!AB1 -> 28 | AC1: =[4]Reflectances!AC1 -> 29 | AD1: =[4]Reflectances!AD1 -> 30 | AE1: =[4]Reflectances!AE1 -> 31 | AF1: =[4]Reflectances!AF1 -> 32 | AG1: =[4]Reflectances!AG1 -> 33 | AH1: =[4]Reflectances!AH1 -> 34 | AI1: =[4]Reflectances!AI1 -> 35 | AJ1: =[4]Reflectances!AJ1 -> 36 | AK1: =[4]Reflectances!AK1 -> 37 | AL1: =[4]Reflectances!AL1 -> 38 | AM1: =[4]Reflectances!AM1 -> 42 | AN1: =[4]Reflectances!AN1 -> 43 | AO1: =[4]Reflectances!AO1 -> 45 | AP1: =[4]Reflectances!AP1 -> 46 | AQ1: =[4]Reflectances!AQ1 -> 47 | AR1: =[4]Reflectances!AR1 -> 50 | AS1: =[4]Reflectances!AS1 -> 51 | AT1: =[4]Reflectances!AT1 -> 52 | AU1: =[4]Reflectances!AU1 -> 53 | AV1: =[4]Reflectances!AV1 -> 54 | AW1: =[4]Reflectances!AW1 -> 55 | AX1: =[4]Reflectances!AX1 -> 56 | AY1: =[4]Reflectances!AY1 -> 57 | AZ1: =[4]Reflectances!AZ1 -> 58 | BA1: =[4]Reflectances!BA1 -> 59 | BB1: =[4]Reflectances!BB1 -> 60 | BC1: =[4]Reflectances!BC1 -> 61 | BD1: =[4]Reflectances!BD1 -> 62 | BE1: =[4]Reflectances!BE1 -> 63 | BF1: =[4]Reflectances!BF1 -> 64 | BG1: =[4]Reflectances!BG1 -> 65 | BH1: =[4]Reflectances!BH1 -> 66 | BI1: =[4]Reflectances!BI1 -> 69 | BJ1: =[4]Reflectances!BJ1 -> 70 | BK1: =[4]Reflectances!BK1 -> 71 | BL1: =[4]Reflectances!BL1 -> 74 | BM1: =[4]Reflectances!BM1 -> 75 | BN1: =[4]Reflectances!BN1 -> 77 | BO1: =[4]Reflectances!BO1 -> 80 | BP1: =[4]Reflectances!BP1 -> 84 | BQ1: =[4]Reflectances!BQ1 -> 85 | BR1: =[4]Reflectances!BR1 -> 87 | BS1: =[4]Reflectances!BS1 -> 89 | BT1: =[4]Reflectances!BT1 -> 90 | BU1: =[4]Reflectances!BU1 -> 91 | BV1: =[4]Reflectances!BV1 -> 92 | BW1: =[4]Reflectances!BW1 -> 93 | BX1: =[4]Reflectances!BX1 -> 94 | BY1: =[4]Reflectances!BY1 -> 95 | BZ1: =[4]Reflectances!BZ1 -> 96 | CA1: =[4]Reflectances!CA1 -> 97 | CB1: =[4]Reflectances!CB1 -> 98 | CC1: =[4]Reflectances!CC1 -> 99 | CD1: =[4]Reflectances!CD1 -> 100 | CE1: =[4]Reflectances!CE1 -> 101 | CF1: =[4]Reflectances!CF1 -> 102 | CG1: =[4]Reflectances!CG1 -> 103 | CH1: =[4]Reflectances!CH1 -> 105 | CI1: =[4]Reflectances!CI1 -> 106 | CJ1: =[4]Reflectances!CJ1 -> 107 | CK1: =[4]Reflectances!CK1 -> 108 | CL1: =[4]Reflectances!CL1 -> 109 | CM1: =[4]Reflectances!CM1 -> 110 | CN1: =[4]Reflectances!CN1 -> 111 | CO1: =[4]Reflectances!CO1 -> 112 | CP1: =[4]Reflectances!CP1 -> 113 | CQ1: =[4]Reflectances!CQ1 -> 114 | CR1: =[4]Reflectances!CR1 -> 115 | CS1: =[4]Reflectances!CS1 -> 116 | CT1: =[4]Reflectances!CT1 -> 117 | CU1: =[4]Reflectances!CU1 -> 118 | CV1: =[4]Reflectances!CV1 -> 119 | CW1: =[4]Reflectances!CW1 -> 120 | CX1: =[4]Reflectances!CX1 -> 121 | CY1: =[4]Reflectances!CY1 -> 122 | CZ1: =[4]Reflectances!CZ1 -> 123 | DA1: =[4]Reflectances!DA1 -> 124 | DB1: =[4]Reflectances!DB1 -> 125
A2: Description | C2: =[4]Reflectances!C2 -> Black Tablecloth | D2: =[4]Reflectances!D2 -> Gray Carpet | E2: =[4]Reflectances!E2 -> Gray Chair | F2: =[4]Reflectances!F2 -> Curtain | G2: =[4]Reflectances!G2 -> Ceiling Tile | H2: =[4]Reflectances!H2 -> Skin (MR) | I2: =[4]Reflectances!I2 -> AZ Tea Green | J2: =[4]Reflectances!J2 -> AZ Tea (Pink) | K2: =[4]Reflectances!K2 -> La Croix Pink (Dark) | L2: =[4]Reflectances!L2 -> La Croix Pink (Light) | M2: =[4]Reflectances!M2 -> Fanta | N2: =[4]Reflectances!N2 -> 7up | O2: =[4]Reflectances!O2 -> La Croix Yellow (light) | P2: =[4]Reflectances!P2 -> La Croix Yellow (Dark) | Q2: =[4]Reflectances!Q2 -> Orange Crush | R2: =[4]Reflectances!R2 -> Coke | S2: =[4]Reflectances!S2 -> La Croix Green (Light) | T2: =[4]Reflectances!T2 -> La Croix Green (Dark) | U2: =[4]Reflectances!U2 -> Smartfood Popcorn P&G | V2: =[4]Reflectances!V2 -> Simply Balance (Teal) | W2: =[4]Reflectances!W2 -> Lays Classic | X2: =[4]Reflectances!X2 -> Tostitos (Blue) | Y2: =[4]Reflectances!Y2 -> Tostitos Green | Z2: =[4]Reflectances!Z2 -> Honey & Nut Toasted Oats | AA2: =[4]Reflectances!AA2 -> Honey Nut Cheerios Dark | AB2: =[4]Reflectances!AB2 -> Honey Nut Cheerios Light | AC2: =[4]Reflectances!AC2 -> Apple Jacks | AD2: =[4]Reflectances!AD2 -> Fruit Loops | AE2: =[4]Reflectances!AE2 -> Frosted Flakes | AF2: =[4]Reflectances!AF2 -> Rice Crispies | AG2: =[4]Reflectances!AG2 -> Cheerios | AH2: =[4]Reflectances!AH2 -> Reese's Puffs | AI2: =[4]Reflectances!AI2 -> Uncle Ben's | AJ2: =[4]Reflectances!AJ2 -> Pop Tarts (Blue) | AK2: =[4]Reflectances!AK2 -> Pop Tarts (Pink) | AL2: =[4]Reflectances!AL2 -> Barilla | AM2: =[4]Reflectances!AM2 -> Shelf | AN2: =[4]Reflectances!AN2 -> Pillow | AO2: =[4]Reflectances!AO2 -> Table Wood | AP2: =[4]Reflectances!AP2 -> White Plate | AQ2: =[4]Reflectances!AQ2 -> Wood Bowl | AR2: =[4]Reflectances!AR2 -> Purple Plate | AS2: =[4]Reflectances!AS2 -> Blue Plate | AT2: =[4]Reflectances!AT2 -> Placemat | AU2: =[4]Reflectances!AU2 -> Black Diamond Pack | AV2: =[4]Reflectances!AV2 -> Blue Curtain | AW2: =[4]Reflectances!AW2 -> Tan Curtain | AX2: =[4]Reflectances!AX2 -> Seahawks White | AY2: =[4]Reflectances!AY2 -> Seahawks Navy | AZ2: =[4]Reflectances!AZ2 -> Seahawks Green | BA2: =[4]Reflectances!BA2 -> Oregon State | BB2: =[4]Reflectances!BB2 -> Blazers | BC2: =[4]Reflectances!BC2 -> Oregon Yellow | BD2: =[4]Reflectances!BD2 -> Oregon Green | BE2: =[4]Reflectances!BE2 -> Washington | BF2: =[4]Reflectances!BF2 -> Timbers | BG2: =[4]Reflectances!BG2 -> Wall Hanging Fabric 1 | BH2: =[4]Reflectances!BH2 -> Wall Hanging Fabric 2 | BI2: =[4]Reflectances!BI2 -> Malevich - Red | BJ2: =[4]Reflectances!BJ2 -> Malevich - Pink | BK2: =[4]Reflectances!BK2 -> Wall Hanging Fabric 3 | BL2: =[4]Reflectances!BL2 -> Malevich - Yellow | BM2: =[4]Reflectances!BM2 -> Wall Hanging Fabric 4 | BN2: =[4]Reflectances!BN2 -> Malevich - White | BO2: =[4]Reflectances!BO2 -> Flower Photo Green | BP2: =[4]Reflectances!BP2 -> Malevich - Blue | BQ2: =[4]Reflectances!BQ2 -> Malevich - Blue 2 | BR2: =[4]Reflectances!BR2 -> Flower Photo Pink | BS2: =[4]Reflectances!BS2 -> Dishrag 1 | BT2: =[4]Reflectances!BT2 -> Dishrag 2 | BU2: =[4]Reflectances!BU2 -> Dishrag 3 | BV2: =[4]Reflectances!BV2 -> Dishrag 4 | BW2: =[4]Reflectances!BW2 -> Pot Holder | BX2: =[4]Reflectances!BX2 -> Spreader Pink | BY2: =[4]Reflectances!BY2 -> Spreader Purple | BZ2: =[4]Reflectances!BZ2 -> Boom Chicka Yellow | CA2: =[4]Reflectances!CA2 -> Boom Chicka Lav | CB2: =[4]Reflectances!CB2 -> SR Jacket Down Light | CC2: =[4]Reflectances!CC2 -> Red Pepper | CD2: =[4]Reflectances!CD2 -> Orange Pepper | CE2: =[4]Reflectances!CE2 -> Red Pepp | CF2: =[4]Reflectances!CF2 -> Yellow Pepp | CG2: =[4]Reflectances!CG2 -> Green Pepper | CH2: =[4]Reflectances!CH2 -> Chineese Eggpant | CI2: =[4]Reflectances!CI2 -> Garlic | CJ2: =[4]Reflectances!CJ2 -> Tomato | CK2: =[4]Reflectances!CK2 -> Sweet Onion | CL2: =[4]Reflectances!CL2 -> Red Onion | CM2: =[4]Reflectances!CM2 -> Red Delicious | CN2: =[4]Reflectances!CN2 -> Granny Smith | CO2: =[4]Reflectances!CO2 -> Apricot | CP2: =[4]Reflectances!CP2 -> Plum | CQ2: =[4]Reflectances!CQ2 -> Acorn Squash | CR2: =[4]Reflectances!CR2 -> Watermelon | CS2: =[4]Reflectances!CS2 -> Butternut Squah | CT2: =[4]Reflectances!CT2 -> Spaghetii Squash | CU2: =[4]Reflectances!CU2 -> Red Cabbage | CV2: =[4]Reflectances!CV2 -> Bread | CW2: =[4]Reflectances!CW2 -> Strawberry | CX2: =[4]Reflectances!CX2 -> Cast Iron Plant | CY2: =[4]Reflectances!CY2 -> Cast Iron Plant Red Pot | CZ2: =[4]Reflectances!CZ2 -> Peony | DA2: =[4]Reflectances!DA2 -> Peony Leaf | DB2: =[4]Reflectances!DB2 -> Daisy Flower
A3: 380 | B3: 1 | C3: 0.03 | D3: 0.0881 | E3: 0.1155 | F3: 0.2584 | G3: 0.7508 | H3: 0.1861 | I3: 0.2182 | J3: 0.1622 | K3: 0.408 | L3: 0.4413 | M3: 0.228 | N3: 0.0219 | O3: 0.1741 | P3: 0.0363 | Q3: 0.0478 | R3: 0.0386 | S3: 0.2031 | T3: 0.0704 | U3: 0.1317 | V3: 0.1724 | W3: 0.0703 | X3: 0.1481 | Y3: 0.071 | Z3: 0.4863 | AA3: 0.0338 | AB3: 0.127 | AC3: 0.062 | AD3: 0.0538 | AE3: 0.1254 | AF3: 0.1998 | AG3: 0.0594 | AH3: 0.0596 | AI3: 0.0439 | AJ3: 0.149 | AK3: 0.1498 | AL3: 0.0544 | AM3: 0.1038 | AN3: 0.1185 | AO3: 0.0737 | AP3: 0.5721 | AQ3: 0.1248 | AR3: 0.0442 | AS3: 0.0851 | AT3: 0.1737 | AU3: 0.0575 | AV3: 0.0766 | AW3: 0.1481 | AX3: 0.26 | AY3: 0.0524 | AZ3: 0.0911 | BA3: 0.0601 | BB3: 0.0729 | BC3: 0.1031 | BD3: 0.0591 | BE3: 0.2117 | BF3: 0.0362 | BG3: 0.0219 | BH3: 0.0286 | BI3: 0.0585 | BJ3: 0.21465 | BK3: 0.0302 | BL3: 0.1094 | BM3: 0.3011 | BN3: 0.3664 | BO3: 0.08515 | BP3: 0.09815 | BQ3: 0.23845 | BR3: 0.2315 | BS3: 0.1641 | BT3: 0.0568 | BU3: 0.3815 | BV3: 0.1262 | BW3: 0.1407 | BX3: 0.4289 | BY3: 0.1555 | BZ3: 0.2107 | CA3: 0.4088 | CB3: 0.3427 | CC3: 0.0349 | CD3: 0.0404 | CE3: 0.0456 | CF3: 0.0394 | CG3: 0.0356 | CH3: 0.0757 | CI3: 0.4742 | CJ3: 0.0352 | CK3: 0.0518 | CL3: 0.0437 | CM3: 0.0415 | CN3: 0.0613 | CO3: 0.0501 | CP3: 0.0384 | CQ3: 0.047 | CR3: 0.0486 | CS3: 0.0854 | CT3: 0.1168 | CU3: 0.0596 | CV3: 0.0622 | CW3: 0.0404 | CX3: 0.0468 | CY3: 0.0188 | CZ3: 0.0507 | DA3: 0.0447 | DB3: 0.084
A4: =A3+1 -> 381 | B4: 1 | C4: 0.03 | D4: 0.0881 | E4: 0.1155 | F4: 0.2584 | G4: 0.7508 | H4: 0.1861 | I4: 0.2182 | J4: 0.1622 | K4: 0.408 | L4: 0.4413 | M4: 0.228 | N4: 0.0219 | O4: 0.1741 | P4: 0.0363 | Q4: 0.0478 | R4: 0.0386 | S4: 0.2031 | T4: 0.0704 | U4: 0.1317 | V4: 0.1724 | W4: 0.0703 | X4: 0.1481 | Y4: 0.071 | Z4: 0.4863 | AA4: 0.0338 | AB4: 0.127 | AC4: 0.062 | AD4: 0.0538 | AE4: 0.1254 | AF4: 0.1998 | AG4: 0.0594 | AH4: 0.0596 | AI4: 0.0439 | AJ4: 0.149 | AK4: 0.1498 | AL4: 0.0544 | AM4: 0.1038 | AN4: 0.1185 | AO4: 0.0737 | AP4: 0.5721 | AQ4: 0.1248 | AR4: 0.0442 | AS4: 0.0851 | AT4: 0.1737 | AU4: 0.0575 | AV4: 0.0766 | AW4: 0.1481 | AX4: 0.26 | AY4: 0.0524 | AZ4: 0.0911 | BA4: 0.0601 | BB4: 0.0729 | BC4: 0.1031 | BD4: 0.0591 | BE4: 0.2117 | BF4: 0.0362 | BG4: 0.0219 | BH4: 0.0286 | BI4: 0.0585 | BJ4: 0.21465 | BK4: 0.0302 | BL4: 0.1094 | BM4: 0.3011 | BN4: 0.3664 | BO4: 0.08515 | BP4: 0.09815 | BQ4: 0.23845 | BR4: 0.2315 | BS4: 0.1641 | BT4: 0.0568 | BU4: 0.3815 | BV4: 0.1262 | BW4: 0.1407 | BX4: 0.4289 | BY4: 0.1555 | BZ4: 0.2107 | CA4: 0.4088 | CB4: 0.3427 | CC4: 0.0349 | CD4: 0.0404 | CE4: 0.0456 | CF4: 0.0394 | CG4: 0.0356 | CH4: 0.0757 | CI4: 0.4742 | CJ4: 0.0352 | CK4: 0.0518 | CL4: 0.0437 | CM4: 0.0415 | CN4: 0.0613 | CO4: 0.0501 | CP4: 0.0384 | CQ4: 0.047 | CR4: 0.0486 | CS4: 0.0854 | CT4: 0.1168 | CU4: 0.0596 | CV4: 0.0622 | CW4: 0.0404 | CX4: 0.0468 | CY4: 0.0188 | CZ4: 0.0507 | DA4: 0.0447 | DB4: 0.084
A5: =A4+1 -> 382 | B5: 1 | C5: 0.03 | D5: 0.0881 | E5: 0.1155 | F5: 0.2584 | G5: 0.7508 | H5: 0.1861 | I5: 0.2182 | J5: 0.1622 | K5: 0.408 | L5: 0.4413 | M5: 0.228 | N5: 0.0219 | O5: 0.1741 | P5: 0.0363 | Q5: 0.0478 | R5: 0.0386 | S5: 0.2031 | T5: 0.0704 | U5: 0.1317 | V5: 0.1724 | W5: 0.0703 | X5: 0.1481 | Y5: 0.071 | Z5: 0.4863 | AA5: 0.0338 | AB5: 0.127 | AC5: 0.062 | AD5: 0.0538 | AE5: 0.1254 | AF5: 0.1998 | AG5: 0.0594 | AH5: 0.0596 | AI5: 0.0439 | AJ5: 0.149 | AK5: 0.1498 | AL5: 0.0544 | AM5: 0.1038 | AN5: 0.1185 | AO5: 0.0737 | AP5: 0.5721 | AQ5: 0.1248 | AR5: 0.0442 | AS5: 0.0851 | AT5: 0.1737 | AU5: 0.0575 | AV5: 0.0766 | AW5: 0.1481 | AX5: 0.26 | AY5: 0.0524 | AZ5: 0.0911 | BA5: 0.0601 | BB5: 0.0729 | BC5: 0.1031 | BD5: 0.0591 | BE5: 0.2117 | BF5: 0.0362 | BG5: 0.0219 | BH5: 0.0286 | BI5: 0.0585 | BJ5: 0.21465 | BK5: 0.0302 | BL5: 0.1094 | BM5: 0.3011 | BN5: 0.3664 | BO5: 0.08515 | BP5: 0.09815 | BQ5: 0.23845 | BR5: 0.2315 | BS5: 0.1641 | BT5: 0.0568 | BU5: 0.3815 | BV5: 0.1262 | BW5: 0.1407 | BX5: 0.4289 | BY5: 0.1555 | BZ5: 0.2107 | CA5: 0.4088 | CB5: 0.3427 | CC5: 0.0349 | CD5: 0.0404 | CE5: 0.0456 | CF5: 0.0394 | CG5: 0.0356 | CH5: 0.0757 | CI5: 0.4742 | CJ5: 0.0352 | CK5: 0.0518 | CL5: 0.0437 | CM5: 0.0415 | CN5: 0.0613 | CO5: 0.0501 | CP5: 0.0384 | CQ5: 0.047 | CR5: 0.0486 | CS5: 0.0854 | CT5: 0.1168 | CU5: 0.0596 | CV5: 0.0622 | CW5: 0.0404 | CX5: 0.0468 | CY5: 0.0188 | CZ5: 0.0507 | DA5: 0.0447 | DB5: 0.084
A6: =A5+1 -> 383 | B6: 1 | C6: 0.03 | D6: 0.0881 | E6: 0.1155 | F6: 0.2584 | G6: 0.7508 | H6: 0.1861 | I6: 0.2182 | J6: 0.1622 | K6: 0.408 | L6: 0.4413 | M6: 0.228 | N6: 0.0219 | O6: 0.1741 | P6: 0.0363 | Q6: 0.0478 | R6: 0.0386 | S6: 0.2031 | T6: 0.0704 | U6: 0.1317 | V6: 0.1724 | W6: 0.0703 | X6: 0.1481 | Y6: 0.071 | Z6: 0.4863 | AA6: 0.0338 | AB6: 0.127 | AC6: 0.062 | AD6: 0.0538 | AE6: 0.1254 | AF6: 0.1998 | AG6: 0.0594 | AH6: 0.0596 | AI6: 0.0439 | AJ6: 0.149 | AK6: 0.1498 | AL6: 0.0544 | AM6: 0.1038 | AN6: 0.1185 | AO6: 0.0737 | AP6: 0.5721 | AQ6: 0.1248 | AR6: 0.0442 | AS6: 0.0851 | AT6: 0.1737 | AU6: 0.0575 | AV6: 0.0766 | AW6: 0.1481 | AX6: 0.26 | AY6: 0.0524 | AZ6: 0.0911 | BA6: 0.0601 | BB6: 0.0729 | BC6: 0.1031 | BD6: 0.0591 | BE6: 0.2117 | BF6: 0.0362 | BG6: 0.0219 | BH6: 0.0286 | BI6: 0.0585 | BJ6: 0.21465 | BK6: 0.0302 | BL6: 0.1094 | BM6: 0.3011 | BN6: 0.3664 | BO6: 0.08515 | BP6: 0.09815 | BQ6: 0.23845 | BR6: 0.2315 | BS6: 0.1641 | BT6: 0.0568 | BU6: 0.3815 | BV6: 0.1262 | BW6: 0.1407 | BX6: 0.4289 | BY6: 0.1555 | BZ6: 0.2107 | CA6: 0.4088 | CB6: 0.3427 | CC6: 0.0349 | CD6: 0.0404 | CE6: 0.0456 | CF6: 0.0394 | CG6: 0.0356 | CH6: 0.0757 | CI6: 0.4742 | CJ6: 0.0352 | CK6: 0.0518 | CL6: 0.0437 | CM6: 0.0415 | CN6: 0.0613 | CO6: 0.0501 | CP6: 0.0384 | CQ6: 0.047 | CR6: 0.0486 | CS6: 0.0854 | CT6: 0.1168 | CU6: 0.0596 | CV6: 0.0622 | CW6: 0.0404 | CX6: 0.0468 | CY6: 0.0188 | CZ6: 0.0507 | DA6: 0.0447 | DB6: 0.084
A7: =A6+1 -> 384 | B7: 1 | C7: 0.03 | D7: 0.0881 | E7: 0.1155 | F7: 0.2584 | G7: 0.7508 | H7: 0.1861 | I7: 0.2182 | J7: 0.1622 | K7: 0.408 | L7: 0.4413 | M7: 0.228 | N7: 0.0219 | O7: 0.1741 | P7: 0.0363 | Q7: 0.0478 | R7: 0.0386 | S7: 0.2031 | T7: 0.0704 | U7: 0.1317 | V7: 0.1724 | W7: 0.0703 | X7: 0.1481 | Y7: 0.071 | Z7: 0.4863 | AA7: 0.0338 | AB7: 0.127 | AC7: 0.062 | AD7: 0.0538 | AE7: 0.1254 | AF7: 0.1998 | AG7: 0.0594 | AH7: 0.0596 | AI7: 0.0439 | AJ7: 0.149 | AK7: 0.1498 | AL7: 0.0544 | AM7: 0.1038 | AN7: 0.1185 | AO7: 0.0737 | AP7: 0.5721 | AQ7: 0.1248 | AR7: 0.0442 | AS7: 0.0851 | AT7: 0.1737 | AU7: 0.0575 | AV7: 0.0766 | AW7: 0.1481 | AX7: 0.26 | AY7: 0.0524 | AZ7: 0.0911 | BA7: 0.0601 | BB7: 0.0729 | BC7: 0.1031 | BD7: 0.0591 | BE7: 0.2117 | BF7: 0.0362 | BG7: 0.0219 | BH7: 0.0286 | BI7: 0.0585 | BJ7: 0.21465 | BK7: 0.0302 | BL7: 0.1094 | BM7: 0.3011 | BN7: 0.3664 | BO7: 0.08515 | BP7: 0.09815 | BQ7: 0.23845 | BR7: 0.2315 | BS7: 0.1641 | BT7: 0.0568 | BU7: 0.3815 | BV7: 0.1262 | BW7: 0.1407 | BX7: 0.4289 | BY7: 0.1555 | BZ7: 0.2107 | CA7: 0.4088 | CB7: 0.3427 | CC7: 0.0349 | CD7: 0.0404 | CE7: 0.0456 | CF7: 0.0394 | CG7: 0.0356 | CH7: 0.0757 | CI7: 0.4742 | CJ7: 0.0352 | CK7: 0.0518 | CL7: 0.0437 | CM7: 0.0415 | CN7: 0.0613 | CO7: 0.0501 | CP7: 0.0384 | CQ7: 0.047 | CR7: 0.0486 | CS7: 0.0854 | CT7: 0.1168 | CU7: 0.0596 | CV7: 0.0622 | CW7: 0.0404 | CX7: 0.0468 | CY7: 0.0188 | CZ7: 0.0507 | DA7: 0.0447 | DB7: 0.084
A8: =A7+1 -> 385 | B8: 1 | C8: 0.03 | D8: 0.0881 | E8: 0.1155 | F8: 0.2584 | G8: 0.7508 | H8: 0.1861 | I8: 0.2182 | J8: 0.1622 | K8: 0.408 | L8: 0.4413 | M8: 0.228 | N8: 0.0219 | O8: 0.1741 | P8: 0.0363 | Q8: 0.0478 | R8: 0.0386 | S8: 0.2031 | T8: 0.0704 | U8: 0.1317 | V8: 0.1724 | W8: 0.0703 | X8: 0.1481 | Y8: 0.071 | Z8: 0.4863 | AA8: 0.0338 | AB8: 0.127 | AC8: 0.062 | AD8: 0.0538 | AE8: 0.1254 | AF8: 0.1998 | AG8: 0.0594 | AH8: 0.0596 | AI8: 0.0439 | AJ8: 0.149 | AK8: 0.1498 | AL8: 0.0544 | AM8: 0.1038 | AN8: 0.1185 | AO8: 0.0737 | AP8: 0.5721 | AQ8: 0.1248 | AR8: 0.0442 | AS8: 0.0851 | AT8: 0.1737 | AU8: 0.0575 | AV8: 0.0766 | AW8: 0.1481 | AX8: 0.26 | AY8: 0.0524 | AZ8: 0.0911 | BA8: 0.0601 | BB8: 0.0729 | BC8: 0.1031 | BD8: 0.0591 | BE8: 0.2117 | BF8: 0.0362 | BG8: 0.0219 | BH8: 0.0286 | BI8: 0.0585 | BJ8: 0.21465 | BK8: 0.0302 | BL8: 0.1094 | BM8: 0.3011 | BN8: 0.3664 | BO8: 0.08515 | BP8: 0.09815 | BQ8: 0.23845 | BR8: 0.2315 | BS8: 0.1641 | BT8: 0.0568 | BU8: 0.3815 | BV8: 0.1262 | BW8: 0.1407 | BX8: 0.4289 | BY8: 0.1555 | BZ8: 0.2107 | CA8: 0.4088 | CB8: 0.3427 | CC8: 0.0349 | CD8: 0.0404 | CE8: 0.0456 | CF8: 0.0394 | CG8: 0.0356 | CH8: 0.0757 | CI8: 0.4742 | CJ8: 0.0352 | CK8: 0.0518 | CL8: 0.0437 | CM8: 0.0415 | CN8: 0.0613 | CO8: 0.0501 | CP8: 0.0384 | CQ8: 0.047 | CR8: 0.0486 | CS8: 0.0854 | CT8: 0.1168 | CU8: 0.0596 | CV8: 0.0622 | CW8: 0.0404 | CX8: 0.0468 | CY8: 0.0188 | CZ8: 0.0507 | DA8: 0.0447 | DB8: 0.084
A9: =A8+1 -> 386 | B9: 1 | C9: 0.03 | D9: 0.0881 | E9: 0.1155 | F9: 0.2584 | G9: 0.7508 | H9: 0.1861 | I9: 0.2182 | J9: 0.1622 | K9: 0.408 | L9: 0.4413 | M9: 0.228 | N9: 0.0219 | O9: 0.1741 | P9: 0.0363 | Q9: 0.0478 | R9: 0.0386 | S9: 0.2031 | T9: 0.0704 | U9: 0.1317 | V9: 0.1724 | W9: 0.0703 | X9: 0.1481 | Y9: 0.071 | Z9: 0.4863 | AA9: 0.0338 | AB9: 0.127 | AC9: 0.062 | AD9: 0.0538 | AE9: 0.1254 | AF9: 0.1998 | AG9: 0.0594 | AH9: 0.0596 | AI9: 0.0439 | AJ9: 0.149 | AK9: 0.1498 | AL9: 0.0544 | AM9: 0.1038 | AN9: 0.1185 | AO9: 0.0737 | AP9: 0.5721 | AQ9: 0.1248 | AR9: 0.0442 | AS9: 0.0851 | AT9: 0.1737 | AU9: 0.0575 | AV9: 0.0766 | AW9: 0.1481 | AX9: 0.26 | AY9: 0.0524 | AZ9: 0.0911 | BA9: 0.0601 | BB9: 0.0729 | BC9: 0.1031 | BD9: 0.0591 | BE9: 0.2117 | BF9: 0.0362 | BG9: 0.0219 | BH9: 0.0286 | BI9: 0.0585 | BJ9: 0.21465 | BK9: 0.0302 | BL9: 0.1094 | BM9: 0.3011 | BN9: 0.3664 | BO9: 0.08515 | BP9: 0.09815 | BQ9: 0.23845 | BR9: 0.2315 | BS9: 0.1641 | BT9: 0.0568 | BU9: 0.3815 | BV9: 0.1262 | BW9: 0.1407 | BX9: 0.4289 | BY9: 0.1555 | BZ9: 0.2107 | CA9: 0.4088 | CB9: 0.3427 | CC9: 0.0349 | CD9: 0.0404 | CE9: 0.0456 | CF9: 0.0394 | CG9: 0.0356 | CH9: 0.0757 | CI9: 0.4742 | CJ9: 0.0352 | CK9: 0.0518 | CL9: 0.0437 | CM9: 0.0415 | CN9: 0.0613 | CO9: 0.0501 | CP9: 0.0384 | CQ9: 0.047 | CR9: 0.0486 | CS9: 0.0854 | CT9: 0.1168 | CU9: 0.0596 | CV9: 0.0622 | CW9: 0.0404 | CX9: 0.0468 | CY9: 0.0188 | CZ9: 0.0507 | DA9: 0.0447 | DB9: 0.084
A10: =A9+1 -> 387 | B10: 1 | C10: 0.03 | D10: 0.0881 | E10: 0.1155 | F10: 0.2584 | G10: 0.7508 | H10: 0.1861 | I10: 0.2182 | J10: 0.1622 | K10: 0.408 | L10: 0.4413 | M10: 0.228 | N10: 0.0219 | O10: 0.1741 | P10: 0.0363 | Q10: 0.0478 | R10: 0.0386 | S10: 0.2031 | T10: 0.0704 | U10: 0.1317 | V10: 0.1724 | W10: 0.0703 | X10: 0.1481 | Y10: 0.071 | Z10: 0.4863 | AA10: 0.0338 | AB10: 0.127 | AC10: 0.062 | AD10: 0.0538 | AE10: 0.1254 | AF10: 0.1998 | AG10: 0.0594 | AH10: 0.0596 | AI10: 0.0439 | AJ10: 0.149 | AK10: 0.1498 | AL10: 0.0544 | AM10: 0.1038 | AN10: 0.1185 | AO10: 0.0737 | AP10: 0.5721 | AQ10: 0.1248 | AR10: 0.0442 | AS10: 0.0851 | AT10: 0.1737 | AU10: 0.0575 | AV10: 0.0766 | AW10: 0.1481 | AX10: 0.26 | AY10: 0.0524 | AZ10: 0.0911 | BA10: 0.0601 | BB10: 0.0729 | BC10: 0.1031 | BD10: 0.0591 | BE10: 0.2117 | BF10: 0.0362 | BG10: 0.0219 | BH10: 0.0286 | BI10: 0.0585 | BJ10: 0.21465 | BK10: 0.0302 | BL10: 0.1094 | BM10: 0.3011 | BN10: 0.3664 | BO10: 0.08515 | BP10: 0.09815 | BQ10: 0.23845 | BR10: 0.2315 | BS10: 0.1641 | BT10: 0.0568 | BU10: 0.3815 | BV10: 0.1262 | BW10: 0.1407 | BX10: 0.4289 | BY10: 0.1555 | BZ10: 0.2107 | CA10: 0.4088 | CB10: 0.3427 | CC10: 0.0349 | CD10: 0.0404 | CE10: 0.0456 | CF10: 0.0394 | CG10: 0.0356 | CH10: 0.0757 | CI10: 0.4742 | CJ10: 0.0352 | CK10: 0.0518 | CL10: 0.0437 | CM10: 0.0415 | CN10: 0.0613 | CO10: 0.0501 | CP10: 0.0384 | CQ10: 0.047 | CR10: 0.0486 | CS10: 0.0854 | CT10: 0.1168 | CU10: 0.0596 | CV10: 0.0622 | CW10: 0.0404 | CX10: 0.0468 | CY10: 0.0188 | CZ10: 0.0507 | DA10: 0.0447 | DB10: 0.084
A11: =A10+1 -> 388 | B11: 1 | C11: 0.03 | D11: 0.0881 | E11: 0.1155 | F11: 0.2584 | G11: 0.7508 | H11: 0.1861 | I11: 0.2182 | J11: 0.1622 | K11: 0.408 | L11: 0.4413 | M11: 0.228 | N11: 0.0219 | O11: 0.1741 | P11: 0.0363 | Q11: 0.0478 | R11: 0.0386 | S11: 0.2031 | T11: 0.0704 | U11: 0.1317 | V11: 0.1724 | W11: 0.0703 | X11: 0.1481 | Y11: 0.071 | Z11: 0.4863 | AA11: 0.0338 | AB11: 0.127 | AC11: 0.062 | AD11: 0.0538 | AE11: 0.1254 | AF11: 0.1998 | AG11: 0.0594 | AH11: 0.0596 | AI11: 0.0439 | AJ11: 0.149 | AK11: 0.1498 | AL11: 0.0544 | AM11: 0.1038 | AN11: 0.1185 | AO11: 0.0737 | AP11: 0.5721 | AQ11: 0.1248 | AR11: 0.0442 | AS11: 0.0851 | AT11: 0.1737 | AU11: 0.0575 | AV11: 0.0766 | AW11: 0.1481 | AX11: 0.26 | AY11: 0.0524 | AZ11: 0.0911 | BA11: 0.0601 | BB11: 0.0729 | BC11: 0.1031 | BD11: 0.0591 | BE11: 0.2117 | BF11: 0.0362 | BG11: 0.0219 | BH11: 0.0286 | BI11: 0.0585 | BJ11: 0.21465 | BK11: 0.0302 | BL11: 0.1094 | BM11: 0.3011 | BN11: 0.3664 | BO11: 0.08515 | BP11: 0.09815 | BQ11: 0.23845 | BR11: 0.2315 | BS11: 0.1641 | BT11: 0.0568 | BU11: 0.3815 | BV11: 0.1262 | BW11: 0.1407 | BX11: 0.4289 | BY11: 0.1555 | BZ11: 0.2107 | CA11: 0.4088 | CB11: 0.3427 | CC11: 0.0349 | CD11: 0.0404 | CE11: 0.0456 | CF11: 0.0394 | CG11: 0.0356 | CH11: 0.0757 | CI11: 0.4742 | CJ11: 0.0352 | CK11: 0.0518 | CL11: 0.0437 | CM11: 0.0415 | CN11: 0.0613 | CO11: 0.0501 | CP11: 0.0384 | CQ11: 0.047 | CR11: 0.0486 | CS11: 0.0854 | CT11: 0.1168 | CU11: 0.0596 | CV11: 0.0622 | CW11: 0.0404 | CX11: 0.0468 | CY11: 0.0188 | CZ11: 0.0507 | DA11: 0.0447 | DB11: 0.084
A12: =A11+1 -> 389 | B12: 1 | C12: 0.03 | D12: 0.0881 | E12: 0.1155 | F12: 0.2584 | G12: 0.7508 | H12: 0.1861 | I12: 0.2182 | J12: 0.1622 | K12: 0.408 | L12: 0.4413 | M12: 0.228 | N12: 0.0219 | O12: 0.1741 | P12: 0.0363 | Q12: 0.0478 | R12: 0.0386 | S12: 0.2031 | T12: 0.0704 | U12: 0.1317 | V12: 0.1724 | W12: 0.0703 | X12: 0.1481 | Y12: 0.071 | Z12: 0.4863 | AA12: 0.0338 | AB12: 0.127 | AC12: 0.062 | AD12: 0.0538 | AE12: 0.1254 | AF12: 0.1998 | AG12: 0.0594 | AH12: 0.0596 | AI12: 0.0439 | AJ12: 0.149 | AK12: 0.1498 | AL12: 0.0544 | AM12: 0.1038 | AN12: 0.1185 | AO12: 0.0737 | AP12: 0.5721 | AQ12: 0.1248 | AR12: 0.0442 | AS12: 0.0851 | AT12: 0.1737 | AU12: 0.0575 | AV12: 0.0766 | AW12: 0.1481 | AX12: 0.26 | AY12: 0.0524 | AZ12: 0.0911 | BA12: 0.0601 | BB12: 0.0729 | BC12: 0.1031 | BD12: 0.0591 | BE12: 0.2117 | BF12: 0.0362 | BG12: 0.0219 | BH12: 0.0286 | BI12: 0.0585 | BJ12: 0.21465 | BK12: 0.0302 | BL12: 0.1094 | BM12: 0.3011 | BN12: 0.3664 | BO12: 0.08515 | BP12: 0.09815 | BQ12: 0.23845 | BR12: 0.2315 | BS12: 0.1641 | BT12: 0.0568 | BU12: 0.3815 | BV12: 0.1262 | BW12: 0.1407 | BX12: 0.4289 | BY12: 0.1555 | BZ12: 0.2107 | CA12: 0.4088 | CB12: 0.3427 | CC12: 0.0349 | CD12: 0.0404 | CE12: 0.0456 | CF12: 0.0394 | CG12: 0.0356 | CH12: 0.0757 | CI12: 0.4742 | CJ12: 0.0352 | CK12: 0.0518 | CL12: 0.0437 | CM12: 0.0415 | CN12: 0.0613 | CO12: 0.0501 | CP12: 0.0384 | CQ12: 0.047 | CR12: 0.0486 | CS12: 0.0854 | CT12: 0.1168 | CU12: 0.0596 | CV12: 0.0622 | CW12: 0.0404 | CX12: 0.0468 | CY12: 0.0188 | CZ12: 0.0507 | DA12: 0.0447 | DB12: 0.084
A13: =A12+1 -> 390 | B13: 1 | C13: 0.03 | D13: 0.0881 | E13: 0.1155 | F13: 0.2584 | G13: 0.7508 | H13: 0.1861 | I13: 0.2182 | J13: 0.1622 | K13: 0.408 | L13: 0.4413 | M13: 0.228 | N13: 0.0219 | O13: 0.1741 | P13: 0.0363 | Q13: 0.0478 | R13: 0.0386 | S13: 0.2031 | T13: 0.0704 | U13: 0.1317 | V13: 0.1724 | W13: 0.0703 | X13: 0.1481 | Y13: 0.071 | Z13: 0.4863 | AA13: 0.0338 | AB13: 0.127 | AC13: 0.062 | AD13: 0.0538 | AE13: 0.1254 | AF13: 0.1998 | AG13: 0.0594 | AH13: 0.0596 | AI13: 0.0439 | AJ13: 0.149 | AK13: 0.1498 | AL13: 0.0544 | AM13: 0.1038 | AN13: 0.1185 | AO13: 0.0737 | AP13: 0.5721 | AQ13: 0.1248 | AR13: 0.0442 | AS13: 0.0851 | AT13: 0.1737 | AU13: 0.0575 | AV13: 0.0766 | AW13: 0.1481 | AX13: 0.26 | AY13: 0.0524 | AZ13: 0.0911 | BA13: 0.0601 | BB13: 0.0729 | BC13: 0.1031 | BD13: 0.0591 | BE13: 0.2117 | BF13: 0.0362 | BG13: 0.0219 | BH13: 0.0286 | BI13: 0.0585 | BJ13: 0.21465 | BK13: 0.0302 | BL13: 0.1094 | BM13: 0.3011 | BN13: 0.3664 | BO13: 0.08515 | BP13: 0.09815 | BQ13: 0.23845 | BR13: 0.2315 | BS13: 0.1641 | BT13: 0.0568 | BU13: 0.3815 | BV13: 0.1262 | BW13: 0.1407 | BX13: 0.4289 | BY13: 0.1555 | BZ13: 0.2107 | CA13: 0.4088 | CB13: 0.3427 | CC13: 0.0349 | CD13: 0.0404 | CE13: 0.0456 | CF13: 0.0394 | CG13: 0.0356 | CH13: 0.0757 | CI13: 0.4742 | CJ13: 0.0352 | CK13: 0.0518 | CL13: 0.0437 | CM13: 0.0415 | CN13: 0.0613 | CO13: 0.0501 | CP13: 0.0384 | CQ13: 0.047 | CR13: 0.0486 | CS13: 0.0854 | CT13: 0.1168 | CU13: 0.0596 | CV13: 0.0622 | CW13: 0.0404 | CX13: 0.0468 | CY13: 0.0188 | CZ13: 0.0507 | DA13: 0.0447 | DB13: 0.084
A14: =A13+1 -> 391 | B14: 1 | C14: 0.03 | D14: 0.0881 | E14: 0.1155 | F14: 0.2584 | G14: 0.7508 | H14: 0.1861 | I14: 0.2182 | J14: 0.1622 | K14: 0.408 | L14: 0.4413 | M14: 0.228 | N14: 0.0219 | O14: 0.1741 | P14: 0.0363 | Q14: 0.0478 | R14: 0.0386 | S14: 0.2031 | T14: 0.0704 | U14: 0.1317 | V14: 0.1724 | W14: 0.0703 | X14: 0.1481 | Y14: 0.071 | Z14: 0.4863 | AA14: 0.0338 | AB14: 0.127 | AC14: 0.062 | AD14: 0.0538 | AE14: 0.1254 | AF14: 0.1998 | AG14: 0.0594 | AH14: 0.0596 | AI14: 0.0439 | AJ14: 0.149 | AK14: 0.1498 | AL14: 0.0544 | AM14: 0.1038 | AN14: 0.1185 | AO14: 0.0737 | AP14: 0.5721 | AQ14: 0.1248 | AR14: 0.0442 | AS14: 0.0851 | AT14: 0.1737 | AU14: 0.0575 | AV14: 0.0766 | AW14: 0.1481 | AX14: 0.26 | AY14: 0.0524 | AZ14: 0.0911 | BA14: 0.0601 | BB14: 0.0729 | BC14: 0.1031 | BD14: 0.0591 | BE14: 0.2117 | BF14: 0.0362 | BG14: 0.0219 | BH14: 0.0286 | BI14: 0.0585 | BJ14: 0.21465 | BK14: 0.0302 | BL14: 0.1094 | BM14: 0.3011 | BN14: 0.3664 | BO14: 0.08515 | BP14: 0.09815 | BQ14: 0.23845 | BR14: 0.2315 | BS14: 0.1641 | BT14: 0.0568 | BU14: 0.3815 | BV14: 0.1262 | BW14: 0.1407 | BX14: 0.4289 | BY14: 0.1555 | BZ14: 0.2107 | CA14: 0.4088 | CB14: 0.3427 | CC14: 0.0349 | CD14: 0.0404 | CE14: 0.0456 | CF14: 0.0394 | CG14: 0.0356 | CH14: 0.0757 | CI14: 0.4742 | CJ14: 0.0352 | CK14: 0.0518 | CL14: 0.0437 | CM14: 0.0415 | CN14: 0.0613 | CO14: 0.0501 | CP14: 0.0384 | CQ14: 0.047 | CR14: 0.0486 | CS14: 0.0854 | CT14: 0.1168 | CU14: 0.0596 | CV14: 0.0622 | CW14: 0.0404 | CX14: 0.0468 | CY14: 0.0188 | CZ14: 0.0507 | DA14: 0.0447 | DB14: 0.084
A15: =A14+1 -> 392 | B15: 1 | C15: 0.03 | D15: 0.0881 | E15: 0.1155 | F15: 0.2584 | G15: 0.7508 | H15: 0.1861 | I15: 0.2182 | J15: 0.1622 | K15: 0.408 | L15: 0.4413 | M15: 0.228 | N15: 0.0219 | O15: 0.1741 | P15: 0.0363 | Q15: 0.0478 | R15: 0.0386 | S15: 0.2031 | T15: 0.0704 | U15: 0.1317 | V15: 0.1724 | W15: 0.0703 | X15: 0.1481 | Y15: 0.071 | Z15: 0.4863 | AA15: 0.0338 | AB15: 0.127 | AC15: 0.062 | AD15: 0.0538 | AE15: 0.1254 | AF15: 0.1998 | AG15: 0.0594 | AH15: 0.0596 | AI15: 0.0439 | AJ15: 0.149 | AK15: 0.1498 | AL15: 0.0544 | AM15: 0.1038 | AN15: 0.1185 | AO15: 0.0737 | AP15: 0.5721 | AQ15: 0.1248 | AR15: 0.0442 | AS15: 0.0851 | AT15: 0.1737 | AU15: 0.0575 | AV15: 0.0766 | AW15: 0.1481 | AX15: 0.26 | AY15: 0.0524 | AZ15: 0.0911 | BA15: 0.0601 | BB15: 0.0729 | BC15: 0.1031 | BD15: 0.0591 | BE15: 0.2117 | BF15: 0.0362 | BG15: 0.0219 | BH15: 0.0286 | BI15: 0.0585 | BJ15: 0.21465 | BK15: 0.0302 | BL15: 0.1094 | BM15: 0.3011 | BN15: 0.3664 | BO15: 0.08515 | BP15: 0.09815 | BQ15: 0.23845 | BR15: 0.2315 | BS15: 0.1641 | BT15: 0.0568 | BU15: 0.3815 | BV15: 0.1262 | BW15: 0.1407 | BX15: 0.4289 | BY15: 0.1555 | BZ15: 0.2107 | CA15: 0.4088 | CB15: 0.3427 | CC15: 0.0349 | CD15: 0.0404 | CE15: 0.0456 | CF15: 0.0394 | CG15: 0.0356 | CH15: 0.0757 | CI15: 0.4742 | CJ15: 0.0352 | CK15: 0.0518 | CL15: 0.0437 | CM15: 0.0415 | CN15: 0.0613 | CO15: 0.0501 | CP15: 0.0384 | CQ15: 0.047 | CR15: 0.0486 | CS15: 0.0854 | CT15: 0.1168 | CU15: 0.0596 | CV15: 0.0622 | CW15: 0.0404 | CX15: 0.0468 | CY15: 0.0188 | CZ15: 0.0507 | DA15: 0.0447 | DB15: 0.084
A16: =A15+1 -> 393 | B16: 1 | C16: 0.03 | D16: 0.0881 | E16: 0.1155 | F16: 0.2584 | G16: 0.7508 | H16: 0.1861 | I16: 0.2182 | J16: 0.1622 | K16: 0.408 | L16: 0.4413 | M16: 0.228 | N16: 0.0219 | O16: 0.1741 | P16: 0.0363 | Q16: 0.0478 | R16: 0.0386 | S16: 0.2031 | T16: 0.0704 | U16: 0.1317 | V16: 0.1724 | W16: 0.0703 | X16: 0.1481 | Y16: 0.071 | Z16: 0.4863 | AA16: 0.0338 | AB16: 0.127 | AC16: 0.062 | AD16: 0.0538 | AE16: 0.1254 | AF16: 0.1998 | AG16: 0.0594 | AH16: 0.0596 | AI16: 0.0439 | AJ16: 0.149 | AK16: 0.1498 | AL16: 0.0544 | AM16: 0.1038 | AN16: 0.1185 | AO16: 0.0737 | AP16: 0.5721 | AQ16: 0.1248 | AR16: 0.0442 | AS16: 0.0851 | AT16: 0.1737 | AU16: 0.0575 | AV16: 0.0766 | AW16: 0.1481 | AX16: 0.26 | AY16: 0.0524 | AZ16: 0.0911 | BA16: 0.0601 | BB16: 0.0729 | BC16: 0.1031 | BD16: 0.0591 | BE16: 0.2117 | BF16: 0.0362 | BG16: 0.0219 | BH16: 0.0286 | BI16: 0.0585 | BJ16: 0.21465 | BK16: 0.0302 | BL16: 0.1094 | BM16: 0.3011 | BN16: 0.3664 | BO16: 0.08515 | BP16: 0.09815 | BQ16: 0.23845 | BR16: 0.2315 | BS16: 0.1641 | BT16: 0.0568 | BU16: 0.3815 | BV16: 0.1262 | BW16: 0.1407 | BX16: 0.4289 | BY16: 0.1555 | BZ16: 0.2107 | CA16: 0.4088 | CB16: 0.3427 | CC16: 0.0349 | CD16: 0.0404 | CE16: 0.0456 | CF16: 0.0394 | CG16: 0.0356 | CH16: 0.0757 | CI16: 0.4742 | CJ16: 0.0352 | CK16: 0.0518 | CL16: 0.0437 | CM16: 0.0415 | CN16: 0.0613 | CO16: 0.0501 | CP16: 0.0384 | CQ16: 0.047 | CR16: 0.0486 | CS16: 0.0854 | CT16: 0.1168 | CU16: 0.0596 | CV16: 0.0622 | CW16: 0.0404 | CX16: 0.0468 | CY16: 0.0188 | CZ16: 0.0507 | DA16: 0.0447 | DB16: 0.084
A17: =A16+1 -> 394 | B17: 1 | C17: 0.03 | D17: 0.0881 | E17: 0.1155 | F17: 0.2584 | G17: 0.7508 | H17: 0.1861 | I17: 0.2182 | J17: 0.1622 | K17: 0.408 | L17: 0.4413 | M17: 0.228 | N17: 0.0219 | O17: 0.1741 | P17: 0.0363 | Q17: 0.0478 | R17: 0.0386 | S17: 0.2031 | T17: 0.0704 | U17: 0.1317 | V17: 0.1724 | W17: 0.0703 | X17: 0.1481 | Y17: 0.071 | Z17: 0.4863 | AA17: 0.0338 | AB17: 0.127 | AC17: 0.062 | AD17: 0.0538 | AE17: 0.1254 | AF17: 0.1998 | AG17: 0.0594 | AH17: 0.0596 | AI17: 0.0439 | AJ17: 0.149 | AK17: 0.1498 | AL17: 0.0544 | AM17: 0.1038 | AN17: 0.1185 | AO17: 0.0737 | AP17: 0.5721 | AQ17: 0.1248 | AR17: 0.0442 | AS17: 0.0851 | AT17: 0.1737 | AU17: 0.0575 | AV17: 0.0766 | AW17: 0.1481 | AX17: 0.26 | AY17: 0.0524 | AZ17: 0.0911 | BA17: 0.0601 | BB17: 0.0729 | BC17: 0.1031 | BD17: 0.0591 | BE17: 0.2117 | BF17: 0.0362 | BG17: 0.0219 | BH17: 0.0286 | BI17: 0.0585 | BJ17: 0.21465 | BK17: 0.0302 | BL17: 0.1094 | BM17: 0.3011 | BN17: 0.3664 | BO17: 0.08515 | BP17: 0.09815 | BQ17: 0.23845 | BR17: 0.2315 | BS17: 0.1641 | BT17: 0.0568 | BU17: 0.3815 | BV17: 0.1262 | BW17: 0.1407 | BX17: 0.4289 | BY17: 0.1555 | BZ17: 0.2107 | CA17: 0.4088 | CB17: 0.3427 | CC17: 0.0349 | CD17: 0.0404 | CE17: 0.0456 | CF17: 0.0394 | CG17: 0.0356 | CH17: 0.0757 | CI17: 0.4742 | CJ17: 0.0352 | CK17: 0.0518 | CL17: 0.0437 | CM17: 0.0415 | CN17: 0.0613 | CO17: 0.0501 | CP17: 0.0384 | CQ17: 0.047 | CR17: 0.0486 | CS17: 0.0854 | CT17: 0.1168 | CU17: 0.0596 | CV17: 0.0622 | CW17: 0.0404 | CX17: 0.0468 | CY17: 0.0188 | CZ17: 0.0507 | DA17: 0.0447 | DB17: 0.084
A18: =A17+1 -> 395 | B18: 1 | C18: 0.03 | D18: 0.0881 | E18: 0.1155 | F18: 0.2584 | G18: 0.7508 | H18: 0.1861 | I18: 0.2182 | J18: 0.1622 | K18: 0.408 | L18: 0.4413 | M18: 0.228 | N18: 0.0219 | O18: 0.1741 | P18: 0.0363 | Q18: 0.0478 | R18: 0.0386 | S18: 0.2031 | T18: 0.0704 | U18: 0.1317 | V18: 0.1724 | W18: 0.0703 | X18: 0.1481 | Y18: 0.071 | Z18: 0.4863 | AA18: 0.0338 | AB18: 0.127 | AC18: 0.062 | AD18: 0.0538 | AE18: 0.1254 | AF18: 0.1998 | AG18: 0.0594 | AH18: 0.0596 | AI18: 0.0439 | AJ18: 0.149 | AK18: 0.1498 | AL18: 0.0544 | AM18: 0.1038 | AN18: 0.1185 | AO18: 0.0737 | AP18: 0.5721 | AQ18: 0.1248 | AR18: 0.0442 | AS18: 0.0851 | AT18: 0.1737 | AU18: 0.0575 | AV18: 0.0766 | AW18: 0.1481 | AX18: 0.26 | AY18: 0.0524 | AZ18: 0.0911 | BA18: 0.0601 | BB18: 0.0729 | BC18: 0.1031 | BD18: 0.0591 | BE18: 0.2117 | BF18: 0.0362 | BG18: 0.0219 | BH18: 0.0286 | BI18: 0.0585 | BJ18: 0.21465 | BK18: 0.0302 | BL18: 0.1094 | BM18: 0.3011 | BN18: 0.3664 | BO18: 0.08515 | BP18: 0.09815 | BQ18: 0.23845 | BR18: 0.2315 | BS18: 0.1641 | BT18: 0.0568 | BU18: 0.3815 | BV18: 0.1262 | BW18: 0.1407 | BX18: 0.4289 | BY18: 0.1555 | BZ18: 0.2107 | CA18: 0.4088 | CB18: 0.3427 | CC18: 0.0349 | CD18: 0.0404 | CE18: 0.0456 | CF18: 0.0394 | CG18: 0.0356 | CH18: 0.0757 | CI18: 0.4742 | CJ18: 0.0352 | CK18: 0.0518 | CL18: 0.0437 | CM18: 0.0415 | CN18: 0.0613 | CO18: 0.0501 | CP18: 0.0384 | CQ18: 0.047 | CR18: 0.0486 | CS18: 0.0854 | CT18: 0.1168 | CU18: 0.0596 | CV18: 0.0622 | CW18: 0.0404 | CX18: 0.0468 | CY18: 0.0188 | CZ18: 0.0507 | DA18: 0.0447 | DB18: 0.084
A19: =A18+1 -> 396 | B19: 1 | C19: 0.03 | D19: 0.0881 | E19: 0.1155 | F19: 0.2584 | G19: 0.7508 | H19: 0.1861 | I19: 0.2182 | J19: 0.1622 | K19: 0.408 | L19: 0.4413 | M19: 0.228 | N19: 0.0219 | O19: 0.1741 | P19: 0.0363 | Q19: 0.0478 | R19: 0.0386 | S19: 0.2031 | T19: 0.0704 | U19: 0.1317 | V19: 0.1724 | W19: 0.0703 | X19: 0.1481 | Y19: 0.071 | Z19: 0.4863 | AA19: 0.0338 | AB19: 0.127 | AC19: 0.062 | AD19: 0.0538 | AE19: 0.1254 | AF19: 0.1998 | AG19: 0.0594 | AH19: 0.0596 | AI19: 0.0439 | AJ19: 0.149 | AK19: 0.1498 | AL19: 0.0544 | AM19: 0.1038 | AN19: 0.1185 | AO19: 0.0737 | AP19: 0.5721 | AQ19: 0.1248 | AR19: 0.0442 | AS19: 0.0851 | AT19: 0.1737 | AU19: 0.0575 | AV19: 0.0766 | AW19: 0.1481 | AX19: 0.26 | AY19: 0.0524 | AZ19: 0.0911 | BA19: 0.0601 | BB19: 0.0729 | BC19: 0.1031 | BD19: 0.0591 | BE19: 0.2117 | BF19: 0.0362 | BG19: 0.0219 | BH19: 0.0286 | BI19: 0.0585 | BJ19: 0.21465 | BK19: 0.0302 | BL19: 0.1094 | BM19: 0.3011 | BN19: 0.3664 | BO19: 0.08515 | BP19: 0.09815 | BQ19: 0.23845 | BR19: 0.2315 | BS19: 0.1641 | BT19: 0.0568 | BU19: 0.3815 | BV19: 0.1262 | BW19: 0.1407 | BX19: 0.4289 | BY19: 0.1555 | BZ19: 0.2107 | CA19: 0.4088 | CB19: 0.3427 | CC19: 0.0349 | CD19: 0.0404 | CE19: 0.0456 | CF19: 0.0394 | CG19: 0.0356 | CH19: 0.0757 | CI19: 0.4742 | CJ19: 0.0352 | CK19: 0.0518 | CL19: 0.0437 | CM19: 0.0415 | CN19: 0.0613 | CO19: 0.0501 | CP19: 0.0384 | CQ19: 0.047 | CR19: 0.0486 | CS19: 0.0854 | CT19: 0.1168 | CU19: 0.0596 | CV19: 0.0622 | CW19: 0.0404 | CX19: 0.0468 | CY19: 0.0188 | CZ19: 0.0507 | DA19: 0.0447 | DB19: 0.084
A20: =A19+1 -> 397 | B20: 1 | C20: 0.03 | D20: 0.0881 | E20: 0.1155 | F20: 0.2584 | G20: 0.7508 | H20: 0.1861 | I20: 0.2182 | J20: 0.1622 | K20: 0.408 | L20: 0.4413 | M20: 0.228 | N20: 0.0219 | O20: 0.1741 | P20: 0.0363 | Q20: 0.0478 | R20: 0.0386 | S20: 0.2031 | T20: 0.0704 | U20: 0.1317 | V20: 0.1724 | W20: 0.0703 | X20: 0.1481 | Y20: 0.071 | Z20: 0.4863 | AA20: 0.0338 | AB20: 0.127 | AC20: 0.062 | AD20: 0.0538 | AE20: 0.1254 | AF20: 0.1998 | AG20: 0.0594 | AH20: 0.0596 | AI20: 0.0439 | AJ20: 0.149 | AK20: 0.1498 | AL20: 0.0544 | AM20: 0.1038 | AN20: 0.1185 | AO20: 0.0737 | AP20: 0.5721 | AQ20: 0.1248 | AR20: 0.0442 | AS20: 0.0851 | AT20: 0.1737 | AU20: 0.0575 | AV20: 0.0766 | AW20: 0.1481 | AX20: 0.26 | AY20: 0.0524 | AZ20: 0.0911 | BA20: 0.0601 | BB20: 0.0729 | BC20: 0.1031 | BD20: 0.0591 | BE20: 0.2117 | BF20: 0.0362 | BG20: 0.0219 | BH20: 0.0286 | BI20: 0.0585 | BJ20: 0.21465 | BK20: 0.0302 | BL20: 0.1094 | BM20: 0.3011 | BN20: 0.3664 | BO20: 0.08515 | BP20: 0.09815 | BQ20: 0.23845 | BR20: 0.2315 | BS20: 0.1641 | BT20: 0.0568 | BU20: 0.3815 | BV20: 0.1262 | BW20: 0.1407 | BX20: 0.4289 | BY20: 0.1555 | BZ20: 0.2107 | CA20: 0.4088 | CB20: 0.3427 | CC20: 0.0349 | CD20: 0.0404 | CE20: 0.0456 | CF20: 0.0394 | CG20: 0.0356 | CH20: 0.0757 | CI20: 0.4742 | CJ20: 0.0352 | CK20: 0.0518 | CL20: 0.0437 | CM20: 0.0415 | CN20: 0.0613 | CO20: 0.0501 | CP20: 0.0384 | CQ20: 0.047 | CR20: 0.0486 | CS20: 0.0854 | CT20: 0.1168 | CU20: 0.0596 | CV20: 0.0622 | CW20: 0.0404 | CX20: 0.0468 | CY20: 0.0188 | CZ20: 0.0507 | DA20: 0.0447 | DB20: 0.084
A21: =A20+1 -> 398 | B21: 1 | C21: 0.03 | D21: 0.0881 | E21: 0.1155 | F21: 0.2584 | G21: 0.7508 | H21: 0.1861 | I21: 0.2182 | J21: 0.1622 | K21: 0.408 | L21: 0.4413 | M21: 0.228 | N21: 0.0219 | O21: 0.1741 | P21: 0.0363 | Q21: 0.0478 | R21: 0.0386 | S21: 0.2031 | T21: 0.0704 | U21: 0.1317 | V21: 0.1724 | W21: 0.0703 | X21: 0.1481 | Y21: 0.071 | Z21: 0.4863 | AA21: 0.0338 | AB21: 0.127 | AC21: 0.062 | AD21: 0.0538 | AE21: 0.1254 | AF21: 0.1998 | AG21: 0.0594 | AH21: 0.0596 | AI21: 0.0439 | AJ21: 0.149 | AK21: 0.1498 | AL21: 0.0544 | AM21: 0.1038 | AN21: 0.1185 | AO21: 0.0737 | AP21: 0.5721 | AQ21: 0.1248 | AR21: 0.0442 | AS21: 0.0851 | AT21: 0.1737 | AU21: 0.0575 | AV21: 0.0766 | AW21: 0.1481 | AX21: 0.26 | AY21: 0.0524 | AZ21: 0.0911 | BA21: 0.0601 | BB21: 0.0729 | BC21: 0.1031 | BD21: 0.0591 | BE21: 0.2117 | BF21: 0.0362 | BG21: 0.0219 | BH21: 0.0286 | BI21: 0.0585 | BJ21: 0.21465 | BK21: 0.0302 | BL21: 0.1094 | BM21: 0.3011 | BN21: 0.3664 | BO21: 0.08515 | BP21: 0.09815 | BQ21: 0.23845 | BR21: 0.2315 | BS21: 0.1641 | BT21: 0.0568 | BU21: 0.3815 | BV21: 0.1262 | BW21: 0.1407 | BX21: 0.4289 | BY21: 0.1555 | BZ21: 0.2107 | CA21: 0.4088 | CB21: 0.3427 | CC21: 0.0349 | CD21: 0.0404 | CE21: 0.0456 | CF21: 0.0394 | CG21: 0.0356 | CH21: 0.0757 | CI21: 0.4742 | CJ21: 0.0352 | CK21: 0.0518 | CL21: 0.0437 | CM21: 0.0415 | CN21: 0.0613 | CO21: 0.0501 | CP21: 0.0384 | CQ21: 0.047 | CR21: 0.0486 | CS21: 0.0854 | CT21: 0.1168 | CU21: 0.0596 | CV21: 0.0622 | CW21: 0.0404 | CX21: 0.0468 | CY21: 0.0188 | CZ21: 0.0507 | DA21: 0.0447 | DB21: 0.084
A22: =A21+1 -> 399 | B22: 1 | C22: 0.03 | D22: 0.0881 | E22: 0.1155 | F22: 0.2584 | G22: 0.7508 | H22: 0.1861 | I22: 0.2182 | J22: 0.1622 | K22: 0.408 | L22: 0.4413 | M22: 0.228 | N22: 0.0219 | O22: 0.1741 | P22: 0.0363 | Q22: 0.0478 | R22: 0.0386 | S22: 0.2031 | T22: 0.0704 | U22: 0.1317 | V22: 0.1724 | W22: 0.0703 | X22: 0.1481 | Y22: 0.071 | Z22: 0.4863 | AA22: 0.0338 | AB22: 0.127 | AC22: 0.062 | AD22: 0.0538 | AE22: 0.1254 | AF22: 0.1998 | AG22: 0.0594 | AH22: 0.0596 | AI22: 0.0439 | AJ22: 0.149 | AK22: 0.1498 | AL22: 0.0544 | AM22: 0.1038 | AN22: 0.1185 | AO22: 0.0737 | AP22: 0.5721 | AQ22: 0.1248 | AR22: 0.0442 | AS22: 0.0851 | AT22: 0.1737 | AU22: 0.0575 | AV22: 0.0766 | AW22: 0.1481 | AX22: 0.26 | AY22: 0.0524 | AZ22: 0.0911 | BA22: 0.0601 | BB22: 0.0729 | BC22: 0.1031 | BD22: 0.0591 | BE22: 0.2117 | BF22: 0.0362 | BG22: 0.0219 | BH22: 0.0286 | BI22: 0.0585 | BJ22: 0.21465 | BK22: 0.0302 | BL22: 0.1094 | BM22: 0.3011 | BN22: 0.3664 | BO22: 0.08515 | BP22: 0.09815 | BQ22: 0.23845 | BR22: 0.2315 | BS22: 0.1641 | BT22: 0.0568 | BU22: 0.3815 | BV22: 0.1262 | BW22: 0.1407 | BX22: 0.4289 | BY22: 0.1555 | BZ22: 0.2107 | CA22: 0.4088 | CB22: 0.3427 | CC22: 0.0349 | CD22: 0.0404 | CE22: 0.0456 | CF22: 0.0394 | CG22: 0.0356 | CH22: 0.0757 | CI22: 0.4742 | CJ22: 0.0352 | CK22: 0.0518 | CL22: 0.0437 | CM22: 0.0415 | CN22: 0.0613 | CO22: 0.0501 | CP22: 0.0384 | CQ22: 0.047 | CR22: 0.0486 | CS22: 0.0854 | CT22: 0.1168 | CU22: 0.0596 | CV22: 0.0622 | CW22: 0.0404 | CX22: 0.0468 | CY22: 0.0188 | CZ22: 0.0507 | DA22: 0.0447 | DB22: 0.084
A23: =A22+1 -> 400 | B23: 1 | C23: 0.03 | D23: 0.0881 | E23: 0.1155 | F23: 0.2584 | G23: 0.7508 | H23: 0.1861 | I23: 0.2182 | J23: 0.1622 | K23: 0.408 | L23: 0.4413 | M23: 0.228 | N23: 0.0219 | O23: 0.1741 | P23: 0.0363 | Q23: 0.0478 | R23: 0.0386 | S23: 0.2031 | T23: 0.0704 | U23: 0.1317 | V23: 0.1724 | W23: 0.0703 | X23: 0.1481 | Y23: 0.071 | Z23: 0.4863 | AA23: 0.0338 | AB23: 0.127 | AC23: 0.062 | AD23: 0.0538 | AE23: 0.1254 | AF23: 0.1998 | AG23: 0.0594 | AH23: 0.0596 | AI23: 0.0439 | AJ23: 0.149 | AK23: 0.1498 | AL23: 0.0544 | AM23: 0.1038 | AN23: 0.1185 | AO23: 0.0737 | AP23: 0.5721 | AQ23: 0.1248 | AR23: 0.0442 | AS23: 0.0851 | AT23: 0.1737 | AU23: 0.0575 | AV23: 0.0766 | AW23: 0.1481 | AX23: 0.26 | AY23: 0.0524 | AZ23: 0.0911 | BA23: 0.0601 | BB23: 0.0729 | BC23: 0.1031 | BD23: 0.0591 | BE23: 0.2117 | BF23: 0.0362 | BG23: 0.0219 | BH23: 0.0286 | BI23: 0.0585 | BJ23: 0.21465 | BK23: 0.0302 | BL23: 0.1094 | BM23: 0.3011 | BN23: 0.3664 | BO23: 0.08515 | BP23: 0.09815 | BQ23: 0.23845 | BR23: 0.2315 | BS23: 0.1641 | BT23: 0.0568 | BU23: 0.3815 | BV23: 0.1262 | BW23: 0.1407 | BX23: 0.4289 | BY23: 0.1555 | BZ23: 0.2107 | CA23: 0.4088 | CB23: 0.3427 | CC23: 0.0349 | CD23: 0.0404 | CE23: 0.0456 | CF23: 0.0394 | CG23: 0.0356 | CH23: 0.0757 | CI23: 0.4742 | CJ23: 0.0352 | CK23: 0.0518 | CL23: 0.0437 | CM23: 0.0415 | CN23: 0.0613 | CO23: 0.0501 | CP23: 0.0384 | CQ23: 0.047 | CR23: 0.0486 | CS23: 0.0854 | CT23: 0.1168 | CU23: 0.0596 | CV23: 0.0622 | CW23: 0.0404 | CX23: 0.0468 | CY23: 0.0188 | CZ23: 0.0507 | DA23: 0.0447 | DB23: 0.084
A24: =A23+1 -> 401 | B24: 1 | C24: 0.0299307 | D24: 0.08835149091 | E24: 0.1157716 | F24: 0.2613513085 | G24: 0.7525751554 | H24: 0.1860867636 | I24: 0.2197209495 | J24: 0.1629325051 | K24: 0.4117731634 | L24: 0.4454118116 | M24: 0.2296177204 | N24: 0.02188405714 | O24: 0.1754394328 | P24: 0.03629430588 | Q24: 0.04776531379 | R24: 0.0385568 | S24: 0.2047602803 | T24: 0.07076146175 | U24: 0.1324208789 | V24: 0.1734356432 | W24: 0.07023400941 | X24: 0.14941306 | Y24: 0.07142556818 | Z24: 0.4899652023 | AA24: 0.03379768696 | AB24: 0.1269912216 | AC24: 0.0620308 | AD24: 0.05376909091 | AE24: 0.1267258493 | AF24: 0.2019582611 | AG24: 0.05929263059 | AH24: 0.05947839149 | AI24: 0.04377124672 | AJ24: 0.1506168557 | AK24: 0.1501897936 | AL24: 0.05479780074 | AM24: 0.1037851789 | AN24: 0.1183401813 | AO24: 0.07397031457 | AP24: 0.572348736 | AQ24: 0.1254048103 | AR24: 0.044114325 | AS24: 0.08573851974 | AT24: 0.1742272022 | AU24: 0.05741754286 | AV24: 0.07643529412 | AW24: 0.1478629917 | AX24: 0.2632434352 | AY24: 0.0523832 | AZ24: 0.09136296 | BA24: 0.05990284878 | BB24: 0.07256651726 | BC24: 0.1027186804 | BD24: 0.0591141 | BE24: 0.2115767471 | BF24: 0.03606516632 | BG24: 0.0219 | BH24: 0.0286032 | BI24: 0.058496 | BJ24: 0.215428155 | BK24: 0.0301916 | BL24: 0.1095835366 | BM24: 0.3021731599 | BN24: 0.3686416909 | BO24: 0.08524714286 | BP24: 0.09854289412 | BQ24: 0.2396796471 | BR24: 0.2333149184 | BS24: 0.1643871791 | BT24: 0.05684243265 | BU24: 0.3818395522 | BV24: 0.1263769398 | BW24: 0.1410288235 | BX24: 0.4322813447 | BY24: 0.1557856 | BZ24: 0.2113748 | CA24: 0.4123558731 | CB24: 0.3433824291 | CC24: 0.03488052632 | CD24: 0.04038995 | CE24: 0.04557862857 | CF24: 0.03938937143 | CG24: 0.0356247 | CH24: 0.07590029112 | CI24: 0.4745975511 | CJ24: 0.0351943 | CK24: 0.05184747429 | CL24: 0.04372100526 | CM24: 0.0415056 | CN24: 0.06152244623 | CO24: 0.050246445 | CP24: 0.03838621538 | CQ24: 0.04698752 | CR24: 0.0485924 | CS24: 0.08546052449 | CT24: 0.1169068179 | CU24: 0.05964482759 | CV24: 0.0622855 | CW24: 0.04037714286 | CX24: 0.0467928 | CY24: 0.0188084 | CZ24: 0.05150888378 | DA24: 0.04472036129 | DB24: 0.08545442443
A25: =A24+1 -> 402 | B25: 1 | C25: 0.02973893333 | D25: 0.08904041212 | E25: 0.1165088 | F25: 0.2696326526 | G25: 0.7574374414 | H25: 0.1860493818 | I25: 0.2239207092 | J25: 0.1649511294 | K25: 0.4221494699 | L25: 0.4567153301 | M25: 0.2340807836 | N25: 0.02183931429 | O25: 0.1791188723 | P25: 0.03627797647 | Q25: 0.04766733793 | R25: 0.03843573333 | S25: 0.2093285521 | T25: 0.07175497512 | U25: 0.1344009026 | V25: 0.1762747314 | W25: 0.07004892235 | X25: 0.15302688 | Y25: 0.07259090909 | Z25: 0.5000087191 | AA25: 0.03379088696 | AB25: 0.1269652324 | AC25: 0.0621144 | AD25: 0.05368121212 | AE25: 0.1303910197 | AF25: 0.2079218174 | AG25: 0.05898979765 | AH25: 0.05913828085 | AI25: 0.04341198832 | AJ25: 0.1550897091 | AK25: 0.1512592661 | AL25: 0.05589484706 | AM25: 0.103742414 | AN25: 0.1178966446 | AO25: 0.07472556291 | AP25: 0.5730355056 | AQ25: 0.1270877701 | AR25: 0.04387493333 | AS25: 0.08750140351 | AT25: 0.1756811634 | AU25: 0.05718948571 | AV25: 0.07597882353 | AW25: 0.1472044148 | AX25: 0.2723779917 | AY25: 0.0523376 | AZ25: 0.09209408 | BA25: 0.05935635122 | BB25: 0.07163961694 | BC25: 0.1016655304 | BD25: 0.0591528 | BE25: 0.2112271008 | BF25: 0.03569303579 | BG25: 0.0219 | BH25: 0.02861226667 | BI25: 0.05848466667 | BJ25: 0.2175816621 | BK25: 0.0301688 | BL25: 0.1100914634 | BM25: 0.3051672352 | BN25: 0.3748602344 | BO25: 0.08551428571 | BP25: 0.09962762353 | BQ25: 0.243084523 | BR25: 0.2383232654 | BS25: 0.165180637 | BT25: 0.05696109388 | BU25: 0.3827850746 | BV25: 0.1268628971 | BW25: 0.1419269281 | BX25: 0.441564781 | BY25: 0.1565608 | BZ25: 0.2132064 | CA25: 0.4221066599 | CB25: 0.3452353036 | CC25: 0.03482631579 | CD25: 0.0403616 | CE25: 0.04551912381 | CF25: 0.03935954286 | CG25: 0.0356936 | CH25: 0.07645570178 | CI25: 0.4757064038 | CJ25: 0.0351784 | CK25: 0.05198257524 | CL25: 0.04378046316 | CM25: 0.0415208 | CN25: 0.06214025327 | CO25: 0.05065536 | CP25: 0.03834787692 | CQ25: 0.04695296 | CR25: 0.0485712 | CS25: 0.08563608707 | CT25: 0.117211797 | CU25: 0.05976827586 | CV25: 0.062524 | CW25: 0.04031428571 | CX25: 0.04677262222 | CY25: 0.0188312 | CZ25: 0.05379469789 | DA25: 0.04477772903 | DB25: 0.08951439796
A26: =A25+1 -> 403 | B26: 1 | C26: 0.0294489 | D26: 0.09006843636 | E26: 0.1175952 | F26: 0.2823851598 | G26: 0.7646920877 | H26: 0.1859913455 | I26: 0.2302546462 | J26: 0.1679875359 | K26: 0.4377141439 | L26: 0.4736626812 | M26: 0.2408040427 | N26: 0.0217704 | O26: 0.1846300298 | P26: 0.03625214118 | Q26: 0.04751519655 | R26: 0.0382496 | S26: 0.2161859619 | T26: 0.07324423226 | U26: 0.137366152 | V26: 0.1805155025 | W26: 0.06976406588 | X26: 0.15845342 | Y26: 0.07432897727 | Z26: 0.5150024158 | AA26: 0.0337798087 | AB26: 0.1269225514 | AC26: 0.0622376 | AD26: 0.05354363636 | AE26: 0.1359269451 | AF26: 0.2169238279 | AG26: 0.05852041412 | AH26: 0.05861674043 | AI26: 0.04286272701 | AJ26: 0.1618519899 | AK26: 0.152858555 | AL26: 0.05754660515 | AM26: 0.1036742526 | AN26: 0.1172232691 | AO26: 0.07588220199 | AP26: 0.5740711517 | AQ26: 0.1296516723 | AR26: 0.043508275 | AS26: 0.09015963816 | AT26: 0.1778704155 | AU26: 0.0568448 | AV26: 0.07528705882 | AW26: 0.1462029417 | AX26: 0.2865100461 | AY26: 0.0522704 | AZ26: 0.09320672 | BA26: 0.05852794146 | BB26: 0.07022962085 | BC26: 0.100076763 | BD26: 0.0592107 | BE26: 0.2106812298 | BF26: 0.03513216421 | BG26: 0.0219 | BH26: 0.0286264 | BI26: 0.058467 | BJ26: 0.2208390848 | BK26: 0.0301352 | BL26: 0.1108597561 | BM26: 0.3097441193 | BN26: 0.3842958365 | BO26: 0.085915 | BP26: 0.1012632588 | BQ26: 0.2482385297 | BR26: 0.2458704288 | BS26: 0.166378254 | BT26: 0.05714302857 | BU26: 0.3842268657 | BV26: 0.1275905786 | BW26: 0.1432617647 | BX26: 0.4554594127 | BY26: 0.1577032 | BZ26: 0.2159056 | CA26: 0.4366771118 | CB26: 0.347967004 | CC26: 0.03474368421 | CD26: 0.04031765 | CE26: 0.0454284 | CF26: 0.0393136 | CG26: 0.0357989 | CH26: 0.07729803787 | CI26: 0.4774008576 | CJ26: 0.0351541 | CK26: 0.05219432 | CL26: 0.04387303684 | CM26: 0.0415432 | CN26: 0.06307912362 | CO26: 0.051281115 | CP26: 0.03828950769 | CQ26: 0.04690064 | CR26: 0.0485388 | CS26: 0.08591767143 | CT26: 0.1176917254 | CU26: 0.0599537931 | CV26: 0.0628885 | CW26: 0.04022 | CX26: 0.0467416 | CY26: 0.0188648 | CZ26: 0.05734618647 | DA26: 0.04486652903 | DB26: 0.09572497099
A27: =A26+1 -> 404 | B27: 1 | C27: 0.0290848 | D27: 0.09133723636 | E27: 0.1189144 | F27: 0.2987499578 | G27: 0.7736443241 | H27: 0.1859161455 | I27: 0.2381781275 | J27: 0.1717733881 | K27: 0.4570524097 | L27: 0.4947059903 | M27: 0.2492023508 | N27: 0.02168194286 | O27: 0.1914646168 | P27: 0.03621792941 | Q27: 0.04731801379 | R27: 0.0380112 | S27: 0.2247136562 | T27: 0.07509292535 | U27: 0.1410427078 | V27: 0.1857561943 | W27: 0.06939876706 | X27: 0.16520464 | Y27: 0.07647272727 | Z27: 0.5335181574 | AA27: 0.03376466087 | AB27: 0.1268636973 | AC27: 0.0623872 | AD27: 0.05336363636 | AE27: 0.1428650592 | AF27: 0.2281974521 | AG27: 0.05791339294 | AH27: 0.05795084255 | AI27: 0.04216396496 | AJ27: 0.1703371274 | AK27: 0.1548377982 | AL27: 0.05960854118 | AM27: 0.1035832421 | AN27: 0.1163739338 | AO27: 0.07735668874 | AP27: 0.5753665169 | AQ27: 0.1328993102 | AR27: 0.0430408 | AS27: 0.09348421053 | AT27: 0.1806034903 | AU27: 0.05641245714 | AV27: 0.07441647059 | AW27: 0.1449372444 | AX27: 0.3047459751 | AY27: 0.0521888 | AZ27: 0.09461424 | BA27: 0.05748505366 | BB27: 0.06844685081 | BC27: 0.0980885913 | BD27: 0.0592824 | BE27: 0.2099693025 | BF27: 0.03443110737 | BG27: 0.0219 | BH27: 0.0286448 | BI27: 0.058444 | BJ27: 0.2249289864 | BK27: 0.0300944 | BL27: 0.1118243902 | BM27: 0.3155657055 | BN27: 0.3961887032 | BO27: 0.08641285714 | BP27: 0.1033088706 | BQ27: 0.254715569 | BR27: 0.2553017962 | BS27: 0.1678779109 | BT27: 0.05737528163 | BU27: 0.3860552239 | BV27: 0.1284926913 | BW27: 0.1449007843 | BX27: 0.4726743431 | BY27: 0.1590904 | BZ27: 0.2191832 | CA27: 0.4546919798 | CB27: 0.3512859109 | CC27: 0.03463894737 | CD27: 0.0402608 | CE27: 0.04531337143 | CF27: 0.03925462857 | CG27: 0.0359328 | CH27: 0.07835910533 | CI27: 0.4795552115 | CJ27: 0.0351232 | CK27: 0.05247172571 | CL27: 0.04399338947 | CM27: 0.0415704 | CN27: 0.0642647598 | CO27: 0.05207808 | CP27: 0.03821563077 | CQ27: 0.04683488 | CR27: 0.0484976 | CS27: 0.08629626122 | CT27: 0.118323391 | CU27: 0.06018482759 | CV27: 0.063352 | CW27: 0.04010285714 | CX27: 0.04670186667 | CY27: 0.0189056 | CZ27: 0.06195209367 | DA27: 0.0449811871 | DB27: 0.1036311939
A28: =A27+1 -> 405 | B28: 1 | C28: 0.02867083333 | D28: 0.09274848485 | E28: 0.12035 | F28: 0.3178681742 | G28: 0.7835993804 | H28: 0.1858272727 | I28: 0.2471465201 | J28: 0.1760403491 | K28: 0.4787494918 | L28: 0.5182973833 | M28: 0.258690561 | N28: 0.02157857143 | O28: 0.1991143448 | P28: 0.03617647059 | Q28: 0.04708491379 | R28: 0.03773333333 | S28: 0.2342927815 | T28: 0.07716474654 | U28: 0.1451566508 | V28: 0.1915950446 | W28: 0.06897235294 | X28: 0.1727925 | Y28: 0.07885511364 | Z28: 0.5541278091 | AA28: 0.03374565217 | AB28: 0.1267891892 | AC28: 0.06255 | AD28: 0.05314848485 | AE28: 0.1507367958 | AF28: 0.2409758491 | AG28: 0.05719764706 | AH28: 0.05717765957 | AI28: 0.04135620438 | AJ28: 0.1799785514 | AK28: 0.157047133 | AL28: 0.06193612132 | AM28: 0.1034719298 | AN28: 0.115402518 | AO28: 0.07906548013 | AP28: 0.5768324438 | AQ28: 0.1366334768 | AR28: 0.04249895833 | AS28: 0.09724610746 | AT28: 0.1836889197 | AU28: 0.05592142857 | AV28: 0.07342352941 | AW28: 0.1434859954 | AX28: 0.326192155 | AY28: 0.0521 | AZ28: 0.09623 | BA28: 0.05629512195 | BB28: 0.06640162866 | BC28: 0.09583722826 | BD28: 0.0593625 | BE28: 0.2091214876 | BF28: 0.03363842105 | BG28: 0.0219 | BH28: 0.02866666667 | BI28: 0.05841666667 | BJ28: 0.2295799302 | BK28: 0.03005 | BL28: 0.1129213415 | BM28: 0.3222938874 | BN28: 0.4097790407 | BO28: 0.08697142857 | BP28: 0.1056235294 | BQ28: 0.262089543 | BR28: 0.2659627555 | BS28: 0.1695774882 | BT28: 0.05764489796 | BU28: 0.3881604478 | BV28: 0.1295019417 | BW28: 0.1467114379 | BX28: 0.4919186759 | BY28: 0.1606 | BZ28: 0.22275 | CA28: 0.4747760154 | CB28: 0.3549004049 | CC28: 0.03451842105 | CD28: 0.04019375 | CE28: 0.04518095238 | CF28: 0.03918571429 | CG28: 0.0360875 | CH28: 0.07957071006 | CI28: 0.482043765 | CJ28: 0.0350875 | CK28: 0.05280380952 | CL28: 0.04413618421 | CM28: 0.0416 | CN28: 0.06562286432 | CO28: 0.053000625 | CP28: 0.03813076923 | CQ28: 0.04676 | CR28: 0.04845 | CS28: 0.08676284014 | CT28: 0.1190835821 | CU28: 0.06044482759 | CV28: 0.0638875 | CW28: 0.03997142857 | CX28: 0.04665555556 | CY28: 0.01895 | CZ28: 0.06740116364 | DA28: 0.04511612903 | DB28: 0.112778117
A29: =A28+1 -> 406 | B29: 1 | C29: 0.0282312 | D29: 0.09420385455 | E29: 0.1217856 | F29: 0.3388809366 | G29: 0.7938624862 | H29: 0.1857282182 | I29: 0.2566151912 | J29: 0.1805200821 | K29: 0.5013906145 | L29: 0.5428889855 | M29: 0.2686835263 | N29: 0.02146491429 | O29: 0.2070709252 | P29: 0.03612889412 | Q29: 0.04682502069 | R29: 0.0374288 | S29: 0.2443044843 | T29: 0.07932338802 | U29: 0.1494340618 | V29: 0.1976302914 | W29: 0.06850415059 | X29: 0.18072896 | Y29: 0.08130909091 | Z29: 0.5754032361 | AA29: 0.0337229913 | AB29: 0.1266995459 | AC29: 0.0627128 | AD29: 0.05290545455 | AE29: 0.1590735887 | AF29: 0.2544921781 | AG29: 0.05640208941 | AH29: 0.05633426383 | AI29: 0.04047994745 | AJ29: 0.1902096912 | AK29: 0.1593366972 | AL29: 0.06438481176 | AM29: 0.1033428632 | AN29: 0.1143629007 | AO29: 0.08092503311 | AP29: 0.5783797753 | AQ29: 0.1406569652 | AR29: 0.0419092 | AS29: 0.1012163158 | AT29: 0.1869352355 | AU29: 0.05540068571 | AV29: 0.07236470588 | AW29: 0.1419278667 | AX29: 0.3499549626 | AY29: 0.0520112 | AZ29: 0.09796736 | BA29: 0.05502558049 | BB29: 0.06420427622 | BC29: 0.09345888696 | BD29: 0.0594456 | BE29: 0.2081679537 | BF29: 0.03280266105 | BG29: 0.0219 | BH29: 0.0286912 | BI29: 0.058386 | BJ29: 0.2345204795 | BK29: 0.0300056 | BL29: 0.1140865854 | BM29: 0.3295905583 | BN29: 0.4243070548 | BO29: 0.08755428571 | BP29: 0.1080663059 | BQ29: 0.2699343536 | BR29: 0.2771986943 | BS29: 0.1713748664 | BT29: 0.05793892245 | BU29: 0.3904328358 | BV29: 0.1305510369 | BW29: 0.1485611765 | BX29: 0.5119015147 | BY29: 0.1621096 | BZ29: 0.2263168 | CA29: 0.4955539698 | CB29: 0.3585188664 | CC29: 0.03438842105 | CD29: 0.0401192 | CE29: 0.04503805714 | CF29: 0.03910994286 | CG29: 0.0362552 | CH29: 0.08086465799 | CI29: 0.4847408173 | CJ29: 0.0350488 | CK29: 0.05317958857 | CL29: 0.04429608421 | CM29: 0.0416296 | CN29: 0.0670791397 | CO29: 0.05400312 | CP29: 0.03803944615 | CQ29: 0.04668032 | CR29: 0.0483984 | CS29: 0.08730839184 | CT29: 0.1199490866 | CU29: 0.06071724138 | CV29: 0.064468 | CW29: 0.03983428571 | CX29: 0.0466048 | CY29: 0.0189944 | CZ29: 0.07348214051 | DA29: 0.04526578065 | DB29: 0.1227107908
A30: =A29+1 -> 407 | B30: 1 | C30: 0.0277901 | D30: 0.09560501818 | E30: 0.1231048 | F30: 0.3609293728 | G30: 0.8037388713 | H30: 0.1856224727 | I30: 0.2660395077 | J30: 0.1849442505 | K30: 0.5235610023 | L30: 0.5669329227 | M30: 0.2785960997 | N30: 0.0213456 | O30: 0.2148260695 | P30: 0.03607632941 | Q30: 0.04654745862 | R30: 0.0371104 | S30: 0.2541299111 | T30: 0.08143254194 | U30: 0.1536010214 | V30: 0.2034601725 | W30: 0.06801348706 | X30: 0.18852598 | Y30: 0.08366761364 | Z30: 0.5959163035 | AA30: 0.03369688696 | AB30: 0.1265952865 | AC30: 0.0628624 | AD30: 0.05264181818 | AE30: 0.1674068718 | AF30: 0.2679795985 | AG30: 0.05555563294 | AH30: 0.05545772766 | AI30: 0.03957569635 | AJ30: 0.2004639764 | AK30: 0.1615566284 | AL30: 0.06681007868 | AM30: 0.1031985895 | AN30: 0.1133089612 | AO30: 0.08285180464 | AP30: 0.5799193539 | AQ30: 0.1447725687 | AR30: 0.041297975 | AS30: 0.1051658224 | AT30: 0.1901509695 | AU30: 0.0548792 | AV30: 0.07129647059 | AW30: 0.1403415306 | AX30: 0.3751407743 | AY30: 0.0519296 | AZ30: 0.09973968 | BA30: 0.05374386341 | BB30: 0.06196511531 | BC30: 0.09108978043 | BD30: 0.0595263 | BE30: 0.2071388694 | BF30: 0.03197238316 | BG30: 0.0219 | BH30: 0.0287176 | BI30: 0.058353 | BJ30: 0.2394791979 | BK30: 0.0299648 | BL30: 0.1152560976 | BM30: 0.3371176116 | BN30: 0.4390129518 | BO30: 0.088125 | BP30: 0.1104962706 | BQ30: 0.2778239026 | BR30: 0.2883550005 | BS30: 0.1731679261 | BT30: 0.0582444 | BU30: 0.3927626866 | BV30: 0.1315726835 | BW30: 0.150317451 | BX30: 0.5313319629 | BY30: 0.1634968 | BZ30: 0.2295944 | CA30: 0.5156505941 | CB30: 0.3618496761 | CC30: 0.03425526316 | CD30: 0.04003985 | CE30: 0.0448916 | CF30: 0.0390304 | CG30: 0.0364281 | CH30: 0.08217275503 | CI30: 0.4875206676 | CJ30: 0.0350089 | CK30: 0.05358808 | CL30: 0.04446775263 | CM30: 0.0416568 | CN30: 0.06855928844 | CO30: 0.055039935 | CP30: 0.03794618462 | CQ30: 0.04660016 | CR30: 0.0483452 | CS30: 0.0879239 | CT30: 0.1208966925 | CU30: 0.06098551724 | CV30: 0.0650665 | CW30: 0.0397 | CX30: 0.04655173333 | CY30: 0.0190352 | CZ30: 0.07998376844 | DA30: 0.04542456774 | DB30: 0.1329742656
A31: =A30+1 -> 408 | B31: 1 | C31: 0.02737173333 | D31: 0.09685364848 | E31: 0.1241912 | F31: 0.3831546104 | G31: 0.8125337655 | H31: 0.1855135273 | I31: 0.2748748366 | J31: 0.1890445175 | K31: 0.5438458796 | L31: 0.5888813205 | M31: 0.2878431345 | N31: 0.02122525714 | O31: 0.2218714891 | P31: 0.03601990588 | Q31: 0.04626135172 | R31: 0.03679093333 | S31: 0.2631502083 | T31: 0.08335590046 | U31: 0.1573836105 | V31: 0.2086829257 | W31: 0.06751968941 | X31: 0.19569552 | Y31: 0.08576363636 | Z31: 0.6142388766 | AA31: 0.03366754783 | AB31: 0.1264769297 | AC31: 0.0629856 | AD31: 0.05236484848 | AE31: 0.1752680789 | AF31: 0.2806712694 | AG31: 0.05468719059 | AH31: 0.0545851234 | AI31: 0.03868395328 | AJ31: 0.2101748366 | AK31: 0.1635570642 | AL31: 0.06906738824 | AM31: 0.1030416561 | AN31: 0.1122945784 | AO31: 0.08476225166 | AP31: 0.5813620225 | AQ31: 0.1487830802 | AR31: 0.04069173333 | AS31: 0.108865614 | AT31: 0.1931446537 | AU31: 0.05438594286 | AV31: 0.07027529412 | AW31: 0.1388056593 | AX31: 0.4008559668 | AY31: 0.0518624 | AZ31: 0.10146032 | BA31: 0.05251740488 | BB31: 0.05979446775 | BC31: 0.08886612174 | BD31: 0.0595992 | BE31: 0.2060644033 | BF31: 0.03119614316 | BG31: 0.0219 | BH31: 0.02874506667 | BI31: 0.05831866667 | BJ31: 0.2441846485 | BK31: 0.0299312 | BL31: 0.1163658537 | BM31: 0.3445369407 | BN31: 0.4531369376 | BO31: 0.08864714286 | BP31: 0.1127724941 | BQ31: 0.2853320921 | BR31: 0.2987770616 | BS31: 0.1748545479 | BT31: 0.05854837551 | BU31: 0.3950402985 | BV31: 0.1324995883 | BW31: 0.1518477124 | BX31: 0.5489191242 | BY31: 0.1646392 | BZ31: 0.2322936 | CA31: 0.5336906398 | CB31: 0.3646012146 | CC31: 0.03412526316 | CD31: 0.0399584 | CE31: 0.04474849524 | CF31: 0.03895017143 | CG31: 0.0365984 | CH31: 0.0834268071 | CI31: 0.4902576153 | CJ31: 0.0349696 | CK31: 0.05401830095 | CL31: 0.04464585263 | CM31: 0.0416792 | CN31: 0.06998901307 | CO31: 0.05606544 | CP31: 0.03785550769 | CQ31: 0.04652384 | CR31: 0.0482928 | CS31: 0.0886003483 | CT31: 0.1219031881 | CU31: 0.06123310345 | CV31: 0.065656 | CW31: 0.03957714286 | CX31: 0.04649848889 | CY31: 0.0190688 | CZ31: 0.08669479156 | DA31: 0.04558691613 | DB31: 0.1431135919
A32: =A31+1 -> 409 | B32: 1 | C32: 0.0270003 | D32: 0.09785141818 | E32: 0.1249284 | F32: 0.4046977769 | G32: 0.8195523985 | H32: 0.1854048727 | I32: 0.2825765451 | J32: 0.1925525462 | K32: 0.5608304707 | L32: 0.6071863043 | M32: 0.2958394835 | N32: 0.02110851429 | O32: 0.2276988954 | P32: 0.03596075294 | Q32: 0.04597582414 | R32: 0.0364832 | S32: 0.2707465224 | T32: 0.08495715576 | U32: 0.1605079097 | V32: 0.2128967889 | W32: 0.06704208471 | X32: 0.20174954 | Y32: 0.08743011364 | Z32: 0.6289428203 | AA32: 0.03363518261 | AB32: 0.1263449946 | AC32: 0.0630692 | AD32: 0.05208181818 | AE32: 0.1821886437 | AF32: 0.2918003502 | AG32: 0.05382567529 | AH32: 0.0537535234 | AI32: 0.03784522044 | AJ32: 0.2187757013 | AK32: 0.1651881422 | AL32: 0.07101220662 | AM32: 0.1028746105 | AN32: 0.1113736317 | AO32: 0.08657283113 | AP32: 0.5826186236 | AQ32: 0.1524912929 | AR32: 0.040116925 | AS32: 0.1120866776 | AT32: 0.1957248199 | AU32: 0.05394988571 | AV32: 0.06935764706 | AW32: 0.137398925 | AX32: 0.4262069165 | AY32: 0.0518168 | AZ32: 0.10304264 | BA32: 0.05141363902 | BB32: 0.05780265537 | BC32: 0.08692412391 | BD32: 0.0596589 | BE32: 0.204974724 | BF32: 0.03052249684 | BG32: 0.0219 | BH32: 0.0287728 | BI32: 0.058284 | BJ32: 0.2483653947 | BK32: 0.0299084 | BL32: 0.1173518293 | BM32: 0.351510439 | BN32: 0.4659192184 | BO32: 0.08908428571 | BP32: 0.1147540471 | BQ32: 0.2920328239 | BR32: 0.3078102656 | BS32: 0.1763326123 | BT32: 0.05883789388 | BU32: 0.3971559701 | BV32: 0.1332644583 | BW32: 0.1530194118 | BX32: 0.563372102 | BY32: 0.1654144 | BZ32: 0.2341252 | CA32: 0.548298858 | CB32: 0.3664818623 | CC32: 0.03400473684 | CD32: 0.03987755 | CE32: 0.04461565714 | CF32: 0.03887234286 | CG32: 0.0367583 | CH32: 0.08455862012 | CI32: 0.4928259597 | CJ32: 0.0349327 | CK32: 0.05445926857 | CL32: 0.04482504737 | CM32: 0.0416944 | CN32: 0.07129401608 | CO32: 0.057034005 | CP32: 0.03777193846 | CQ32: 0.04645568 | CR32: 0.0482436 | CS32: 0.08932872041 | CT32: 0.1229453612 | CU32: 0.06144344828 | CV32: 0.0662095 | CW32: 0.03947428571 | CX32: 0.0464472 | CY32: 0.0190916 | CZ32: 0.09340395404 | DA32: 0.04574725161 | DB32: 0.1526738198
A33: =A32+1 -> 410 | B33: 1 | C33: 0.0267 | D33: 0.0985 | E33: 0.1252 | F33: 0.4247 | G33: 0.8241 | H33: 0.1853 | I33: 0.2886 | J33: 0.1952 | K33: 0.5731 | L33: 0.6203 | M33: 0.302 | N33: 0.021 | O33: 0.2318 | P33: 0.0359 | Q33: 0.0457 | R33: 0.0362 | S33: 0.2763 | T33: 0.0861 | U33: 0.1627 | V33: 0.2157 | W33: 0.0666 | X33: 0.2062 | Y33: 0.0885 | Z33: 0.6386 | AA33: 0.0336 | AB33: 0.1262 | AC33: 0.0631 | AD33: 0.0518 | AE33: 0.1877 | AF33: 0.3006 | AG33: 0.053 | AH33: 0.053 | AI33: 0.0371 | AJ33: 0.2257 | AK33: 0.1663 | AL33: 0.0725 | AM33: 0.1027 | AN33: 0.1106 | AO33: 0.0882 | AP33: 0.5836 | AQ33: 0.1557 | AR33: 0.0396 | AS33: 0.1146 | AT33: 0.1977 | AU33: 0.0536 | AV33: 0.0686 | AW33: 0.1362 | AX33: 0.4503 | AY33: 0.0518 | AZ33: 0.1044 | BA33: 0.0505 | BB33: 0.0561 | BC33: 0.0854 | BD33: 0.0597 | BE33: 0.2039 | BF33: 0.03 | BG33: 0.0219 | BH33: 0.0288 | BI33: 0.05825 | BJ33: 0.25175 | BK33: 0.0299 | BL33: 0.11815 | BM33: 0.3577 | BN33: 0.4766 | BO33: 0.0894 | BP33: 0.1163 | BQ33: 0.2975 | BR33: 0.3148 | BS33: 0.1775 | BT33: 0.0591 | BU33: 0.399 | BV33: 0.1338 | BW33: 0.1537 | BX33: 0.5734 | BY33: 0.1657 | BZ33: 0.2348 | CA33: 0.5581 | CB33: 0.3672 | CC33: 0.0339 | CD33: 0.0398 | CE33: 0.0445 | CF33: 0.0388 | CG33: 0.0369 | CH33: 0.0855 | CI33: 0.4951 | CJ33: 0.0349 | CK33: 0.0549 | CL33: 0.045 | CM33: 0.0417 | CN33: 0.0724 | CO33: 0.0579 | CP33: 0.0377 | CQ33: 0.0464 | CR33: 0.0482 | CS33: 0.0901 | CT33: 0.124 | CU33: 0.0616 | CV33: 0.0667 | CW33: 0.0394 | CX33: 0.0464 | CY33: 0.0191 | CZ33: 0.0999 | DA33: 0.0459 | DB33: 0.1612
A34: =A33+1 -> 411 | B34: 1 | C34: 0.02644549355 | D34: 0.09892352236 | E34: 0.1250804494 | F34: 0.4450194533 | G34: 0.8270465498 | H34: 0.1851783273 | I34: 0.2934649872 | J34: 0.1972485152 | K34: 0.5824199015 | L34: 0.6301875657 | M34: 0.3069283334 | N34: 0.02088740571 | O34: 0.2348305123 | P34: 0.03582054706 | Q34: 0.04540686158 | R34: 0.03591953191 | S34: 0.2805206558 | T34: 0.08692677365 | U34: 0.1642459793 | V34: 0.2175541125 | W34: 0.06614971222 | X34: 0.2095142223 | Y34: 0.08916988636 | Z34: 0.6450867895 | AA34: 0.03352461114 | AB34: 0.1257891701 | AC34: 0.0630625 | AD34: 0.05147377039 | AE34: 0.192180631 | AF34: 0.3076964332 | AG34: 0.05212568856 | AH34: 0.05227119256 | AI34: 0.03639377764 | AJ34: 0.2313716039 | AK34: 0.167049245 | AL34: 0.07365434587 | AM34: 0.1024580141 | AN34: 0.1099200683 | AO34: 0.08971638757 | AP34: 0.5843867386 | AQ34: 0.1585781721 | AR34: 0.03911595663 | AS34: 0.1165955079 | AT34: 0.1992313093 | AU34: 0.05330651429 | AV34: 0.06794899642 | AW34: 0.1351340055 | AX34: 0.4751625427 | AY34: 0.05180272 | AZ34: 0.1056654615 | BA34: 0.04971415045 | BB34: 0.05457553846 | BC34: 0.08413356428 | BD34: 0.05972732857 | BE34: 0.2027515998 | BF34: 0.02957889916 | BG34: 0.0218981 | BH34: 0.028828 | BI34: 0.05821453846 | BJ34: 0.2547563521 | BK34: 0.0299 | BL34: 0.1188440549 | BM34: 0.3634522578 | BN34: 0.4862323134 | BO34: 0.08963585046 | BP34: 0.1175402239 | BQ34: 0.3022348156 | BR34: 0.3206865344 | BS34: 0.1784644752 | BT34: 0.05934333193 | BU34: 0.4006580299 | BV34: 0.1341983417 | BW34: 0.1540809882 | BX34: 0.5806845078 | BY34: 0.165649568 | BZ34: 0.234693439 | CA34: 0.5648145347 | CB34: 0.3672377377 | CC34: 0.03380616316 | CD34: 0.03971725 | CE34: 0.04439389286 | CF34: 0.03872598442 | CG34: 0.037030468 | CH34: 0.08632046897 | CI34: 0.4971792178 | CJ34: 0.03487038571 | CK34: 0.05535700753 | CL34: 0.04518438596 | CM34: 0.04169864 | CN34: 0.07338346593 | CO34: 0.05871991739 | CP34: 0.03763518154 | CQ34: 0.04635300571 | CR34: 0.0481564 | CS34: 0.09112746959 | CT34: 0.1252618043 | CU34: 0.06171457931 | CV34: 0.06714707732 | CW34: 0.03934251429 | CX34: 0.0463515 | CY34: 0.0191 | CZ34: 0.1066350791 | DA34: 0.04605845464 | DB34: 0.1692333584
A35: =A34+1 -> 412 | B35: 1 | C35: 0.02619642151 | D35: 0.09931236233 | E35: 0.1247438202 | F35: 0.4676124302 | G35: 0.8297344952 | H35: 0.1850240727 | I35: 0.2980657226 | J35: 0.1991490341 | K35: 0.5914265549 | L35: 0.6397608841 | M35: 0.3116171036 | N35: 0.02075890286 | O35: 0.237758405 | P35: 0.03570960523 | Q35: 0.04506997526 | R35: 0.03561611348 | S35: 0.2845219811 | T35: 0.08767718189 | U35: 0.1656306615 | V35: 0.2192065015 | W35: 0.0656462552 | X35: 0.2125169683 | Y35: 0.08975636364 | Z35: 0.6512010695 | AA35: 0.03338105217 | AB35: 0.1249192114 | AC35: 0.06296 | AD35: 0.05106568866 | AE35: 0.19635512 | AF35: 0.3142835161 | AG35: 0.05112121423 | AH35: 0.05149875559 | AI35: 0.0356542621 | AJ35: 0.2366431372 | AK35: 0.1677038679 | AL35: 0.0747070206 | AM35: 0.1021032315 | AN35: 0.1092470216 | AO35: 0.09124919258 | AP35: 0.5851228208 | AQ35: 0.1614252401 | AR35: 0.03862340136 | AS35: 0.1184337121 | AT35: 0.2006242503 | AU35: 0.05302125714 | AV35: 0.06731454936 | AW35: 0.1340767603 | AX35: 0.5029496657 | AY35: 0.05181056 | AZ35: 0.1070035964 | BA35: 0.04894940214 | BB35: 0.05305199921 | BC35: 0.0828847696 | BD35: 0.05975005714 | BE35: 0.2014354147 | BF35: 0.02917726484 | BG35: 0.0218928 | BH35: 0.02885866667 | BI35: 0.05817502564 | BJ35: 0.2579111182 | BK35: 0.0299 | BL35: 0.1195499569 | BM35: 0.3693104259 | BN35: 0.4962080641 | BO35: 0.08985756353 | BP35: 0.1187038027 | BQ35: 0.3069755149 | BR35: 0.3267253384 | BS35: 0.1793986521 | BT35: 0.05958620513 | BU35: 0.4022917015 | BV35: 0.1345908117 | BW35: 0.1544394876 | BX35: 0.5877048219 | BY35: 0.165506464 | BZ35: 0.2343957831 | CA35: 0.5710720897 | CB35: 0.3672715854 | CC35: 0.03371393684 | CD35: 0.03962133333 | CE35: 0.04428590476 | CF35: 0.03864299221 | CG35: 0.037161664 | CH35: 0.08713128744 | CI35: 0.499249238 | CJ35: 0.03484137143 | CK35: 0.05585868076 | CL35: 0.04539302144 | CM35: 0.04169472 | CN35: 0.07436514521 | CO35: 0.05957250627 | CP35: 0.03757025231 | CQ35: 0.04630793143 | CR35: 0.0481072 | CS35: 0.09259943837 | CT35: 0.1268885116 | CU35: 0.06181277241 | CV35: 0.06758960825 | CW35: 0.03928525714 | CX35: 0.04629644444 | CY35: 0.0191 | CZ35: 0.1141288818 | DA35: 0.04623648387 | DB35: 0.1775465976
A36: =A35+1 -> 413 | B36: 1 | C36: 0.02595445484 | D36: 0.0996675656 | E36: 0.1242231461 | F36: 0.4917672382 | G36: 0.8321777669 | H36: 0.1848479273 | I36: 0.3024192183 | J36: 0.200917179 | K36: 0.6000116031 | L36: 0.6488921675 | M36: 0.316064619 | N36: 0.02061984 | O36: 0.2405437844 | P36: 0.03557477059 | Q36: 0.04469934138 | R36: 0.0352967234 | S36: 0.2882903368 | T36: 0.08836096395 | U36: 0.1668782016 | V36: 0.2206841374 | W36: 0.0651070914 | X36: 0.2152563564 | Y36: 0.09027238636 | Z36: 0.6568969652 | AA36: 0.03318366929 | AB36: 0.1236798665 | AC36: 0.0628075 | AD36: 0.05059530182 | AE36: 0.200274051 | AF36: 0.3204458856 | AG36: 0.05001991405 | AH36: 0.05069728411 | AI36: 0.03489529019 | AJ36: 0.2415911595 | AK36: 0.1682810817 | AL36: 0.07567578873 | AM36: 0.1016597831 | AN36: 0.1085849388 | AO36: 0.09279672621 | AP36: 0.5858141812 | AQ36: 0.1642396869 | AR36: 0.03812419643 | AS36: 0.1201414761 | AT36: 0.2019039353 | AU36: 0.0527456 | AV36: 0.06669803376 | AW36: 0.1330329829 | AX36: 0.5329594396 | AY36: 0.05182304 | AZ36: 0.1083750304 | BA36: 0.0482066629 | BB36: 0.05154024152 | BC36: 0.08167003689 | BD36: 0.0597693 | BE36: 0.1999733972 | BF36: 0.02879538884 | BG36: 0.0218847 | BH36: 0.028892 | BI36: 0.05813176923 | BJ36: 0.2611060303 | BK36: 0.0299 | BL36: 0.1202520919 | BM36: 0.3752312664 | BN36: 0.5062757703 | BO36: 0.09006495319 | BP36: 0.1197986262 | BQ36: 0.3116515735 | BR36: 0.3327345995 | BS36: 0.1802976864 | BT36: 0.05983018065 | BU36: 0.4039053134 | BV36: 0.1349689165 | BW36: 0.154771349 | BX36: 0.5943663059 | BY36: 0.165282976 | BZ36: 0.2339400729 | CA36: 0.5768611546 | CB36: 0.3673015239 | CC36: 0.03362303684 | CD36: 0.03951575 | CE36: 0.04417725 | CF36: 0.03855389091 | CG36: 0.037293276 | CH36: 0.08792686861 | CI36: 0.501313575 | CJ36: 0.0348127 | CK36: 0.05641185274 | CL36: 0.0456222807 | CM36: 0.04168848 | CN36: 0.07533708566 | CO36: 0.06044552172 | CP36: 0.03750565538 | CQ36: 0.04626464 | CR36: 0.0480548 | CS36: 0.09446943 | CT36: 0.1288014662 | CU36: 0.06189867586 | CV36: 0.06802954124 | CW36: 0.0392296 | CX36: 0.04623716667 | CY36: 0.0191 | CZ36: 0.1222714636 | DA36: 0.04642937601 | DB36: 0.1860319823
A37: =A36+1 -> 414 | B37: 1 | C37: 0.02572126452 | D37: 0.09999017789 | E37: 0.1235514607 | F37: 0.5167721849 | G37: 0.8343902958 | H37: 0.1846605818 | I37: 0.3065424865 | J37: 0.2025685724 | K37: 0.6080666889 | L37: 0.6574536281 | M37: 0.3202691879 | N37: 0.02047556571 | O37: 0.2431467569 | P37: 0.03542363922 | Q37: 0.04430496026 | R37: 0.03496834043 | S37: 0.2918120838 | T37: 0.08898785904 | U37: 0.1680127542 | V37: 0.2220139903 | W37: 0.06454968326 | X37: 0.2177805049 | Y37: 0.09073090909 | Z37: 0.6621286019 | AA37: 0.0329468087 | AB37: 0.1221608776 | AC37: 0.06262 | AD37: 0.05008215688 | AE37: 0.2039880079 | AF37: 0.3262681785 | AG37: 0.04885512505 | AH37: 0.04988137315 | AI37: 0.03413069871 | AJ37: 0.2462922303 | AK37: 0.1687980991 | AL37: 0.07657841475 | AM37: 0.1011517999 | AN37: 0.1079378993 | AO37: 0.0943572996 | AP37: 0.5864667544 | AQ37: 0.1670199957 | AR37: 0.03762020408 | AS37: 0.1217456628 | AT37: 0.2030954767 | AU37: 0.05248091429 | AV37: 0.06610082455 | AW37: 0.1320073919 | AX37: 0.5644899348 | AY37: 0.05183968 | AZ37: 0.1097403893 | BA37: 0.04748684056 | BB37: 0.05005112466 | BC37: 0.08050578706 | BD37: 0.05978617143 | BE37: 0.1983875002 | BF37: 0.02843356295 | BG37: 0.0218744 | BH37: 0.028928 | BI37: 0.05808507692 | BJ37: 0.2642328205 | BK37: 0.0299 | BL37: 0.1209348462 | BM37: 0.3811715415 | BN37: 0.5161839503 | BO37: 0.09025783343 | BP37: 0.1208325844 | BQ37: 0.3161924672 | BR37: 0.3385325057 | BS37: 0.1811567336 | BT37: 0.06007681949 | BU37: 0.4055031642 | BV37: 0.1353241631 | BW37: 0.1550724235 | BX37: 0.6005743236 | BY37: 0.164991392 | BZ37: 0.2333593492 | CA37: 0.5821702187 | CB37: 0.3673275336 | CC37: 0.03353317895 | CD37: 0.039404 | CE37: 0.04406914286 | CF37: 0.03846154805 | CG37: 0.037424992 | CH37: 0.08870162565 | CI37: 0.5033757429 | CJ37: 0.03478411429 | CK37: 0.05702335656 | CL37: 0.04586853801 | CM37: 0.04168016 | CN37: 0.07629133512 | CO37: 0.06132671881 | CP37: 0.03744183385 | CQ37: 0.04622299429 | CR37: 0.0480016 | CS37: 0.09669096816 | CT37: 0.1309220125 | CU37: 0.06197638621 | CV37: 0.06846882474 | CW37: 0.03917691429 | CX37: 0.046176 | CY37: 0.0191 | CZ37: 0.1309528797 | DA37: 0.04663241935 | DB37: 0.1945817775
A38: =A37+1 -> 415 | B38: 1 | C38: 0.02549852151 | D38: 0.1002812449 | E38: 0.1227617978 | F38: 0.5419155778 | G38: 0.8363860129 | H38: 0.1844727273 | I38: 0.3104525394 | J38: 0.2041188365 | K38: 0.6154834555 | L38: 0.6653174782 | M38: 0.3242291189 | N38: 0.02033142857 | O38: 0.2455274287 | P38: 0.03526380719 | Q38: 0.04389683224 | R38: 0.03463794326 | S38: 0.2950735832 | T38: 0.0895676064 | U38: 0.1690584742 | V38: 0.2232230305 | W38: 0.06399149321 | X38: 0.2201375325 | Y38: 0.09114488636 | Z38: 0.666850105 | AA38: 0.03268481658 | AB38: 0.1204519873 | AC38: 0.0624125 | AD38: 0.04954580087 | AE38: 0.2075475749 | AF38: 0.331835032 | AG38: 0.04766018427 | AH38: 0.04906561774 | AI38: 0.03337432447 | AJ38: 0.2508229089 | AK38: 0.169272133 | AL38: 0.07743266321 | AM38: 0.1006034126 | AN38: 0.107309982 | AO38: 0.09592922392 | AP38: 0.5870864751 | AQ38: 0.1697646495 | AR38: 0.03711328656 | AS38: 0.1232731354 | AT38: 0.2042239868 | AU38: 0.05222857143 | AV38: 0.06552429668 | AW38: 0.1310047058 | AX38: 0.5968392218 | AY38: 0.05186 | AZ38: 0.1110602985 | BA38: 0.04679084296 | BB38: 0.0485955079 | BC38: 0.07940844103 | BD38: 0.05980178571 | BE38: 0.1966996764 | BF38: 0.02809207895 | BG38: 0.0218625 | BH38: 0.02896666667 | BI38: 0.05803525641 | BJ38: 0.2671832209 | BK38: 0.0299 | BL38: 0.1215826059 | BM38: 0.3870880134 | BN38: 0.5256811223 | BO38: 0.09043601824 | BP38: 0.1218135674 | BQ38: 0.3205276715 | BR38: 0.3439372445 | BS38: 0.1819709493 | BT38: 0.06032768269 | BU38: 0.4070895522 | BV38: 0.1356480583 | BW38: 0.1553385621 | BX38: 0.6062342384 | BY38: 0.164644 | BZ38: 0.2326866525 | CA38: 0.5869877717 | CB38: 0.3673495951 | CC38: 0.03344407895 | CD38: 0.03928958333 | CE38: 0.04396279762 | CF38: 0.03836883117 | CG38: 0.0375565 | CH38: 0.08944997176 | CI38: 0.5054392561 | CJ38: 0.03475535714 | CK38: 0.05770002528 | CL38: 0.04612816764 | CM38: 0.04167 | CN38: 0.07721994143 | CO38: 0.06220385261 | CP38: 0.03737923077 | CQ38: 0.04618285714 | CR38: 0.04795 | CS38: 0.09921757653 | CT38: 0.1331714948 | CU38: 0.06205 | CV38: 0.06890940722 | CW38: 0.03912857143 | CX38: 0.04611527778 | CY38: 0.0191 | CZ38: 0.1400631856 | DA38: 0.04684090222 | DB38: 0.203088248
A39: =A38+1 -> 416 | B39: 1 | C39: 0.02528789677 | D39: 0.1005418123 | E39: 0.121887191 | F39: 0.5664857245 | G39: 0.8381788489 | H39: 0.1842950545 | I39: 0.3141663891 | J39: 0.2055835937 | K39: 0.6221535455 | L39: 0.6723559301 | M39: 0.3279427204 | N39: 0.02019277714 | O39: 0.2476459063 | P39: 0.03510287059 | Q39: 0.04348495764 | R39: 0.03431251064 | S39: 0.298061196 | T39: 0.09010994524 | U39: 0.1700395162 | V39: 0.2243382282 | W39: 0.06344998371 | X39: 0.2223755574 | Y39: 0.09152727273 | Z39: 0.6710155996 | AA39: 0.03241203913 | AB39: 0.118642938 | AC39: 0.0622 | AD39: 0.04900578078 | AE39: 0.2110033359 | AF39: 0.3372310829 | AG39: 0.04646842875 | AH39: 0.04826461291 | AI39: 0.03264000427 | AJ39: 0.2552597547 | AK39: 0.1697203963 | AL39: 0.0782562986 | AM39: 0.1000387524 | AN39: 0.1067052662 | AO39: 0.09751081032 | AP39: 0.5876792777 | AQ39: 0.1724721313 | AR39: 0.03660530612 | AS39: 0.1247507573 | AT39: 0.205314578 | AU39: 0.05198994286 | AV39: 0.06496982506 | AW39: 0.1300296434 | AX39: 0.629305371 | AY39: 0.05188352 | AZ39: 0.1122953839 | BA39: 0.04611957792 | BB39: 0.04718425051 | BC39: 0.07839441972 | BD39: 0.05981725714 | BE39: 0.1949318785 | BF39: 0.02777122863 | BG39: 0.0218496 | BH39: 0.029008 | BI39: 0.05798261538 | BJ39: 0.2698489636 | BK39: 0.0299 | BL39: 0.1221797571 | BM39: 0.3929374442 | BN39: 0.5345158046 | BO39: 0.09059932158 | BP39: 0.1227494649 | BQ39: 0.3245866621 | BR39: 0.3487670038 | BS39: 0.1827354891 | BT39: 0.06058433127 | BU39: 0.4086687761 | BV39: 0.1359321087 | BW39: 0.1555656157 | BX39: 0.6112514143 | BY39: 0.164253088 | BZ39: 0.2319550237 | CA39: 0.5913023029 | CB39: 0.3673676891 | CC39: 0.03335545263 | CD39: 0.039176 | CE39: 0.04385942857 | CF39: 0.03827860779 | CG39: 0.037687488 | CH39: 0.09016632013 | CI39: 0.5075076288 | CJ39: 0.03472617143 | CK39: 0.05844869198 | CL39: 0.04639754386 | CM39: 0.04165824 | CN39: 0.07811495243 | CO39: 0.06306467821 | CP39: 0.03731828923 | CQ39: 0.04614409143 | CR39: 0.0479024 | CS39: 0.1020027788 | CT39: 0.1354712576 | CU39: 0.06212361379 | CV39: 0.06935323711 | CW39: 0.03908594286 | CX39: 0.04605733333 | CY39: 0.0191 | CZ39: 0.1494924366 | DA39: 0.0470501129 | DB39: 0.2114436586
A40: =A39+1 -> 417 | B40: 1 | C40: 0.02509106129 | D40: 0.1007729258 | E40: 0.1209606742 | F40: 0.5897709326 | G40: 0.8397827348 | H40: 0.1841382545 | I40: 0.3177010479 | J40: 0.2069784663 | K40: 0.6279686021 | L40: 0.6784411959 | M40: 0.3314083009 | N40: 0.02006496 | O40: 0.2494622959 | P40: 0.03494842549 | Q40: 0.04307933678 | R40: 0.03399902128 | S40: 0.300761283 | T40: 0.0906246148 | U40: 0.170980035 | V40: 0.2253865538 | W40: 0.06294261719 | X40: 0.2245426982 | Y40: 0.09189102273 | Z40: 0.6745792112 | AA40: 0.03214282255 | AB40: 0.1168234722 | AC40: 0.0619975 | AD40: 0.04848164364 | AE40: 0.2144058748 | AF40: 0.3425409682 | AG40: 0.04531319552 | AH40: 0.04749295369 | AI40: 0.03194157492 | AJ40: 0.2596793273 | AK40: 0.1701601018 | AL40: 0.07906708546 | AM40: 0.09948195011 | AN40: 0.1061278309 | AO40: 0.09910036998 | AP40: 0.588251097 | AQ40: 0.1751409242 | AR40: 0.036098125 | AS40: 0.1262053915 | AT40: 0.2063923625 | AU40: 0.0517664 | AV40: 0.06443878465 | AW40: 0.129086923 | AX40: 0.661186453 | AY40: 0.05190976 | AZ40: 0.113406271 | BA40: 0.04547395327 | BB40: 0.04582821175 | BC40: 0.07748014404 | BD40: 0.0598337 | BE40: 0.1931060591 | BF40: 0.02747130379 | BG40: 0.0218363 | BH40: 0.029052 | BI40: 0.05792746154 | BJ40: 0.2721217808 | BK40: 0.0299 | BL40: 0.122710686 | BM40: 0.3986765961 | BN40: 0.5424365152 | BO40: 0.09074755745 | BP40: 0.123648167 | BQ40: 0.3282989146 | BR40: 0.3528399712 | BS40: 0.1834455085 | BT40: 0.06084832627 | BU40: 0.4102451343 | BV40: 0.1361678214 | BW40: 0.1557494353 | BX40: 0.6155312146 | BY40: 0.163830944 | BZ40: 0.2311975034 | CA40: 0.5951023018 | CB40: 0.367381796 | CC40: 0.03326701579 | CD40: 0.03906675 | CE40: 0.04376025 | CF40: 0.03819374545 | CG40: 0.037817644 | CH40: 0.09084508395 | CI40: 0.5095843752 | CJ40: 0.0346963 | CK40: 0.05927618973 | CL40: 0.04667304094 | CM40: 0.04164512 | CN40: 0.07896841595 | CO40: 0.06389695067 | CP40: 0.03725945231 | CQ40: 0.04610656 | CR40: 0.0478612 | CS40: 0.1050000986 | CT40: 0.1377426451 | CU40: 0.06220132414 | CV40: 0.06980226289 | CW40: 0.0390504 | CX40: 0.0460045 | CY40: 0.0191 | CZ40: 0.1591306882 | DA40: 0.04725533972 | DB40: 0.2195402743
A41: =A40+1 -> 418 | B41: 1 | C41: 0.02490968602 | D41: 0.1009756311 | E41: 0.1200152809 | F41: 0.6110595094 | G41: 0.8412116013 | H41: 0.1840130182 | I41: 0.3210735278 | J41: 0.2083190767 | K41: 0.6328202681 | L41: 0.683445488 | M41: 0.3346241686 | N41: 0.01995332571 | O41: 0.2509367038 | P41: 0.03480806797 | Q41: 0.04268997001 | R41: 0.0337044539 | S41: 0.3031602054 | T41: 0.0911213543 | U41: 0.1719041854 | V41: 0.2263949775 | W41: 0.06248685611 | X41: 0.2266870732 | Y41: 0.09224909091 | Z41: 0.6774950649 | AA41: 0.03189151304 | AB41: 0.1150833323 | AC41: 0.06182 | AD41: 0.04799293645 | AE41: 0.2178057759 | AF41: 0.3478493248 | AG41: 0.04422782163 | AH41: 0.04676523512 | AI41: 0.03129287322 | AJ41: 0.2641581861 | AK41: 0.1706084624 | AL41: 0.0798827883 | AM41: 0.09895713665 | AN41: 0.1055817554 | AO41: 0.100696214 | AP41: 0.5888078674 | AQ41: 0.1777695112 | AR41: 0.03559360544 | AS41: 0.1276639012 | AT41: 0.2074824528 | AU41: 0.05155931429 | AV41: 0.06393255038 | AW41: 0.1281812632 | AX41: 0.6917805382 | AY41: 0.05193824 | AZ41: 0.1143535857 | BA41: 0.04485487685 | BB41: 0.0445382509 | BC41: 0.07668203492 | BD41: 0.05985222857 | BE41: 0.1912441711 | BF41: 0.02719259621 | BG41: 0.0218232 | BH41: 0.02909866667 | BI41: 0.05787010256 | BJ41: 0.2738934045 | BK41: 0.0299 | BL41: 0.1231597787 | BM41: 0.4042622312 | BN41: 0.5491917725 | BO41: 0.09088053982 | BP41: 0.1245175636 | BQ41: 0.3315939046 | BR41: 0.3559743346 | BS41: 0.184096163 | BT41: 0.0611212287 | BU41: 0.4118229254 | BV41: 0.1363467029 | BW41: 0.1558858719 | BX41: 0.6189790033 | BY41: 0.163389856 | BZ41: 0.2304471322 | CA41: 0.598376258 | CB41: 0.3673918964 | CC41: 0.03317848421 | CD41: 0.03896533333 | CE41: 0.04366647619 | CF41: 0.03811711169 | CG41: 0.037946656 | CH41: 0.09148067641 | CI41: 0.5116730097 | CJ41: 0.03466548571 | CK41: 0.06018935161 | CL41: 0.04695103314 | CM41: 0.04163088 | CN41: 0.07977237983 | CO41: 0.06468842507 | CP41: 0.03720316308 | CQ41: 0.04607012571 | CR41: 0.0478288 | CS41: 0.1081630596 | CT41: 0.1399070018 | CU41: 0.06228722759 | CV41: 0.07025843299 | CW41: 0.03902331429 | CX41: 0.04595911111 | CY41: 0.0191 | CZ41: 0.1688679957 | DA41: 0.04745187097 | DB41: 0.2272703598
A42: =A41+1 -> 419 | C42: 0.02474544194 | D42: 0.101150974 | E42: 0.1190840449 | F42: 0.6296397627 | G42: 0.8424793794 | H42: 0.1839300364 | I42: 0.3243008411 | J42: 0.2096210471 | K42: 0.6366001864 | L42: 0.6872410186 | M42: 0.3375886322 | N42: 0.01986322286 | O42: 0.2520292364 | P42: 0.03468939412 | Q42: 0.04232685764 | R42: 0.03343578723 | S42: 0.3052443241 | T42: 0.09160990295 | U42: 0.1728361221 | V42: 0.2273904695 | W42: 0.0621001629 | X42: 0.228856801 | Y42: 0.09261443182 | Z42: 0.6797172861 | AA42: 0.03167245679 | AB42: 0.1135122607 | AC42: 0.0616825 | AD42: 0.04755920623 | AE42: 0.2212536229 | AF42: 0.3532407898 | AG42: 0.04324564411 | AH42: 0.04609605221 | AI42: 0.03070773598 | AJ42: 0.2687728905 | AK42: 0.1710826908 | AL42: 0.08072117164 | AM42: 0.09848844297 | AN42: 0.1050711187 | AO42: 0.1022966537 | AP42: 0.5893555235 | AQ42: 0.1803563755 | AR42: 0.03509360969 | AS42: 0.1291531497 | AT42: 0.2086099612 | AU42: 0.05137005714 | AV42: 0.06345249719 | AW42: 0.1273173827 | AX42: 0.720385697 | AY42: 0.05196848 | AZ42: 0.1150979534 | BA42: 0.04426325648 | BB42: 0.04332522723 | BC42: 0.07601651327 | BD42: 0.05987395714 | BE42: 0.1893681672 | BF42: 0.02693539768 | BG42: 0.0218109 | BH42: 0.029148 | BI42: 0.05781084615 | BJ42: 0.2750555669 | BK42: 0.0299 | BL42: 0.1235114213 | BM42: 0.4096511118 | BN42: 0.5545300947 | BO42: 0.09099808267 | BP42: 0.1253655446 | BQ42: 0.3344011079 | BR42: 0.3579882816 | BS42: 0.1846826084 | BT42: 0.06140459961 | BU42: 0.4134064478 | BV42: 0.1364602602 | BW42: 0.1559707765 | BX42: 0.6215001439 | BY42: 0.162942112 | BZ42: 0.2297369508 | CA42: 0.6011126609 | CB42: 0.3673979709 | CC42: 0.03308957368 | CD42: 0.03887525 | CE42: 0.04357932143 | CF42: 0.03805157403 | CG42: 0.038074212 | CH42: 0.09206751069 | CI42: 0.5137770466 | CJ42: 0.03463347143 | CK42: 0.06119501067 | CL42: 0.04722789474 | CM42: 0.04161576 | CN42: 0.0805188919 | CO42: 0.06542685649 | CP42: 0.03714986462 | CQ42: 0.04603465143 | CR42: 0.0478076 | CS42: 0.1114451855 | CT42: 0.1418856719 | CU42: 0.06238542069 | CV42: 0.07072369588 | CW42: 0.03900605714 | CX42: 0.0459235 | CY42: 0.0191 | CZ42: 0.1785944145 | DA42: 0.04763499496 | DB42: 0.2345261801
A43: =A42+1 -> 420 | C43: 0.0246 | D43: 0.1013 | E43: 0.1182 | F43: 0.6448 | G43: 0.8436 | H43: 0.1839 | I43: 0.3274 | J43: 0.2109 | K43: 0.6392 | L43: 0.6897 | M43: 0.3403 | N43: 0.0198 | O43: 0.2527 | P43: 0.0346 | Q43: 0.042 | R43: 0.0332 | S43: 0.307 | T43: 0.0921 | U43: 0.1738 | V43: 0.2284 | W43: 0.0618 | X43: 0.2311 | Y43: 0.093 | Z43: 0.6812 | AA43: 0.0315 | AB43: 0.1122 | AC43: 0.0616 | AD43: 0.0472 | AE43: 0.2248 | AF43: 0.3588 | AG43: 0.0424 | AH43: 0.0455 | AI43: 0.0302 | AJ43: 0.2736 | AK43: 0.1716 | AL43: 0.0816 | AM43: 0.0981 | AN43: 0.1046 | AO43: 0.1039 | AP43: 0.5899 | AQ43: 0.1829 | AR43: 0.0346 | AS43: 0.1307 | AT43: 0.2098 | AU43: 0.0512 | AV43: 0.063 | AW43: 0.1265 | AX43: 0.7463 | AY43: 0.052 | AZ43: 0.1156 | BA43: 0.0437 | BB43: 0.0422 | BC43: 0.0755 | BD43: 0.0599 | BE43: 0.1875 | BF43: 0.0267 | BG43: 0.0218 | BH43: 0.0292 | BI43: 0.05775 | BJ43: 0.2755 | BK43: 0.0299 | BL43: 0.12375 | BM43: 0.4148 | BN43: 0.5582 | BO43: 0.0911 | BP43: 0.1262 | BQ43: 0.33665 | BR43: 0.3587 | BS43: 0.1852 | BT43: 0.0617 | BU43: 0.415 | BV43: 0.1365 | BW43: 0.156 | BX43: 0.623 | BY43: 0.1625 | BZ43: 0.2291 | CA43: 0.6033 | CB43: 0.3674 | CC43: 0.033 | CD43: 0.0388 | CE43: 0.0435 | CF43: 0.038 | CG43: 0.0382 | CH43: 0.0926 | CI43: 0.5159 | CJ43: 0.0346 | CK43: 0.0623 | CL43: 0.0475 | CM43: 0.0416 | CN43: 0.0812 | CO43: 0.0661 | CP43: 0.0371 | CQ43: 0.046 | CR43: 0.0478 | CS43: 0.1148 | CT43: 0.1436 | CU43: 0.0625 | CV43: 0.0712 | CW43: 0.039 | CX43: 0.0459 | CY43: 0.0191 | CZ43: 0.1882 | DA43: 0.0478 | DB43: 0.2412
A44: =A43+1 -> 421 | C44: 0.02446966983 | D44: 0.1014305505 | E44: 0.117271074 | F44: 0.6578968405 | G44: 0.8445895778 | H44: 0.1839650067 | I44: 0.330316078 | J44: 0.2121350562 | K44: 0.6410614429 | L44: 0.6913343908 | M44: 0.342899361 | N44: 0.01975272 | O44: 0.2531101683 | P44: 0.0345275 | Q44: 0.04169765714 | R44: 0.03298863419 | S44: 0.3084843965 | T44: 0.09257163529 | U44: 0.1747688515 | V44: 0.2293786073 | W44: 0.06154902769 | X44: 0.2333370532 | Y44: 0.09338508387 | Z44: 0.6822074931 | AA44: 0.03135844375 | AB44: 0.1110573023 | AC44: 0.0615511 | AD44: 0.04689521505 | AE44: 0.22835347 | AF44: 0.3643563147 | AG44: 0.04164964788 | AH44: 0.0449583563 | AI44: 0.02974287981 | AJ44: 0.278516968 | AK44: 0.1721524568 | AL44: 0.08249346241 | AM44: 0.09775878396 | AN44: 0.1041537588 | AO44: 0.1055062424 | AP44: 0.590438712 | AQ44: 0.1854012993 | AR44: 0.03411206531 | AS44: 0.1322622331 | AT44: 0.2110263737 | AU44: 0.0510368 | AV44: 0.06257138289 | AW44: 0.1257225493 | AX44: 0.770905034 | AY44: 0.05204214857 | AZ44: 0.1159406294 | BA44: 0.04315937895 | BB44: 0.04114674292 | BC44: 0.0750680063 | BD44: 0.05993114286 | BE44: 0.1855982937 | BF44: 0.026470636 | BG44: 0.02179054 | BH44: 0.02925696 | BI44: 0.05767775385 | BJ44: 0.2755435564 | BK44: 0.0299 | BL44: 0.1239076718 | BM44: 0.419762267 | BN44: 0.5607684207 | BO44: 0.09118598099 | BP44: 0.1269903027 | BQ44: 0.3384661145 | BR44: 0.3585378709 | BS44: 0.18566096 | BT44: 0.06200769332 | BU44: 0.4165977846 | BV44: 0.1364839349 | BW44: 0.1559609615 | BX44: 0.6239223448 | BY44: 0.1620349789 | BZ44: 0.228488047 | CA44: 0.6050731045 | CB44: 0.3668600205 | CC44: 0.03290484545 | CD44: 0.03873457143 | CE44: 0.04342399286 | CF44: 0.03795625455 | CG44: 0.03832435757 | CH44: 0.09311046795 | CI44: 0.5180394736 | CJ44: 0.03456102857 | CK44: 0.06363378692 | CL44: 0.04777870851 | CM44: 0.04157892571 | CN44: 0.08181781701 | CO44: 0.06672989851 | CP44: 0.03705232 | CQ44: 0.04596382857 | CR44: 0.0478 | CS44: 0.1185182249 | CT44: 0.1451354263 | CU44: 0.06263388506 | CV44: 0.0716887211 | CW44: 0.0390114 | CX44: 0.0458837 | CY44: 0.0191044 | CZ44: 0.197970868 | DA44: 0.04795252946 | DB44: 0.2474910767
A45: =A44+1 -> 422 | C45: 0.02434893359 | D45: 0.1015502337 | E45: 0.1162082533 | F45: 0.670645302 | G45: 0.8454678024 | H45: 0.1841529126 | I45: 0.3330141847 | J45: 0.2133026241 | K45: 0.6427121917 | L45: 0.6927586345 | M45: 0.3454940296 | N45: 0.01970736 | O45: 0.2534549573 | P45: 0.03445555556 | Q45: 0.04140208254 | R45: 0.03278815562 | S45: 0.3097863568 | T45: 0.09300500392 | U45: 0.1757037209 | V45: 0.2302768511 | W45: 0.06130182154 | X45: 0.2354750753 | Y45: 0.0937451871 | Z45: 0.6830539276 | AA45: 0.0312228 | AB45: 0.109938225 | AC45: 0.0615048 | AD45: 0.04661033923 | AE45: 0.231810999 | AF45: 0.3697274911 | AG45: 0.04093143879 | AH45: 0.04444199514 | AI45: 0.02930220513 | AJ45: 0.2833768664 | AK45: 0.1727178402 | AL45: 0.08336879942 | AM45: 0.09741922579 | AN45: 0.1037173647 | AO45: 0.1071171941 | AP45: 0.5909649699 | AQ45: 0.1878635548 | AR45: 0.03362746122 | AS45: 0.1337885709 | AT45: 0.2122485156 | AU45: 0.0508704 | AV45: 0.06216124544 | AW45: 0.1249740508 | AX45: 0.79576695 | AY45: 0.05210221714 | AZ45: 0.1162324867 | BA45: 0.04263538246 | BB45: 0.04014030964 | BC45: 0.07465003465 | BD45: 0.0599672381 | BE45: 0.1836143566 | BF45: 0.026235968 | BG45: 0.02178192 | BH45: 0.02932074667 | BI45: 0.05758803077 | BJ45: 0.2755768116 | BK45: 0.0299 | BL45: 0.1240323302 | BM45: 0.4246191157 | BN45: 0.5630027268 | BO45: 0.09125813099 | BP45: 0.127713227 | BQ45: 0.3400508862 | BR45: 0.3580739855 | BS45: 0.1860845246 | BT45: 0.06232692393 | BU45: 0.4181921231 | BV45: 0.1364379907 | BW45: 0.1558491963 | BX45: 0.6247707342 | BY45: 0.1615126895 | BZ45: 0.2278399711 | CA45: 0.6066037969 | CB45: 0.3653387395 | CC45: 0.03280167273 | CD45: 0.03867180952 | CE45: 0.04334708571 | CF45: 0.03791294545 | CG45: 0.03844781357 | CH45: 0.09362680321 | CI45: 0.5201906176 | CJ45: 0.03451451429 | CK45: 0.06530903982 | CL45: 0.04807422285 | CM45: 0.04154889143 | CN45: 0.08238614074 | CO45: 0.06734448159 | CP45: 0.03700549333 | CQ45: 0.04592491429 | CR45: 0.0478 | CS45: 0.1228561775 | CT45: 0.1466271251 | CU45: 0.06278630396 | CV45: 0.07218882739 | CW45: 0.0390432 | CX45: 0.04586826667 | CY45: 0.01911653333 | CZ45: 0.2081850087 | DA45: 0.04810110476 | DB45: 0.2536469976
A46: =A45+1 -> 423 | C46: 0.02423672106 | D46: 0.1016597455 | E46: 0.1150491588 | F46: 0.6828712899 | G46: 0.8462539663 | H46: 0.1844530467 | I46: 0.3355413861 | J46: 0.2144142572 | K46: 0.6441728031 | L46: 0.6939986703 | M46: 0.3480316519 | N46: 0.01966464 | O46: 0.2537455369 | P46: 0.03438583333 | Q46: 0.04111426667 | R46: 0.03259792872 | S46: 0.3109397613 | T46: 0.09341015294 | U46: 0.1766107806 | V46: 0.2311149837 | W46: 0.06106371692 | X46: 0.2375422818 | Y46: 0.0940875871 | Z46: 0.6837682428 | AA46: 0.03109348125 | AB46: 0.1088474688 | AC46: 0.0614617 | AD46: 0.04634330537 | AE46: 0.2352057756 | AF46: 0.3749807633 | AG46: 0.04024584843 | AH46: 0.04394990588 | AI46: 0.02888073558 | AJ46: 0.2882196823 | AK46: 0.1732919314 | AL46: 0.08423335287 | AM46: 0.09708663844 | AN46: 0.1032943118 | AO46: 0.1087339024 | AP46: 0.5914785514 | AQ46: 0.1902887995 | AR46: 0.0331456 | AS46: 0.135292288 | AT46: 0.2134699815 | AU46: 0.0507056 | AV46: 0.06176837588 | AW46: 0.1242526015 | AX46: 0.8204606643 | AY46: 0.05217664 | AZ46: 0.116483809 | BA46: 0.04212849474 | BB46: 0.03917757932 | BC46: 0.07425349291 | BD46: 0.060008 | BE46: 0.1815591672 | BF46: 0.026002932 | BG46: 0.02177378 | BH46: 0.02939072 | BI46: 0.05748673846 | BJ46: 0.2756020822 | BK46: 0.0299 | BL46: 0.1241319658 | BM46: 0.4293690557 | BN46: 0.5649520927 | BO46: 0.09131988821 | BP46: 0.1283877644 | BQ46: 0.3414476424 | BR46: 0.3573420965 | BS46: 0.1864754703 | BT46: 0.06265772423 | BU46: 0.4197844923 | BV46: 0.1363655442 | BW46: 0.1556727303 | BX46: 0.625540206 | BY46: 0.1609366924 | BZ46: 0.2271694812 | CA46: 0.6079360563 | CB46: 0.3629841434 | CC46: 0.03269391818 | CD46: 0.038612 | CE46: 0.04327095 | CF46: 0.03787105455 | CG46: 0.03857034296 | CH46: 0.09413676655 | CI46: 0.5223532661 | CJ46: 0.0344632 | CK46: 0.06730739339 | CL46: 0.0483811818 | CM46: 0.04151168 | CN46: 0.08291454641 | CO46: 0.06794033433 | CP46: 0.03695984 | CQ46: 0.0458848 | CR46: 0.0478 | CS46: 0.1277157744 | CT46: 0.1480710422 | CU46: 0.06295581609 | CV46: 0.07269865598 | CW46: 0.0390918 | CX46: 0.0458539 | CY46: 0.0191348 | CZ46: 0.2187202892 | DA46: 0.04824533125 | DB46: 0.2596325232
A47: =A46+1 -> 424 | C47: 0.02413196205 | D47: 0.1017597821 | E47: 0.1138314115 | F47: 0.6944007098 | G47: 0.8469673622 | H47: 0.1848547378 | I47: 0.3379447484 | J47: 0.2154815087 | K47: 0.6454638339 | L47: 0.6950804375 | M47: 0.3504598742 | N47: 0.01962528 | O47: 0.2539930769 | P47: 0.03432 | Q47: 0.0408352 | R47: 0.03241731793 | S47: 0.3119784907 | T47: 0.09379712941 | U47: 0.1774962028 | V47: 0.2319132575 | W47: 0.06084004923 | X47: 0.2395668883 | Y47: 0.09441956129 | Z47: 0.6843793778 | AA47: 0.0309709 | AB47: 0.1077897339 | AC47: 0.0614224 | AD47: 0.04609204627 | AE47: 0.2385709887 | AF47: 0.380183365 | AG47: 0.03959335251 | AH47: 0.04348107787 | AI47: 0.02848123077 | AJ47: 0.2930854028 | AK47: 0.1738705114 | AL47: 0.08509446457 | AM47: 0.09676633489 | AN47: 0.1028880941 | AO47: 0.1103574142 | AP47: 0.591979234 | AQ47: 0.1926790667 | AR47: 0.03266589388 | AS47: 0.1367866591 | AT47: 0.2146943272 | AU47: 0.0505472 | AV47: 0.06139156241 | AW47: 0.1235562986 | AX47: 0.8445610935 | AY47: 0.05226185143 | AZ47: 0.1167028333 | BA47: 0.0416392 | BB47: 0.03825543113 | BC47: 0.07388578898 | BD47: 0.06005314286 | BE47: 0.1794437046 | BF47: 0.025778464 | BG47: 0.02176576 | BH47: 0.02946624 | BI47: 0.05737978462 | BJ47: 0.2756216848 | BK47: 0.0299 | BL47: 0.1242145695 | BM47: 0.4340105966 | BN47: 0.5666656933 | BO47: 0.09137469084 | BP47: 0.1290329067 | BQ47: 0.3426997105 | BR47: 0.3563759566 | BS47: 0.1868385738 | BT47: 0.06300012663 | BU47: 0.4213763692 | BV47: 0.1362699721 | BW47: 0.155439589 | BX47: 0.6262257982 | BY47: 0.1603105484 | BZ47: 0.2264902862 | CA47: 0.6091138619 | CB47: 0.3599442185 | CC47: 0.03258501818 | CD47: 0.03855542857 | CE47: 0.04319725714 | CF47: 0.03783156364 | CG47: 0.0386919207 | CH47: 0.09462811873 | CI47: 0.5245272533 | CJ47: 0.03440982857 | CK47: 0.0696104823 | CL47: 0.04869422411 | CM47: 0.04146907429 | CN47: 0.08341260927 | CO47: 0.06851404179 | CP47: 0.03691568 | CQ47: 0.04584502857 | CR47: 0.0478 | CS47: 0.1329989325 | CT47: 0.1494631231 | CU47: 0.06314098084 | CV47: 0.07321654402 | CW47: 0.0391536 | CX47: 0.0458408 | CY47: 0.0191576 | CZ47: 0.2294545766 | DA47: 0.04838481429 | DB47: 0.2654124137
A48: =A47+1 -> 425 | C48: 0.02403358634 | D48: 0.1018510395 | E48: 0.1125926326 | F48: 0.7050594668 | G48: 0.8476272828 | H48: 0.1853473148 | I48: 0.3402713376 | J48: 0.2165159323 | K48: 0.6466058406 | L48: 0.6960298754 | M48: 0.3527263428 | N48: 0.01959 | O48: 0.2542087473 | P48: 0.03425972222 | Q48: 0.04056587302 | R48: 0.03224568769 | S48: 0.3129364254 | T48: 0.09417598039 | U48: 0.1783661599 | V48: 0.2326919249 | W48: 0.06063615385 | X48: 0.2415771104 | Y48: 0.0947483871 | Z48: 0.6849162719 | AA48: 0.03085546875 | AB48: 0.106769721 | AC48: 0.0613875 | AD48: 0.04585449477 | AE48: 0.2419398269 | AF48: 0.3854025304 | AG48: 0.03897442674 | AH48: 0.04303450047 | AI48: 0.02810645032 | AJ48: 0.298014015 | AK48: 0.1744493614 | AL48: 0.08595947634 | AM48: 0.09646362812 | AN48: 0.1025022059 | AO48: 0.1119887768 | AP48: 0.5924667954 | AQ48: 0.1950363895 | AR48: 0.0321877551 | AS48: 0.1382849588 | AT48: 0.2159251085 | AU48: 0.0504 | AV48: 0.06102959327 | AW48: 0.1228832395 | AX48: 0.8676431539 | AY48: 0.05235428571 | AZ48: 0.1168977967 | BA48: 0.04116798246 | BB48: 0.03737074423 | BC48: 0.07355433071 | BD48: 0.06010238095 | BE48: 0.1772789473 | BF48: 0.0255695 | BG48: 0.0217575 | BH48: 0.02954666667 | BI48: 0.05727307692 | BJ48: 0.2756379359 | BK48: 0.0299 | BL48: 0.1242881318 | BM48: 0.438542248 | BN48: 0.5681927029 | BO48: 0.0914259771 | BP48: 0.1296676457 | BQ48: 0.3438504178 | BR48: 0.3552093184 | BS48: 0.1871786117 | BT48: 0.06335416354 | BU48: 0.4229692308 | BV48: 0.1361546512 | BW48: 0.1551577982 | BX48: 0.6268225486 | BY48: 0.1596378182 | BZ48: 0.2258160947 | CA48: 0.6101811928 | CB48: 0.3563669512 | CC48: 0.03247840909 | CD48: 0.03850238095 | CE48: 0.04312767857 | CF48: 0.03779545455 | CG48: 0.03881252174 | CH48: 0.09508862051 | CI48: 0.5267124132 | CJ48: 0.03435714286 | CK48: 0.07219994123 | CL48: 0.04900798857 | CM48: 0.04142285714 | CN48: 0.08388990452 | CO48: 0.06906218905 | CP48: 0.03687333333 | CQ48: 0.04580714286 | CR48: 0.0478 | CS48: 0.1386075683 | CT48: 0.1507993133 | CU48: 0.0633403576 | CV48: 0.07374082863 | CW48: 0.039225 | CX48: 0.04582916667 | CY48: 0.01918333333 | CZ48: 0.2402657379 | DA48: 0.04851915923 | DB48: 0.2709514295
A49: =A48+1 -> 426 | C49: 0.02394052372 | D49: 0.1019342137 | E49: 0.1113704431 | F49: 0.7146734665 | G49: 0.8482530208 | H49: 0.1859201067 | I49: 0.3425682197 | J49: 0.2175290813 | K49: 0.6476193802 | L49: 0.6968729232 | M49: 0.354778704 | N49: 0.01955952 | O49: 0.2544037179 | P49: 0.03420666667 | Q49: 0.04030727619 | R49: 0.03208240243 | S49: 0.3138474462 | T49: 0.09455675294 | U49: 0.1792268242 | V49: 0.2334712383 | W49: 0.06045736615 | X49: 0.2436011636 | Y49: 0.09508134194 | Z49: 0.6854078643 | AA49: 0.0307476 | AB49: 0.1057921303 | AC49: 0.0613576 | AD49: 0.04562858369 | AE49: 0.2453454789 | AF49: 0.3907054933 | AG49: 0.03838954683 | AH49: 0.04260916303 | AI49: 0.02775915385 | AJ49: 0.303045506 | AK49: 0.1750242625 | AL49: 0.08683573 | AM49: 0.0961838311 | AN49: 0.1021401412 | AO49: 0.1136290372 | AP49: 0.5929410131 | AQ49: 0.1973628012 | AR49: 0.03171059592 | AS49: 0.1398004618 | AT49: 0.2171658811 | AU49: 0.0502688 | AV49: 0.06068125666 | AW49: 0.1222315211 | AX49: 0.889281762 | AY49: 0.05245037714 | AZ49: 0.1170769365 | BA49: 0.04071532632 | BB49: 0.03652039779 | BC49: 0.07326652598 | BD49: 0.06015542857 | BE49: 0.1750758743 | BF49: 0.025382976 | BG49: 0.02174864 | BH49: 0.02963136 | BI49: 0.05717252308 | BJ49: 0.2756531522 | BK49: 0.0299 | BL49: 0.1243606437 | BM49: 0.4429625196 | BN49: 0.5695822964 | BO49: 0.0914771852 | BP49: 0.130310973 | BQ49: 0.3449430917 | BR49: 0.3538759348 | BS49: 0.1875003607 | BT49: 0.06371986737 | BU49: 0.4245645538 | BV49: 0.1360229581 | BW49: 0.1548353835 | BX49: 0.6273254951 | BY49: 0.1589220625 | BZ49: 0.2251606157 | CA49: 0.6111820284 | CB49: 0.3524003278 | CC49: 0.03237752727 | CD49: 0.03845314286 | CE49: 0.04306388571 | CF49: 0.03776370909 | CG49: 0.03893212104 | CH49: 0.09550603264 | CI49: 0.5289085801 | CJ49: 0.03430788571 | CK49: 0.07505740487 | CL49: 0.04931711395 | CM49: 0.04137481143 | CN49: 0.08435600742 | CO49: 0.06958136119 | CP49: 0.03683312 | CQ49: 0.04577268571 | CR49: 0.0478 | CS49: 0.1444435987 | CT49: 0.1520755585 | CU49: 0.06355250575 | CV49: 0.07426984696 | CW49: 0.0393024 | CX49: 0.0458192 | CY49: 0.0192104 | CZ49: 0.2510316401 | DA49: 0.04864797143 | DB49: 0.2762143309
A50: =A49+1 -> 427 | C50: 0.02385170398 | D50: 0.1020100008 | E50: 0.1102024641 | F50: 0.7230686143 | G50: 0.8488638688 | H50: 0.1865624422 | I50: 0.344882461 | J50: 0.2185325091 | K50: 0.6485250091 | L50: 0.6976355203 | M50: 0.356564604 | N50: 0.01953456 | O50: 0.2545891587 | P50: 0.0341625 | Q50: 0.0400604 | R50: 0.0319268266 | S50: 0.3147454334 | T50: 0.09494949412 | U50: 0.1800843681 | V50: 0.2342714501 | W50: 0.06030902154 | X50: 0.2456672636 | Y50: 0.09542570323 | Z50: 0.6858830941 | AA50: 0.03064770625 | AB50: 0.1048616624 | AC50: 0.0613333 | AD50: 0.04541224585 | AE50: 0.2488211335 | AF50: 0.3961594878 | AG50: 0.0378391885 | AH50: 0.0422040549 | AI50: 0.02744210096 | AJ50: 0.3082198629 | AK50: 0.1755909958 | AL50: 0.08773056738 | AM50: 0.09593225681 | AN50: 0.1018053941 | AO50: 0.1152792426 | AP50: 0.5934016649 | AQ50: 0.1996603349 | AR50: 0.03123382857 | AS50: 0.1413464428 | AT50: 0.2184202007 | AU50: 0.0501584 | AV50: 0.06034534081 | AW50: 0.1215992408 | AX50: 0.9090518342 | AY50: 0.05254656 | AZ50: 0.1172484896 | BA50: 0.04028171579 | BB50: 0.03570127099 | BC50: 0.07302978268 | BD50: 0.060212 | BE50: 0.1728454643 | BF50: 0.025225828 | BG50: 0.02173882 | BH50: 0.02971968 | BI50: 0.05708403077 | BJ50: 0.2756696501 | BK50: 0.0299 | BL50: 0.1244400957 | BM50: 0.447269921 | BN50: 0.5708836482 | BO50: 0.09153175333 | BP50: 0.1309818804 | BQ50: 0.3460210595 | BR50: 0.3524095585 | BS50: 0.1878085973 | BT50: 0.06409727052 | BU50: 0.4261638154 | BV50: 0.1358782698 | BW50: 0.1544803706 | BX50: 0.6277296756 | BY50: 0.1581668422 | BZ50: 0.2245375579 | CA50: 0.6121603477 | CB50: 0.3481923346 | CC50: 0.03228580909 | CD50: 0.038408 | CE50: 0.04300755 | CF50: 0.03773730909 | CG50: 0.03905069357 | CH50: 0.0958681159 | CI50: 0.5311155881 | CJ50: 0.0342648 | CK50: 0.07816450788 | CL50: 0.04961623901 | CM50: 0.04132672 | CN50: 0.08482049319 | CO50: 0.07006814328 | CP50: 0.03679536 | CQ50: 0.0457432 | CR50: 0.0478 | CS50: 0.1504089404 | CT50: 0.1532878042 | CU50: 0.06377598467 | CV50: 0.07480193612 | CW50: 0.0393822 | CX50: 0.0458111 | CY50: 0.0192372 | CZ50: 0.2616301504 | DA50: 0.04877085625 | DB50: 0.2811658784
A51: =A50+1 -> 428 | C51: 0.02376605693 | D51: 0.1020790969 | E51: 0.1091263165 | F51: 0.7300708155 | G51: 0.8494791196 | H51: 0.1872636504 | I51: 0.3472611274 | J51: 0.2195377692 | K51: 0.6493432843 | L51: 0.698343606 | M51: 0.3580316892 | N51: 0.01951584 | O51: 0.2547762393 | P51: 0.03412888889 | Q51: 0.03982623492 | R51: 0.03177832462 | S51: 0.3156642678 | T51: 0.09536425098 | U51: 0.1809449638 | V51: 0.2351128128 | W51: 0.06019645538 | X51: 0.247803626 | Y51: 0.09578874839 | Z51: 0.6863709005 | AA51: 0.0305562 | AB51: 0.1039830178 | AC51: 0.0613152 | AD51: 0.04520341408 | AE51: 0.2523999794 | AF51: 0.4018317478 | AG51: 0.03732382744 | AH51: 0.04181816545 | AI51: 0.02715805128 | AJ51: 0.3135770728 | AK51: 0.1761453424 | AL51: 0.08865133029 | AM51: 0.09571421821 | AN51: 0.1015014588 | AO51: 0.1169404401 | AP51: 0.5938485282 | AQ51: 0.2019310238 | AR51: 0.03075686531 | AS51: 0.1429361763 | AT51: 0.2196916233 | AU51: 0.0500736 | AV51: 0.06002063394 | AW51: 0.1209844957 | AX51: 0.926528287 | AY51: 0.05263926857 | AZ51: 0.1174206931 | BA51: 0.03986763509 | BB51: 0.03491024297 | BC51: 0.07285150866 | BD51: 0.06027180952 | BE51: 0.170598696 | BF51: 0.025104992 | BG51: 0.02172768 | BH51: 0.02981098667 | BI51: 0.05701350769 | BJ51: 0.2756897464 | BK51: 0.0299 | BL51: 0.1245344786 | BM51: 0.4514629618 | BN51: 0.572145933 | BO51: 0.0915931197 | BP51: 0.1316993595 | BQ51: 0.3471276486 | BR51: 0.3508439421 | BS51: 0.1881080984 | BT51: 0.0644864054 | BU51: 0.4277684923 | BV51: 0.1357239628 | BW51: 0.1541007853 | BX51: 0.628030128 | BY51: 0.1573757178 | BZ51: 0.2239606301 | CA51: 0.6131601299 | CB51: 0.343890958 | CC51: 0.03220669091 | CD51: 0.0383672381 | CE51: 0.04296034286 | CF51: 0.03771723636 | CG51: 0.03916821426 | CH51: 0.09616263104 | CI51: 0.5333332713 | CJ51: 0.03423062857 | CK51: 0.08150288496 | CL51: 0.04990000252 | CM51: 0.04128036571 | CN51: 0.08529293705 | CO51: 0.0705191204 | CP51: 0.03676037333 | CQ51: 0.04572022857 | CR51: 0.0478 | CS51: 0.15640551 | CT51: 0.1544319959 | CU51: 0.06400935377 | CV51: 0.07533543326 | CW51: 0.0394608 | CX51: 0.04580506667 | CY51: 0.01926213333 | CZ51: 0.2719391357 | DA51: 0.04888741905 | DB51: 0.2857708321
A52: =A51+1 -> 429 | C52: 0.02368251233 | D52: 0.1021421979 | E52: 0.1081796214 | F52: 0.7355059756 | G52: 0.8501180658 | H52: 0.18801306 | I52: 0.349751285 | J52: 0.2205564151 | K52: 0.6500947623 | L52: 0.6990231194 | M52: 0.3591276058 | N52: 0.01950408 | O52: 0.2549761298 | P52: 0.0341075 | Q52: 0.03960577143 | R52: 0.03163626094 | S52: 0.3166378298 | T52: 0.09581107059 | U52: 0.1818147836 | V52: 0.2360155786 | W52: 0.06012500308 | X52: 0.2500384662 | Y52: 0.09617775484 | Z52: 0.6869002227 | AA52: 0.03047349375 | AB52: 0.1031608968 | AC52: 0.0613039 | AD52: 0.04500002118 | AE52: 0.2561152053 | AF52: 0.4077895072 | AG52: 0.03684393937 | AH52: 0.04145048403 | AI52: 0.02690976442 | AJ52: 0.3191571228 | AK52: 0.1766830834 | AL52: 0.08960536056 | AM52: 0.09553502828 | AN52: 0.1012318294 | AO52: 0.1186136769 | AP52: 0.5942813807 | AQ52: 0.2041769011 | AR52: 0.03027911837 | AS52: 0.1445829372 | AT52: 0.2209837044 | AU52: 0.0500192 | AV52: 0.05970592426 | AW52: 0.1203853831 | AX52: 0.9412860368 | AY52: 0.05272493714 | AZ52: 0.1176017842 | BA52: 0.03947356842 | BB52: 0.03414419292 | BC52: 0.07273911181 | BD52: 0.06033457143 | BE52: 0.1683465484 | BF52: 0.025027404 | BG52: 0.02171486 | BH52: 0.02990464 | BI52: 0.05696686154 | BJ52: 0.2757157575 | BK52: 0.0299 | BL52: 0.1246517831 | BM52: 0.4555401516 | BN52: 0.5734183254 | BO52: 0.09166472253 | BP52: 0.1324824021 | BQ52: 0.3483061863 | BR52: 0.3492128383 | BS52: 0.1884036404 | BT52: 0.06488730443 | BU52: 0.4293800615 | BV52: 0.135563414 | BW52: 0.1537046532 | BX52: 0.6282218902 | BY52: 0.1565522502 | BZ52: 0.2234435412 | CA52: 0.6142253543 | CB52: 0.3396441844 | CC52: 0.03214360909 | CD52: 0.03833114286 | CE52: 0.04292393571 | CF52: 0.03770447273 | CG52: 0.03928465809 | CH52: 0.09637733882 | CI52: 0.5355614639 | CJ52: 0.03420811429 | CK52: 0.08505417077 | CL52: 0.05016304326 | CM52: 0.04123753143 | CN52: 0.08578291425 | CO52: 0.07093087761 | CP52: 0.03672848 | CQ52: 0.04570531429 | CR52: 0.0478 | CS52: 0.1623352243 | CT52: 0.1555040793 | CU52: 0.06425117241 | CV52: 0.07586867551 | CW52: 0.0395346 | CX52: 0.0458013 | CY52: 0.0192836 | CZ52: 0.2818364633 | DA52: 0.04899726518 | DB52: 0.2899939525
A53: =A52+1 -> 430 | C53: 0.0236 | D53: 0.1022 | E53: 0.1074 | F53: 0.7392 | G53: 0.8508 | H53: 0.1888 | I53: 0.3524 | J53: 0.2216 | K53: 0.6508 | L53: 0.6997 | M53: 0.3598 | N53: 0.0195 | O53: 0.2552 | P53: 0.0341 | Q53: 0.0394 | R53: 0.0315 | S53: 0.3177 | T53: 0.0963 | U53: 0.1827 | V53: 0.237 | W53: 0.0601 | X53: 0.2524 | Y53: 0.0966 | Z53: 0.6875 | AA53: 0.0304 | AB53: 0.1024 | AC53: 0.0613 | AD53: 0.0448 | AE53: 0.26 | AF53: 0.4141 | AG53: 0.0364 | AH53: 0.0411 | AI53: 0.0267 | AJ53: 0.325 | AK53: 0.1772 | AL53: 0.0906 | AM53: 0.0954 | AN53: 0.101 | AO53: 0.1203 | AP53: 0.5947 | AQ53: 0.2064 | AR53: 0.0298 | AS53: 0.1463 | AT53: 0.2223 | AU53: 0.05 | AV53: 0.0594 | AW53: 0.1198 | AX53: 0.9529 | AY53: 0.0528 | AZ53: 0.1178 | BA53: 0.0391 | BB53: 0.0334 | BC53: 0.0727 | BD53: 0.0604 | BE53: 0.1661 | BF53: 0.025 | BG53: 0.0217 | BH53: 0.03 | BI53: 0.05695 | BJ53: 0.27575 | BK53: 0.0299 | BL53: 0.1248 | BM53: 0.4595 | BN53: 0.57475 | BO53: 0.09175 | BP53: 0.13335 | BQ53: 0.3496 | BR53: 0.34755 | BS53: 0.1887 | BT53: 0.0653 | BU53: 0.431 | BV53: 0.1354 | BW53: 0.1533 | BX53: 0.6283 | BY53: 0.1557 | BZ53: 0.223 | CA53: 0.6154 | CB53: 0.3356 | CC53: 0.0321 | CD53: 0.0383 | CE53: 0.0429 | CF53: 0.0377 | CG53: 0.0394 | CH53: 0.0965 | CI53: 0.5378 | CJ53: 0.0342 | CK53: 0.0888 | CL53: 0.0504 | CM53: 0.0412 | CN53: 0.0863 | CO53: 0.0713 | CP53: 0.0367 | CQ53: 0.0457 | CR53: 0.0478 | CS53: 0.1681 | CT53: 0.1565 | CU53: 0.0645 | CV53: 0.0764 | CW53: 0.0396 | CX53: 0.0458 | CY53: 0.0193 | CZ53: 0.2912 | DA53: 0.0491 | DB53: 0.2938
A54: =A53+1 -> 431 | C54: 0.02352041412 | D54: 0.1022560615 | E54: 0.1067622382 | F54: 0.7418935942 | G54: 0.8515079859 | H54: 0.1898017591 | I54: 0.3551742944 | J54: 0.2227525236 | K54: 0.6514952655 | L54: 0.7003860007 | M54: 0.3602289773 | N54: 0.01950673077 | O54: 0.2554314898 | P54: 0.03410945 | Q54: 0.03919929023 | R54: 0.03136934398 | S54: 0.3188153739 | T54: 0.0968241827 | U54: 0.1836769274 | V54: 0.2380603143 | W54: 0.060107296 | X54: 0.2549827552 | Y54: 0.09706574516 | Z54: 0.6881449848 | AA54: 0.0303303125 | AB54: 0.1016473385 | AC54: 0.06131575652 | AD54: 0.04459701882 | AE54: 0.2641791295 | AF54: 0.420962818 | AG54: 0.03596269677 | AH54: 0.04075861538 | AI54: 0.0265100375 | AJ54: 0.3313349058 | AK54: 0.1777379294 | AL54: 0.09167500109 | AM54: 0.09529034706 | AN54: 0.1007864706 | AO54: 0.1220076886 | AP54: 0.5951025829 | AQ54: 0.2086026384 | AR54: 0.02931607273 | AS54: 0.1481340559 | AT54: 0.2236476727 | AU54: 0.05000106 | AV54: 0.05909901226 | AW54: 0.1192182838 | AX54: 0.9627421041 | AY54: 0.05286617143 | AZ54: 0.1180041143 | BA54: 0.03874137402 | BB54: 0.0326677945 | BC54: 0.07274498028 | BD54: 0.06047042857 | BE54: 0.1638276467 | BF54: 0.025 | BG54: 0.02167824 | BH54: 0.03009869793 | BI54: 0.0569522 | BJ54: 0.2758068957 | BK54: 0.02989090909 | BL54: 0.125008615 | BM54: 0.4633689391 | BN54: 0.5761963429 | BO54: 0.09185666966 | BP54: 0.1343407915 | BQ54: 0.3510281594 | BR54: 0.3456250744 | BS54: 0.1890144721 | BT54: 0.06577730506 | BU54: 0.4326340791 | BV54: 0.1352181599 | BW54: 0.1528307583 | BX54: 0.6283187 | BY54: 0.1547823197 | BZ54: 0.2225902198 | CA54: 0.61670227 | CB54: 0.3315059478 | CC54: 0.03207029091 | CD54: 0.03827305714 | CE54: 0.04288475429 | CF54: 0.0377168 | CG54: 0.03951344348 | CH54: 0.09656997209 | CI54: 0.5400632769 | CJ54: 0.03420544 | CK54: 0.09309836338 | CL54: 0.0506303234 | CM54: 0.04116720357 | CN54: 0.086819082 | CO54: 0.07164156571 | CP54: 0.036674 | CQ54: 0.0457 | CR54: 0.0478057 | CS54: 0.173990865 | CT54: 0.1573747109 | CU54: 0.0647686 | CV54: 0.0769336164 | CW54: 0.03966108 | CX54: 0.0458 | CY54: 0.0193124 | CZ54: 0.3003616357 | DA54: 0.04919709011 | DB54: 0.297343332
A55: =A54+1 -> 432 | C55: 0.02344568157 | D55: 0.1023124923 | E55: 0.1062038512 | F55: 0.7444245439 | G55: 0.8522126197 | H55: 0.1911765952 | I55: 0.3580093774 | J55: 0.2240486792 | K55: 0.6521914812 | L55: 0.7010674878 | M55: 0.3606272727 | N55: 0.01952615385 | O55: 0.2556499636 | P55: 0.03413671111 | Q55: 0.03899620652 | R55: 0.03124427068 | S55: 0.3199293451 | T55: 0.09737176072 | U55: 0.1847815642 | V55: 0.2391761396 | W55: 0.060128608 | X55: 0.2578144947 | Y55: 0.09757525161 | Z55: 0.6887911709 | AA55: 0.03026 | AB55: 0.100864041 | AC55: 0.06136135652 | AD55: 0.04438917259 | AE55: 0.2686936554 | AF55: 0.4284378528 | AG55: 0.03551176774 | AH55: 0.04042129915 | AI55: 0.02632213333 | AJ55: 0.3382625846 | AK55: 0.1783249255 | AL55: 0.0928464 | AM55: 0.09518489412 | AN55: 0.1005729412 | AO55: 0.123740415 | AP55: 0.59548912 | AQ55: 0.2107846723 | AR55: 0.02882603636 | AS55: 0.1500997992 | AT55: 0.2250274954 | AU55: 0.05000421333 | AV55: 0.05880136258 | AW55: 0.1186356532 | AX55: 0.9723428805 | AY55: 0.05292822857 | AZ55: 0.1181993905 | BA55: 0.0383926047 | BB55: 0.03194349007 | BC55: 0.07287415211 | BD55: 0.06054819048 | BE55: 0.1615002196 | BF55: 0.025 | BG55: 0.02164645333 | BH55: 0.03020265931 | BI55: 0.05695826667 | BJ55: 0.275893687 | BK55: 0.02986545455 | BL55: 0.1252933815 | BM55: 0.4671689161 | BN55: 0.5777406653 | BO55: 0.09198738585 | BP55: 0.1354635512 | BQ55: 0.3525566917 | BR55: 0.3432268587 | BS55: 0.1893523016 | BT55: 0.06634953944 | BU55: 0.4342840077 | BV55: 0.1350011886 | BW55: 0.1522451224 | BX55: 0.6283355259 | BY55: 0.1537689753 | BZ55: 0.2221731868 | CA55: 0.6180967564 | CB55: 0.3270499563 | CC55: 0.03204584242 | CD55: 0.03824902857 | CE55: 0.04287277714 | CF55: 0.0377624 | CG55: 0.0396245913 | CH55: 0.09663447442 | CI55: 0.542359585 | CJ55: 0.03422112 | CK55: 0.09825279202 | CL55: 0.0508715234 | CM55: 0.04113691429 | CN55: 0.08731638293 | CO55: 0.07197134476 | CP55: 0.03664933333 | CQ55: 0.0457 | CR55: 0.0478216 | CS55: 0.1802730296 | CT55: 0.1581134804 | CU55: 0.06506717037 | CV55: 0.07747360464 | CW55: 0.03972384 | CX55: 0.0458 | CY55: 0.0193232 | CZ55: 0.3096443271 | DA55: 0.04929028864 | DB55: 0.3007821795
A56: =A55+1 -> 433 | C56: 0.02337478118 | D56: 0.1023678154 | E56: 0.1057065535 | F56: 0.7467643747 | G56: 0.852914493 | H56: 0.1928852913 | I56: 0.3609045954 | J56: 0.2254260613 | K56: 0.6528711855 | L56: 0.7017323206 | M56: 0.3609914773 | N56: 0.01955711538 | O56: 0.2558601784 | P56: 0.03418015 | Q56: 0.03879503158 | R56: 0.03112440789 | S56: 0.321046992 | T56: 0.09794527892 | U56: 0.1859596089 | V56: 0.2403457999 | W56: 0.060163072 | X56: 0.2608232865 | Y56: 0.09812079677 | Z56: 0.6894393589 | AA56: 0.0301909375 | AB56: 0.1000759846 | AC56: 0.06143429565 | AD56: 0.04418103415 | AE56: 0.27345121 | AF56: 0.4363827882 | AG56: 0.03506126452 | AH56: 0.04009164103 | AI56: 0.0261405125 | AJ56: 0.3456303376 | AK56: 0.1789360941 | AL56: 0.09408596413 | AM56: 0.09508537059 | AN56: 0.1003647059 | AO56: 0.125492316 | AP56: 0.59586208 | AQ56: 0.2129444418 | AR56: 0.02833250909 | AS56: 0.1521625091 | AT56: 0.2264334391 | AU56: 0.05000942 | AV56: 0.05850921484 | AW56: 0.1180584273 | AX56: 0.9815151519 | AY56: 0.0529872 | AZ56: 0.1183888 | BA56: 0.0380548813 | BB56: 0.03123264094 | BC56: 0.07307886197 | BD56: 0.060633 | BE56: 0.1591319009 | BF56: 0.025 | BG56: 0.02160688 | BH56: 0.03031168552 | BI56: 0.0569674 | BJ56: 0.2760019217 | BK56: 0.02982636364 | BL56: 0.1256416913 | BM56: 0.4708917137 | BN56: 0.5793240296 | BO56: 0.09213799199 | BP56: 0.136692475 | BQ56: 0.3541493604 | BR56: 0.3404178305 | BS56: 0.1897001902 | BT56: 0.0669829959 | BU56: 0.435945169 | BV56: 0.1347507471 | BW56: 0.1515575101 | BX56: 0.6283504556 | BY56: 0.1526731473 | BZ56: 0.2217607692 | CA56: 0.6195470223 | CB56: 0.3222905906 | CC56: 0.03202549091 | CD56: 0.0382274 | CE56: 0.04286328 | CF56: 0.0378296 | CG56: 0.03973401739 | CH56: 0.09669306047 | CI56: 0.5446795978 | CJ56: 0.03424608 | CK56: 0.1041632312 | CL56: 0.05111532766 | CM56: 0.041108425 | CN56: 0.08780348054 | CO56: 0.07228696 | CP56: 0.036626 | CQ56: 0.0457 | CR56: 0.0478459 | CS56: 0.1868096844 | CT56: 0.1587577274 | CU56: 0.06539042222 | CV56: 0.07801810726 | CW56: 0.03978756 | CX56: 0.0458 | CY56: 0.0193328 | CZ56: 0.3189125421 | DA56: 0.04937963077 | DB56: 0.3040871134
A57: =A56+1 -> 434 | C57: 0.02330669176 | D57: 0.1024205538 | E57: 0.1052520598 | F57: 0.7488846119 | G57: 0.8536141972 | H57: 0.1948886301 | I57: 0.3638592948 | J57: 0.2268222642 | K57: 0.6535169164 | L57: 0.7023683582 | M57: 0.3613181818 | N57: 0.01959846154 | O57: 0.2560668909 | P57: 0.03423813333 | Q57: 0.03860004812 | R57: 0.03100938346 | S57: 0.3221733925 | T57: 0.09854728216 | U57: 0.1871567598 | V57: 0.2415676189 | W57: 0.060209824 | X57: 0.2639371985 | Y57: 0.09869465806 | Z57: 0.6900903498 | AA57: 0.030125 | AB57: 0.09930904615 | AC57: 0.06153206957 | AD57: 0.04397717631 | AE57: 0.2783594255 | AF57: 0.4446553083 | AG57: 0.03462523871 | AH57: 0.03977323077 | AI57: 0.0259694 | AJ57: 0.3532854662 | AK57: 0.1795465412 | AL57: 0.09536546087 | AM57: 0.09499350588 | AN57: 0.1001670588 | AO57: 0.1272575283 | AP57: 0.5962239314 | AQ57: 0.2150802871 | AR57: 0.02783810909 | AS57: 0.1542874649 | AT57: 0.2278594748 | AU57: 0.05001664 | AV57: 0.0582247329 | AW57: 0.1174929256 | AX57: 0.9900717406 | AY57: 0.05304411429 | AZ57: 0.1185753143 | BA57: 0.03772939306 | BB57: 0.03054080132 | BC57: 0.07335045634 | BD57: 0.06072457143 | BE57: 0.1567368726 | BF57: 0.025 | BG57: 0.02156176 | BH57: 0.03042557793 | BI57: 0.0569788 | BJ57: 0.2761231478 | BK57: 0.02977636364 | BL57: 0.1260409365 | BM57: 0.4745291141 | BN57: 0.5808874984 | BO57: 0.09230433147 | BP57: 0.138001759 | BQ57: 0.3557699291 | BR57: 0.3372604674 | BS57: 0.1900448393 | BT57: 0.06764396717 | BU57: 0.4376129462 | BV57: 0.1344684961 | BW57: 0.1507823396 | BX57: 0.6283634667 | BY57: 0.1515080167 | BZ57: 0.2213648352 | CA57: 0.6210166306 | CB57: 0.3172864154 | CC57: 0.03200807273 | CD57: 0.03820765714 | CE57: 0.04285547429 | CF57: 0.0379112 | CG57: 0.03984229565 | CH57: 0.09674528372 | CI57: 0.5470139889 | CJ57: 0.03427936 | CK57: 0.1107296261 | CL57: 0.05135346383 | CM57: 0.04108102857 | CN57: 0.08829195254 | CO57: 0.07258603429 | CP57: 0.036604 | CQ57: 0.0457 | CR57: 0.0478768 | CS57: 0.19346402 | CT57: 0.1593488705 | CU57: 0.06573306667 | CV57: 0.07856526676 | CW57: 0.03985152 | CX57: 0.0458 | CY57: 0.0193416 | CZ57: 0.3280307484 | DA57: 0.04946515165 | DB57: 0.3072287041
A58: =A57+1 -> 435 | C58: 0.02324039216 | D58: 0.1024692308 | E58: 0.1048220848 | F58: 0.7507567812 | G58: 0.8543123239 | H58: 0.1971473946 | I58: 0.366872822 | J58: 0.2281748821 | K58: 0.6541112121 | L58: 0.7029634599 | M58: 0.3616039773 | N58: 0.01964903846 | O58: 0.256274858 | P58: 0.03430902778 | Q58: 0.03841553885 | R58: 0.03089882519 | S58: 0.3233136249 | T58: 0.09918031532 | U58: 0.1883187151 | V58: 0.2428399204 | W58: 0.060268 | X58: 0.2670842986 | Y58: 0.0992891129 | Z58: 0.6907449444 | AA58: 0.0300640625 | AB58: 0.09858910256 | AC58: 0.06165217391 | AD58: 0.04378217189 | AE58: 0.283325934 | AF58: 0.4531130967 | AG58: 0.03421774194 | AH58: 0.03946965812 | AI58: 0.02581302083 | AJ58: 0.3610752717 | AK58: 0.1801313725 | AL58: 0.09665665761 | AM58: 0.09491102941 | AN58: 0.09998529412 | AO58: 0.1290301888 | AP58: 0.5965771429 | AQ58: 0.2171905483 | AR58: 0.02734545455 | AS58: 0.1564399457 | AT58: 0.2292995737 | AU58: 0.05002583333 | AV58: 0.05795008065 | AW58: 0.1169454672 | AX58: 0.9978254693 | AY58: 0.0531 | AZ58: 0.1187619048 | BA58: 0.03741732923 | BB58: 0.02987352546 | BC58: 0.07368028169 | BD58: 0.06082261905 | BE58: 0.1543293169 | BF58: 0.025 | BG58: 0.02151333333 | BH58: 0.03054413793 | BI58: 0.05699166667 | BJ58: 0.276248913 | BK58: 0.02971818182 | BL58: 0.126478509 | BM58: 0.4780729001 | BN58: 0.582372134 | BO58: 0.09248224773 | BP58: 0.1393655992 | BQ58: 0.3573821613 | BR58: 0.333817247 | BS58: 0.1903729508 | BT58: 0.06829874601 | BU58: 0.4392827224 | BV58: 0.1341560965 | BW58: 0.1499340288 | BX58: 0.628374537 | BY58: 0.1502867642 | BZ58: 0.2209972527 | CA58: 0.6224691444 | CB58: 0.3120959956 | CC58: 0.03199242424 | CD58: 0.03818928571 | CE58: 0.04284857143 | CF58: 0.038 | CG58: 0.03995 | CH58: 0.09679069767 | CI58: 0.5493534319 | CJ58: 0.03432 | CK58: 0.117851922 | CL58: 0.05157765957 | CM58: 0.04105401786 | CN58: 0.08879337668 | CO58: 0.07286619048 | CP58: 0.03658333333 | CQ58: 0.0457 | CR58: 0.0479125 | CS58: 0.2000992268 | CT58: 0.1599283287 | CU58: 0.06608981481 | CV58: 0.07911322569 | CW58: 0.039915 | CX58: 0.0458 | CY58: 0.01935 | CZ58: 0.3368634138 | DA58: 0.04954688645 | DB58: 0.3101775223
A59: =A58+1 -> 436 | C59: 0.02317486118 | D59: 0.1025123692 | E59: 0.1043983429 | F59: 0.752352408 | G59: 0.8550094648 | H59: 0.1996223674 | I59: 0.3699445234 | J59: 0.2294215094 | K59: 0.6546366109 | L59: 0.7035054847 | M59: 0.3618454545 | N59: 0.01970769231 | O59: 0.2564888364 | P59: 0.0343912 | Q59: 0.03824578647 | R59: 0.0307923609 | S59: 0.3244727673 | T59: 0.09984692324 | U59: 0.1893911732 | V59: 0.2441610283 | W59: 0.060336736 | X59: 0.2701926548 | Y59: 0.09989643871 | Z59: 0.6914039434 | AA59: 0.03001 | AB59: 0.09794203077 | AC59: 0.06179210435 | AD59: 0.04360059373 | AE59: 0.2882583679 | AF59: 0.4616138374 | AG59: 0.03385282581 | AH59: 0.03918451282 | AI59: 0.0256756 | AJ59: 0.3688470554 | AK59: 0.1806656941 | AL59: 0.09793132174 | AM59: 0.09483967059 | AN59: 0.09982470588 | AO59: 0.1308044341 | AP59: 0.5969241829 | AQ59: 0.2192735657 | AR59: 0.02685716364 | AS59: 0.1585852309 | AT59: 0.2307477066 | AU59: 0.05003696 | AV59: 0.05768742194 | AW59: 0.1164223715 | AX59: 1.00458916 | AY59: 0.05315588571 | AZ59: 0.1189515429 | BA59: 0.03711987906 | BB59: 0.02923636755 | BC59: 0.07405968451 | BD59: 0.06092685714 | BE59: 0.1519234158 | BF59: 0.025 | BG59: 0.02146384 | BH59: 0.0306671669 | BI59: 0.0570052 | BJ59: 0.2763707652 | BK59: 0.02965454545 | BL59: 0.1269418008 | BM59: 0.4815148541 | BN59: 0.5837189989 | BO59: 0.09266758417 | BP59: 0.1407581913 | BQ59: 0.3589498207 | BR59: 0.3301506468 | BS59: 0.1906712262 | BT59: 0.06891362517 | BU59: 0.4409498808 | BV59: 0.1338152092 | BW59: 0.1490269956 | BX59: 0.6283836444 | BY59: 0.1490225705 | BZ59: 0.2206698901 | CA59: 0.6238681266 | CB59: 0.3067778962 | CC59: 0.03197738182 | CD59: 0.03817177143 | CE59: 0.04284178286 | CF59: 0.0380888 | CG59: 0.04005770435 | CH59: 0.09682885581 | CI59: 0.5516886003 | CJ59: 0.03436704 | CK59: 0.1254300641 | CL59: 0.05177964255 | CM59: 0.04102668571 | CN59: 0.08931933068 | CO59: 0.07312505143 | CP59: 0.036564 | CQ59: 0.0457 | CR59: 0.0479512 | CS59: 0.2065784956 | CT59: 0.1605375205 | CU59: 0.06645537778 | CV59: 0.07966012656 | CW59: 0.03997728 | CX59: 0.0458 | CY59: 0.0193584 | CZ59: 0.3452750061 | DA59: 0.04962487033 | DB59: 0.3129041388
A60: =A59+1 -> 437 | C60: 0.02310907765 | D60: 0.1025484923 | E60: 0.1039625489 | F60: 0.7536430177 | G60: 0.8557062113 | H60: 0.2022743316 | I60: 0.3730737455 | J60: 0.2304997406 | K60: 0.6550756509 | L60: 0.703982292 | M60: 0.3620392045 | N60: 0.01977326923 | O60: 0.256713583 | P60: 0.03448301667 | Q60: 0.03809507368 | R60: 0.03068961842 | S60: 0.3256558979 | T60: 0.1005496508 | U60: 0.1903198324 | V60: 0.2455292664 | W60: 0.060415168 | X60: 0.2731903351 | Y60: 0.1005089129 | Z60: 0.6920681476 | AA60: 0.0299646875 | AB60: 0.09739370769 | AC60: 0.06194935652 | AD60: 0.04343701463 | AE60: 0.2930643592 | AF60: 0.4700152142 | AG60: 0.03354454194 | AH60: 0.03892138462 | AI60: 0.0255613625 | AJ60: 0.3764481188 | AK60: 0.1811246118 | AL60: 0.09916122065 | AM60: 0.09478115882 | AN60: 0.09969058824 | AO60: 0.1325744011 | AP60: 0.59726752 | AQ60: 0.2213276794 | AR60: 0.02637585455 | AS60: 0.1606885997 | AT60: 0.2321978447 | AU60: 0.05004998 | AV60: 0.05743892065 | AW60: 0.1159299576 | AX60: 1.010175637 | AY60: 0.0532128 | AZ60: 0.1191472 | BA60: 0.0368382318 | BB60: 0.02863488183 | BC60: 0.07448001127 | BD60: 0.061037 | BE60: 0.1495333515 | BF60: 0.025 | BG60: 0.02141552 | BH60: 0.03079446621 | BI60: 0.0570186 | BJ60: 0.2764802522 | BK60: 0.02958818182 | BL60: 0.1274182038 | BM60: 0.4848467585 | BN60: 0.5848691556 | BO60: 0.0928561842 | BP60: 0.1421537315 | BQ60: 0.3604366706 | BR60: 0.3263231444 | BS60: 0.1909263672 | BT60: 0.0694548974 | BU60: 0.4426098046 | BV60: 0.1334474951 | BW60: 0.1480756582 | BX60: 0.6283907667 | BY60: 0.1477286165 | BZ60: 0.2203946154 | CA60: 0.6251771403 | CB60: 0.3013906821 | CC60: 0.03196178182 | CD60: 0.0381546 | CE60: 0.04283432 | CF60: 0.0381704 | CG60: 0.04016598261 | CH60: 0.09685931163 | CI60: 0.5540101678 | CJ60: 0.03441952 | CK60: 0.1333639977 | CL60: 0.05195114043 | CM60: 0.040998325 | CN60: 0.08988139228 | CO60: 0.07336024 | CP60: 0.036546 | CQ60: 0.0457 | CR60: 0.0479911 | CS60: 0.2127650167 | CT60: 0.1612178647 | CU60: 0.06682446667 | CV60: 0.0802041119 | CW60: 0.04003764 | CX60: 0.0458 | CY60: 0.0193672 | CZ60: 0.3531299931 | DA60: 0.04969913846 | DB60: 0.3153791241
A61: =A60+1 -> 438 | C61: 0.02304202039 | D61: 0.1025761231 | E61: 0.1034964173 | F61: 0.754600136 | G61: 0.8564031549 | H61: 0.2050640698 | I61: 0.3762598347 | J61: 0.2313471698 | K61: 0.6554108703 | L61: 0.7043817408 | M61: 0.3621818182 | N61: 0.01984461538 | O61: 0.2569538545 | P61: 0.03458284444 | Q61: 0.03796768321 | R61: 0.03059022556 | S61: 0.3268680948 | T61: 0.1012910429 | U61: 0.1910503911 | V61: 0.2469429585 | W61: 0.060502432 | X61: 0.2760054075 | Y61: 0.1011188129 | Z61: 0.6927383579 | AA61: 0.02993 | AB61: 0.09697001026 | AC61: 0.06212142609 | AD61: 0.04329600743 | AE61: 0.2976515402 | AF61: 0.478174911 | AG61: 0.03330694194 | AH61: 0.03868386325 | AI61: 0.02547453333 | AJ61: 0.3837257632 | AK61: 0.1814832314 | AL61: 0.1003181217 | AM61: 0.09473722353 | AN61: 0.09958823529 | AO61: 0.1343342266 | AP61: 0.5976096229 | AQ61: 0.2233512296 | AR61: 0.02590414545 | AS61: 0.1627153313 | AT61: 0.2336439589 | AU61: 0.05006485333 | AV61: 0.05720674065 | AW61: 0.1154745449 | AX61: 1.01439772 | AY61: 0.05327177143 | AZ61: 0.1193518476 | BA61: 0.03657357671 | BB61: 0.02807462252 | BC61: 0.07493260845 | BD61: 0.0611527619 | BE61: 0.147173306 | BF61: 0.025 | BG61: 0.02137061333 | BH61: 0.03092583724 | BI61: 0.05703106667 | BJ61: 0.2765689217 | BK61: 0.02952181818 | BL61: 0.1278951101 | BM61: 0.488060396 | BN61: 0.5857636663 | BO61: 0.09304389124 | BP61: 0.1435264157 | BQ61: 0.3618064748 | BR61: 0.3223972175 | BS61: 0.1911250754 | BT61: 0.06988885545 | BU61: 0.4442578769 | BV61: 0.1330546149 | BW61: 0.1470944344 | BX61: 0.6283958815 | BY61: 0.1464180829 | BZ61: 0.2201832967 | CA61: 0.6263597484 | CB61: 0.2959929181 | CC61: 0.03194446061 | CD61: 0.03813725714 | CE61: 0.04282539429 | CF61: 0.0382376 | CG61: 0.0402754087 | CH61: 0.0968816186 | CI61: 0.5563088078 | CJ61: 0.03447648 | CK61: 0.1415536681 | CL61: 0.05208388085 | CM61: 0.04096822857 | CN61: 0.09049113921 | CO61: 0.07356937905 | CP61: 0.03652933333 | CQ61: 0.0457 | CR61: 0.0480304 | CS61: 0.2185219808 | CT61: 0.1620107802 | CU61: 0.06719179259 | CV61: 0.08074332424 | CW61: 0.04009536 | CX61: 0.0458 | CY61: 0.0193768 | CZ61: 0.3602928426 | DA61: 0.04976972601 | DB61: 0.317573049
A62: =A61+1 -> 439 | C62: 0.02297266824 | D62: 0.1025937846 | E62: 0.1029816628 | F62: 0.7551952882 | G62: 0.8571008873 | H62: 0.207952365 | I62: 0.3795021374 | J62: 0.2319013915 | K62: 0.6556248073 | L62: 0.7046916904 | M62: 0.3622698864 | N62: 0.01992057692 | O62: 0.257214408 | P62: 0.03468905 | Q62: 0.03786789774 | R62: 0.03049381015 | S62: 0.3281144361 | T62: 0.1020736443 | U62: 0.1915285475 | V62: 0.2484004284 | W62: 0.060597664 | X62: 0.2785659398 | Y62: 0.1017184161 | Z62: 0.6934153751 | AA62: 0.0299078125 | AB62: 0.09669681538 | AC62: 0.0623058087 | AD62: 0.04318214495 | AE62: 0.301927543 | AF62: 0.4859506117 | AG62: 0.03315407742 | AH62: 0.03847553846 | AI62: 0.0254193375 | AJ62: 0.3905272898 | AK62: 0.1817166588 | AL62: 0.1013737924 | AM62: 0.09470959412 | AN62: 0.09952294118 | AO62: 0.1360780473 | AP62: 0.59795296 | AQ62: 0.2253425564 | AR62: 0.02544465455 | AS62: 0.164630705 | AT62: 0.2350800204 | AU62: 0.05008154 | AV62: 0.05699304581 | AW62: 0.1150624526 | AX62: 1.017068234 | AY62: 0.05333382857 | AZ62: 0.1195684571 | BA62: 0.03632710302 | BB62: 0.02756114383 | BC62: 0.07540882254 | BD62: 0.06127385714 | BE62: 0.1448574615 | BF62: 0.025 | BG62: 0.02133136 | BH62: 0.03106108138 | BI62: 0.0570418 | BJ62: 0.2766283217 | BK62: 0.02945818182 | BL62: 0.1283599115 | BM62: 0.491147549 | BN62: 0.5863435937 | BO62: 0.0932265487 | BP62: 0.1448504399 | BQ62: 0.3630229967 | BR62: 0.3184353435 | BS62: 0.1912540525 | BT62: 0.07018179207 | BU62: 0.445889481 | BV62: 0.1326382296 | BW62: 0.1460977424 | BX62: 0.6283989667 | BY62: 0.1451041505 | BZ62: 0.2200478022 | CA62: 0.627379514 | CB62: 0.2906431691 | CC62: 0.03192425455 | CD62: 0.03811922857 | CE62: 0.04281421714 | CF62: 0.0382832 | CG62: 0.04038655652 | CH62: 0.09689533023 | CI62: 0.558575194 | CJ62: 0.03453696 | CK62: 0.1498990204 | CL62: 0.05216959149 | CM62: 0.04093568929 | CN62: 0.09116014921 | CO62: 0.07375009143 | CP62: 0.036514 | CQ62: 0.0457 | CR62: 0.0480673 | CS62: 0.2237125784 | CT62: 0.1629576857 | CU62: 0.06755206667 | CV62: 0.0812759061 | CW62: 0.04014972 | CX62: 0.0458 | CY62: 0.0193876 | CZ62: 0.3666280223 | DA62: 0.04983666813 | DB62: 0.3194564841
A63: =A62+1 -> 440 | C63: 0.0229 | D63: 0.1026 | E63: 0.1024 | F63: 0.7554 | G63: 0.8578 | H63: 0.2109 | I63: 0.3828 | J63: 0.2321 | K63: 0.6557 | L63: 0.7049 | M63: 0.3623 | N63: 0.02 | O63: 0.2575 | P63: 0.0348 | Q63: 0.0378 | R63: 0.0304 | S63: 0.3294 | T63: 0.1029 | U63: 0.1917 | V63: 0.2499 | W63: 0.0607 | X63: 0.2808 | Y63: 0.1023 | Z63: 0.6941 | AA63: 0.0299 | AB63: 0.0966 | AC63: 0.0625 | AD63: 0.0431 | AE63: 0.3058 | AF63: 0.4932 | AG63: 0.0331 | AH63: 0.0383 | AI63: 0.0254 | AJ63: 0.3967 | AK63: 0.1818 | AL63: 0.1023 | AM63: 0.0947 | AN63: 0.0995 | AO63: 0.1378 | AP63: 0.5983 | AQ63: 0.2273 | AR63: 0.025 | AS63: 0.1664 | AT63: 0.2365 | AU63: 0.0501 | AV63: 0.0568 | AW63: 0.1147 | AX63: 1.018 | AY63: 0.0534 | AZ63: 0.1198 | BA63: 0.0361 | BB63: 0.0271 | BC63: 0.0759 | BD63: 0.0614 | BE63: 0.1426 | BF63: 0.025 | BG63: 0.0213 | BH63: 0.0312 | BI63: 0.05705 | BJ63: 0.27665 | BK63: 0.0294 | BL63: 0.1288 | BM63: 0.4941 | BN63: 0.58655 | BO63: 0.0934 | BP63: 0.1461 | BQ63: 0.36405 | BR63: 0.3145 | BS63: 0.1913 | BT63: 0.0703 | BU63: 0.4475 | BV63: 0.1322 | BW63: 0.1451 | BX63: 0.6284 | BY63: 0.1438 | BZ63: 0.22 | CA63: 0.6282 | CB63: 0.2854 | CC63: 0.0319 | CD63: 0.0381 | CE63: 0.0428 | CF63: 0.0383 | CG63: 0.0405 | CH63: 0.0969 | CI63: 0.5608 | CJ63: 0.0346 | CK63: 0.1583 | CL63: 0.0522 | CM63: 0.0409 | CN63: 0.0919 | CO63: 0.0739 | CP63: 0.0365 | CQ63: 0.0457 | CR63: 0.0481 | CS63: 0.2282 | CT63: 0.1641 | CU63: 0.0679 | CV63: 0.0818 | CW63: 0.0402 | CX63: 0.0458 | CY63: 0.0194 | CZ63: 0.372 | DA63: 0.0499 | DB63: 0.321
A64: =A63+1 -> 441 | C64: 0.02282 | D64: 0.1025956 | E64: 0.1016672182 | F64: 0.7548981243 | G64: 0.8585033158 | H64: 0.2141798518 | I64: 0.3861502478 | J64: 0.2320619107 | K64: 0.65569237 | L64: 0.7050494885 | M64: 0.36191159 | N64: 0.02009987731 | O64: 0.257825376 | P64: 0.03494228913 | Q64: 0.03775067368 | R64: 0.03031120842 | S64: 0.3307179393 | T64: 0.1037946515 | U64: 0.1916710863 | V64: 0.2514854961 | W64: 0.06086093059 | X64: 0.2829059459 | Y64: 0.10288368 | Z64: 0.6947994793 | AA64: 0.02990688 | AB64: 0.09661294464 | AC64: 0.06274869875 | AD64: 0.04303634286 | AE64: 0.3095939147 | AF64: 0.5003370674 | AG64: 0.0331070623 | AH64: 0.03814126154 | AI64: 0.02541231364 | AJ64: 0.402770396 | AK64: 0.1817189764 | AL64: 0.1031777728 | AM64: 0.09470113846 | AN64: 0.09953684211 | AO64: 0.1395020935 | AP64: 0.5986461686 | AQ64: 0.2292170786 | AR64: 0.02456865072 | AS64: 0.1681417704 | AT64: 0.2379112733 | AU64: 0.05016059474 | AV64: 0.05662388 | AW64: 0.1143582237 | AX64: 1.017714502 | AY64: 0.05347794286 | AZ64: 0.1200439181 | BA64: 0.03588927483 | BB64: 0.02667986875 | BC64: 0.07647717987 | BD64: 0.0615353974 | BE64: 0.1403905467 | BF64: 0.02503187397 | BG64: 0.02127537143 | BH64: 0.03134773927 | BI64: 0.0570568 | BJ64: 0.2765931683 | BK64: 0.02934621818 | BL64: 0.1292339079 | BM64: 0.4969301653 | BN64: 0.5865472321 | BO64: 0.0935672983 | BP64: 0.1473380174 | BQ64: 0.3649799944 | BR64: 0.3103973531 | BS64: 0.1911881818 | BT64: 0.07031868235 | BU64: 0.4490948518 | BV64: 0.1317060036 | BW64: 0.1440610507 | BX64: 0.6283424 | BY64: 0.142480907 | BZ64: 0.2200967458 | CA64: 0.6289112475 | CB64: 0.2801712049 | CC64: 0.0318696 | CD64: 0.0380782 | CE64: 0.04277824 | CF64: 0.0382888 | CG64: 0.04061624348 | CH64: 0.09679593043 | CI64: 0.5629935796 | CJ64: 0.03467785739 | CK64: 0.1671761188 | CL64: 0.05219552727 | CM64: 0.040859625 | CN64: 0.09278197565 | CO64: 0.07402852396 | CP64: 0.03648775 | CQ64: 0.0457 | CR64: 0.04813 | CS64: 0.2322470573 | CT64: 0.1658153688 | CU64: 0.0682706 | CV64: 0.08231075549 | CW64: 0.04024699429 | CX64: 0.0458016 | CY64: 0.0194164 | CZ64: 0.3768093334 | DA64: 0.04995934615 | DB64: 0.32234177
A65: =A64+1 -> 442 | C65: 0.02273146667 | D65: 0.1025834667 | E65: 0.1007520485 | F65: 0.7534879977 | G65: 0.8592117895 | H65: 0.2180189235 | I65: 0.3895544237 | J65: 0.2319507934 | K65: 0.65566976 | L65: 0.7051900066 | M65: 0.3608114311 | N65: 0.0202352219 | O65: 0.2581964883 | P65: 0.03513836135 | Q65: 0.03770412632 | R65: 0.03022895158 | S65: 0.3320607955 | T65: 0.1047753424 | U65: 0.1915865289 | V65: 0.2531874398 | W65: 0.06112279323 | X65: 0.285083964 | Y65: 0.10348864 | Z65: 0.6955171245 | AA65: 0.02992624 | AB65: 0.09665091429 | AC65: 0.06309237817 | AD65: 0.04297550476 | AE65: 0.3135998653 | AF65: 0.5077488368 | AG65: 0.03312777705 | AH65: 0.03798342564 | AI65: 0.02544778182 | AJ65: 0.4092086752 | AK65: 0.1814861384 | AL65: 0.1040874435 | AM65: 0.09470449231 | AN65: 0.09964210526 | AO65: 0.1411916071 | AP65: 0.5989863898 | AQ65: 0.2310928059 | AR65: 0.0241467177 | AS65: 0.1699619145 | AT65: 0.2393241964 | AU65: 0.05029740351 | AV65: 0.05645877333 | AW65: 0.1140105263 | AX65: 1.016902675 | AY65: 0.05357097143 | AZ65: 0.1202965976 | BA65: 0.03569043346 | BB65: 0.02628453333 | BC65: 0.07720784456 | BD65: 0.0616836987 | BE65: 0.1382080566 | BF65: 0.02512266301 | BG65: 0.02125420952 | BH65: 0.03150774727 | BI65: 0.05706373333 | BJ65: 0.2764323762 | BK65: 0.02929338182 | BL65: 0.1296851365 | BM65: 0.4996608102 | BN65: 0.5865390476 | BO65: 0.09373445365 | BP65: 0.1486265434 | BQ65: 0.3659143827 | BR65: 0.3059432593 | BS65: 0.1908690909 | BT65: 0.07033549804 | BU65: 0.4506819732 | BV65: 0.1311279922 | BW65: 0.1429394965 | BX65: 0.6281792 | BY65: 0.141118566 | BZ65: 0.2203702072 | CA65: 0.6296167367 | CB65: 0.2748444115 | CC65: 0.0318328 | CD65: 0.0380536 | CE65: 0.04274645333 | CF65: 0.0382584 | CG65: 0.0407349913 | CH65: 0.09650153043 | CI65: 0.5651717206 | CJ65: 0.03478153739 | CK65: 0.1768979382 | CL65: 0.05218276364 | CM65: 0.04081422222 | CN65: 0.09384619362 | CO65: 0.07414703121 | CP65: 0.03647733333 | CQ65: 0.0457 | CR65: 0.04816 | CS65: 0.236182946 | CT65: 0.1683520804 | CU65: 0.0686888 | CV65: 0.08280747253 | CW65: 0.04029206857 | CX65: 0.04580613333 | CY65: 0.01943786667 | CZ65: 0.3815013111 | DA65: 0.05001476923 | DB65: 0.3236291877
A66: =A65+1 -> 443 | C66: 0.0226376 | D66: 0.1025652 | E66: 0.09971561818 | F66: 0.7513128704 | G66: 0.8599232105 | H66: 0.2223091865 | I66: 0.3930189507 | J66: 0.2317713746 | K66: 0.65563259 | L66: 0.7053199607 | M66: 0.35909713 | N66: 0.02040191043 | O66: 0.2586049045 | P66: 0.03538035725 | Q66: 0.03766092632 | R66: 0.03015151158 | S66: 0.3334327297 | T66: 0.1058344202 | U66: 0.1914496038 | V66: 0.2549842052 | W66: 0.06147099416 | X66: 0.2872648649 | Y66: 0.10410576 | Z66: 0.6962478334 | AA66: 0.02995616 | AB66: 0.0967126125 | AC66: 0.06352219561 | AD66: 0.0429184 | AE66: 0.3176738453 | AF66: 0.5152525393 | AG66: 0.03316143607 | AH66: 0.03783021538 | AI66: 0.02550419545 | AJ66: 0.4157776817 | AK66: 0.181116835 | AL66: 0.1049997359 | AM66: 0.09470996923 | AN66: 0.09980789474 | AO66: 0.142870584 | AP66: 0.59932238 | AQ66: 0.2329337654 | AR66: 0.0237332823 | AS66: 0.1718067281 | AT66: 0.2407372111 | AU66: 0.05050096316 | AV66: 0.05630356 | AW66: 0.1136667763 | AX66: 1.015631517 | AY66: 0.0536736 | AZ66: 0.1205594265 | BA66: 0.03550241321 | BB66: 0.02591220625 | BC66: 0.0780780056 | BD66: 0.06184378182 | BE66: 0.1360507062 | BF66: 0.02526511781 | BG66: 0.0212356 | BH66: 0.03167727831 | BI66: 0.0570706 | BJ66: 0.2761821782 | BK66: 0.02924061818 | BL66: 0.1301485316 | BM66: 0.5022992411 | BN66: 0.586525625 | BO66: 0.0939017448 | BP66: 0.1499384693 | BQ66: 0.3668302677 | BR66: 0.3012147316 | BS66: 0.1903672727 | BT66: 0.07035042353 | BU66: 0.4522605253 | BV66: 0.1304761377 | BW66: 0.1417478934 | BX66: 0.6279248 | BY66: 0.139720786 | BZ66: 0.2207952205 | CA66: 0.6303001898 | CB66: 0.2694479356 | CC66: 0.0317912 | CD66: 0.0380274 | CE66: 0.04270688 | CF66: 0.0382136 | CG66: 0.04085561739 | CH66: 0.09604351304 | CI66: 0.5673332475 | CJ66: 0.03490820174 | CK66: 0.1872919772 | CL66: 0.05216269091 | CM66: 0.040764875 | CN66: 0.09505748174 | CO66: 0.07425606769 | CP66: 0.03646825 | CQ66: 0.0457 | CR66: 0.04819 | CS66: 0.239970433 | CT66: 0.1715575172 | CU66: 0.0691342 | CV66: 0.08329451923 | CW66: 0.04033536 | CX66: 0.0458132 | CY66: 0.0194628 | CZ66: 0.386007497 | DA66: 0.05006696154 | DB66: 0.3248466545
A67: =A66+1 -> 444 | C67: 0.0225416 | D67: 0.1025424 | E67: 0.09861905455 | F67: 0.748515993 | G67: 0.8606353684 | H67: 0.2269426124 | I67: 0.3965502518 | J67: 0.2315283803 | K67: 0.65558128 | L67: 0.7054377574 | M67: 0.3568662933 | N67: 0.02059581956 | O67: 0.2590421922 | P67: 0.03566041739 | Q67: 0.03762164211 | R67: 0.03007717053 | S67: 0.3348379034 | T67: 0.1069642326 | U67: 0.1912635867 | V67: 0.2568541664 | W67: 0.06189093968 | X67: 0.2893794595 | Y67: 0.10472592 | Z67: 0.6969865038 | AA67: 0.02999472 | AB67: 0.09679674286 | AC67: 0.06402930842 | AD67: 0.04286594286 | AE67: 0.3216718484 | AF67: 0.5226654061 | AG67: 0.03320733115 | AH67: 0.03768535385 | AI67: 0.02557934545 | AJ67: 0.4222402596 | AK67: 0.1806264152 | AL67: 0.1058853739 | AM67: 0.09471747692 | AN67: 0.1000263158 | AO67: 0.144541067 | AP67: 0.5996558552 | AQ67: 0.2347465407 | AR67: 0.02332742584 | AS67: 0.1736225066 | AT67: 0.2421487594 | AU67: 0.05076181053 | AV67: 0.05615712 | AW67: 0.1133368421 | AX67: 1.013968026 | AY67: 0.05378034286 | AZ67: 0.1208337928 | BA67: 0.03532415143 | BB67: 0.0255611 | BC67: 0.07907367453 | BD67: 0.06201452468 | BE67: 0.1339166721 | BF67: 0.02545198904 | BG67: 0.02121862857 | BH67: 0.03185358665 | BI67: 0.0570772 | BJ67: 0.2758571287 | BK67: 0.02918705455 | BL67: 0.130618939 | BM67: 0.5048527644 | BN67: 0.5865071429 | BO67: 0.09406945049 | BP67: 0.1512466862 | BQ67: 0.367704752 | BR67: 0.2962887834 | BS67: 0.1897072727 | BT67: 0.07036343529 | BU67: 0.4538296695 | BV67: 0.1297606121 | BW67: 0.1404987972 | BX67: 0.6275936 | BY67: 0.1382953761 | BZ67: 0.2213466217 | CA67: 0.6309453288 | CB67: 0.2640100926 | CC67: 0.0317464 | CD67: 0.0380008 | CE67: 0.04266176 | CF67: 0.0381592 | CG67: 0.04097749565 | CH67: 0.0954485913 | CI67: 0.5694769849 | CJ67: 0.03505501217 | CK67: 0.1981847548 | CL67: 0.05213629091 | CM67: 0.04071266667 | CN67: 0.09638066783 | CO67: 0.07435617934 | CP67: 0.03646 | CQ67: 0.0457 | CR67: 0.04822 | CS67: 0.2435722849 | CT67: 0.1752790616 | CU67: 0.0695864 | CV67: 0.08377626374 | CW67: 0.04037700571 | CX67: 0.0458224 | CY67: 0.0194896 | CZ67: 0.390259455 | DA67: 0.05011661538 | DB67: 0.3259785715
A68: =A67+1 -> 445 | C68: 0.02244666667 | D68: 0.1025166667 | E68: 0.09752348485 | F68: 0.7452406159 | G68: 0.8613460526 | H68: 0.231811173 | I68: 0.4001547499 | J68: 0.2312265369 | K68: 0.65551625 | L68: 0.7055418033 | M68: 0.3542165278 | N68: 0.02081282595 | O68: 0.2594999188 | P68: 0.03597068237 | Q68: 0.03758684211 | R68: 0.03000421053 | S68: 0.3362804776 | T68: 0.1081571272 | U68: 0.1910317536 | V68: 0.2587756977 | W68: 0.06236803604 | X68: 0.2913585586 | Y68: 0.10534 | Z68: 0.6977280337 | AA68: 0.03004 | AB68: 0.09690200893 | AC68: 0.06460487396 | AD68: 0.04281904762 | AE68: 0.3254498684 | AF68: 0.5298046683 | AG68: 0.0332647541 | AH68: 0.0375525641 | AI68: 0.02567102273 | AJ68: 0.4283592531 | AK68: 0.1800302281 | AL68: 0.1067150815 | AM68: 0.09472692308 | AN68: 0.1002894737 | AO68: 0.1462050992 | AP68: 0.5999885317 | AQ68: 0.2365377152 | AR68: 0.02292822967 | AS68: 0.1753555459 | AT68: 0.2435572831 | AU68: 0.05107048246 | AV68: 0.05601833333 | AW68: 0.1130305921 | AX68: 1.011979201 | AY68: 0.05388571429 | AZ68: 0.1211210843 | BA68: 0.03515458547 | BB68: 0.02522942708 | BC68: 0.08018086289 | BD68: 0.06219480519 | BE68: 0.1318041309 | BF68: 0.0256760274 | BG68: 0.02120238095 | BH68: 0.03203392659 | BI68: 0.05708333333 | BJ68: 0.2754717822 | BK68: 0.02913181818 | BL68: 0.1310912042 | BM68: 0.5073286864 | BN68: 0.5864837798 | BO68: 0.09423784948 | BP68: 0.1525240851 | BQ68: 0.3685149385 | BR68: 0.2912424277 | BS68: 0.1889136364 | BT68: 0.0703745098 | BU68: 0.455388567 | BV68: 0.1289915875 | BW68: 0.139204764 | BX68: 0.6272 | BY68: 0.1368501455 | BZ68: 0.221999247 | CA68: 0.6315358757 | CB68: 0.2585591981 | CC68: 0.0317 | CD68: 0.037975 | CE68: 0.04261333333 | CF68: 0.0381 | CG68: 0.0411 | CH68: 0.09474347826 | CI68: 0.5716017572 | CJ68: 0.03521913043 | CK68: 0.2094027902 | CL68: 0.05210454545 | CM68: 0.04065868056 | CN68: 0.09778057971 | CO68: 0.07444791209 | CP68: 0.03645208333 | CQ68: 0.0457 | CR68: 0.04825 | CS68: 0.2469512685 | CT68: 0.1793640959 | CU68: 0.070025 | CV68: 0.08425707418 | CW68: 0.04041714286 | CX68: 0.04583333333 | CY68: 0.01951666667 | CZ68: 0.3941887491 | DA68: 0.05016442308 | DB68: 0.3270093401
A69: =A68+1 -> 446 | C69: 0.022356 | D69: 0.1024896 | E69: 0.09649003636 | F69: 0.7416299896 | G69: 0.8620530526 | H69: 0.2368068397 | I69: 0.403838868 | J69: 0.2308705705 | K69: 0.65543792 | L69: 0.7056305049 | M69: 0.35124544 | N69: 0.02104880626 | O69: 0.2599696519 | P69: 0.03630329275 | Q69: 0.03755709474 | R69: 0.02993091368 | S69: 0.3377646135 | T69: 0.1094054516 | U69: 0.1907573801 | V69: 0.2607271732 | W69: 0.06288768951 | X69: 0.293132973 | Y69: 0.10593888 | Z69: 0.698467321 | AA69: 0.03009008 | AB69: 0.09702711429 | AC69: 0.06524004958 | AD69: 0.04277862857 | AE69: 0.3288638989 | AF69: 0.536487557 | AG69: 0.03333299672 | AH69: 0.03743556923 | AI69: 0.02577701818 | AJ69: 0.4338975064 | AK69: 0.1793436228 | AL69: 0.1074595826 | AM69: 0.09473821538 | AN69: 0.1005894737 | AO69: 0.1478647234 | AP69: 0.6003221257 | AQ69: 0.2383138726 | AR69: 0.02253477512 | AS69: 0.1769521414 | AT69: 0.2449612242 | AU69: 0.05141751579 | AV69: 0.05588608 | AW69: 0.1127578947 | AX69: 1.009732039 | AY69: 0.05398422857 | AZ69: 0.1214226892 | BA69: 0.03499265268 | BB69: 0.0249154 | BC69: 0.08138558222 | BD69: 0.0623835013 | BE69: 0.1297112592 | BF69: 0.02592998356 | BG69: 0.02118594286 | BH69: 0.03221555239 | BI69: 0.0570888 | BJ69: 0.2750406931 | BK69: 0.02907403636 | BL69: 0.1315601731 | BM69: 0.5097343135 | BN69: 0.5864557143 | BO69: 0.09440722052 | BP69: 0.1537435573 | BQ69: 0.3692379299 | BR69: 0.2861526779 | BS69: 0.1880109091 | BT69: 0.07038362353 | BU69: 0.4569363792 | BV69: 0.1281792359 | BW69: 0.1378783497 | BX69: 0.6267584 | BY69: 0.1353929033 | BZ69: 0.2227279325 | CA69: 0.6320555525 | CB69: 0.2531235678 | CC69: 0.0316536 | CD69: 0.0379512 | CE69: 0.04256384 | CF69: 0.0380408 | CG69: 0.04122250435 | CH69: 0.09395488696 | CI69: 0.573706389 | CJ69: 0.03539771826 | CK69: 0.2207726023 | CL69: 0.05206843636 | CM69: 0.040604 | CN69: 0.09922204522 | CO69: 0.07453181187 | CP69: 0.036444 | CQ69: 0.0457 | CR69: 0.04828 | CS69: 0.2500701507 | CT69: 0.1836600026 | CU69: 0.0704296 | CV69: 0.08474131868 | CW69: 0.04045590857 | CX69: 0.0458456 | CY69: 0.0195424 | CZ69: 0.3977269433 | DA69: 0.05021107692 | DB69: 0.3279233614
A70: =A69+1 -> 447 | C70: 0.0222728 | D70: 0.1024628 | E70: 0.09557983636 | F70: 0.7378273643 | G70: 0.8627541579 | H70: 0.2418215841 | I70: 0.4076090291 | J70: 0.2304652074 | K70: 0.65534671 | L70: 0.7057022689 | M70: 0.3480506367 | N70: 0.02129963716 | O70: 0.2604429591 | P70: 0.03665038913 | Q70: 0.03753296842 | R70: 0.02985556211 | S70: 0.3392944726 | T70: 0.1107015535 | U70: 0.1904437422 | V70: 0.2626869671 | W70: 0.06343530638 | X70: 0.2946335135 | Y70: 0.10651344 | Z70: 0.6991992633 | AA70: 0.03014304 | AB70: 0.0971707625 | AC70: 0.06592599265 | AD70: 0.0427456 | AE70: 0.3317699337 | AF70: 0.5425313034 | AG70: 0.03341135082 | AH70: 0.03733809231 | AI70: 0.02589512273 | AJ70: 0.4386178636 | AK70: 0.1785819483 | AL70: 0.1080896011 | AM70: 0.09475126154 | AN70: 0.1009184211 | AO70: 0.1495219826 | AP70: 0.6006583533 | AQ70: 0.2400815962 | AR70: 0.02214614354 | AS70: 0.178358589 | AT70: 0.2463590245 | AU70: 0.05179344737 | AV70: 0.05575924 | AW70: 0.1125286184 | AX70: 1.00729354 | AY70: 0.0540704 | AZ70: 0.1217399952 | BA70: 0.03483729039 | BB70: 0.02461723125 | BC70: 0.08267384405 | BD70: 0.06257949091 | BE70: 0.1276362337 | BF70: 0.02620660822 | BG70: 0.0211684 | BH70: 0.03239571835 | BI70: 0.0570934 | BJ70: 0.2745784158 | BK70: 0.02901283636 | BL70: 0.1320206915 | BM70: 0.5120769521 | BN70: 0.586423125 | BO70: 0.09457784234 | BP70: 0.1548779937 | BQ70: 0.369850829 | BR70: 0.281096547 | BS70: 0.1870236364 | BT70: 0.07039075294 | BU70: 0.4584722673 | BV70: 0.1273337293 | BW70: 0.1365321101 | BX70: 0.6262832 | BY70: 0.1339314585 | BZ70: 0.2235075145 | CA70: 0.6324880814 | CB70: 0.2477315173 | CC70: 0.0316088 | CD70: 0.0379306 | CE70: 0.04251552 | CF70: 0.0379864 | CG70: 0.04134438261 | CH70: 0.09310953043 | CI70: 0.5757897046 | CJ70: 0.03558793739 | CK70: 0.2321207103 | CL70: 0.05202894545 | CM70: 0.04054970833 | CN70: 0.1006698922 | CO70: 0.07460842462 | CP70: 0.03643525 | CQ70: 0.0457 | CR70: 0.04831 | CS70: 0.2528916982 | CT70: 0.1880141639 | CU70: 0.0707798 | CV70: 0.08523336538 | CW70: 0.04049344 | CX70: 0.0458588 | CY70: 0.0195652 | CZ70: 0.4008056016 | DA70: 0.05025726923 | DB70: 0.3287050368
A71: =A70+1 -> 448 | C71: 0.02220026667 | D71: 0.1024378667 | E71: 0.09485401212 | F71: 0.7339759907 | G71: 0.8634471579 | H71: 0.2467473779 | I71: 0.4114716561 | J71: 0.2300151738 | K71: 0.65524304 | L71: 0.7057555016 | M71: 0.3447297244 | N71: 0.02156119531 | O71: 0.2609114078 | P71: 0.03700411208 | Q71: 0.03751503158 | R71: 0.02977643789 | S71: 0.3408742158 | T71: 0.1120377804 | U71: 0.1900941156 | V71: 0.2646334533 | W71: 0.0639962929 | X71: 0.295790991 | Y71: 0.10705456 | Z71: 0.6999187587 | AA71: 0.03019696 | AB71: 0.09733165714 | AC71: 0.0666538605 | AD71: 0.04272087619 | AE71: 0.3340239663 | AF71: 0.5477531386 | AG71: 0.0334991082 | AH71: 0.03726385641 | AI71: 0.02602312727 | AJ71: 0.4422831688 | AK71: 0.1777605536 | AL71: 0.1085758609 | AM71: 0.09476596923 | AN71: 0.1012684211 | AO71: 0.1511789198 | AP71: 0.6009989308 | AQ71: 0.2418474696 | AR71: 0.02176141627 | AS71: 0.1795211842 | AT71: 0.247749126 | AU71: 0.05218881404 | AV71: 0.05563669333 | AW71: 0.1123526316 | AX71: 1.004730701 | AY71: 0.05413874286 | AZ71: 0.1220743904 | BA71: 0.03468743595 | BB71: 0.02433313333 | BC71: 0.08403165994 | BD71: 0.06278165195 | BE71: 0.1255772309 | BF71: 0.02649865205 | BG71: 0.0211488381 | BH71: 0.03257167875 | BI71: 0.05709693333 | BJ71: 0.274099505 | BK71: 0.02894734545 | BL71: 0.1324676049 | BM71: 0.5143639084 | BN71: 0.5863861905 | BO71: 0.09474999369 | BP71: 0.1559002855 | BQ71: 0.3703307385 | BR71: 0.2761510482 | BS71: 0.1859763636 | BT71: 0.07039587451 | BU71: 0.4599953926 | BV71: 0.1264652398 | BW71: 0.1351786014 | BX71: 0.6257888 | BY71: 0.1324736203 | BZ71: 0.2243128289 | CA71: 0.6328171842 | CB71: 0.2424113621 | CC71: 0.0315672 | CD71: 0.0379144 | CE71: 0.04247061333 | CF71: 0.0379416 | CG71: 0.0414650087 | CH71: 0.09223412174 | CI71: 0.5778505287 | CJ71: 0.03578694957 | CK71: 0.2432736332 | CL71: 0.05198705455 | CM71: 0.04049688889 | CN71: 0.1020889484 | CO71: 0.07467829626 | CP71: 0.03642533333 | CQ71: 0.0457 | CR71: 0.04834 | CS71: 0.2553786777 | CT71: 0.1922739623 | CU71: 0.0710552 | CV71: 0.08573758242 | CW71: 0.04052987429 | CX71: 0.04587253333 | CY71: 0.01958346667 | CZ71: 0.4033562878 | DA71: 0.05030369231 | DB71: 0.3293387675
A72: =A71+1 -> 449 | C72: 0.0221416 | D72: 0.1024164 | E72: 0.09437369091 | F72: 0.7302191191 | G72: 0.8641298421 | H72: 0.2514761927 | I72: 0.4154331721 | J72: 0.2295251959 | K72: 0.65512733 | L72: 0.7057886098 | M72: 0.34138031 | N72: 0.02182935737 | O72: 0.2613665656 | P72: 0.03735660217 | Q72: 0.03750385263 | R72: 0.02969182316 | S72: 0.3425080046 | T72: 0.1134064801 | U72: 0.1897117763 | V72: 0.2665450063 | W72: 0.06455605535 | X72: 0.2965362162 | Y72: 0.10755312 | Z72: 0.700620705 | AA72: 0.03024992 | AB72: 0.09750850179 | AC72: 0.0674148105 | AD72: 0.04270537143 | AE72: 0.3354819905 | AF72: 0.5519702938 | AG72: 0.03359556066 | AH72: 0.03721658462 | AI72: 0.02615882273 | AJ72: 0.4446562662 | AK72: 0.1768947878 | AL72: 0.1088890859 | AM72: 0.09478224615 | AN72: 0.1016315789 | AO72: 0.152837578 | AP72: 0.6013455743 | AQ72: 0.2436180764 | AR72: 0.02137967464 | AS72: 0.1803862226 | AT72: 0.2491299705 | AU72: 0.05259415263 | AV72: 0.05551732 | AW72: 0.1122398026 | AX72: 1.002110522 | AY72: 0.05418377143 | AZ72: 0.1224272627 | BA72: 0.03454202671 | BB72: 0.02406131875 | BC72: 0.08544504141 | BD72: 0.06298886234 | BE72: 0.1235324275 | BF72: 0.02679886575 | BG72: 0.02112634286 | BH72: 0.03274068788 | BI72: 0.0570992 | BJ72: 0.2736185149 | BK72: 0.02887669091 | BL72: 0.1328957592 | BM72: 0.5166024889 | BN72: 0.5863450893 | BO72: 0.09492395333 | BP72: 0.1567833239 | BQ72: 0.3706547613 | BR72: 0.2713931948 | BS72: 0.1848936364 | BT72: 0.07039896471 | BU72: 0.4615049164 | BV72: 0.1255839394 | BW72: 0.1338303794 | BX72: 0.6252896 | BY72: 0.1310271978 | BZ72: 0.225118712 | CA72: 0.6330265831 | CB72: 0.2371914178 | CC72: 0.0315304 | CD72: 0.0379038 | CE72: 0.04243136 | CF72: 0.0379112 | CG72: 0.04158375652 | CH72: 0.09135537391 | CI72: 0.5798876856 | CJ72: 0.03599191652 | CK72: 0.2540578901 | CL72: 0.05194374545 | CM72: 0.040446625 | CN72: 0.1034440417 | CO72: 0.07474197275 | CP72: 0.03641375 | CQ72: 0.0457 | CR72: 0.04837 | CS72: 0.257493856 | CT72: 0.1962867802 | CU72: 0.0712354 | CV72: 0.08625833791 | CW72: 0.04056534857 | CX72: 0.0458864 | CY72: 0.0195956 | CZ72: 0.4053105659 | DA72: 0.05035103846 | DB72: 0.3298089548
A73: =A72+1 -> 450 | C73: 0.0221 | D73: 0.1024 | E73: 0.0942 | F73: 0.7267 | G73: 0.8648 | H73: 0.2559 | I73: 0.4195 | J73: 0.229 | K73: 0.655 | L73: 0.7058 | M73: 0.3381 | N73: 0.0221 | O73: 0.2618 | P73: 0.0377 | Q73: 0.0375 | R73: 0.0296 | S73: 0.3442 | T73: 0.1148 | U73: 0.1893 | V73: 0.2684 | W73: 0.0651 | X73: 0.2968 | Y73: 0.108 | Z73: 0.7013 | AA73: 0.0303 | AB73: 0.0977 | AC73: 0.0682 | AD73: 0.0427 | AE73: 0.336 | AF73: 0.555 | AG73: 0.0337 | AH73: 0.0372 | AI73: 0.0263 | AJ73: 0.4455 | AK73: 0.176 | AL73: 0.109 | AM73: 0.0948 | AN73: 0.102 | AO73: 0.1545 | AP73: 0.6017 | AQ73: 0.2454 | AR73: 0.021 | AS73: 0.1809 | AT73: 0.2505 | AU73: 0.053 | AV73: 0.0554 | AW73: 0.1122 | AX73: 0.9995 | AY73: 0.0542 | AZ73: 0.1228 | BA73: 0.0344 | BB73: 0.0238 | BC73: 0.0869 | BD73: 0.0632 | BE73: 0.1215 | BF73: 0.0271 | BG73: 0.0211 | BH73: 0.0329 | BI73: 0.0571 | BJ73: 0.27315 | BK73: 0.0288 | BL73: 0.1333 | BM73: 0.5188 | BN73: 0.5863 | BO73: 0.0951 | BP73: 0.1575 | BQ73: 0.3708 | BR73: 0.2669 | BS73: 0.1838 | BT73: 0.0704 | BU73: 0.463 | BV73: 0.1247 | BW73: 0.1325 | BX73: 0.6248 | BY73: 0.1296 | BZ73: 0.2259 | CA73: 0.6331 | CB73: 0.2321 | CC73: 0.0315 | CD73: 0.0379 | CE73: 0.0424 | CF73: 0.0379 | CG73: 0.0417 | CH73: 0.0905 | CI73: 0.5819 | CJ73: 0.0362 | CK73: 0.2643 | CL73: 0.0519 | CM73: 0.0404 | CN73: 0.1047 | CO73: 0.0748 | CP73: 0.0364 | CQ73: 0.0457 | CR73: 0.0484 | CS73: 0.2592 | CT73: 0.1999 | CU73: 0.0713 | CV73: 0.0868 | CW73: 0.0406 | CX73: 0.0459 | CY73: 0.0196 | CZ73: 0.4066 | DA73: 0.0504 | DB73: 0.3301
A74: =A73+1 -> 451 | C74: 0.02207028 | D74: 0.1023873 | E74: 0.09420533333 | F74: 0.7230658967 | G74: 0.8654645201 | H74: 0.2602050528 | I74: 0.423743549 | J74: 0.22818262 | K74: 0.6546750367 | L74: 0.705664593 | M74: 0.3346199976 | N74: 0.02239043494 | O74: 0.2622360217 | P74: 0.0380637764 | Q74: 0.0375 | R74: 0.02950027077 | S74: 0.3459772154 | T74: 0.1162682061 | U74: 0.1886217006 | V74: 0.2702853551 | W74: 0.06567805065 | X74: 0.2966605638 | Y74: 0.108417166 | Z74: 0.7019785576 | AA74: 0.03035568 | AB74: 0.09808746397 | AC74: 0.06911233387 | AD74: 0.0427056 | AE74: 0.3359768611 | AF74: 0.5573353976 | AG74: 0.03390746077 | AH74: 0.0372028 | AI74: 0.02650225634 | AJ74: 0.4454250577 | AK74: 0.174899232 | AL74: 0.1089776 | AM74: 0.0948332758 | AN74: 0.1024155868 | AO74: 0.1561691575 | AP74: 0.6020669235 | AQ74: 0.2471945529 | AR74: 0.0206211634 | AS74: 0.1812097988 | AT74: 0.2518678831 | AU74: 0.05343239145 | AV74: 0.05528425 | AW74: 0.1122022769 | AX74: 0.9964371569 | AY74: 0.0541951 | AZ74: 0.1232058264 | BA74: 0.03426039927 | BB74: 0.02354629375 | BC74: 0.08846045116 | BD74: 0.06341544712 | BE74: 0.1194676966 | BF74: 0.02742198879 | BG74: 0.02106542857 | BH74: 0.03305097419 | BI74: 0.0570888 | BJ74: 0.2726223131 | BK74: 0.02870955789 | BL74: 0.1336673389 | BM74: 0.5209483592 | BN74: 0.5861513107 | BO74: 0.09527273222 | BP74: 0.1580777523 | BQ74: 0.3708418496 | BR74: 0.2626320673 | BS74: 0.1825317483 | BT74: 0.0702567033 | BU74: 0.4644822794 | BV74: 0.123775128 | BW74: 0.1311675771 | BX74: 0.6242879297 | BY74: 0.128175754 | BZ74: 0.2267792107 | CA74: 0.632975568 | CB74: 0.2270869824 | CC74: 0.0314728 | CD74: 0.0379 | CE74: 0.042374 | CF74: 0.03792565789 | CG74: 0.04182212391 | CH74: 0.08960177884 | CI74: 0.5838963201 | CJ74: 0.03642252174 | CK74: 0.2743227621 | CL74: 0.05184945455 | CM74: 0.0403564 | CN74: 0.1059312183 | CO74: 0.07485206154 | CP74: 0.03638215 | CQ74: 0.0456916 | CR74: 0.04843135 | CS74: 0.2606277447 | CT74: 0.2031831308 | CU74: 0.07127864186 | CV74: 0.08736017127 | CW74: 0.04063401143 | CX74: 0.0459152 | CY74: 0.0196 | CZ74: 0.407507902 | DA74: 0.0504545 | DB74: 0.3302897824
A75: =A74+1 -> 452 | C75: 0.02204464 | D75: 0.1023757333 | E75: 0.09422118519 | F75: 0.7189636213 | G75: 0.8661296853 | H75: 0.2646081616 | I75: 0.4282024632 | J75: 0.2268650604 | K75: 0.6539982637 | L75: 0.7052807752 | M75: 0.3306553691 | N75: 0.0227167329 | O75: 0.2626969025 | P75: 0.03847323395 | Q75: 0.0375 | R75: 0.02939367385 | S75: 0.3478545663 | T75: 0.1178508816 | U75: 0.1874858023 | V75: 0.2722718315 | W75: 0.0663351951 | X75: 0.2962651159 | Y75: 0.1088291237 | Z75: 0.702674175 | AA75: 0.03042384 | AB75: 0.09880510998 | AC75: 0.07023109726 | AD75: 0.0427208 | AE75: 0.3359092841 | AF75: 0.5595688753 | AG75: 0.03428896799 | AH75: 0.0372104 | AI75: 0.02680559831 | AJ75: 0.4452086497 | AK75: 0.1734417393 | AL75: 0.1089132444 | AM75: 0.09489410882 | AN75: 0.1029192795 | AO75: 0.1578445839 | AP75: 0.6024472837 | AQ75: 0.2489956568 | AR75: 0.02024334121 | AS75: 0.1814971141 | AT75: 0.2532401313 | AU75: 0.05392200937 | AV75: 0.05517066667 | AW75: 0.1122089846 | AX75: 0.9925530459 | AY75: 0.0541808 | AZ75: 0.1236534819 | BA75: 0.03412341198 | BB75: 0.02329926667 | BC75: 0.09019320252 | BD75: 0.06363722612 | BE75: 0.1174303212 | BF75: 0.02778927522 | BG75: 0.02102057143 | BH75: 0.03319734194 | BI75: 0.0570584 | BJ75: 0.2719763276 | BK75: 0.02860109474 | BL75: 0.1339965215 | BM75: 0.5230382185 | BN75: 0.5858290095 | BO75: 0.09543888828 | BP75: 0.1585742079 | BQ75: 0.3708727669 | BR75: 0.2584845505 | BS75: 0.1809472261 | BT75: 0.06985494505 | BU75: 0.4659537483 | BV75: 0.1227749997 | BW75: 0.1298087995 | BX75: 0.6237153055 | BY75: 0.1267373192 | BZ75: 0.2278566741 | CA75: 0.6326233529 | CB75: 0.2220936165 | CC75: 0.03144506667 | CD75: 0.0379 | CE75: 0.04234933333 | CF75: 0.03799789474 | CG75: 0.04195545507 | CH75: 0.08858864362 | CI75: 0.5858832696 | CJ75: 0.0366706087 | CK75: 0.2844891303 | CL75: 0.05178654545 | CM75: 0.04031431111 | CN75: 0.107215976 | CO75: 0.07489827009 | CP75: 0.0363592 | CQ75: 0.0456688 | CR75: 0.0484648 | CS75: 0.2619372361 | CT75: 0.2063341657 | CU75: 0.07121694884 | CV75: 0.08793356136 | CW75: 0.04066740571 | CX75: 0.0459336 | CY75: 0.0196 | CZ75: 0.408357376 | DA75: 0.050516 | DB75: 0.3304656314
A76: =A75+1 -> 453 | C76: 0.02202236 | D76: 0.1023651 | E76: 0.09424733333 | F76: 0.7145357468 | G76: 0.8667923772 | H76: 0.2690471344 | I76: 0.4328340183 | J76: 0.2251255036 | K76: 0.6530178567 | L76: 0.7046821512 | M76: 0.3262795163 | N76: 0.023072909 | O76: 0.2631711518 | P76: 0.03891426087 | Q76: 0.0375 | R76: 0.02928109538 | S76: 0.3498180671 | T76: 0.1195252499 | U76: 0.1859645963 | V76: 0.2743135626 | W76: 0.06704943562 | X76: 0.2956479469 | Y76: 0.1092305623 | Z76: 0.7033755749 | AA76: 0.03050016 | AB76: 0.09978099777 | AC76: 0.07151201795 | AD76: 0.0427432 | AE76: 0.335800028 | AF76: 0.5616665365 | AG76: 0.03480779918 | AH76: 0.0372216 | AI76: 0.02718443076 | AJ76: 0.444863404 | AK76: 0.1716821908 | AL76: 0.1088112 | AM76: 0.09497939212 | AN76: 0.1035017394 | AO76: 0.1595231653 | AP76: 0.6028371314 | AQ76: 0.250798809 | AR76: 0.01986772275 | AS76: 0.1817595607 | AT76: 0.2546119508 | AU76: 0.0544663612 | AV76: 0.05505975 | AW76: 0.1122199385 | AX76: 0.9880542127 | AY76: 0.0541577 | AZ76: 0.1241376283 | BA76: 0.03398969147 | BB76: 0.02306005625 | BC76: 0.09208860391 | BD76: 0.06386667529 | BE76: 0.1153966345 | BF76: 0.0282013736 | BG76: 0.020968 | BH76: 0.03333991613 | BI76: 0.0570136 | BJ76: 0.2712453795 | BK76: 0.02847890526 | BL76: 0.1342999948 | BM76: 0.5250749853 | BN76: 0.585377675 | BO76: 0.09560195655 | BP76: 0.1590075402 | BQ76: 0.3708954474 | BR76: 0.2544362881 | BS76: 0.1791040559 | BT76: 0.06923692308 | BU76: 0.4674141038 | BV76: 0.1217157423 | BW76: 0.1284295853 | BX76: 0.6230875077 | BY76: 0.1252912036 | BZ76: 0.2290739446 | CA76: 0.632074976 | CB76: 0.2171352843 | CC76: 0.0314176 | CD76: 0.0379 | CE76: 0.042326 | CF76: 0.03810960526 | CG76: 0.04209478043 | CH76: 0.08747853886 | CI76: 0.5878563358 | CJ76: 0.03694113043 | CK76: 0.2946858553 | CL76: 0.05171345455 | CM76: 0.04027346667 | CN76: 0.1085249278 | CO76: 0.07493981538 | CP76: 0.03633205 | CQ76: 0.0456352 | CR76: 0.04849945 | CS76: 0.2631355071 | CT76: 0.2093932131 | CU76: 0.07111849302 | CV76: 0.08852019892 | CW76: 0.04070008 | CX76: 0.0459544 | CY76: 0.0196 | CZ76: 0.409139674 | DA76: 0.0505815 | DB76: 0.3306261235
A77: =A76+1 -> 454 | C77: 0.02200272 | D77: 0.1023552 | E77: 0.09428355556 | F77: 0.7099248464 | G77: 0.8674494771 | H77: 0.273459779 | I77: 0.4375954899 | J77: 0.2230421319 | K77: 0.6517819911 | L77: 0.7039023256 | M77: 0.3215658408 | N77: 0.02345297836 | O77: 0.263647279 | P77: 0.03937274534 | Q77: 0.0375 | R77: 0.02916342154 | S77: 0.3518537327 | T77: 0.1212685345 | U77: 0.1841303738 | V77: 0.2763646815 | W77: 0.06779877449 | X77: 0.2948433476 | Y77: 0.1096161712 | Z77: 0.7040714802 | AA77: 0.03058032 | AB77: 0.1009431871 | AC77: 0.07291082371 | AD77: 0.0427704 | AE77: 0.3356518522 | AF77: 0.5635944847 | AG77: 0.03542723185 | AH77: 0.0372352 | AI77: 0.02761315856 | AJ77: 0.444401949 | AK77: 0.1696752558 | AL77: 0.1086757333 | AM77: 0.09508601876 | AN77: 0.1041536279 | AO77: 0.1612017877 | AP77: 0.6032325176 | AQ77: 0.2525995068 | AR77: 0.01949549733 | AS77: 0.1819947534 | AT77: 0.2559785477 | AU77: 0.05506295441 | AV77: 0.054952 | AW77: 0.1122349538 | AX77: 0.983147203 | AY77: 0.0541264 | AZ77: 0.1246529277 | BA77: 0.03385989111 | BB77: 0.0228298 | BC77: 0.09413700515 | BD77: 0.06410513291 | BE77: 0.113375397 | BF77: 0.02865779826 | BG77: 0.02091028571 | BH77: 0.03347950968 | BI77: 0.0569592 | BJ77: 0.2704628046 | BK77: 0.02834728421 | BL77: 0.1345902059 | BM77: 0.5270640672 | BN77: 0.5848418857 | BO77: 0.0957654254 | BP77: 0.159395923 | BQ77: 0.3709125865 | BR77: 0.2504661184 | BS77: 0.1770598601 | BT77: 0.06844483516 | BU77: 0.4688630434 | BV77: 0.1206134828 | BW77: 0.1270358529 | BX77: 0.6224099165 | BY77: 0.1238439151 | BZ77: 0.2303725766 | CA77: 0.6313620587 | CB77: 0.2122273679 | CC77: 0.0313912 | CD77: 0.0379 | CE77: 0.042304 | CF77: 0.03825368421 | CG77: 0.04223488696 | CH77: 0.08628940911 | CI77: 0.5898110059 | CJ77: 0.03723095652 | CK77: 0.3047996882 | CL77: 0.05163236364 | CM77: 0.0402336 | CN77: 0.1098287281 | CO77: 0.07497788718 | CP77: 0.0363016 | CQ77: 0.0455944 | CR77: 0.0485344 | CS77: 0.2642295906 | CT77: 0.2124003814 | CU77: 0.07098684651 | CV77: 0.08912011264 | CW77: 0.04073193143 | CX77: 0.0459768 | CY77: 0.0196 | CZ77: 0.409846048 | DA77: 0.050648 | DB77: 0.3307698353
A78: =A77+1 -> 455 | C78: 0.021985 | D78: 0.1023458333 | E78: 0.09432962963 | F78: 0.7052734934 | G78: 0.8680978663 | H78: 0.2777839035 | I78: 0.4424441536 | J78: 0.2206931277 | K78: 0.6503388426 | L78: 0.7029749031 | M78: 0.3165877441 | N78: 0.02385095611 | O78: 0.2641137933 | P78: 0.03983457557 | Q78: 0.0375 | R78: 0.02904153846 | S78: 0.3539475774 | T78: 0.1230579589 | U78: 0.1820554259 | V78: 0.2783793214 | W78: 0.06856121396 | X78: 0.2938856089 | Y78: 0.1099806395 | Z78: 0.7047506136 | AA78: 0.03066 | AB78: 0.1022197376 | AC78: 0.07438324231 | AD78: 0.0428 | AE78: 0.3354675159 | AF78: 0.5653188235 | AG78: 0.03611054352 | AH78: 0.03725 | AI78: 0.02806618658 | AJ78: 0.4438369128 | AK78: 0.1674756034 | AL78: 0.1085111111 | AM78: 0.0952108818 | AN78: 0.1048656065 | AO78: 0.1628773372 | AP78: 0.6036294935 | AQ78: 0.2543932475 | AR78: 0.01912785425 | AS78: 0.1822003067 | AT78: 0.2573351282 | AU78: 0.05570929646 | AV78: 0.05484791667 | AW78: 0.1122538462 | AX78: 0.9780385625 | AY78: 0.0540875 | AZ78: 0.1251940417 | BA78: 0.03373466425 | BB78: 0.02260963542 | BC78: 0.09632875608 | BD78: 0.06435393726 | BE78: 0.1113753695 | BF78: 0.02915806351 | BG78: 0.02085 | BH78: 0.03361693548 | BI78: 0.0569 | BJ78: 0.2696619388 | BK78: 0.02821052632 | BL78: 0.1348796018 | BM78: 0.5290108718 | BN78: 0.5842662202 | BO78: 0.09593278322 | BP78: 0.1597575298 | BQ78: 0.3709268797 | BR78: 0.2465528799 | BS78: 0.1748722611 | BT78: 0.06752087912 | BU78: 0.4703002645 | BV78: 0.1194843483 | BW78: 0.1256335206 | BX78: 0.6216879121 | BY78: 0.1224019617 | BZ78: 0.2316941242 | CA78: 0.6305162222 | CB78: 0.2073852494 | CC78: 0.03136666667 | CD78: 0.0379 | CE78: 0.04228333333 | CF78: 0.03842302632 | CG78: 0.04237056159 | CH78: 0.0850391989 | CI78: 0.5917427674 | CJ78: 0.03753695652 | CK78: 0.3147173797 | CL78: 0.05154545455 | CM78: 0.04019444444 | CN78: 0.1110980313 | CO78: 0.07501367521 | CP78: 0.03626875 | CQ78: 0.04555 | CR78: 0.04856875 | CS78: 0.2652265196 | CT78: 0.215395779 | CU78: 0.0708255814 | CV78: 0.08973333119 | CW78: 0.04076285714 | CX78: 0.046 | CY78: 0.0196 | CZ78: 0.41046775 | DA78: 0.0507125 | DB78: 0.3308953431
A79: =A78+1 -> 456 | C79: 0.02196848 | D79: 0.1023368 | E79: 0.09438533333 | F79: 0.7007242609 | G79: 0.8687344262 | H79: 0.2819573156 | I79: 0.447337285 | J79: 0.2181566733 | K79: 0.6487365867 | L79: 0.7019334884 | M79: 0.3114186278 | N79: 0.02426085737 | O79: 0.2645592042 | P79: 0.04028563975 | Q79: 0.0375 | R79: 0.02891633231 | S79: 0.3560856159 | T79: 0.1248707466 | U79: 0.179812044 | V79: 0.2803116156 | W79: 0.06931475632 | X79: 0.2928090214 | Y79: 0.1103186567 | Z79: 0.7054016979 | AA79: 0.03073488 | AB79: 0.1035387092 | AC79: 0.07588500152 | AD79: 0.0428296 | AE79: 0.3352497783 | AF79: 0.5668056565 | AG79: 0.03682101171 | AH79: 0.0372648 | AI79: 0.02851791966 | AJ79: 0.4431809235 | AK79: 0.1651379027 | AL79: 0.1083216 | AM79: 0.0953508743 | AN79: 0.1056283366 | AO79: 0.1645466996 | AP79: 0.6040241098 | AQ79: 0.2561755283 | AR79: 0.01876598283 | AS79: 0.1823738356 | AT79: 0.2586768985 | AU79: 0.05640289478 | AV79: 0.054748 | AW79: 0.1122764308 | AX79: 0.9729348371 | AY79: 0.0540416 | AZ79: 0.1257556324 | BA79: 0.03361466425 | BB79: 0.0224007 | BC79: 0.09865420653 | BD79: 0.06461442663 | BE79: 0.1094053123 | BF79: 0.02970168369 | BG79: 0.02078971429 | BH79: 0.03375300645 | BI79: 0.0568408 | BJ79: 0.2688761178 | BK79: 0.02807292632 | BL79: 0.1351806296 | BM79: 0.5309208067 | BN79: 0.5836952571 | BO79: 0.09610751838 | BP79: 0.1601105342 | BQ79: 0.3709410226 | BR79: 0.242675411 | BS79: 0.1725988811 | BT79: 0.06650725275 | BU79: 0.4717254645 | BV79: 0.1183444659 | BW79: 0.1242285067 | BX79: 0.6209268747 | BY79: 0.1209718514 | BZ79: 0.2329801419 | CA79: 0.629569088 | CB79: 0.202624311 | CC79: 0.0313448 | CD79: 0.0379 | CE79: 0.042264 | CF79: 0.03861052632 | CG79: 0.0424965913 | CH79: 0.08374585279 | CI79: 0.5936471074 | CJ79: 0.037856 | CK79: 0.3243256809 | CL79: 0.05145490909 | CM79: 0.04015573333 | CN79: 0.1123034921 | CO79: 0.07504836923 | CP79: 0.0362344 | CQ79: 0.0455056 | CR79: 0.0486016 | CS79: 0.2661333271 | CT79: 0.2184195143 | CU79: 0.07063826977 | CV79: 0.09035988325 | CW79: 0.04079275429 | CX79: 0.0460232 | CY79: 0.0196 | CZ79: 0.410996032 | DA79: 0.050772 | DB79: 0.3310012235
A80: =A79+1 -> 457 | C80: 0.02195244 | D80: 0.1023279 | E80: 0.09445044444 | F80: 0.6964197222 | G80: 0.8693560381 | H80: 0.2859178234 | I80: 0.4522321598 | J80: 0.215510951 | K80: 0.6470233989 | L80: 0.700811686 | M80: 0.3061318937 | N80: 0.02467669726 | O80: 0.2649720209 | P80: 0.04071182609 | Q80: 0.0375 | R80: 0.02878868923 | S80: 0.3582538629 | T80: 0.126684121 | U80: 0.1774725193 | V80: 0.2821156973 | W80: 0.07003740384 | X80: 0.291647876 | Y80: 0.1106249121 | Z80: 0.7060134559 | AA80: 0.03080064 | AB80: 0.1048281615 | AC80: 0.07737182912 | AD80: 0.0428568 | AE80: 0.3350013987 | AF80: 0.5680210871 | AG80: 0.03752191393 | AH80: 0.0372784 | AI80: 0.02894276268 | AJ80: 0.4424466094 | AK80: 0.1627168229 | AL80: 0.1081114667 | AM80: 0.09550288931 | AN80: 0.1064324796 | AO80: 0.1662067611 | AP80: 0.6044124176 | AQ80: 0.2579418467 | AR80: 0.01841107239 | AS80: 0.1825129546 | AT80: 0.2599990646 | AU80: 0.05714125684 | AV80: 0.05465275 | AW80: 0.1123025231 | AX80: 0.9680425723 | AY80: 0.0539893 | AZ80: 0.1263323617 | BA80: 0.03350054446 | BB80: 0.02220413125 | BC80: 0.1011037063 | BD80: 0.06488793931 | BE80: 0.1074739862 | BF80: 0.0302881731 | BG80: 0.020732 | BH80: 0.03388853548 | BI80: 0.0567864 | BJ80: 0.2681386776 | BK80: 0.02793877895 | BL80: 0.1355057362 | BM80: 0.5327992794 | BN80: 0.583173575 | BO80: 0.09629311927 | BP80: 0.1604731098 | BQ80: 0.3709577105 | BR80: 0.2388125502 | BS80: 0.1702973427 | BT80: 0.06544615385 | BU80: 0.4731383406 | BV80: 0.1172099628 | BW80: 0.1228267293 | BX80: 0.6201321846 | BY80: 0.1195600922 | BZ80: 0.2341721841 | CA80: 0.6285522773 | CB80: 0.1979599347 | CC80: 0.0313264 | CD80: 0.0379 | CE80: 0.042246 | CF80: 0.03880907895 | CG80: 0.04260776304 | CH80: 0.0824273153 | CI80: 0.5955195134 | CJ80: 0.03818495652 | CK80: 0.3335113426 | CL80: 0.05136290909 | CM80: 0.0401172 | CN80: 0.1134157648 | CO80: 0.07508315897 | CP80: 0.03619945 | CQ80: 0.0454648 | CR80: 0.04863205 | CS80: 0.2669570459 | CT80: 0.2215116957 | CU80: 0.07042848372 | CV80: 0.09099979748 | CW80: 0.04082152 | CX80: 0.0460456 | CY80: 0.0196 | CZ80: 0.411422146 | DA80: 0.0508235 | DB80: 0.3310860529
A81: =A80+1 -> 458 | C81: 0.02193616 | D81: 0.1023189333 | E81: 0.09452474074 | F81: 0.6925024503 | G81: 0.8699595835 | H81: 0.2896032348 | I81: 0.4570860534 | J81: 0.2128341431 | K81: 0.6452474548 | L81: 0.6996431008 | M81: 0.3008009433 | N81: 0.02509249092 | O81: 0.2653407529 | P81: 0.04109902277 | Q81: 0.0375 | R81: 0.02865949538 | S81: 0.3604383328 | T81: 0.1284753058 | U81: 0.1751091429 | V81: 0.2837456998 | W81: 0.07070715877 | X81: 0.2904364635 | Y81: 0.1108940949 | Z81: 0.7065746104 | AA81: 0.03085296 | AB81: 0.1060161542 | AC81: 0.07879945289 | AD81: 0.0428792 | AE81: 0.3347251363 | AF81: 0.5689312188 | AG81: 0.03817652771 | AH81: 0.0372896 | AI81: 0.02931512051 | AJ81: 0.4416465987 | AK81: 0.1602670331 | AL81: 0.1078849778 | AM81: 0.09566381989 | AN81: 0.1072686969 | AO81: 0.1678544077 | AP81: 0.604790468 | AQ81: 0.2596876999 | AR81: 0.01806431223 | AS81: 0.1826152785 | AT81: 0.2612968328 | AU81: 0.0579218901 | AV81: 0.05456266667 | AW81: 0.1123319385 | AX81: 0.9635683141 | AY81: 0.0539312 | AZ81: 0.1269188915 | BA81: 0.03339295826 | BB81: 0.02202106667 | BC81: 0.1036676053 | BD81: 0.06517581357 | BE81: 0.1055901517 | BF81: 0.03091704608 | BG81: 0.02067942857 | BH81: 0.03402433548 | BI81: 0.0567416 | BJ81: 0.267482954 | BK81: 0.02781237895 | BL81: 0.1358673688 | BM81: 0.5346516975 | BN81: 0.5827457524 | BO81: 0.09649307424 | BP81: 0.1608634302 | BQ81: 0.3709796391 | BR81: 0.2349431357 | BS81: 0.1680252681 | BT81: 0.06437978022 | BU81: 0.4745385903 | BV81: 0.116096966 | BW81: 0.1214341069 | BX81: 0.619309222 | BY81: 0.1181731919 | BZ81: 0.2352118049 | CA81: 0.6274974116 | CB81: 0.1934075027 | CC81: 0.03131226667 | CD81: 0.0379 | CE81: 0.04222933333 | CF81: 0.03901157895 | CG81: 0.04269886377 | CH81: 0.08110153098 | CI81: 0.5973554726 | CJ81: 0.03852069565 | CK81: 0.3421611158 | CL81: 0.05127163636 | CM81: 0.04007857778 | CN81: 0.1144055041 | CO81: 0.07511923419 | CP81: 0.0361648 | CQ81: 0.0454312 | CR81: 0.0486592 | CS81: 0.267704709 | CT81: 0.2247124315 | CU81: 0.07019979535 | CV81: 0.09165310257 | CW81: 0.04084905143 | CX81: 0.0460664 | CY81: 0.0196 | CZ81: 0.411737344 | DA81: 0.050864 | DB81: 0.3311484078
A82: =A81+1 -> 459 | C82: 0.02191892 | D82: 0.1023097 | E82: 0.094608 | F82: 0.6891150185 | G82: 0.8705419437 | H82: 0.2929513577 | I82: 0.4618562416 | J82: 0.210204432 | K82: 0.64345693 | L82: 0.6984613372 | M82: 0.2954991782 | N82: 0.02550225346 | O82: 0.2656539095 | P82: 0.04143311801 | Q82: 0.0375 | R82: 0.02852963692 | S82: 0.3626250403 | T82: 0.1302215243 | U82: 0.1727942061 | V82: 0.2851557563 | W82: 0.07130202341 | X82: 0.2892090745 | Y82: 0.1111208944 | Z82: 0.7070738842 | AA82: 0.03088752 | AB82: 0.1070307471 | AC82: 0.08012360059 | AD82: 0.0428944 | AE82: 0.3344237503 | AF82: 0.5695021553 | AG82: 0.03874813056 | AH82: 0.0372972 | AI82: 0.02960939799 | AJ82: 0.4407935195 | AK82: 0.1578432024 | AL82: 0.1076464 | AM82: 0.0958305591 | AN82: 0.1081276499 | AO82: 0.1694865253 | AP82: 0.6051543118 | AQ82: 0.2614085852 | AR82: 0.01772689166 | AS82: 0.1826784221 | AT82: 0.2625654092 | AU82: 0.058742302 | AV82: 0.05447825 | AW82: 0.1123644923 | AX82: 0.9597186081 | AY82: 0.0538679 | AZ82: 0.1275098836 | BA82: 0.03329255898 | BB82: 0.02185264375 | BC82: 0.1063362532 | BD82: 0.06547938771 | BE82: 0.1037625695 | BF82: 0.03158781694 | BG82: 0.02063457143 | BH82: 0.03416121935 | BI82: 0.0567112 | BJ82: 0.2669422828 | BK82: 0.02769802105 | BL82: 0.1362779744 | BM82: 0.5364834685 | BN82: 0.5824563679 | BO82: 0.0967108717 | BP82: 0.1612996691 | BQ82: 0.3710095038 | BR82: 0.2310460062 | BS82: 0.1658402797 | BT82: 0.06335032967 | BU82: 0.475925911 | BV82: 0.1150216027 | BW82: 0.1200565577 | BX82: 0.618463367 | BY82: 0.1168176585 | BZ82: 0.2360405588 | CA82: 0.626436112 | CB82: 0.1889823971 | CC82: 0.0313032 | CD82: 0.0379 | CE82: 0.042214 | CF82: 0.03921092105 | CG82: 0.04276468043 | CH82: 0.07978644437 | CI82: 0.5991504724 | CJ82: 0.03886008696 | CK82: 0.3501617513 | CL82: 0.05118327273 | CM82: 0.0400396 | CN82: 0.1152433643 | CO82: 0.07515778462 | CP82: 0.03613135 | CQ82: 0.0454084 | CR82: 0.04868215 | CS82: 0.2683833494 | CT82: 0.2280618301 | CU82: 0.06995577674 | CV82: 0.09231982718 | CW82: 0.04087524571 | CX82: 0.0460848 | CY82: 0.0196 | CZ82: 0.411932878 | DA82: 0.0508905 | DB82: 0.3311868647
A83: =A82+1 -> 460 | C83: 0.0219 | D83: 0.1023 | E83: 0.0947 | F83: 0.6864 | G83: 0.8711 | H83: 0.2959 | I83: 0.4665 | J83: 0.2077 | K83: 0.6417 | L83: 0.6973 | M83: 0.2903 | N83: 0.0259 | O83: 0.2659 | P83: 0.0417 | Q83: 0.0375 | R83: 0.0284 | S83: 0.3648 | T83: 0.1319 | U83: 0.1706 | V83: 0.2863 | W83: 0.0718 | X83: 0.288 | Y83: 0.1113 | Z83: 0.7075 | AA83: 0.0309 | AB83: 0.1078 | AC83: 0.0813 | AD83: 0.0429 | AE83: 0.3341 | AF83: 0.5697 | AG83: 0.0392 | AH83: 0.0373 | AI83: 0.0298 | AJ83: 0.4399 | AK83: 0.1555 | AL83: 0.1074 | AM83: 0.096 | AN83: 0.109 | AO83: 0.1711 | AP83: 0.6055 | AQ83: 0.2631 | AR83: 0.0174 | AS83: 0.1827 | AT83: 0.2638 | AU83: 0.0596 | AV83: 0.0544 | AW83: 0.1124 | AX83: 0.9567 | AY83: 0.0538 | AZ83: 0.1281 | BA83: 0.0332 | BB83: 0.0217 | BC83: 0.1091 | BD83: 0.0658 | BE83: 0.102 | BF83: 0.0323 | BG83: 0.0206 | BH83: 0.0343 | BI83: 0.0567 | BJ83: 0.26655 | BK83: 0.0276 | BL83: 0.13675 | BM83: 0.5383 | BN83: 0.58235 | BO83: 0.09695 | BP83: 0.1618 | BQ83: 0.37105 | BR83: 0.2271 | BS83: 0.1638 | BT83: 0.0624 | BU83: 0.4773 | BV83: 0.114 | BW83: 0.1187 | BX83: 0.6176 | BY83: 0.1155 | BZ83: 0.2366 | CA83: 0.6254 | CB83: 0.1847 | CC83: 0.0313 | CD83: 0.0379 | CE83: 0.0422 | CF83: 0.0394 | CG83: 0.0428 | CH83: 0.0785 | CI83: 0.6009 | CJ83: 0.0392 | CK83: 0.3574 | CL83: 0.0511 | CM83: 0.04 | CN83: 0.1159 | CO83: 0.0752 | CP83: 0.0361 | CQ83: 0.0454 | CR83: 0.0487 | CS83: 0.269 | CT83: 0.2316 | CU83: 0.0697 | CV83: 0.093 | CW83: 0.0409 | CX83: 0.0461 | CY83: 0.0196 | CZ83: 0.412 | DA83: 0.0509 | DB83: 0.3312
A84: =A83+1 -> 461 | C84: 0.02188036 | D84: 0.10229045 | E84: 0.0950601 | F84: 0.6842005058 | G84: 0.8716344188 | H84: 0.2985586 | I84: 0.4710343655 | J84: 0.2052255626 | K84: 0.6398810862 | L84: 0.6960783786 | M84: 0.2851473604 | N84: 0.02627502117 | O84: 0.2660861638 | P84: 0.04190466041 | Q84: 0.0374776 | R84: 0.02826956308 | S84: 0.3669567391 | T84: 0.1334781906 | U84: 0.1684403647 | V84: 0.2872171992 | W84: 0.07220021518 | X84: 0.2867080143 | Y84: 0.1114373256 | Z84: 0.7078612329 | AA84: 0.0308832 | AB84: 0.1083868855 | AC84: 0.08234822625 | AD84: 0.04283573462 | AE84: 0.3336167673 | AF84: 0.5696979586 | AG84: 0.03955679114 | AH84: 0.03725258462 | AI84: 0.02991760266 | AJ84: 0.4387818424 | AK84: 0.1531640678 | AL84: 0.1071026479 | AM84: 0.09619739632 | AN84: 0.1099011753 | AO84: 0.1726874088 | AP84: 0.6058300093 | AQ84: 0.2647581003 | AR84: 0.01708224081 | AS84: 0.1826596102 | AT84: 0.2650133476 | AU84: 0.06051521327 | AV84: 0.05432735909 | AW84: 0.1124687191 | AX84: 0.954302077 | AY84: 0.05369542394 | AZ84: 0.1286708144 | BA84: 0.03311336077 | BB84: 0.02155844375 | BC84: 0.1119968584 | BD84: 0.06613418336 | BE84: 0.1002926632 | BF84: 0.03308484924 | BG84: 0.02057365714 | BH84: 0.03444815294 | BI84: 0.05671832883 | BJ84: 0.2662453488 | BK84: 0.02751507895 | BL84: 0.137292926 | BM84: 0.5400919394 | BN84: 0.5824228098 | BO84: 0.0972051283 | BP84: 0.1623402533 | BQ84: 0.3711350286 | BR84: 0.2231232011 | BS84: 0.1618722738 | BT84: 0.06147896142 | BU84: 0.4786564715 | BV84: 0.1130340806 | BW84: 0.1173741372 | BX84: 0.6167150008 | BY84: 0.114226936 | BZ84: 0.2369581446 | CA84: 0.6243204255 | CB84: 0.18054988 | CC84: 0.0313 | CD84: 0.0379 | CE84: 0.0421864 | CF84: 0.03960816695 | CG84: 0.04281765 | CH84: 0.07721611443 | CI84: 0.602600435 | CJ84: 0.03954835135 | CK84: 0.364100117 | CL84: 0.0510221913 | CM84: 0.03996072 | CN84: 0.1164293218 | CO84: 0.07524509091 | CP84: 0.03606946 | CQ84: 0.0454 | CR84: 0.04871495 | CS84: 0.26959388 | CT84: 0.2354238976 | CU84: 0.06936248479 | CV84: 0.09369301547 | CW84: 0.04092504 | CX84: 0.0461136 | CY84: 0.0196112 | CZ84: 0.4117797877 | DA84: 0.0509 | DB84: 0.3311392118
A85: =A84+1 -> 462 | C85: 0.02186128 | D85: 0.1022816 | E85: 0.09588405926 | F85: 0.6822367472 | G85: 0.8721497053 | H85: 0.3010797258 | I85: 0.4755134387 | J85: 0.2026431711 | K85: 0.6378823806 | L85: 0.6947034443 | M85: 0.2799316381 | N85: 0.02662759663 | O85: 0.2662341744 | P85: 0.0420690783 | Q85: 0.0374168 | R85: 0.02813677128 | S85: 0.3691066608 | T85: 0.1349619026 | U85: 0.166189331 | V85: 0.2879981419 | W85: 0.07253013397 | X85: 0.2852265191 | Y85: 0.1115471318 | Z85: 0.7081795838 | AA85: 0.0308376 | AB85: 0.1089105398 | AC85: 0.08332793143 | AD85: 0.04265772308 | AE85: 0.3328549264 | AF85: 0.5696918529 | AG85: 0.03987386057 | AH85: 0.03712118974 | AI85: 0.03001332625 | AJ85: 0.4372720214 | AK85: 0.1507352611 | AL85: 0.1067160814 | AM85: 0.0964431327 | AN85: 0.1108546815 | AO85: 0.1742480247 | AP85: 0.6061502291 | AQ85: 0.2663858486 | AR85: 0.0167712699 | AS85: 0.1825443918 | AT85: 0.2662183027 | AU85: 0.06151105306 | AV85: 0.05425905455 | AW85: 0.1125959244 | AX85: 0.9521487884 | AY85: 0.05352772958 | AZ85: 0.1292182569 | BA85: 0.03303031196 | BB85: 0.0214228 | BC85: 0.1150767915 | BD85: 0.06648088355 | BE85: 0.09862400892 | BF85: 0.03397332254 | BG85: 0.0205511619 | BH85: 0.03460898824 | BI85: 0.05677139141 | BJ85: 0.2659490698 | BK85: 0.02743642105 | BL85: 0.1379118327 | BM85: 0.5418493082 | BN85: 0.5826331014 | BO85: 0.09747292576 | BP85: 0.1628914051 | BQ85: 0.3712933647 | BR85: 0.2191476015 | BS85: 0.1599793665 | BT85: 0.0605145881 | BU85: 0.4799934365 | BV85: 0.1121076857 | BW85: 0.1160781417 | BX85: 0.6157969748 | BY85: 0.1129946995 | BZ85: 0.2372360293 | CA85: 0.6231164994 | CB85: 0.1765054827 | CC85: 0.0313 | CD85: 0.0379 | CE85: 0.04217253333 | CF85: 0.03985984505 | CG85: 0.04283386667 | CH85: 0.07590134474 | CI85: 0.6042557536 | CJ85: 0.03991330721 | CK85: 0.3705508603 | CL85: 0.0509477913 | CM85: 0.03992256 | CN85: 0.116908491 | CO85: 0.07529143434 | CP85: 0.03603808 | CQ85: 0.0454 | CR85: 0.0487296 | CS85: 0.27018944 | CT85: 0.2395532671 | CU85: 0.06888557901 | CV85: 0.09439922688 | CW85: 0.04095152 | CX85: 0.04612746667 | CY85: 0.0196416 | CZ85: 0.411156134 | DA85: 0.0509 | DB85: 0.3309651976
A86: =A85+1 -> 463 | C86: 0.02184252 | D86: 0.10227315 | E86: 0.09707625556 | F86: 0.6804669478 | G86: 0.8726484992 | H86: 0.3034658802 | I86: 0.4799500904 | J86: 0.1999670114 | K86: 0.6357187146 | L86: 0.6931903247 | M86: 0.2746458759 | N86: 0.02696822509 | O86: 0.2663544922 | P86: 0.0422046229 | Q86: 0.0373272 | R86: 0.02800171077 | S86: 0.3712625933 | T86: 0.136385883 | U86: 0.1638594761 | V86: 0.2886749911 | W86: 0.07281026626 | X86: 0.2835817458 | Y86: 0.1116366279 | Z86: 0.7084643639 | AA86: 0.0307704 | AB86: 0.1093832673 | AC86: 0.08425495875 | AD86: 0.04238814231 | AE86: 0.3318442248 | AF86: 0.5696817103 | AG86: 0.040160538 | AH86: 0.03692209231 | AI86: 0.03009224186 | AJ86: 0.4354089239 | AK86: 0.1482280689 | AL86: 0.1062518685 | AM86: 0.09672679861 | AN86: 0.1118632966 | AO86: 0.1757887776 | AP86: 0.6064618297 | AQ86: 0.2679889519 | AR86: 0.01646685492 | AS86: 0.1823632714 | AT86: 0.2674102334 | AU86: 0.06258935 | AV86: 0.05419451364 | AW86: 0.1127739569 | AX86: 0.9501982233 | AY86: 0.05330596761 | AZ86: 0.1297585242 | BA86: 0.03295089378 | BB86: 0.02129348125 | BC86: 0.1183480748 | BD86: 0.06684505814 | BE86: 0.09699264255 | BF86: 0.03496449011 | BG86: 0.0205316 | BH86: 0.03477707059 | BI86: 0.05685630184 | BJ86: 0.2656667442 | BK86: 0.02736292105 | BL86: 0.1386125668 | BM86: 0.5435765755 | BN86: 0.5829686683 | BO86: 0.09775988073 | BP86: 0.1634643473 | BQ86: 0.3715200158 | BR86: 0.2151729013 | BS86: 0.1581105317 | BT86: 0.05951488378 | BU86: 0.4813143372 | BV86: 0.1112098203 | BW86: 0.1148021352 | BX86: 0.6148403903 | BY86: 0.111794069 | BZ86: 0.2374547394 | CA86: 0.6218014849 | CB86: 0.1725580054 | CC86: 0.0313 | CD86: 0.0379 | CE86: 0.0421588 | CF86: 0.04014053705 | CG86: 0.04284855 | CH86: 0.07456259627 | CI86: 0.6058728382 | CJ86: 0.04029211161 | CK86: 0.3767357352 | CL86: 0.05087533913 | CM86: 0.03988504 | CN86: 0.1173430379 | CO86: 0.0753389697 | CP86: 0.03600622 | CQ86: 0.0454 | CR86: 0.04874365 | CS86: 0.27077156 | CT86: 0.2439123985 | CU86: 0.06829134705 | CV86: 0.09512010112 | CW86: 0.04097848 | CX86: 0.0461412 | CY86: 0.0196864 | CZ86: 0.4101845138 | DA86: 0.0509 | DB86: 0.3306904828
A87: =A86+1 -> 464 | C87: 0.02182384 | D87: 0.1022648 | E87: 0.09854106667 | F87: 0.6788493314 | G87: 0.8731334402 | H87: 0.3057195661 | I87: 0.4843571914 | J87: 0.1972112693 | K87: 0.6334049195 | L87: 0.691554147 | M87: 0.2692831163 | N87: 0.02730740527 | O87: 0.2664575778 | P87: 0.04232266347 | Q87: 0.0372184 | R87: 0.02786446769 | S87: 0.3734373649 | T87: 0.1377848787 | U87: 0.1614633775 | V87: 0.2892799097 | W87: 0.07306112192 | X87: 0.2817999262 | Y87: 0.1117130233 | Z87: 0.7087248847 | AA87: 0.0306888 | AB87: 0.1098173727 | AC87: 0.08514515143 | AD87: 0.04204916923 | AE87: 0.3306144099 | AF87: 0.5696675586 | AG87: 0.04042615314 | AH87: 0.03667156923 | AI87: 0.0301594206 | AJ87: 0.4332309368 | AK87: 0.14565698 | AL87: 0.1057215775 | AM87: 0.09703798347 | AN87: 0.1129297985 | AO87: 0.1773165974 | AP87: 0.6067659814 | AQ87: 0.2695731171 | AR87: 0.01616876354 | AS87: 0.1821251755 | AT87: 0.268584508 | AU87: 0.06375193469 | AV87: 0.05413316364 | AW87: 0.1129951578 | AX87: 0.9484084706 | AY87: 0.05303918873 | AZ87: 0.1303078127 | BA87: 0.03287514641 | BB87: 0.0211709 | BC87: 0.1218189838 | BD87: 0.06723166472 | BE87: 0.0953971696 | BF87: 0.03605742216 | BG87: 0.02051405714 | BH87: 0.03494696471 | BI87: 0.05697017423 | BJ87: 0.2654039535 | BK87: 0.02729347368 | BL87: 0.1394009751 | BM87: 0.5452782103 | BN87: 0.5834173041 | BO87: 0.09807248162 | BP87: 0.1640699719 | BQ87: 0.3718099889 | BR87: 0.2111988008 | BS87: 0.1562550226 | BT87: 0.0584878522 | BU87: 0.4826226161 | BV87: 0.1103294893 | BW87: 0.1135362394 | BX87: 0.6138397156 | BY87: 0.1106158227 | BZ87: 0.2376353605 | CA87: 0.620388645 | CB87: 0.1686986453 | CC87: 0.0313 | CD87: 0.0379 | CE87: 0.0421456 | CF87: 0.04043574568 | CG87: 0.0428616 | CH87: 0.07320677437 | CI87: 0.6074585712 | CJ87: 0.04068200859 | CK87: 0.3826382472 | CL87: 0.05080337391 | CM87: 0.03984768 | CN87: 0.117738493 | CO87: 0.07538763636 | CP87: 0.03597424 | CQ87: 0.0454 | CR87: 0.0487568 | CS87: 0.27132512 | CT87: 0.2484255815 | CU87: 0.06760185331 | CV87: 0.0958571051 | CW87: 0.04100496 | CX87: 0.0461544 | CY87: 0.0197408 | CZ87: 0.408920402 | DA87: 0.0509 | DB87: 0.3303275929
A88: =A87+1 -> 465 | C88: 0.021805 | D88: 0.10225625 | E88: 0.1001828704 | F88: 0.6773421217 | G88: 0.873607168 | H88: 0.3078432863 | I88: 0.4887476126 | J88: 0.1943901309 | K88: 0.6309558269 | L88: 0.6898100388 | M88: 0.2638364019 | N88: 0.02765563586 | O88: 0.2665538915 | P88: 0.04243456925 | Q88: 0.0371 | R88: 0.02772512821 | S88: 0.3756438039 | T88: 0.1391936365 | U88: 0.1590136126 | V88: 0.2898450605 | W88: 0.07330321083 | X88: 0.2799072916 | Y88: 0.1117835271 | Z88: 0.7089704575 | AA88: 0.0306 | AB88: 0.1102251606 | AC88: 0.08601435268 | AD88: 0.04166298077 | AE88: 0.3291952292 | AF88: 0.5696494253 | AG88: 0.04068003571 | AH88: 0.03638589744 | AI88: 0.03021993355 | AJ88: 0.430776447 | AK88: 0.1430364835 | AL88: 0.1051367762 | AM88: 0.09736627675 | AN88: 0.1140569652 | AO88: 0.1788384142 | AP88: 0.6070638545 | AQ88: 0.2711440513 | AR88: 0.01587676343 | AS88: 0.1818390306 | AT88: 0.2697364948 | AU88: 0.06500063776 | AV88: 0.05407443182 | AW88: 0.1132518681 | AX88: 0.9467376193 | AY88: 0.05273644366 | AZ88: 0.1308823192 | BA88: 0.03280311005 | BB88: 0.02105546875 | BC88: 0.1254977938 | BD88: 0.06764566086 | BE88: 0.09383619554 | BF88: 0.0372511889 | BG88: 0.02049761905 | BH88: 0.03511323529 | BI88: 0.0571101227 | BJ88: 0.2651662791 | BK88: 0.02722697368 | BL88: 0.1402829043 | BM88: 0.5469586816 | BN88: 0.5839668022 | BO88: 0.09841721678 | BP88: 0.1647191708 | BQ88: 0.3721582915 | BR88: 0.207225 | BS88: 0.1544020928 | BT88: 0.05744149712 | BU88: 0.4839217153 | BV88: 0.1094556975 | BW88: 0.1122705758 | BX88: 0.6127894191 | BY88: 0.1094507389 | BZ88: 0.2377989779 | CA88: 0.6188912426 | CB88: 0.1649186 | CC88: 0.0313 | CD88: 0.0379 | CE88: 0.04213333333 | CF88: 0.04073097368 | CG88: 0.04287291667 | CH88: 0.07184078437 | CI88: 0.609019835 | CJ88: 0.04108024216 | CK88: 0.3882419017 | CL88: 0.05073043478 | CM88: 0.03981 | CN88: 0.1181003868 | CO88: 0.07543737374 | CP88: 0.0359425 | CQ88: 0.0454 | CR88: 0.04876875 | CS88: 0.271835 | CT88: 0.2530171062 | CU88: 0.06683916219 | CV88: 0.09661170572 | CW88: 0.04103 | CX88: 0.04616666667 | CY88: 0.0198 | CZ88: 0.4074192734 | DA88: 0.0509 | DB88: 0.3298890533
A89: =A88+1 -> 466 | C89: 0.02178576 | D89: 0.1022472 | E89: 0.1019060444 | F89: 0.6759035421 | G89: 0.8740723224 | H89: 0.3098395435 | I89: 0.4931342247 | J89: 0.1915177821 | K89: 0.6283862682 | L89: 0.6879731274 | M89: 0.2582987754 | N89: 0.02802341559 | O89: 0.266653894 | P89: 0.04255170949 | Q89: 0.0369816 | R89: 0.02758377846 | S89: 0.3778947386 | T89: 0.1406469034 | U89: 0.1565227586 | V89: 0.2904026065 | W89: 0.07355704288 | X89: 0.2779300738 | Y89: 0.1118553488 | Z89: 0.7092103937 | AA89: 0.0305112 | AB89: 0.1106189357 | AC89: 0.08687840571 | AD89: 0.04125175385 | AE89: 0.3276164301 | AF89: 0.5696273379 | AG89: 0.04093151543 | AH89: 0.03608135385 | AI89: 0.03027885183 | AJ89: 0.4280838415 | AK89: 0.1403810683 | AL89: 0.1045090329 | AM89: 0.09770126789 | AN89: 0.1152475748 | AO89: 0.1803611578 | AP89: 0.6073566192 | AQ89: 0.2727074614 | AR89: 0.01559062224 | AS89: 0.1815137633 | AT89: 0.2708615621 | AU89: 0.0663372898 | AV89: 0.05401774545 | AW89: 0.113536429 | AX89: 0.9451437585 | AY89: 0.0524067831 | AZ89: 0.1314982401 | BA89: 0.03273482488 | BB89: 0.0209476 | BC89: 0.1293927803 | BD89: 0.06809200412 | BE89: 0.09230832584 | BF89: 0.03854486052 | BG89: 0.02048137143 | BH89: 0.03527044706 | BI89: 0.05727326135 | BJ89: 0.2649593023 | BK89: 0.02716231579 | BL89: 0.1412642011 | BM89: 0.5486224584 | BN89: 0.5846049562 | BO89: 0.0988005746 | BP89: 0.1654228361 | BQ89: 0.3725599308 | BR89: 0.2032511992 | BS89: 0.1525409955 | BT89: 0.05638382226 | BU89: 0.4852150774 | BV89: 0.10857745 | BW89: 0.1109952661 | BX89: 0.611683969 | BY89: 0.1082895961 | BZ89: 0.2379666771 | CA89: 0.6173225408 | CB89: 0.1612090666 | CC89: 0.0313 | CD89: 0.0379 | CE89: 0.0421224 | CF89: 0.04101172379 | CG89: 0.0428824 | CH89: 0.07047153163 | CI89: 0.610563512 | CJ89: 0.04148405636 | CK89: 0.393530204 | CL89: 0.05065506087 | CM89: 0.03977152 | CN89: 0.1184342496 | CO89: 0.07548812121 | CP89: 0.03591136 | CQ89: 0.0454 | CR89: 0.0487792 | CS89: 0.27228608 | CT89: 0.2576112623 | CU89: 0.0660253381 | CV89: 0.09738536988 | CW89: 0.04105264 | CX89: 0.0461776 | CY89: 0.0198592 | CZ89: 0.405736603 | DA89: 0.0509 | DB89: 0.3293873893
A90: =A89+1 -> 467 | C90: 0.02176588 | D90: 0.10223735 | E90: 0.1036149667 | F90: 0.6744918165 | G90: 0.8745315431 | H90: 0.3117108407 | I90: 0.4975298987 | J90: 0.1886084086 | K90: 0.6257110747 | L90: 0.6860585405 | M90: 0.2526632794 | N90: 0.02842124316 | O90: 0.2667680456 | P90: 0.04268545344 | Q90: 0.0368728 | R90: 0.02744050462 | S90: 0.3802029972 | T90: 0.1421794263 | U90: 0.154003393 | V90: 0.2909847105 | W90: 0.07384312794 | X90: 0.2758945041 | Y90: 0.1119356977 | Z90: 0.7094540047 | AA90: 0.0304296 | AB90: 0.1110110026 | AC90: 0.08775315375 | AD90: 0.04083766538 | AE90: 0.3259077602 | AF90: 0.5696013241 | AG90: 0.041189922 | AH90: 0.03577421538 | AI90: 0.03034124651 | AJ90: 0.4251915071 | AK90: 0.1377052233 | AL90: 0.1038499155 | AM90: 0.09803254634 | AN90: 0.116504405 | AO90: 0.1818917583 | AP90: 0.6076454458 | AQ90: 0.2742690544 | AR90: 0.01531010763 | AS90: 0.1811583 | AT90: 0.2719550779 | AU90: 0.06776372143 | AV90: 0.05396253182 | AW90: 0.1138411815 | AX90: 0.9435849771 | AY90: 0.05205925775 | AZ90: 0.1321717721 | BA90: 0.0326703311 | BB90: 0.02084770625 | BC90: 0.1335122187 | BD90: 0.0685756521 | BE90: 0.09081216596 | BF90: 0.03993750723 | BG90: 0.0204644 | BH90: 0.03541316471 | BI90: 0.05745670429 | BJ90: 0.2647886047 | BK90: 0.02709839474 | BL90: 0.1423507124 | BM90: 0.5502740096 | BN90: 0.5853195594 | BO90: 0.09922904345 | BP90: 0.1661918597 | BQ90: 0.373009914 | BR90: 0.1992770987 | BS90: 0.1506609842 | BT90: 0.05532283138 | BU90: 0.4865061445 | BV90: 0.1076837516 | BW90: 0.109700432 | BX90: 0.6105178338 | BY90: 0.1071231724 | BZ90: 0.2381595435 | CA90: 0.6156958026 | CB90: 0.1575612426 | CC90: 0.0313 | CD90: 0.0379 | CE90: 0.0421132 | CF90: 0.04126349874 | CG90: 0.04288995 | CH90: 0.06910592148 | CI90: 0.6120964846 | CJ90: 0.04189069521 | CK90: 0.3984866596 | CL90: 0.0505757913 | CM90: 0.03973176 | CN90: 0.1187456119 | CO90: 0.07553981818 | CP90: 0.03588118 | CQ90: 0.0454 | CR90: 0.04878785 | CS90: 0.27266324 | CT90: 0.2621323399 | CU90: 0.06518244544 | CV90: 0.09817956449 | CW90: 0.04107192 | CX90: 0.0461868 | CY90: 0.0199136 | CZ90: 0.4039278655 | DA90: 0.0509 | DB90: 0.3288351266
A91: =A90+1 -> 468 | C91: 0.02174512 | D91: 0.1022264 | E91: 0.1052140148 | F91: 0.6730651686 | G91: 0.8749874698 | H91: 0.3134596807 | I91: 0.5019475054 | J91: 0.1856761965 | K91: 0.6229450779 | L91: 0.6840814053 | M91: 0.2469229564 | N91: 0.02885961728 | O91: 0.2669068068 | P91: 0.04284717034 | Q91: 0.0367832 | R91: 0.02729539282 | S91: 0.3825814082 | T91: 0.1438259521 | U91: 0.1514680931 | V91: 0.2916235355 | W91: 0.07418197589 | X91: 0.2738268142 | Y91: 0.1120317829 | Z91: 0.7097106018 | AA91: 0.0303624 | AB91: 0.1114136659 | AC91: 0.08865444 | AD91: 0.04044289231 | AE91: 0.3240989669 | AF91: 0.5695714115 | AG91: 0.04146458514 | AH91: 0.03548075897 | AI91: 0.0304121887 | AJ91: 0.4221378308 | AK91: 0.1350234377 | AL91: 0.1031709922 | AM91: 0.09834970154 | AN91: 0.117830234 | AO91: 0.1834371455 | AP91: 0.6079315046 | AQ91: 0.2758345371 | AR91: 0.01503498729 | AS91: 0.1807815673 | AT91: 0.2730124107 | AU91: 0.06928176327 | AV91: 0.05390821818 | AW91: 0.1141584668 | AX91: 0.9420193642 | AY91: 0.05170291831 | AZ91: 0.1329191117 | BA91: 0.0326096689 | BB91: 0.0207562 | BC91: 0.1378643845 | BD91: 0.06910156235 | BE91: 0.08934632138 | BF91: 0.04142819925 | BG91: 0.02044579048 | BH91: 0.03553595294 | BI91: 0.05765756564 | BJ91: 0.2646597674 | BK91: 0.02703410526 | BL91: 0.1435482848 | BM91: 0.5519178043 | BN91: 0.5860984055 | BO91: 0.09970911172 | BP91: 0.1670371336 | BQ91: 0.3735032484 | BR91: 0.1953023985 | BS91: 0.1487513122 | BT91: 0.05426652821 | BU91: 0.4877983591 | BV91: 0.1067636071 | BW91: 0.1083761952 | BX91: 0.6092854816 | BY91: 0.1059422463 | BZ91: 0.2383986625 | CA91: 0.6140242911 | CB91: 0.1539663252 | CC91: 0.0313 | CD91: 0.0379 | CE91: 0.04210613333 | CF91: 0.04147180126 | CG91: 0.04289546667 | CH91: 0.06775085926 | CI91: 0.6136256352 | CJ91: 0.04229740275 | CK91: 0.4030947739 | CL91: 0.05049116522 | CM91: 0.03969024 | CN91: 0.1190400041 | CO91: 0.07559240404 | CP91: 0.03585232 | CQ91: 0.0454 | CR91: 0.0487944 | CS91: 0.27295136 | CT91: 0.2665046288 | CU91: 0.0643325486 | CV91: 0.09899575644 | CW91: 0.04108688 | CX91: 0.04619386667 | CY91: 0.0199584 | CZ91: 0.402048536 | DA91: 0.0509 | DB91: 0.3282447905
A92: =A91+1 -> 469 | C92: 0.02172324 | D92: 0.10221405 | E92: 0.1066075667 | F92: 0.6715818218 | G92: 0.8754427422 | H92: 0.3150885661 | I92: 0.5063999155 | J92: 0.1827353317 | K92: 0.6201031092 | L92: 0.6820568493 | M92: 0.241070849 | N92: 0.02934903665 | O92: 0.2670806381 | P92: 0.04304822944 | Q92: 0.0367224 | R92: 0.02714852923 | S92: 0.3850427997 | T92: 0.1456212277 | U92: 0.1489294363 | V92: 0.2923512444 | W92: 0.07459409662 | X92: 0.2717532357 | Y92: 0.112150814 | Z92: 0.7099894965 | AA92: 0.0303168 | AB92: 0.1118392301 | AC92: 0.08959810768 | AD92: 0.04008961154 | AE92: 0.3222197977 | AF92: 0.5695376276 | AG92: 0.04176483457 | AH92: 0.03521726154 | AI92: 0.0304967495 | AJ92: 0.4189611994 | AK92: 0.1323502002 | AL92: 0.102483831 | AM92: 0.09864232295 | AN92: 0.1192278397 | AO92: 0.1850042494 | AP92: 0.6082159659 | AQ92: 0.2774096167 | AR92: 0.01476502885 | AS92: 0.1803924918 | AT92: 0.2740289287 | AU92: 0.07089324592 | AV92: 0.05385423182 | AW92: 0.1144806259 | AX92: 0.9404050089 | AY92: 0.05134681549 | AZ92: 0.1337564554 | BA92: 0.03255287847 | BB92: 0.02067349375 | BC92: 0.1424575531 | BD92: 0.06967469246 | BE92: 0.08790939757 | BF92: 0.04301600677 | BG92: 0.02042462857 | BH92: 0.03563337647 | BI92: 0.05787295951 | BJ92: 0.2645783721 | BK92: 0.02696834211 | BL92: 0.1448627651 | BM92: 0.5535583114 | BN92: 0.5869292878 | BO92: 0.1002472678 | BP92: 0.1679695497 | BQ92: 0.3740349413 | BR92: 0.1913267989 | BS92: 0.146801233 | BT92: 0.05322291651 | BU92: 0.4890951635 | BV92: 0.1058060217 | BW92: 0.1070126773 | BX92: 0.6079813809 | BY92: 0.1047375961 | BZ92: 0.2387051195 | CA92: 0.6123212692 | CB92: 0.1504155119 | CC92: 0.0313 | CD92: 0.0379 | CE92: 0.0421016 | CF92: 0.04162213411 | CG92: 0.04289885 | CH92: 0.06641325032 | CI92: 0.6151578462 | CJ92: 0.042701423 | CK92: 0.4073380522 | CL92: 0.05039972174 | CM92: 0.03964648 | CN92: 0.1193229567 | CO92: 0.07564581818 | CP92: 0.03582514 | CQ92: 0.0454 | CR92: 0.04879855 | CS92: 0.27313532 | CT92: 0.2706524188 | CU92: 0.06349771199 | CV92: 0.09983541264 | CW92: 0.04109656 | CX92: 0.0461984 | CY92: 0.0199888 | CZ92: 0.4001540892 | DA92: 0.0509 | DB92: 0.3276289065
A93: =A92+1 -> 470 | C93: 0.0217 | D93: 0.1022 | E93: 0.1077 | F93: 0.67 | G93: 0.8759 | H93: 0.3166 | I93: 0.5109 | J93: 0.1798 | K93: 0.6172 | L93: 0.68 | M93: 0.2351 | N93: 0.0299 | O93: 0.2673 | P93: 0.0433 | Q93: 0.0367 | R93: 0.027 | S93: 0.3876 | T93: 0.1476 | U93: 0.1464 | V93: 0.2932 | W93: 0.0751 | X93: 0.2697 | Y93: 0.1123 | Z93: 0.7103 | AA93: 0.0303 | AB93: 0.1123 | AC93: 0.0906 | AD93: 0.0398 | AE93: 0.3203 | AF93: 0.5695 | AG93: 0.0421 | AH93: 0.035 | AI93: 0.0306 | AJ93: 0.4157 | AK93: 0.1297 | AL93: 0.1018 | AM93: 0.0989 | AN93: 0.1207 | AO93: 0.1866 | AP93: 0.6085 | AQ93: 0.279 | AR93: 0.0145 | AS93: 0.18 | AT93: 0.275 | AU93: 0.0726 | AV93: 0.0538 | AW93: 0.1148 | AX93: 0.9387 | AY93: 0.051 | AZ93: 0.1347 | BA93: 0.0325 | BB93: 0.0206 | BC93: 0.1473 | BD93: 0.0703 | BE93: 0.0865 | BF93: 0.0447 | BG93: 0.0204 | BH93: 0.0357 | BI93: 0.0581 | BJ93: 0.26455 | BK93: 0.0269 | BL93: 0.1463 | BM93: 0.5552 | BN93: 0.5878 | BO93: 0.10085 | BP93: 0.169 | BQ93: 0.3746 | BR93: 0.18735 | BS93: 0.1448 | BT93: 0.0522 | BU93: 0.4904 | BV93: 0.1048 | BW93: 0.1056 | BX93: 0.6066 | BY93: 0.1035 | BZ93: 0.2391 | CA93: 0.6106 | CB93: 0.1469 | CC93: 0.0313 | CD93: 0.0379 | CE93: 0.0421 | CF93: 0.0417 | CG93: 0.0429 | CH93: 0.0651 | CI93: 0.6167 | CJ93: 0.0431 | CK93: 0.4112 | CL93: 0.0503 | CM93: 0.0396 | CN93: 0.1196 | CO93: 0.0757 | CP93: 0.0358 | CQ93: 0.0454 | CR93: 0.0488 | CS93: 0.2732 | CT93: 0.2745 | CU93: 0.0627 | CV93: 0.1007 | CW93: 0.0411 | CX93: 0.0462 | CY93: 0.02 | CZ93: 0.3983 | DA93: 0.0509 | DB93: 0.327
A94: =A93+1 -> 471 | C94: 0.02167216 | D94: 0.1021808 | E94: 0.1086062011 | F94: 0.6683484585 | G94: 0.8763525778 | H94: 0.3180039845 | I94: 0.5154279855 | J94: 0.1768099885 | K94: 0.6141851111 | L94: 0.677873059 | M94: 0.2289128566 | N94: 0.03053231631 | O94: 0.2676325295 | P94: 0.0436820196 | Q94: 0.03673172703 | R94: 0.02684384 | S94: 0.3902433569 | T94: 0.1497565773 | U94: 0.1438298194 | V94: 0.2941524509 | W94: 0.07580908089 | X94: 0.2676021377 | Y94: 0.1125075 | Z94: 0.7106320867 | AA94: 0.03030974545 | AB94: 0.1127547923 | AC94: 0.0915976648 | AD94: 0.03953838846 | AE94: 0.3181682428 | AF94: 0.5691743943 | AG94: 0.04244600942 | AH94: 0.03480233846 | AI94: 0.03071857143 | AJ94: 0.4121130426 | AK94: 0.1270227913 | AL94: 0.1010876164 | AM94: 0.0991417551 | AN94: 0.1223607467 | AO94: 0.188228448 | AP94: 0.6087802316 | AQ94: 0.2805987664 | AR94: 0.01423797257 | AS94: 0.1795564407 | AT94: 0.2759420129 | AU94: 0.07451208782 | AV94: 0.05374817112 | AW94: 0.1151361226 | AX94: 0.9369336677 | AY94: 0.05064312921 | AZ94: 0.1358120341 | BA94: 0.03244756364 | BB94: 0.0205318125 | BC94: 0.1525934515 | BD94: 0.07101612406 | BE94: 0.08511426442 | BF94: 0.04667596301 | BG94: 0.0203696 | BH94: 0.03574842353 | BI94: 0.05839420897 | BJ94: 0.2647351985 | BK94: 0.02682828182 | BL94: 0.1480494345 | BM94: 0.5568492611 | BN94: 0.5888960427 | BO94: 0.1016149252 | BP94: 0.17023797 | BQ94: 0.3753188933 | BR94: 0.1832160203 | BS94: 0.1427151922 | BT94: 0.05117732904 | BU94: 0.4917137134 | BV94: 0.1037257542 | BW94: 0.1041169512 | BX94: 0.6050801128 | BY94: 0.1022201143 | BZ94: 0.2397411202 | CA94: 0.6088016591 | CB94: 0.1433739808 | CC94: 0.0312944 | CD94: 0.0379044 | CE94: 0.0421 | CF94: 0.041731952 | CG94: 0.0429 | CH94: 0.06378783354 | CI94: 0.6182566239 | CJ94: 0.04349682181 | CK94: 0.4147530242 | CL94: 0.05018651274 | CM94: 0.03955049143 | CN94: 0.1198513916 | CO94: 0.07575326753 | CP94: 0.03577712 | CQ94: 0.0453972 | CR94: 0.0487944 | CS94: 0.2731840571 | CT94: 0.2780495881 | CU94: 0.06189375473 | CV94: 0.1015995089 | CW94: 0.0411 | CX94: 0.0461972 | CY94: 0.0199972 | CZ94: 0.3963307934 | DA94: 0.05090125714 | DB94: 0.3262715314
A95: =A94+1 -> 472 | C95: 0.02163808 | D95: 0.1021544 | E95: 0.1094971596 | F95: 0.6666864949 | G95: 0.8767941122 | H95: 0.319316055 | I95: 0.5199596984 | J95: 0.1737164973 | K95: 0.6110045941 | L95: 0.6756320464 | M95: 0.222457775 | N95: 0.03126030436 | O95: 0.2681337889 | P95: 0.04425993736 | Q95: 0.03682214054 | R95: 0.02667658667 | S95: 0.3929591484 | T95: 0.1520737989 | U95: 0.1411777049 | V95: 0.2951758255 | W95: 0.07680754413 | X95: 0.265394069 | Y95: 0.1127933333 | Z95: 0.7109714716 | AA95: 0.03033820606 | AB95: 0.1131681916 | AC95: 0.09254119546 | AD95: 0.03926110769 | AE95: 0.3156660658 | AF95: 0.5683291109 | AG95: 0.04278152683 | AH95: 0.03459204103 | AI95: 0.03084761905 | AJ95: 0.4079830298 | AK95: 0.1242756433 | AL95: 0.1003141541 | AM95: 0.09938968707 | AN95: 0.1242829622 | AO95: 0.1898848897 | AP95: 0.6090536421 | AQ95: 0.2821961583 | AR95: 0.01397790667 | AS95: 0.1790173038 | AT95: 0.276870937 | AU95: 0.07671053445 | AV95: 0.05370077005 | AW95: 0.1155108613 | AX95: 0.9351657079 | AY95: 0.05025466287 | AZ95: 0.1371430735 | BA95: 0.03239323636 | BB95: 0.02046533333 | BC95: 0.1584854097 | BD95: 0.07185422971 | BE95: 0.08375025458 | BF95: 0.04908235997 | BG95: 0.0203328 | BH95: 0.03579444706 | BI95: 0.05880503341 | BJ95: 0.2652658169 | BK95: 0.02675389091 | BL95: 0.1502748693 | BM95: 0.5585051202 | BN95: 0.590384103 | BO95: 0.1026275743 | BP95: 0.1717658253 | BQ95: 0.3762983857 | BR95: 0.1788385142 | BS95: 0.1405390887 | BT95: 0.05013523371 | BU95: 0.4930332031 | BV95: 0.1025822626 | BW95: 0.1025607064 | BX95: 0.6033816073 | BY95: 0.1009020571 | BZ95: 0.2407577454 | CA95: 0.6068754538 | CB95: 0.1398194268 | CC95: 0.0312792 | CD95: 0.03791653333 | CE95: 0.0421 | CF95: 0.041755616 | CG95: 0.0429 | CH95: 0.06245655003 | CI95: 0.6198231474 | CJ95: 0.04389680104 | CK95: 0.4180912756 | CL95: 0.05005677961 | CM95: 0.03949810286 | CN95: 0.120062123 | CO95: 0.07580478961 | CP95: 0.03575616 | CQ95: 0.0453896 | CR95: 0.0487792 | CS95: 0.2731393143 | CT95: 0.2813878404 | CU95: 0.06102999971 | CV95: 0.1025395203 | CW95: 0.0411 | CX95: 0.0461896 | CY95: 0.0199896 | CZ95: 0.3940834908 | DA95: 0.05090491429 | DB95: 0.3253634331
A96: =A95+1 -> 473 | C96: 0.02159992 | D96: 0.1021226 | E96: 0.1103614079 | F96: 0.6650181459 | G96: 0.8772276965 | H96: 0.3205470138 | I96: 0.5245014087 | J96: 0.1705508324 | K96: 0.607668467 | L96: 0.6732828176 | M96: 0.2157966604 | N96: 0.03208622756 | O96: 0.2687961273 | P96: 0.04502428985 | Q96: 0.03696408919 | R96: 0.02650208 | S96: 0.3957540986 | T96: 0.1545692084 | U96: 0.1384693969 | V96: 0.2962791564 | W96: 0.0780811146 | X96: 0.2631011097 | Y96: 0.1131525 | Z96: 0.7113210774 | AA96: 0.03038421818 | AB96: 0.1135611544 | AC96: 0.09346525357 | AD96: 0.03897833462 | AE96: 0.312842523 | AF96: 0.5670428293 | AG96: 0.04311998594 | AH96: 0.03437698462 | AI96: 0.03099 | AJ96: 0.4033841871 | AK96: 0.1214837173 | AL96: 0.0994902163 | AM96: 0.099638 | AN96: 0.1264076999 | AO96: 0.1915631235 | AP96: 0.6093219368 | AQ96: 0.2837936273 | AR96: 0.01372090235 | AS96: 0.1783962276 | AT96: 0.2777815128 | AU96: 0.07915361471 | AV96: 0.05365628877 | AW96: 0.1159200582 | AX96: 0.9333997587 | AY96: 0.04984035519 | AZ96: 0.1386916549 | BA96: 0.03233876364 | BB96: 0.0204014375 | BC96: 0.1649028137 | BD96: 0.07280806353 | BE96: 0.08240946796 | BF96: 0.05183228122 | BG96: 0.0202912 | BH96: 0.03583743529 | BI96: 0.05932047509 | BJ96: 0.2661043895 | BK96: 0.02667797273 | BL96: 0.1529436847 | BM96: 0.560160998 | BN96: 0.5922237541 | BO96: 0.1038763072 | BP96: 0.173553778 | BQ96: 0.3775129281 | BR96: 0.1743216357 | BS96: 0.1382979926 | BT96: 0.04908288741 | BU96: 0.4943559937 | BV96: 0.1013866794 | BW96: 0.100948968 | BX96: 0.6015306227 | BY96: 0.0995568 | BZ96: 0.2421281346 | CA96: 0.6048466951 | CB96: 0.1362692067 | CC96: 0.0312568 | CD96: 0.0379348 | CE96: 0.0421 | CF96: 0.041773104 | CG96: 0.0429 | CH96: 0.06111766557 | CI96: 0.6213928062 | CJ96: 0.0442990185 | CK96: 0.4212308752 | CL96: 0.04991385007 | CM96: 0.03944304 | CN96: 0.1202448257 | CO96: 0.07585578182 | CP96: 0.03573664 | CQ96: 0.0453784 | CR96: 0.0487568 | CS96: 0.2730704 | CT96: 0.2845657087 | CU96: 0.06012582154 | CV96: 0.1035148866 | CW96: 0.0411 | CX96: 0.0461784 | CY96: 0.0199784 | CZ96: 0.3916023123 | DA96: 0.0509108 | DB96: 0.3242979386
A97: =A96+1 -> 474 | C97: 0.02155984 | D97: 0.1020872 | E97: 0.1111874787 | F97: 0.6633474483 | G97: 0.8776564236 | H97: 0.3217076634 | I97: 0.5290593866 | J97: 0.1673442995 | K97: 0.6041867478 | L97: 0.6708312276 | M97: 0.2089914186 | N97: 0.03301234931 | O97: 0.2696118932 | P97: 0.04596561361 | Q97: 0.03715042162 | R97: 0.02632416 | S97: 0.3986349313 | T97: 0.1572603494 | U97: 0.1357306355 | V97: 0.2974714764 | W97: 0.07961551718 | X97: 0.2607485758 | Y97: 0.11358 | Z97: 0.7116838266 | AA97: 0.03044661818 | AB97: 0.1139546368 | AC97: 0.09440450067 | AD97: 0.03870024615 | AE97: 0.309746668 | AF97: 0.5653942292 | AG97: 0.04347482049 | AH97: 0.03416504615 | AI97: 0.03114857143 | AJ97: 0.3983907401 | AK97: 0.1186721746 | AL97: 0.09862640606 | AM97: 0.09988089796 | AN97: 0.1286760137 | AO97: 0.1932569477 | AP97: 0.6095868211 | AQ97: 0.2853926249 | AR97: 0.01346805964 | AS97: 0.1777068502 | AT97: 0.278668481 | AU97: 0.08179960336 | AV97: 0.05361321925 | AW97: 0.1163595553 | AX97: 0.931639458 | AY97: 0.04940596043 | AZ97: 0.1404563153 | BA97: 0.03228589091 | BB97: 0.020341 | BC97: 0.1717726025 | BD97: 0.07387137206 | BE97: 0.08109340204 | BF97: 0.05483881712 | BG97: 0.0202464 | BH97: 0.03587675294 | BI97: 0.05992853581 | BJ97: 0.2672134507 | BK97: 0.02660167273 | BL97: 0.1560232611 | BM97: 0.561810315 | BN97: 0.5943745691 | BO97: 0.1053494835 | BP97: 0.1755720404 | BQ97: 0.3789369714 | BR97: 0.1697695388 | BS97: 0.1360182072 | BT97: 0.0480294635 | BU97: 0.4956796094 | BV97: 0.1001561591 | BW97: 0.09929943876 | BX97: 0.5995532979 | BY97: 0.09819531429 | BZ97: 0.2438305466 | CA97: 0.6027406938 | CB97: 0.1327561894 | CC97: 0.0312296 | CD97: 0.0379576 | CE97: 0.0421 | CF97: 0.041786528 | CG97: 0.0429 | CH97: 0.05978269625 | CI97: 0.6229588358 | CJ97: 0.04470255501 | CK97: 0.4241879444 | CL97: 0.04976077361 | CM97: 0.03938550857 | CN97: 0.1204121316 | CO97: 0.07590745974 | CP97: 0.03571808 | CQ97: 0.0453648 | CR97: 0.0487296 | CS97: 0.2729819429 | CT97: 0.2876341451 | CU97: 0.05919830681 | CV97: 0.1045204603 | CW97: 0.0411 | CX97: 0.0461648 | CY97: 0.0199648 | CZ97: 0.3889314775 | DA97: 0.05091874286 | DB97: 0.3230972815
A98: =A97+1 -> 475 | C98: 0.02152 | D98: 0.10205 | E98: 0.1119639045 | F98: 0.6616784388 | G98: 0.8780833867 | H98: 0.3228088061 | I98: 0.5336399022 | J98: 0.1641282044 | K98: 0.6005694543 | L98: 0.6682831319 | M98: 0.2021039548 | N98: 0.03404093303 | O98: 0.2705734355 | P98: 0.0470744452 | Q98: 0.03737398649 | R98: 0.02614666667 | S98: 0.4016083704 | T98: 0.1601647656 | U98: 0.132987161 | V98: 0.2987618182 | W98: 0.08139647674 | X98: 0.2583617834 | Y98: 0.1140708333 | Z98: 0.7120626419 | AA98: 0.03052424242 | AB98: 0.1143695952 | AC98: 0.09539359835 | AD98: 0.03843701923 | AE98: 0.3064275549 | AF98: 0.5634619902 | AG98: 0.04385946417 | AH98: 0.03396410256 | AI98: 0.03132619048 | AJ98: 0.3930769144 | AK98: 0.1158661766 | AL98: 0.09773332655 | AM98: 0.100112585 | AN98: 0.1310289573 | AO98: 0.1949601607 | AP98: 0.60985 | AQ98: 0.2869946027 | AR98: 0.0132204786 | AS98: 0.1769628099 | AT98: 0.2795265821 | AU98: 0.08460677521 | AV98: 0.05357005348 | AW98: 0.1168251948 | AX98: 0.9298884438 | AY98: 0.04895723281 | AZ98: 0.1424355915 | BA98: 0.03223636364 | BB98: 0.02028489583 | BC98: 0.179021715 | BD98: 0.07503790188 | BE98: 0.0798035543 | BF98: 0.05801505803 | BG98: 0.0202 | BH98: 0.03591176471 | BI98: 0.06061721735 | BJ98: 0.2685555347 | BK98: 0.02652613636 | BL98: 0.1594809789 | BM98: 0.5634464921 | BN98: 0.5967961214 | BO98: 0.1070354631 | BP98: 0.1777908247 | BQ98: 0.3805449665 | BR98: 0.1652863776 | BS98: 0.1337260358 | BT98: 0.04698413539 | BU98: 0.4970015748 | BV98: 0.09890785601 | BW98: 0.09762982119 | BX98: 0.5974757723 | BY98: 0.09682857143 | BZ98: 0.2458432405 | CA98: 0.6005827608 | CB98: 0.1293132438 | CC98: 0.0312 | CD98: 0.03798333333 | CE98: 0.0421 | CF98: 0.041798 | CG98: 0.0429 | CH98: 0.05846315818 | CI98: 0.624514472 | CJ98: 0.0451064914 | CK98: 0.426978604 | CL98: 0.0496005997 | CM98: 0.03932571429 | CN98: 0.120576672 | CO98: 0.07596103896 | CP98: 0.0357 | CQ98: 0.04535 | CR98: 0.0487 | CS98: 0.2728785714 | CT98: 0.2906441014 | CU98: 0.05826454212 | CV98: 0.105551094 | CW98: 0.0411 | CX98: 0.04615 | CY98: 0.01995 | CZ98: 0.3861152063 | DA98: 0.05092857143 | DB98: 0.3217836952
A99: =A98+1 -> 476 | C99: 0.02148256 | D99: 0.1020128 | E99: 0.112679218 | F99: 0.6600151542 | G99: 0.8785116789 | H99: 0.3238612443 | I99: 0.5382492256 | J99: 0.160933853 | K99: 0.5968266044 | L99: 0.6656443856 | M99: 0.1951961747 | N99: 0.03517424209 | O99: 0.2716731029 | P99: 0.04834132118 | Q99: 0.03762763243 | R99: 0.02597344 | S99: 0.4046811399 | T99: 0.1633000005 | U99: 0.1302647136 | V99: 0.3001592145 | W99: 0.08340971817 | X99: 0.2559660482 | Y99: 0.11462 | Z99: 0.7124604458 | AA99: 0.03061592727 | AB99: 0.1148269861 | AC99: 0.09646720816 | AD99: 0.03819883077 | AE99: 0.3029342374 | AF99: 0.5613247921 | AG99: 0.04428735073 | AH99: 0.03378203077 | AI99: 0.03152571429 | AJ99: 0.3875169356 | AK99: 0.1130908844 | AL99: 0.09682158092 | AM99: 0.1003272653 | AN99: 0.1334075843 | AO99: 0.1966665609 | AP99: 0.6101131789 | AQ99: 0.2886010123 | AR99: 0.01297925927 | AS99: 0.1761777447 | AT99: 0.2803505566 | AU99: 0.08753340504 | AV99: 0.05352528342 | AW99: 0.1173128187 | AX99: 0.9281503541 | AY99: 0.04849992656 | AZ99: 0.1446280204 | BA99: 0.03219192727 | BB99: 0.020234 | BC99: 0.1865770903 | BD99: 0.07630139956 | BE99: 0.07854142221 | BF99: 0.0612740943 | BG99: 0.0201536 | BH99: 0.03594183529 | BI99: 0.0613745215 | BJ99: 0.270093176 | BK99: 0.02645250909 | BL99: 0.1632842183 | BM99: 0.5650629497 | BN99: 0.5994479839 | BO99: 0.1089226056 | BP99: 0.1801803429 | BQ99: 0.3823113643 | BR99: 0.1609763063 | BS99: 0.1314477815 | BT99: 0.04595607644 | BU99: 0.4983194142 | BV99: 0.09765892441 | BW99: 0.09595781793 | BX99: 0.5953241848 | BY99: 0.09546754286 | BZ99: 0.2481444751 | CA99: 0.5983982069 | CB99: 0.1259732386 | CC99: 0.0311704 | CD99: 0.0380104 | CE99: 0.0421 | CF99: 0.041809632 | CG99: 0.0429 | CH99: 0.05717056745 | CI99: 0.6260529505 | CJ99: 0.04550990847 | CK99: 0.4296189754 | CL99: 0.04943637781 | CM99: 0.03926386286 | CN99: 0.1207510787 | CO99: 0.07601773506 | CP99: 0.03568192 | CQ99: 0.0453352 | CR99: 0.0486704 | CS99: 0.2727649143 | CT99: 0.2936465296 | CU99: 0.05734161407 | CV99: 0.1066016402 | CW99: 0.0411 | CX99: 0.0461352 | CY99: 0.0199352 | CZ99: 0.3831977187 | DA99: 0.05094011429 | DB99: 0.3203794133
A100: =A99+1 -> 477 | C100: 0.02144968 | D100: 0.1019774 | E100: 0.1133219517 | F100: 0.6583616313 | G100: 0.8789443932 | H100: 0.3248757804 | I100: 0.542893627 | J100: 0.157792551 | K100: 0.5929682162 | L100: 0.6629208441 | M100: 0.1883299836 | N100: 0.03641453992 | O100: 0.2729032443 | P100: 0.04975677809 | Q100: 0.03790420811 | R100: 0.02580832 | S100: 0.4078599636 | T100: 0.1666835978 | U100: 0.1275890336 | V100: 0.3016726982 | W100: 0.08564096633 | X100: 0.2535866864 | Y100: 0.1152225 | Z100: 0.712880161 | AA100: 0.03072050909 | AB100: 0.1153477657 | AC100: 0.09765999166 | AD100: 0.03799585769 | AE100: 0.2993157693 | AF100: 0.5590613143 | AG100: 0.04477191387 | AH100: 0.03362670769 | AI100: 0.03175 | AJ100: 0.3817850291 | AK100: 0.1103714593 | AL100: 0.0959017723 | AM100: 0.1005191429 | AN100: 0.1357529483 | AO100: 0.1983699465 | AP100: 0.6103780632 | AQ100: 0.2902133053 | AR100: 0.0127455017 | AS100: 0.175365293 | AT100: 0.2811351451 | AU100: 0.09053776765 | AV100: 0.05347740107 | AW100: 0.1178182691 | AX100: 0.9264288269 | AY100: 0.04803979592 | AZ100: 0.1470321388 | BA100: 0.03215432727 | BB100: 0.0201891875 | BC100: 0.1943656675 | BD100: 0.07765561164 | BE100: 0.07730850326 | BF100: 0.06452901628 | BG100: 0.0201088 | BH100: 0.03596632941 | BI100: 0.06218845006 | BJ100: 0.2717889088 | BK100: 0.02638193636 | BL100: 0.1674003598 | BM100: 0.5666531087 | BN100: 0.6022897298 | BO100: 0.1109992708 | BP100: 0.1827108074 | BQ100: 0.3842106157 | BR100: 0.1569434788 | BS100: 0.1292097475 | BT100: 0.04495446005 | BU100: 0.499630652 | BV100: 0.09642651867 | BW100: 0.09430113157 | BX100: 0.5931246747 | BY100: 0.0941232 | BZ100: 0.2507125094 | CA100: 0.596212343 | CB100: 0.1227690429 | CC100: 0.0311432 | CD100: 0.0380372 | CE100: 0.0421 | CF100: 0.041823536 | CG100: 0.0429 | CH100: 0.05591644017 | CI100: 0.6275675069 | CJ100: 0.04591188705 | CK100: 0.4321251795 | CL100: 0.04927115742 | CM100: 0.03920016 | CN100: 0.1209479832 | CO100: 0.07607876364 | CP100: 0.03566336 | CQ100: 0.0453216 | CR100: 0.0486432 | CS100: 0.2726456 | CT100: 0.2966923816 | CU100: 0.05644660923 | CV100: 0.1076669514 | CW100: 0.0411 | CX100: 0.0461216 | CY100: 0.0199216 | CZ100: 0.3802232344 | DA100: 0.0509532 | DB100: 0.3189066693
A101: =A100+1 -> 478 | C101: 0.02142352 | D101: 0.1019456 | E101: 0.1138806382 | F101: 0.6567219068 | G101: 0.8793846228 | H101: 0.3258632168 | I101: 0.5475793764 | J101: 0.1547356043 | K101: 0.5890043074 | L101: 0.6601183624 | M101: 0.1815672872 | N101: 0.03776408991 | O101: 0.2742562084 | P101: 0.0513113525 | Q101: 0.03819656216 | R101: 0.02565514667 | S101: 0.4111515656 | T101: 0.1703331011 | U101: 0.1249858612 | V101: 0.3033113018 | W101: 0.0880759461 | X101: 0.2512490137 | Y101: 0.1158733333 | Z101: 0.71332471 | AA101: 0.03083682424 | AB101: 0.1159528903 | AC101: 0.09900661042 | AD101: 0.03783827692 | AE101: 0.2956212045 | AF101: 0.5567502366 | AG101: 0.04532658731 | AH101: 0.03350601026 | AI101: 0.03200190476 | AJ101: 0.3759554207 | AK101: 0.1077330627 | AL101: 0.09498450385 | AM101: 0.1006824218 | AN101: 0.1380061032 | AO101: 0.200064116 | AP101: 0.6106463579 | AQ101: 0.2918329332 | AR101: 0.01252030594 | AS101: 0.1745390928 | AT101: 0.2818750881 | AU101: 0.09357813782 | AV101: 0.0534248984 | AW101: 0.1183373881 | AX101: 0.9247275001 | AY101: 0.04758259513 | AZ101: 0.1496464837 | BA101: 0.03212530909 | BB101: 0.02015133333 | BC101: 0.2023143855 | BD101: 0.0790942847 | BE101: 0.07610629492 | BF101: 0.06769291432 | BG101: 0.0200672 | BH101: 0.03598461176 | BI101: 0.0630470048 | BJ101: 0.2736052675 | BK101: 0.02631556364 | BL101: 0.1717967837 | BM101: 0.5682103896 | BN101: 0.6052809324 | BO101: 0.1132538184 | BP101: 0.1853524303 | BQ101: 0.3862171715 | BR101: 0.1532920492 | BS101: 0.1270382371 | BT101: 0.04398845959 | BU101: 0.5009328126 | BV101: 0.09522779313 | BW101: 0.09267746473 | BX101: 0.5909033811 | BY101: 0.09280651429 | BZ101: 0.2535256024 | CA101: 0.59405048 | CB101: 0.1197335253 | CC101: 0.0311208 | CD101: 0.03806213333 | CE101: 0.0421 | CF101: 0.041841824 | CG101: 0.0429 | CH101: 0.05471229244 | CI101: 0.6290513768 | CJ101: 0.04631150795 | CK101: 0.4345133376 | CL101: 0.04910798801 | CM101: 0.03913481143 | CN101: 0.1211800172 | CO101: 0.07614534026 | CP101: 0.03564384 | CQ101: 0.0453104 | CR101: 0.0486208 | CS101: 0.2725252571 | CT101: 0.2998326094 | CU101: 0.05559661421 | CV101: 0.1087418801 | CW101: 0.0411 | CX101: 0.0461104 | CY101: 0.0199104 | CZ101: 0.3772359732 | DA101: 0.05096765714 | DB101: 0.3173876968
A102: =A101+1 -> 479 | C102: 0.02140624 | D102: 0.1019192 | E102: 0.1143438101 | F102: 0.6551000174 | G102: 0.8798354607 | H102: 0.3268343559 | I102: 0.552312744 | J102: 0.1517943187 | K102: 0.584944896 | L102: 0.657242796 | M102: 0.1749699908 | N102: 0.03922515547 | O102: 0.2757243441 | P102: 0.05299558095 | Q102: 0.03849754324 | R102: 0.02551776 | S102: 0.4145626698 | T102: 0.1742660539 | U102: 0.1224809366 | V102: 0.3050840582 | W102: 0.09070038237 | X102: 0.2489783463 | Y102: 0.1165675 | Z102: 0.7137970155 | AA102: 0.03096370909 | AB102: 0.1166633163 | AC102: 0.100541726 | AD102: 0.03773626538 | AE102: 0.2918995968 | AF102: 0.5544702386 | AG102: 0.04596480479 | AH102: 0.03342781538 | AI102: 0.03228428571 | AJ102: 0.3701023358 | AK102: 0.1052008559 | AL102: 0.0940803787 | AM102: 0.1008113061 | AN102: 0.1401081025 | AO102: 0.2017428677 | AP102: 0.6109197684 | AQ102: 0.2934613476 | AR102: 0.01230477202 | AS102: 0.1737127824 | AT102: 0.2825651262 | AU102: 0.09661279034 | AV102: 0.05336626738 | AW102: 0.1188660177 | AX102: 0.9230500119 | AY102: 0.04713407841 | AZ102: 0.1524695918 | BA102: 0.03210661818 | BB102: 0.0201213125 | BC102: 0.2103501833 | BD102: 0.0806111653 | BE102: 0.07493629468 | BF102: 0.07067887877 | BG102: 0.0200304 | BH102: 0.03599604706 | BI102: 0.06393818752 | BJ102: 0.2755047865 | BK102: 0.02625453636 | BL102: 0.1764408703 | BM102: 0.5697282132 | BN102: 0.6083811647 | BO102: 0.1156746082 | BP102: 0.1880754237 | BQ102: 0.3883054826 | BR102: 0.1501261716 | BS102: 0.1249595535 | BT102: 0.04306724845 | BU102: 0.5022234205 | BV102: 0.09407990213 | BW102: 0.09110452001 | BX102: 0.5886864432 | BY102: 0.09152845714 | BZ102: 0.2565620129 | CA102: 0.5919379287 | CB102: 0.1168995547 | CC102: 0.0311056 | CD102: 0.0380836 | CE102: 0.0421 | CF102: 0.041866608 | CG102: 0.0429 | CH102: 0.05356964035 | CI102: 0.6304977959 | CJ102: 0.046707852 | CK102: 0.4367995707 | CL102: 0.04894991904 | CM102: 0.03906802286 | CN102: 0.1214598123 | CO102: 0.07621868052 | CP102: 0.03562288 | CQ102: 0.0453028 | CR102: 0.0486056 | CS102: 0.2724085143 | CT102: 0.3031181649 | CU102: 0.0548087156 | CV102: 0.1098212788 | CW102: 0.0411 | CX102: 0.0461028 | CY102: 0.0199028 | CZ102: 0.3742801552 | DA102: 0.05098331429 | DB102: 0.3158447292
A103: =A102+1 -> 480 | C103: 0.0214 | D103: 0.1019 | E103: 0.1147 | F103: 0.6535 | G103: 0.8803 | H103: 0.3278 | I103: 0.5571 | J103: 0.149 | K103: 0.5808 | L103: 0.6543 | M103: 0.1686 | N103: 0.0408 | O103: 0.2773 | P103: 0.0548 | Q103: 0.0388 | R103: 0.0254 | S103: 0.4181 | T103: 0.1785 | U103: 0.1201 | V103: 0.307 | W103: 0.0935 | X103: 0.2468 | Y103: 0.1173 | Z103: 0.7143 | AA103: 0.0311 | AB103: 0.1175 | AC103: 0.1023 | AD103: 0.0377 | AE103: 0.2882 | AF103: 0.5523 | AG103: 0.0467 | AH103: 0.0334 | AI103: 0.0326 | AJ103: 0.3643 | AK103: 0.1028 | AL103: 0.0932 | AM103: 0.1009 | AN103: 0.142 | AO103: 0.2034 | AP103: 0.6112 | AQ103: 0.2951 | AR103: 0.0121 | AS103: 0.1729 | AT103: 0.2832 | AU103: 0.0996 | AV103: 0.0533 | AW103: 0.1194 | AX103: 0.9214 | AY103: 0.0467 | AZ103: 0.1555 | BA103: 0.0321 | BB103: 0.0201 | BC103: 0.2184 | BD103: 0.0822 | BE103: 0.0738 | BF103: 0.0734 | BG103: 0.02 | BH103: 0.036 | BI103: 0.06485 | BJ103: 0.27745 | BK103: 0.0262 | BL103: 0.1813 | BM103: 0.5712 | BN103: 0.61155 | BO103: 0.11825 | BP103: 0.19085 | BQ103: 0.39045 | BR103: 0.14755 | BS103: 0.123 | BT103: 0.0422 | BU103: 0.5035 | BV103: 0.093 | BW103: 0.0896 | BX103: 0.5865 | BY103: 0.0903 | BZ103: 0.2598 | CA103: 0.5899 | CB103: 0.1143 | CC103: 0.0311 | CD103: 0.0381 | CE103: 0.0421 | CF103: 0.0419 | CG103: 0.0429 | CH103: 0.0525 | CI103: 0.6319 | CJ103: 0.0471 | CK103: 0.439 | CL103: 0.0488 | CM103: 0.039 | CN103: 0.1218 | CO103: 0.0763 | CP103: 0.0356 | CQ103: 0.0453 | CR103: 0.0486 | CS103: 0.2723 | CT103: 0.3066 | CU103: 0.0541 | CV103: 0.1109 | CW103: 0.0411 | CX103: 0.0461 | CY103: 0.0199 | CZ103: 0.3714 | DA103: 0.051 | DB103: 0.3143
A104: =A103+1 -> 481 | C104: 0.0214 | D104: 0.1018864 | E104: 0.1149952899 | F104: 0.6518896486 | G104: 0.8807900683 | H104: 0.3287551448 | I104: 0.5619656096 | J104: 0.1463465612 | K104: 0.576506499 | L104: 0.6512467722 | M104: 0.1623406135 | N104: 0.04262467108 | O104: 0.2792445993 | P104: 0.05700419332 | Q104: 0.03914024469 | R104: 0.02529673846 | S104: 0.4217376292 | T104: 0.1832510661 | U104: 0.1178167174 | V104: 0.3092752194 | W104: 0.09686542754 | X104: 0.2447121322 | Y104: 0.1181572537 | Z104: 0.7148599084 | AA104: 0.03131070629 | AB104: 0.118749512 | AC104: 0.1045189319 | AD104: 0.03780481584 | AE104: 0.2844340416 | AF104: 0.5501547825 | AG104: 0.04771591498 | AH104: 0.03343267353 | AI104: 0.03303642066 | AJ104: 0.3584170434 | AK104: 0.100520711 | AL104: 0.09234214558 | AM104: 0.10095845 | AN104: 0.1438542302 | AO104: 0.2050342341 | AP104: 0.6114997227 | AQ104: 0.296737899 | AR104: 0.01190252358 | AS104: 0.1720901803 | AT104: 0.2838013225 | AU104: 0.1025796974 | AV104: 0.05322381812 | AW104: 0.1199542848 | AX104: 0.9197373591 | AY104: 0.04627360524 | AZ104: 0.1589733597 | BA104: 0.03210112857 | BB104: 0.02008524286 | BC104: 0.2265546916 | BD104: 0.08392779204 | BE104: 0.07270039214 | BF104: 0.07605621185 | BG104: 0.0199746 | BH104: 0.03598307692 | BI104: 0.06588029581 | BJ104: 0.279804791 | BK104: 0.02614996364 | BL104: 0.1867418597 | BM104: 0.5726243537 | BN104: 0.6150188226 | BO104: 0.1213050392 | BP104: 0.1938747911 | BQ104: 0.3928429326 | BR104: 0.1454032079 | BS104: 0.1211243499 | BT104: 0.04137399705 | BU104: 0.5047651005 | BV104: 0.09196653324 | BW104: 0.08813803652 | BX104: 0.584303338 | BY104: 0.08910573196 | BZ104: 0.2638367903 | CA104: 0.587937094 | CB104: 0.1119011687 | CC104: 0.0311038 | CD104: 0.038112 | CE104: 0.0421 | CF104: 0.04199923604 | CG104: 0.04291864211 | CH104: 0.05148195471 | CI104: 0.6332577473 | CJ104: 0.04748500797 | CK104: 0.4410972848 | CL104: 0.04865608966 | CM104: 0.03892598442 | CN104: 0.1222801797 | CO104: 0.07639407143 | CP104: 0.03557351 | CQ104: 0.0453029 | CR104: 0.04860666667 | CS104: 0.2721830857 | CT104: 0.3101745081 | CU104: 0.05344829182 | CV104: 0.1119696457 | CW104: 0.04110621538 | CX104: 0.046105152 | CY104: 0.0199028 | CZ104: 0.3685559016 | DA104: 0.05102197604 | DB104: 0.312714355
A105: =A104+1 -> 482 | C105: 0.0214 | D105: 0.1018752 | E105: 0.1152801618 | F105: 0.6502466835 | G105: 0.881309258 | H105: 0.3296874523 | I105: 0.5669174366 | J105: 0.1437946355 | K105: 0.5720104306 | L105: 0.6480463246 | M105: 0.1560606394 | N105: 0.04482018227 | O105: 0.2818049237 | P105: 0.05987584491 | Q105: 0.03955201715 | R105: 0.02519995897 | S105: 0.4254650529 | T105: 0.1887051036 | U105: 0.1155866864 | V105: 0.312063463 | W105: 0.1011496002 | X105: 0.2426864653 | Y105: 0.1192146798 | Z105: 0.7154927971 | AA105: 0.03164998601 | AB105: 0.1206491657 | AC105: 0.1073926178 | AD105: 0.03810201188 | AE105: 0.2804948431 | AF105: 0.5478969496 | AG105: 0.04917330518 | AH105: 0.03352550588 | AI105: 0.03366282903 | AJ105: 0.3522961498 | AK105: 0.09832761943 | AL105: 0.09149513803 | AM105: 0.1010029333 | AN105: 0.1458324132 | AO105: 0.2066513571 | AP105: 0.6118242773 | AQ105: 0.298367499 | AR105: 0.01170874508 | AS105: 0.1712621081 | AT105: 0.2843905074 | AU105: 0.1056195963 | AV105: 0.05313673895 | AW105: 0.1205427983 | AX105: 0.9180355965 | AY105: 0.04584516897 | AZ105: 0.1631182325 | BA105: 0.03210445714 | BB105: 0.02007375238 | BC105: 0.2349527254 | BD105: 0.08586023029 | BE105: 0.07163614709 | BF105: 0.0788514079 | BG105: 0.01995146667 | BH105: 0.03593538462 | BI105: 0.06710804703 | BJ105: 0.2828732303 | BK105: 0.0261017697 | BL105: 0.1930967007 | BM105: 0.5740085149 | BN105: 0.6189959114 | BO105: 0.1251207057 | BP105: 0.1973116671 | BQ105: 0.3956471938 | BR105: 0.1434419668 | BS105: 0.1192827529 | BT105: 0.04057063551 | BU105: 0.5060228177 | BV105: 0.0909484215 | BW105: 0.08668495846 | BX105: 0.5820456186 | BY105: 0.08792482474 | BZ105: 0.2692016981 | CA105: 0.5860229341 | CB105: 0.1096366024 | CC105: 0.0311144 | CD105: 0.03812177778 | CE105: 0.0421 | CF105: 0.04221273258 | CG105: 0.04297250526 | CH105: 0.05048848998 | CI105: 0.6345789994 | CJ105: 0.04786221637 | CK105: 0.4430750376 | CL105: 0.04851382069 | CM105: 0.03884299221 | CN105: 0.1229639543 | CO105: 0.076504 | CP105: 0.03554288 | CQ105: 0.0453112 | CR105: 0.04862592593 | CS105: 0.2720435429 | CT105: 0.3137360056 | CU105: 0.05282030108 | CV105: 0.1130311848 | CW105: 0.04112387692 | CX105: 0.046120096 | CY105: 0.0199104 | CZ105: 0.3656793398 | DA105: 0.05105337512 | DB105: 0.3110366024
A106: =A105+1 -> 483 | C106: 0.0214 | D106: 0.1018658 | E106: 0.1155497483 | F106: 0.6485900307 | G106: 0.8818483095 | H106: 0.3305967244 | I106: 0.5719368487 | J106: 0.1413256087 | K106: 0.5673355492 | L106: 0.6447141336 | M106: 0.1498002468 | N106: 0.04736624594 | O106: 0.2849513596 | P106: 0.06338764181 | Q106: 0.04002430741 | R106: 0.02510916923 | S106: 0.4293121291 | T106: 0.1948342427 | U106: 0.1134085445 | V106: 0.315280245 | W106: 0.106281703 | X106: 0.240708663 | Y106: 0.1204507759 | Z106: 0.7161863062 | AA106: 0.0321003986 | AB106: 0.1231460321 | AC106: 0.1108906139 | AD106: 0.03856571089 | AE106: 0.2764036993 | AF106: 0.5455258335 | AG106: 0.05105112449 | AH106: 0.03367071471 | AI106: 0.03445494465 | AJ106: 0.3459726253 | AK106: 0.09620750866 | AL106: 0.09065389764 | AM106: 0.10103715 | AN106: 0.1478593808 | AO106: 0.2082557662 | AP106: 0.6121643748 | AQ106: 0.2999954205 | AR106: 0.01151956748 | AS106: 0.1704134464 | AT106: 0.2849619961 | AU106: 0.1087196463 | AV106: 0.05303919746 | AW106: 0.1211598478 | AX106: 0.9163187697 | AY106: 0.04541598964 | AZ106: 0.1679225212 | BA106: 0.0321099 | BB106: 0.0200647 | BC106: 0.243592457 | BD106: 0.08798908974 | BE106: 0.07060230444 | BF106: 0.08170461809 | BG106: 0.0199302 | BH106: 0.03586153846 | BI106: 0.06849293324 | BJ106: 0.2865281339 | BK106: 0.02605556364 | BL106: 0.20027575 | BM106: 0.5753588596 | BN106: 0.6234061814 | BO106: 0.1296192611 | BP106: 0.2010756969 | BQ106: 0.398793291 | BR106: 0.1416451777 | BS106: 0.1174795766 | BT106: 0.03979025842 | BU106: 0.5072729951 | BV106: 0.08994852887 | BW106: 0.08524676409 | BX106: 0.5797377936 | BY106: 0.08676012371 | BZ106: 0.2757711133 | CA106: 0.5841428161 | CB106: 0.107490021 | CC106: 0.0311306 | CD106: 0.03813 | CE106: 0.0421 | CF106: 0.04252937227 | CG106: 0.04305849474 | CH106: 0.04952272521 | CI106: 0.6358692962 | CJ106: 0.04823413272 | CK106: 0.4449508091 | CL106: 0.04837290345 | CM106: 0.03875389091 | CN106: 0.1238399606 | CO106: 0.0766285 | CP106: 0.03550937 | CQ106: 0.0453243 | CR106: 0.04865666667 | CS106: 0.2718896 | CT106: 0.3173323293 | CU106: 0.05221644276 | CV106: 0.11409352 | CW106: 0.04115150769 | CX106: 0.046144064 | CY106: 0.0199216 | CZ106: 0.3627711632 | DA106: 0.05109383226 | DB106: 0.3092709197
A107: =A106+1 -> 484 | C107: 0.0214 | D107: 0.1018576 | E107: 0.115799182 | F107: 0.6469386165 | G107: 0.8823979634 | H107: 0.3314827631 | I107: 0.5770052134 | J107: 0.1389208666 | K107: 0.5625056095 | L107: 0.6412656755 | M107: 0.1435996051 | N107: 0.05024257445 | O107: 0.2886542935 | P107: 0.06751227105 | Q107: 0.0405461055 | R107: 0.02502387692 | S107: 0.4333087158 | T107: 0.2016106136 | U107: 0.1112809293 | V107: 0.3188410799 | W107: 0.1121909208 | X107: 0.2387643888 | Y107: 0.1218440394 | Z107: 0.7169280756 | AA107: 0.0326445035 | AB107: 0.1261871819 | AC107: 0.1149824765 | AD107: 0.03917003564 | AE107: 0.2721819053 | AF107: 0.5430407665 | AG107: 0.05332832676 | AH107: 0.03386051765 | AI107: 0.03538848708 | AJ107: 0.339481776 | AK107: 0.09414716208 | AL107: 0.08981334471 | AM107: 0.1010648 | AN107: 0.1498599648 | AO107: 0.2098518586 | AP107: 0.6125107266 | AQ107: 0.3016282842 | AR107: 0.01133589377 | AS107: 0.1695418581 | AT107: 0.2855102299 | AU107: 0.1118797972 | AV107: 0.05293162862 | AW107: 0.1217997404 | AX107: 0.9146109359 | AY107: 0.04498736572 | AZ107: 0.1733741282 | BA107: 0.03211737143 | BB107: 0.02005725714 | BC107: 0.2524722423 | BD107: 0.09030614541 | BE107: 0.06959390381 | BF107: 0.08453487235 | BG107: 0.0199104 | BH107: 0.03576615385 | BI107: 0.069994634 | BJ107: 0.2906423176 | BK107: 0.02601149091 | BL107: 0.2081902347 | BM107: 0.5766817639 | BN107: 0.6281745475 | BO107: 0.1347229668 | BP107: 0.2050819493 | BQ107: 0.4022117316 | BR107: 0.1399917416 | BS107: 0.1157191886 | BT107: 0.03903320885 | BU107: 0.5085154766 | BV107: 0.08896971947 | BW107: 0.08382945166 | BX107: 0.5773908145 | BY107: 0.08561447423 | BZ107: 0.2834214262 | CA107: 0.5822820355 | CB107: 0.1054451444 | CC107: 0.0311512 | CD107: 0.03813733333 | CE107: 0.0421 | CF107: 0.04293803775 | CG107: 0.04317351579 | CH107: 0.0485877798 | CI107: 0.6371341779 | CJ107: 0.0486032645 | CK107: 0.4467421501 | CL107: 0.04823304828 | CM107: 0.03866154805 | CN107: 0.1248968358 | CO107: 0.07676628571 | CP107: 0.03547424 | CQ107: 0.0453416 | CR107: 0.04869777778 | CS107: 0.2717294857 | CT107: 0.3210113155 | CU107: 0.05163713182 | CV107: 0.1151655543 | CW107: 0.04118763077 | CX107: 0.046176288 | CY107: 0.0199352 | CZ107: 0.3598322205 | DA107: 0.05114298249 | DB107: 0.3074214843
